Workbook

Sheet Intro
A1: nbn Public Core Services Building Block Model
A4: This document is a public version of the building block model provided by nbn to the ACCC in connection with nbn’s SAU Variation lodged in March 2022 and shows data related to ‘Core Services’ as defined in the SAU Variation. The information in this document is provided solely for the purpose of assisting the ACCC in its assessment of nbn’s SAU Variation and should not be relied on for any other purpose. Any forecast values or indicative estimates in this document reflect nbn’s views and assumptions based on its most recent Integrated Operating Plan (as at August 2021), which included a considered assessment of economic and operating conditions at the time they were made. Any forecasts or indicative estimates are inherently uncertain and subject to a range of risks such that actual performance may differ materially from those forecasts or indicative estimates. Forecasts relating to the period from FY22 to FY25 were previously signed off by nbn’s Board and Shareholders. Any values relating to the period from FY26 onwards are indicative estimates prepared for accounting valuation purposes only and do not reflect an operational forecast – they have not been approved by nbn’s Board or Shareholders and do not include the full potential capex requirements (or specific operational timing) to meet future customer demand and network lifecycle requirements over time. This document allows the user to edit the content to produce different outputs. nbn does not endorse any such different inputs or outputs; such different values should not be relied upon as representing or reflecting nbn’s position.
B8: Public Version
D10: The public BBM only contains information relating to core services, competitive services information has been ommitted.
D14: Cells of this colour in the Dashboard are editable by users

Sheet User Sheets->

Sheet Dashboard
B2: Dashboard Core
B3: Public Version
B4: This document is a public version of the building block model provided by nbn to the ACCC in connection with nbn’s SAU Variation lodged in March 2022 and shows data related to ‘Core Services’ as defined in the SAU Variation. The information in this document is provided solely for the purpose of assisting the ACCC in its assessment of nbn’s SAU Variation and should not be relied on for any other purpose. Any forecast values or indicative estimates in this document reflect nbn’s views and assumptions based on its most recent Integrated Operating Plan (as at August 2021), which included a considered assessment of economic and operating conditions at the time they were made. Any forecasts or indicative estimates are inherently uncertain and subject to a range of risks such that actual performance may differ materially from those forecasts or indicative estimates. Forecasts relating to the period from FY22 to FY25 were previously signed off by nbn’s Board and Shareholders. Any values relating to the period from FY26 onwards are indicative estimates prepared for accounting valuation purposes only and do not reflect an operational forecast – they have not been approved by nbn’s Board or Shareholders and do not include the full potential capex requirements (or specific operational timing) to meet future customer demand and network lifecycle requirements over time. This document allows the user to edit the content to produce different outputs. nbn does not endorse any such different inputs or outputs; such different values should not be relied upon as representing or reflecting nbn’s position.
G6: Cost Commencement Year | L6: First Financial Year
C7: SAU Year: | G7: =H7-1 -> -4 | H7: =I7-1 -> -3 | I7: =J7-1 -> -2 | J7: =K7-1 -> -1 | K7: =L7-1 -> 0 | L7: 1 | M7: =L7+1 -> 2 | N7: 3 | O7: 4 | P7: 5 | Q7: 6 | R7: 7 | S7: 8 | T7: 9 | U7: 10 | V7: 11 | W7: 12 | X7: 13 | Y7: 14 | Z7: 15 | AA7: 16 | AB7: 17 | AC7: =AB7+1 -> 18 | AD7: 19 | AE7: 20 | AF7: 21 | AG7: 22 | AH7: 23 | AI7: 24 | AJ7: 25 | AK7: 26 | AL7: 27
C8: Spreadsheet Year: | G8: 1 | H8: =G8+1 -> 2 | I8: =H8+1 -> 3 | J8: 4 | K8: 5 | L8: 6 | M8: 7 | N8: 8 | O8: 9 | P8: 10 | Q8: 11 | R8: 12 | S8: 13 | T8: 14 | U8: 15 | V8: 16 | W8: 17 | X8: 18 | Y8: 19 | Z8: 20 | AA8: 21 | AB8: 22 | AC8: 23 | AD8: 24 | AE8: 25 | AF8: 26 | AG8: 27 | AH8: 28 | AI8: 29 | AJ8: 30 | AK8: 31 | AL8: 32
B9: Year | F9: 2007-08 | G9: =CONCATENATE(LEFT(F9, 4)+1 &"-" &IF(F9>"2007-08",,"0") &RIGHT(F9,2)+1) -> 2008-09 | H9: 2009-10 | I9: 2010-11 | J9: 2011-12 | K9: 2012-13 | L9: 2013-14 | M9: 2014-15 | N9: 2015-16 | O9: 2016-17 | P9: 2017-18 | Q9: 2018-19 | R9: 2019-20 | S9: =CONCATENATE(LEFT(R9, 4)+1 &"-" &IF(R9>"2007-08",,"0") &RIGHT(R9,2)+1) -> 2020-21 | T9: 2021-22 | U9: 2022-23 | V9: 2023-24 | W9: 2024-25 | X9: 2025-26 | Y9: 2026-27 | Z9: 2027-28 | AA9: 2028-29 | AB9: 2029-30 | AC9: 2030-31 | AD9: 2031-32 | AE9: 2032-33 | AF9: 2033-34 | AG9: 2034-35 | AH9: 2035-36 | AI9: 2036-37 | AJ9: 2037-38 | AK9: 2038-39 | AL9: 2039-40
B11: June Quarter CPI (annual percentage change) - as per Dictionary | G11: ='Nominal Inputs Data'!G8 -> 0.01419213974 | H11: ='Nominal Inputs Data'!H8 -> 0.03121636168 | I11: ='Nominal Inputs Data'!I8 -> 0.03549060543 | J11: ='Nominal Inputs Data'!J8 -> 0.01209677419 | K11: ='Nominal Inputs Data'!K8 -> 0.02390438247 | L11: ='Nominal Inputs Data'!L8 -> 0.03015564202 | M11: ='Nominal Inputs Data'!M8 -> 0.01510859301 | N11: ='Nominal Inputs Data'!N8 -> 0.01023255814 | O11: ='Nominal Inputs Data'!O8 -> 0.01933701657 | P11: ='Nominal Inputs Data'!P8 -> 0.02077687444 | Q11: ='Nominal Inputs Data'!Q8 -> 0.01592920354 | R11: ='Nominal Inputs Data'!R8 -> -0.003484320557 | S11: ='Nominal Inputs Data'!S8 -> 0.03846153846 | T11: ='Nominal Inputs Data'!T8 -> 0.0225 | U11: ='Nominal Inputs Data'!U8 -> 0.0225 | V11: ='Nominal Inputs Data'!V8 -> 0.02375 | W11: ='Nominal Inputs Data'!W8 -> 0.02375 | X11: ='Nominal Inputs Data'!X8 -> 0.025 | Y11: ='Nominal Inputs Data'!Y8 -> 0.025 | Z11: ='Nominal Inputs Data'!Z8 -> 0.025 | AA11: ='Nominal Inputs Data'!AA8 -> 0.025 | AB11: ='Nominal Inputs Data'!AB8 -> 0.025 | AC11: ='Nominal Inputs Data'!AC8 -> 0.025 | AD11: ='Nominal Inputs Data'!AD8 -> 0.025 | AE11: ='Nominal Inputs Data'!AE8 -> 0.025 | AF11: ='Nominal Inputs Data'!AF8 -> 0.025 | AG11: ='Nominal Inputs Data'!AG8 -> 0.025 | AH11: ='Nominal Inputs Data'!AH8 -> 0.025 | AI11: ='Nominal Inputs Data'!AI8 -> 0.025 | AJ11: ='Nominal Inputs Data'!AJ8 -> 0.025 | AK11: ='Nominal Inputs Data'!AK8 -> 0.025 | AL11: ='Nominal Inputs Data'!AL8 -> 0.025
B12: Cumulative Inflation Factor - as per Clauses 1E.9.4(b) and (c) | G12: ='Nominal Inputs Data'!G9 -> 0.8772426818 | H12: ='Nominal Inputs Data'!H9 -> 0.9046270066 | I12: ='Nominal Inputs Data'!I9 -> 0.9367327668 | J12: ='Nominal Inputs Data'!J9 -> 0.9480642115 | K12: ='Nominal Inputs Data'!K9 -> 0.970727101 | L12: ='Nominal Inputs Data'!L9 -> 1 | M12: ='Nominal Inputs Data'!M9 -> 1.015108593 | N12: ='Nominal Inputs Data'!N9 -> 1.025495751 | O12: ='Nominal Inputs Data'!O9 -> 1.045325779 | P12: ='Nominal Inputs Data'!P9 -> 1.067044381 | Q12: ='Nominal Inputs Data'!Q9 -> 1.084041549 | R12: ='Nominal Inputs Data'!R9 -> 1.0802644 | S12: ='Nominal Inputs Data'!S9 -> 1.121813031 | T12: ='Nominal Inputs Data'!T9 -> 1.147053824 | U12: ='Nominal Inputs Data'!U9 -> 1.172862535 | V12: ='Nominal Inputs Data'!V9 -> 1.200718021 | W12: ='Nominal Inputs Data'!W9 -> 1.229235074 | X12: ='Nominal Inputs Data'!X9 -> 1.25996595 | Y12: ='Nominal Inputs Data'!Y9 -> 1.291465099 | Z12: ='Nominal Inputs Data'!Z9 -> 1.323751727 | AA12: ='Nominal Inputs Data'!AA9 -> 1.35684552 | AB12: ='Nominal Inputs Data'!AB9 -> 1.390766658 | AC12: ='Nominal Inputs Data'!AC9 -> 1.425535824 | AD12: ='Nominal Inputs Data'!AD9 -> 1.46117422 | AE12: ='Nominal Inputs Data'!AE9 -> 1.497703575 | AF12: ='Nominal Inputs Data'!AF9 -> 1.535146165 | AG12: ='Nominal Inputs Data'!AG9 -> 1.573524819 | AH12: ='Nominal Inputs Data'!AH9 -> 1.612862939 | AI12: ='Nominal Inputs Data'!AI9 -> 1.653184513 | AJ12: ='Nominal Inputs Data'!AJ9 -> 1.694514126 | AK12: ='Nominal Inputs Data'!AK9 -> 1.736876979 | AL12: ='Nominal Inputs Data'!AL9 -> 1.780298903
X14: Annual growth rates | AN14: Base Figures
B15: Core Regulated Capex | X15: 0.07897959475 | Y15: 0.08571825818 | Z15: -0.009688922344 | AA15: -0.03828435567 | AB15: -0.1420844969 | AC15: -0.04910182122 | AD15: 0.06339999333 | AE15: 0.01699990139 | AF15: 0.008812316223 | AG15: -0.05276314624 | AH15: -0.05357339992 | AI15: 0.006998990708 | AJ15: 0.0211054522 | AK15: 0.02116018668 | AL15: 0.02124686354 | AN15: 0.07897959475 | AO15: 0.08571825818 | AP15: -0.009688922344 | AQ15: -0.03828435567 | AR15: -0.1420844969 | AS15: -0.04910182122 | AT15: 0.06339999333 | AU15: 0.01699990139 | AV15: 0.008812316223 | AW15: -0.05276314624 | AX15: -0.05357339992 | AY15: 0.006998990708 | AZ15: 0.0211054522 | BA15: 0.02116018668 | BB15: 0.02124686354
B16: Customers | X16: 0.01884222482 | Y16: 0.01661294056 | Z16: 0.01422168597 | AA16: 0.01354101588 | AB16: 0.01330606869 | AC16: 0.0130098035 | AD16: 0.01289597764 | AE16: 0.01273199023 | AF16: 0.01267585686 | AG16: 0.01234885574 | AH16: 0.01236460029 | AI16: 0.01207827381 | AJ16: 0.01206716291 | AK16: 0.01177696066 | AL16: 0.01177682236 | AN16: 0.01884222482 | AO16: 0.01661294056 | AP16: 0.01422168597 | AQ16: 0.01354101588 | AR16: 0.01330606869 | AS16: 0.0130098035 | AT16: 0.01289597764 | AU16: 0.01273199023 | AV16: 0.01267585686 | AW16: 0.01234885574 | AX16: 0.01236460029 | AY16: 0.01207827381 | AZ16: 0.01206716291 | BA16: 0.01177696066 | BB16: 0.01177682236
B17: WACC | X17: 0.071 | Y17: 0.071 | Z17: 0.071 | AA17: 0.071 | AB17: 0.071 | AC17: 0.071 | AD17: 0.071 | AE17: 0.071 | AF17: 0.071 | AG17: 0.071 | AH17: 0.071 | AI17: 0.071 | AJ17: 0.071 | AK17: 0.071 | AL17: 0.071 | AN17: 0.071 | AO17: 0.071 | AP17: 0.071 | AQ17: 0.071 | AR17: 0.071 | AS17: 0.071 | AT17: 0.071 | AU17: 0.071 | AV17: 0.071 | AW17: 0.071 | AX17: 0.071 | AY17: 0.071 | AZ17: 0.071 | BA17: 0.071 | BB17: 0.071
B18: CPI | X18: 0.025 | Y18: 0.025 | Z18: 0.025 | AA18: 0.025 | AB18: 0.025 | AC18: 0.025 | AD18: 0.025 | AE18: 0.025 | AF18: 0.025 | AG18: 0.025 | AH18: 0.025 | AI18: 0.025 | AJ18: 0.025 | AK18: 0.025 | AL18: 0.025 | AN18: 0.025 | AO18: 0.025 | AP18: 0.025 | AQ18: 0.025 | AR18: 0.025 | AS18: 0.025 | AT18: 0.025 | AU18: 0.025 | AV18: 0.025 | AW18: 0.025 | AX18: 0.025 | AY18: 0.025 | AZ18: 0.025 | BA18: 0.025 | BB18: 0.025
B19: Opex | X19: 0.01401610804 | Y19: 0.01595692569 | Z19: 0.01813402763 | AA19: 0.01767063474 | AB19: 0.03543927548 | AC19: 0.001973097132 | AD19: 0.02000646276 | AE19: 0.02022946115 | AF19: 0.02037952181 | AG19: 0.02109416864 | AH19: 0.02244178955 | AI19: 0.0230388024 | AJ19: 0.02333579883 | AK19: 0.02358334262 | AL19: 0.02367412012 | AN19: 0.01401610804 | AO19: 0.01595692569 | AP19: 0.01813402763 | AQ19: 0.01767063474 | AR19: 0.03543927548 | AS19: 0.001973097132 | AT19: 0.02000646276 | AU19: 0.02022946115 | AV19: 0.02037952181 | AW19: 0.02109416864 | AX19: 0.02244178955 | AY19: 0.0230388024 | AZ19: 0.02333579883 | BA19: 0.02358334262 | BB19: 0.02367412012
B21: Asset Life Multiplier (increases asset lives from FY26, affects depreciation rates of capex spent before FY26) | X21: 1
B22: Percentage of Shared costs Allocated to Core (overides the allocation methodology)* | W22: Off | X22: 1
B23: * CAGR does not apply to shared assets when overide is active
V24: =INDEX('Financeability Test'!$E$47:$N$47,1,MATCH(V25,'Financeability Test'!$E$48:$N$48,0)) -> 3 | W24: =INDEX('Financeability Test'!$E$47:$N$47,1,MATCH(W25,'Financeability Test'!$E$48:$N$48,0)) -> 3 | X24: =INDEX('Financeability Test'!$E$47:$N$47,1,MATCH(X25,'Financeability Test'!$E$48:$N$48,0)) -> 3 | Y24: =INDEX('Financeability Test'!$E$47:$N$47,1,MATCH(Y25,'Financeability Test'!$E$48:$N$48,0)) -> 4 | Z24: =INDEX('Financeability Test'!$E$47:$N$47,1,MATCH(Z25,'Financeability Test'!$E$48:$N$48,0)) -> 4 | AA24: =INDEX('Financeability Test'!$E$47:$N$47,1,MATCH(AA25,'Financeability Test'!$E$48:$N$48,0)) -> 4 | AB24: =INDEX('Financeability Test'!$E$47:$N$47,1,MATCH(AB25,'Financeability Test'!$E$48:$N$48,0)) -> 4 | AC24: =INDEX('Financeability Test'!$E$47:$N$47,1,MATCH(AC25,'Financeability Test'!$E$48:$N$48,0)) -> 4 | AD24: =INDEX('Financeability Test'!$E$47:$N$47,1,MATCH(AD25,'Financeability Test'!$E$48:$N$48,0)) -> 5 | AE24: =INDEX('Financeability Test'!$E$47:$N$47,1,MATCH(AE25,'Financeability Test'!$E$48:$N$48,0)) -> 5 | AF24: =INDEX('Financeability Test'!$E$47:$N$47,1,MATCH(AF25,'Financeability Test'!$E$48:$N$48,0)) -> 6 | AG24: =INDEX('Financeability Test'!$E$47:$N$47,1,MATCH(AG25,'Financeability Test'!$E$48:$N$48,0)) -> 6 | AH24: =INDEX('Financeability Test'!$E$47:$N$47,1,MATCH(AH25,'Financeability Test'!$E$48:$N$48,0)) -> 6 | AI24: =INDEX('Financeability Test'!$E$47:$N$47,1,MATCH(AI25,'Financeability Test'!$E$48:$N$48,0)) -> 5 | AJ24: =INDEX('Financeability Test'!$E$47:$N$47,1,MATCH(AJ25,'Financeability Test'!$E$48:$N$48,0)) -> 5 | AK24: =INDEX('Financeability Test'!$E$47:$N$47,1,MATCH(AK25,'Financeability Test'!$E$48:$N$48,0)) -> 5 | AL24: =INDEX('Financeability Test'!$E$47:$N$47,1,MATCH(AL25,'Financeability Test'!$E$48:$N$48,0)) -> 5
B25: Weighted credit rating of a Benchmark Firm | V25: ='Financeability Test'!E31 -> A | W25: ='Financeability Test'!F31 -> A | X25: ='Financeability Test'!G31 -> A | Y25: ='Financeability Test'!H31 -> Baa1 | Z25: ='Financeability Test'!I31 -> Baa1 | AA25: ='Financeability Test'!J31 -> Baa1 | AB25: ='Financeability Test'!K31 -> Baa1 | AC25: ='Financeability Test'!L31 -> Baa1 | AD25: ='Financeability Test'!M31 -> Baa2 | AE25: ='Financeability Test'!N31 -> Baa2 | AF25: ='Financeability Test'!O31 -> Baa3 | AG25: ='Financeability Test'!P31 -> Baa3 | AH25: ='Financeability Test'!Q31 -> Baa3 | AI25: ='Financeability Test'!R31 -> Baa2 | AJ25: ='Financeability Test'!S31 -> Baa2 | AK25: ='Financeability Test'!T31 -> Baa2 | AL25: ='Financeability Test'!U31 -> Baa2
B26: Connected Premises | G26: 1 | H26: 1 | I26: 167 | J26: 13536 | K26: 70100 | L26: 210628 | M26: 485615 | N26: 1099402 | O26: 2444208 | P26: 4035464 | Q26: 5532088 | R26: 7267394 | S26: 7859619 | T26: 8363087.518 | U26: 8566946.245 | V26: 8791532.627 | W26: 8968410.199 | X26: =W26*(1+Dashboard!X$16) -> 9137395 | Y26: =X26*(1+Dashboard!Y$16) -> 9289194 | Z26: =Y26*(1+Dashboard!Z$16) -> 9421302 | AA26: =Z26*(1+Dashboard!AA$16) -> 9548876 | AB26: =AA26*(1+Dashboard!AB$16) -> 9675934 | AC26: =AB26*(1+Dashboard!AC$16) -> 9801816 | AD26: =AC26*(1+Dashboard!AD$16) -> 9928220 | AE26: =AD26*(1+Dashboard!AE$16) -> 10054626 | AF26: =AE26*(1+Dashboard!AF$16) -> 10182077 | AG26: =AF26*(1+Dashboard!AG$16) -> 10307814 | AH26: =AG26*(1+Dashboard!AH$16) -> 10435266 | AI26: =AH26*(1+Dashboard!AI$16) -> 10561306 | AJ26: =AI26*(1+Dashboard!AJ$16) -> 10688751 | AK26: =AJ26*(1+Dashboard!AK$16) -> 10814632 | AL26: =AK26*(1+Dashboard!AL$16) -> 10941994
B27: Average Asset Life (RAB divided by Depreciation) | I27: ='RAB, ABBRR & ICRA'!I19/'RAB, ABBRR & ICRA'!I22 -> 6.106162625 | J27: ='RAB, ABBRR & ICRA'!J19/'RAB, ABBRR & ICRA'!J22 -> 4.511191333 | K27: ='RAB, ABBRR & ICRA'!K19/'RAB, ABBRR & ICRA'!K22 -> 4.196702007 | L27: ='RAB, ABBRR & ICRA'!L19/'RAB, ABBRR & ICRA'!L22 -> 5.237023058 | M27: ='RAB, ABBRR & ICRA'!M19/'RAB, ABBRR & ICRA'!M22 -> 10.05331603 | N27: ='RAB, ABBRR & ICRA'!N19/'RAB, ABBRR & ICRA'!N22 -> 10.8937583 | O27: ='RAB, ABBRR & ICRA'!O19/'RAB, ABBRR & ICRA'!O22 -> 11.76478986 | P27: ='RAB, ABBRR & ICRA'!P19/'RAB, ABBRR & ICRA'!P22 -> 10.2057057 | Q27: ='RAB, ABBRR & ICRA'!Q19/'RAB, ABBRR & ICRA'!Q22 -> 9.2714448 | R27: ='RAB, ABBRR & ICRA'!R19/'RAB, ABBRR & ICRA'!R22 -> 9.041928826 | S27: ='RAB, ABBRR & ICRA'!S19/'RAB, ABBRR & ICRA'!S22 -> 9.282317039 | T27: ='RAB, ABBRR & ICRA'!T19/'RAB, ABBRR & ICRA'!T22 -> 8.37703164 | U27: ='RAB, ABBRR & ICRA'!U19/'RAB, ABBRR & ICRA'!U22 -> 8.078978968 | V27: ='RAB, ABBRR & ICRA'!V19/'RAB, ABBRR & ICRA'!V22 -> 7.657375813 | W27: ='RAB, ABBRR & ICRA'!W19/'RAB, ABBRR & ICRA'!W22 -> 7.359998635 | X27: ='RAB, ABBRR & ICRA'!X19/'RAB, ABBRR & ICRA'!X22 -> 7.488881422 | Y27: ='RAB, ABBRR & ICRA'!Y19/'RAB, ABBRR & ICRA'!Y22 -> 7.660524542 | Z27: ='RAB, ABBRR & ICRA'!Z19/'RAB, ABBRR & ICRA'!Z22 -> 7.997772703 | AA27: ='RAB, ABBRR & ICRA'!AA19/'RAB, ABBRR & ICRA'!AA22 -> 8.162500492 | AB27: ='RAB, ABBRR & ICRA'!AB19/'RAB, ABBRR & ICRA'!AB22 -> 8.144268636 | AC27: ='RAB, ABBRR & ICRA'!AC19/'RAB, ABBRR & ICRA'!AC22 -> 8.324879957 | AD27: ='RAB, ABBRR & ICRA'!AD19/'RAB, ABBRR & ICRA'!AD22 -> 8.543982964 | AE27: ='RAB, ABBRR & ICRA'!AE19/'RAB, ABBRR & ICRA'!AE22 -> 8.758794315 | AF27: ='RAB, ABBRR & ICRA'!AF19/'RAB, ABBRR & ICRA'!AF22 -> 9.047303966 | AG27: ='RAB, ABBRR & ICRA'!AG19/'RAB, ABBRR & ICRA'!AG22 -> 9.249878904 | AH27: ='RAB, ABBRR & ICRA'!AH19/'RAB, ABBRR & ICRA'!AH22 -> 9.277452487 | AI27: ='RAB, ABBRR & ICRA'!AI19/'RAB, ABBRR & ICRA'!AI22 -> 9.17265141 | AJ27: ='RAB, ABBRR & ICRA'!AJ19/'RAB, ABBRR & ICRA'!AJ22 -> 8.94370397 | AK27: ='RAB, ABBRR & ICRA'!AK19/'RAB, ABBRR & ICRA'!AK22 -> 8.733545275 | AL27: ='RAB, ABBRR & ICRA'!AL19/'RAB, ABBRR & ICRA'!AL22 -> 8.578440459
B29: $ Nominal
B30: Capex | G30: =G39*G12 -> 0 | H30: 7609.074331 | I30: 256271.0426 | J30: 481499.3418 | K30: 1028291.265 | L30: 1596522.495 | M30: 2166853.604 | N30: 4523444.294 | O30: 6026915.508 | P30: 6143359.711 | Q30: 5740782.23 | R30: 6574891.344 | S30: 3222551.596 | T30: 2746689.326 | U30: 3053038.276 | V30: 2504306.148 | W30: 1765151.658 | X30: 1904821.986 | Y30: 2068164.507 | Z30: 2048086.182 | AA30: 1969598.007 | AB30: 1689626.325 | AC30: 1606562.276 | AD30: 1708377.713 | AE30: 1737351.596 | AF30: 1752558.19 | AG30: 1660113.913 | AH30: 1571343.434 | AI30: 1582424.168 | AJ30: 1615834.596 | AK30: 1650038.396 | AL30: 1685108.91
B31: Opex | G31: ='RAB, ABBRR & ICRA'!G37 -> 136.8460276 | H31: ='RAB, ABBRR & ICRA'!H37 -> 82339.8158 | I31: ='RAB, ABBRR & ICRA'!I37 -> 332578.5251 | J31: ='RAB, ABBRR & ICRA'!J37 -> 490663.7456 | K31: ='RAB, ABBRR & ICRA'!K37 -> 773948.0954 | L31: ='RAB, ABBRR & ICRA'!L37 -> 1215514.36 | M31: ='RAB, ABBRR & ICRA'!M37 -> 1591219 | N31: ='RAB, ABBRR & ICRA'!N37 -> 2259775.426 | O31: ='RAB, ABBRR & ICRA'!O37 -> 3726985.954 | P31: ='RAB, ABBRR & ICRA'!P37 -> 4322534 | Q31: ='RAB, ABBRR & ICRA'!Q37 -> 4454260.383 | R31: ='RAB, ABBRR & ICRA'!R37 -> 5196145.904 | S31: ='RAB, ABBRR & ICRA'!S37 -> 4159769.894 | T31: ='RAB, ABBRR & ICRA'!T37 -> 3043503.472 | U31: ='RAB, ABBRR & ICRA'!U37 -> 2748729.381 | V31: ='RAB, ABBRR & ICRA'!V37 -> 2633789.559 | W31: ='RAB, ABBRR & ICRA'!W37 -> 2600832.76 | X31: ='RAB, ABBRR & ICRA'!X37 -> 2637286.313 | Y31: ='RAB, ABBRR & ICRA'!Y37 -> 2679369.295 | Z31: ='RAB, ABBRR & ICRA'!Z37 -> 2727957.052 | AA31: ='RAB, ABBRR & ICRA'!AA37 -> 2776161.784 | AB31: ='RAB, ABBRR & ICRA'!AB37 -> 2874546.946 | AC31: ='RAB, ABBRR & ICRA'!AC37 -> 2880218.707 | AD31: ='RAB, ABBRR & ICRA'!AD37 -> 2937841.695 | AE31: ='RAB, ABBRR & ICRA'!AE37 -> 2997272.65 | AF31: ='RAB, ABBRR & ICRA'!AF37 -> 3058355.633 | AG31: ='RAB, ABBRR & ICRA'!AG37 -> 3122869.102 | AH31: ='RAB, ABBRR & ICRA'!AH37 -> 3192951.874 | AI31: ='RAB, ABBRR & ICRA'!AI37 -> 3266513.661 | AJ31: ='RAB, ABBRR & ICRA'!AJ37 -> 3342740.367 | AK31: ='RAB, ABBRR & ICRA'!AK37 -> 3421573.358 | AL31: ='RAB, ABBRR & ICRA'!AL37 -> 3502576.097
B32: Core Services Revenue Cap | V32: ='Rev Cap ICRA & IOP'!V31/1000 -> 8012302.244 | W32: ='Rev Cap ICRA & IOP'!W31/1000 -> 8072586.624 | X32: ='Rev Cap ICRA & IOP'!X31/1000 -> 7876594.162 | Y32: ='Rev Cap ICRA & IOP'!Y31/1000 -> 7803196.74 | Z32: ='Rev Cap ICRA & IOP'!Z31/1000 -> 7731827.041 | AA32: ='Rev Cap ICRA & IOP'!AA31/1000 -> 7785810.464 | AB32: ='Rev Cap ICRA & IOP'!AB31/1000 -> 7965084.214 | AC32: ='Rev Cap ICRA & IOP'!AC31/1000 -> 7942553.122 | AD32: ='Rev Cap ICRA & IOP'!AD31/1000 -> 8002108.892 | AE32: ='Rev Cap ICRA & IOP'!AE31/1000 -> 8112247.596 | AF32: ='Rev Cap ICRA & IOP'!AF31/1000 -> 8240390.072 | AG32: ='Rev Cap ICRA & IOP'!AG31/1000 -> 8426212.078 | AH32: ='Rev Cap ICRA & IOP'!AH31/1000 -> 8664052 | AI32: ='Rev Cap ICRA & IOP'!AI31/1000 -> 9585529.59 | AJ32: ='Rev Cap ICRA & IOP'!AJ31/1000 -> 10033562.17 | AK32: ='Rev Cap ICRA & IOP'!AK31/1000 -> 10434472.86 | AL32: ='Rev Cap ICRA & IOP'!AL31/1000 -> 10833949.06
B33: Forecast Core Services Revenue | G33: ='Nominal Inputs'!G40 -> 0 | H33: ='Nominal Inputs'!H40 -> 0 | I33: ='Nominal Inputs'!I40 -> 0 | J33: ='Nominal Inputs'!J40 -> 1909.577914 | K33: ='Nominal Inputs'!K40 -> 16721.46395 | L33: ='Nominal Inputs'!L40 -> 60957.912 | M33: ='Nominal Inputs'!M40 -> 163866.7041 | N33: ='Nominal Inputs'!N40 -> 421454.9125 | O33: ='Nominal Inputs'!O40 -> 1001002.397 | P33: ='Nominal Inputs'!P40 -> 1978206 | Q33: ='Nominal Inputs'!Q40 -> 2824879.283 | R33: ='Nominal Inputs'!R40 -> 3812808.751 | S33: ='Nominal Inputs'!S40 -> 4595557.269 | T33: ='Nominal Inputs'!T40 -> 5069584.529 | U33: ='Nominal Inputs'!U40 -> 5268749.037 | V33: ='Nominal Inputs'!V40 -> 5651937.517 | W33: ='Nominal Inputs'!W40 -> 5950250.867 | X33: ='Nominal Inputs'!X40 -> 6295067.46 | Y33: ='Nominal Inputs'!Y40 -> 6484744.662 | Z33: ='Nominal Inputs'!Z40 -> 6678417.083 | AA33: ='Nominal Inputs'!AA40 -> 6899534.218 | AB33: ='Nominal Inputs'!AB40 -> 7125063.058 | AC33: ='Nominal Inputs'!AC40 -> 7350758.217 | AD33: ='Nominal Inputs'!AD40 -> 7583453.781 | AE33: ='Nominal Inputs'!AE40 -> 7822547.708 | AF33: ='Nominal Inputs'!AF40 -> 8047413.727 | AG33: ='Nominal Inputs'!AG40 -> 8278569.528 | AH33: ='Nominal Inputs'!AH40 -> 8517549.28 | AI33: ='Nominal Inputs'!AI40 -> 8764286.432 | AJ33: ='Nominal Inputs'!AJ40 -> 9017276.978 | AK33: ='Nominal Inputs'!AK40 -> 9276603.82 | AL33: ='Nominal Inputs'!AL40 -> 9542444.09
B34: Core Services Revenue Cap Per Premise Connected Per Month | V34: =(V32/(Dashboard!V26))/0.012 -> 75.94715074 | W34: =(W32/(Dashboard!W26))/0.012 -> 75.00945397 | X34: =(X32/(Dashboard!X26))/0.012 -> 71.83478955 | Y34: =(Y32/(Dashboard!Y26))/0.012 -> 70.00245608 | Z34: =(Z32/(Dashboard!Z26))/0.012 -> 68.38958353 | AA34: =(AA32/(Dashboard!AA26))/0.012 -> 67.9470064 | AB34: =(AB32/(Dashboard!AB26))/0.012 -> 68.59875417 | AC34: =(AC32/(Dashboard!AC26))/0.012 -> 67.52620401 | AD34: =(AD32/(Dashboard!AD26))/0.012 -> 67.16636091 | AE34: =(AE32/(Dashboard!AE26))/0.012 -> 67.23478655 | AF34: =(AF32/(Dashboard!AF26))/0.012 -> 67.44195439 | AG34: =(AG32/(Dashboard!AG26))/0.012 -> 68.12155709 | AH34: =(AH32/(Dashboard!AH26))/0.012 -> 69.18887677 | AI34: =(AI32/(Dashboard!AI26))/0.012 -> 75.63402977 | AJ34: =(AJ32/(Dashboard!AJ26))/0.012 -> 78.22524644 | AK34: =(AK32/(Dashboard!AK26))/0.012 -> 80.40397534 | AL34: =(AL32/(Dashboard!AL26))/0.012 -> 82.51047187
B35: Forecast Core Services Revenue Per Premise Connected Per Month | G35: =(G33/(Dashboard!G26))/0.012 -> 0 | H35: =(H33/(Dashboard!H26))/0.012 -> 0 | I35: =(I33/(Dashboard!I26))/0.012 -> 0 | J35: =(J33/(Dashboard!J26))/0.012 -> 11.75616821 | K35: =(K33/(Dashboard!K26))/0.012 -> 19.87810741 | L35: =(L33/(Dashboard!L26))/0.012 -> 24.11752474 | M35: =(M33/(Dashboard!M26))/0.012 -> 28.12013359 | N35: =(N33/(Dashboard!N26))/0.012 -> 31.94576934 | O35: =(O33/(Dashboard!O26))/0.012 -> 34.12838286 | P35: =(P33/(Dashboard!P26))/0.012 -> 40.85044496 | Q35: =(Q33/(Dashboard!Q26))/0.012 -> 42.55293967 | R35: =(R33/(Dashboard!R26))/0.012 -> 43.72049494 | S35: =(S33/(Dashboard!S26))/0.012 -> 48.72540332 | T35: =(T33/(Dashboard!T26))/0.012 -> 50.51547966 | U35: =(U33/(Dashboard!U26))/0.012 -> 51.25074994 | V35: =(V33/(Dashboard!V26))/0.012 -> 53.57368426 | W35: =(W33/(Dashboard!W26))/0.012 -> 55.28897853 | X35: =(X33/(Dashboard!X26))/0.012 -> 57.41121567 | Y35: =(Y33/(Dashboard!Y26))/0.012 -> 58.17462618 | Z35: =(Z33/(Dashboard!Z26))/0.012 -> 59.0719581 | AA35: =(AA33/(Dashboard!AA26))/0.012 -> 60.21244646 | AB35: =(AB33/(Dashboard!AB26))/0.012 -> 61.36412824 | AC35: =(AC33/(Dashboard!AC26))/0.012 -> 62.49486674 | AD35: =(AD33/(Dashboard!AD26))/0.012 -> 63.6523447 | AE35: =(AE33/(Dashboard!AE26))/0.012 -> 64.83373679 | AF35: =(AF33/(Dashboard!AF26))/0.012 -> 65.86257505 | AG35: =(AG33/(Dashboard!AG26))/0.012 -> 66.9279436 | AH35: =(AH33/(Dashboard!AH26))/0.012 -> 68.01894397 | AI35: =(AI33/(Dashboard!AI26))/0.012 -> 69.15406131 | AJ35: =(AJ33/(Dashboard!AJ26))/0.012 -> 70.30192285 | AK35: =(AK33/(Dashboard!AK26))/0.012 -> 71.48188846 | AL35: =(AL33/(Dashboard!AL26))/0.012 -> 72.67447544
B36: Difference between Forecast Core Services Revenue and Core Services Revenue Cap | V36: =V33-V32 -> -2360364.727 | W36: -2122335.757 | X36: -1581526.702 | Y36: -1318452.078 | Z36: -1053409.958 | AA36: -886276.2457 | AB36: -840021.1554 | AC36: -591794.9053 | AD36: -418655.1118 | AE36: -289699.8882 | AF36: -192976.3452 | AG36: -147642.5504 | AH36: -146502.7202 | AI36: -821243.1573 | AJ36: -1016285.196 | AK36: -1157869.036 | AL36: -1291504.967
B38: $ Real 14
B39: Capex | G39: ='RAB, ABBRR & ICRA'!G20 -> 0 | H39: ='RAB, ABBRR & ICRA'!H20 -> 8411.283629 | I39: ='RAB, ABBRR & ICRA'!I20 -> 273579.6715 | J39: ='RAB, ABBRR & ICRA'!J20 -> 507876.2978 | K39: ='RAB, ABBRR & ICRA'!K20 -> 1059300.048 | L39: ='RAB, ABBRR & ICRA'!L20 -> 1596522.495 | M39: ='RAB, ABBRR & ICRA'!M20 -> 2134602.76 | N39: ='RAB, ABBRR & ICRA'!N20 -> 4410982.972 | O39: ='RAB, ABBRR & ICRA'!O20 -> 5765585.838 | P39: ='RAB, ABBRR & ICRA'!P20 -> 5757361.004 | Q39: ='RAB, ABBRR & ICRA'!Q20 -> 5295721.586 | R39: ='RAB, ABBRR & ICRA'!R20 -> 6086372.319 | S39: ='RAB, ABBRR & ICRA'!S20 -> 2872628.064 | T39: ='RAB, ABBRR & ICRA'!T20 -> 2394560.105 | U39: ='RAB, ABBRR & ICRA'!U20 -> 2603065.734 | V39: ='RAB, ABBRR & ICRA'!V20 -> 2085673.826 | W39: ='RAB, ABBRR & ICRA'!W20 -> 1435975.669 | X39: ='RAB, ABBRR & ICRA'!X20 -> 1511804.335 | Y39: ='RAB, ABBRR & ICRA'!Y20 -> 1601409.522 | Z39: ='RAB, ABBRR & ICRA'!Z20 -> 1547183.011 | AA39: ='RAB, ABBRR & ICRA'!AA20 -> 1451600.774 | AB39: ='RAB, ABBRR & ICRA'!AB20 -> 1214888.433 | AC39: ='RAB, ABBRR & ICRA'!AC20 -> 1126988.357 | AD39: ='RAB, ABBRR & ICRA'!AD20 -> 1169181.395 | AE39: ='RAB, ABBRR & ICRA'!AE20 -> 1160010.315 | AF39: ='RAB, ABBRR & ICRA'!AF20 -> 1141623.013 | AG39: ='RAB, ABBRR & ICRA'!AG20 -> 1055028.744 | AH39: ='RAB, ABBRR & ICRA'!AH20 -> 974257.2639 | AI39: ='RAB, ABBRR & ICRA'!AI20 -> 957197.5517 | AJ39: ='RAB, ABBRR & ICRA'!AJ20 -> 953568.0886 | AK39: ='RAB, ABBRR & ICRA'!AK20 -> 950003.0319 | AL39: ='RAB, ABBRR & ICRA'!AL20 -> 946531.4544
B40: Opex | G40: =G31/G$12 -> 155.9956332 | H40: 91020.73584 | I40: 355040.9859 | J40: 517542.7356 | K40: 797286.9971 | L40: 1215514.36 | M40: 1567535.74 | N40: 2203593.164 | O40: 3565382.227 | P40: 4050941.156 | Q40: 4108938.803 | R40: 4810068.629 | S40: 3708077.708 | T40: 2653322.283 | U40: 2343607.455 | V40: 2193512.143 | W40: 2115813.985 | X40: 2093140.939 | Y40: 2074674.179 | Z40: 2060776.954 | AA40: 2046041.162 | AB40: 2066879.394 | AC40: 2020446.388 | AD40: 2010603.291 | AE40: 2001245.573 | AF40: 1992224.391 | AG40: 1984632.886 | AH40: 1979679.609 | AI40: 1975891.762 | AJ40: 1972683.683 | AK40: 1969957.228 | AL40: 1967409.006
B41: Core Services Revenue Cap | V41: =V32/V$12 -> 6672925.788 | W41: 6567162.618 | X41: 6251434.143 | Y41: 6042127.46 | Z41: 5840843.781 | AA41: 5738170.153 | AB41: 5727117.607 | AC41: 5571626.463 | AD41: 5476491.977 | AE41: 5416457.388 | AF41: 5367821.163 | AG41: 5354991.531 | AH41: 5371846.416 | AI41: 5798221.26 | AJ41: 5921203.029 | AK41: 6007606.17 | AL41: 6085466.343
B42: Forecast Core Services Revenue | G42: =G33/G12 -> 0 | H42: 0 | I42: 0 | J42: 2014.186266 | K42: 17225.71043 | L42: 60957.912 | M42: 161427.7578 | N42: 410976.7517 | O42: 957598.4989 | P42: 1853911.641 | Q42: 2605877.318 | R42: 3529514.395 | S42: 4096544.737 | T42: 4419657.056 | U42: 4492213.604 | V42: 4707131.416 | W42: =W33/W12 -> 4840612.666 | X42: 4996220.301 | Y42: 5021231.054 | Z42: 5045067.703 | AA42: 5084981.391 | AB42: 5123118.978 | AC42: 5156487.891 | AD42: 5189972.337 | AE42: 5223027.998 | AF42: 5242115.644 | AG42: 5261162.346 | AH42: 5281012.46 | AI42: 5301456.894 | AJ42: 5321452.823 | AK42: 5340967.687 | AL42: 5360023.574
B43: Core Services Revenue Cap Per Premise Connected Per Month | V43: =V34/V$12 -> 63.25144575 | W43: 61.0212445 | X43: 57.01327843 | Y43: 54.20390851 | Z43: 51.6634518 | AA43: 50.07718668 | AB43: 49.3244167 | AC43: 47.36899828 | AD43: 45.96738705 | AE43: 44.89191831 | AF43: 43.93194338 | AG43: 43.29233087 | AH43: 42.89817509 | AI43: 45.75050709 | AJ43: 46.1638208 | AK43: 46.29226843 | AL43: 46.34641504
B44: Forecast Core Services Revenue Per Premise Connected Per Month | G44: =G35/G$12 -> 0 | H44: 0 | I44: 0 | J44: 12.4001814 | K44: 20.4775445 | L44: 24.11752474 | M44: 27.70160137 | N44: 31.15153751 | O44: 32.64856138 | P44: 38.28373558 | Q44: 39.25397484 | R44: 40.47203159 | S44: 43.43451357 | T44: 44.03932805 | U44: 43.69714983 | V44: 44.61803965 | W44: 44.97836071 | X44: 45.56568822 | Y44: 45.04544971 | Z44: =Z35/Z$12 -> 44.62465046 | AA44: 44.37678835 | AB44: 44.12251897 | AC44: 43.83956241 | AD44: 43.56246082 | AE44: 43.28876412 | AF44: 42.90312972 | AG44: 42.53377055 | AH44: 42.17279863 | AI44: 41.83081851 | AJ44: 41.48795326 | AK44: 41.15541246 | AL44: 40.82150211
B45: Difference between Forecast Core Services Revenue and Core Services Revenue Cap | V45: =V42-V41 -> -1965794.372 | W45: -1726549.951 | X45: -1255213.843 | Y45: -1020896.406 | Z45: -795776.0783 | AA45: -653188.7623 | AB45: -603998.6295 | AC45: -415138.5712 | AD45: -286519.6402 | AE45: -193429.3895 | AF45: -125705.5189 | AG45: -93829.18441 | AH45: -90833.95532 | AI45: -496764.3665 | AJ45: -599750.2058 | AK45: -666638.4837 | AL45: -725442.7694
B47: $ Nominal
Y49: Capex | AJ49: Opex
Y71: Revenue | AJ71: Revenue per Premise
B93: nbn Forecast Capex | G93: 0 | H93: 7609.074331 | I93: 256271.0426 | J93: 481499.3418 | K93: 1028291.265 | L93: 1596522.495 | M93: 2166853.604 | N93: 4523444.294 | O93: 6026915.508 | P93: 6143359.711 | Q93: 5740782.23 | R93: 6574891.344 | S93: 3222551.596 | T93: 2746689.326 | U93: 3053038.276 | V93: 2504306.148 | W93: 1765151.658 | X93: 1904821.986 | Y93: 2068164.507 | Z93: 2048086.182 | AA93: 1969598.007 | AB93: 1689626.325 | AC93: 1606562.276 | AD93: 1708377.713 | AE93: 1737351.596 | AF93: 1752558.19 | AG93: 1660113.913 | AH93: 1571343.434 | AI93: 1582424.168 | AJ93: 1615834.596 | AK93: 1650038.396 | AL93: 1685108.91
B94: nbn Forecast Opex | G94: 136.8460276 | H94: 82339.8158 | I94: 332578.5251 | J94: 490663.7456 | K94: 773948.0954 | L94: 1215514.36 | M94: 1591219 | N94: 2259775.426 | O94: 3726985.954 | P94: 4322534 | Q94: 4454260.383 | R94: 5196145.904 | S94: 4159769.894 | T94: 3043503.472 | U94: 2748729.381 | V94: 2633789.559 | W94: 2600832.76 | X94: 2637286.313 | Y94: 2679369.295 | Z94: 2727957.052 | AA94: 2776161.784 | AB94: 2874546.946 | AC94: 2880218.707 | AD94: 2937841.695 | AE94: 2997272.65 | AF94: 3058355.633 | AG94: 3122869.102 | AH94: 3192951.874 | AI94: 3266513.661 | AJ94: 3342740.367 | AK94: 3421573.358 | AL94: 3502576.097
B95: nbn Forecast Core Services Revenue Cap | V95: 8012302.244 | W95: 8072586.624 | X95: 7876594.162 | Y95: 7803196.74 | Z95: 7731827.041 | AA95: 7785810.464 | AB95: 7965084.214 | AC95: 7942553.122 | AD95: 8002108.892 | AE95: 8112247.596 | AF95: 8240390.072 | AG95: 8426212.078 | AH95: 8664052 | AI95: 9585529.59 | AJ95: 10033562.17 | AK95: 10434472.86 | AL95: 10833949.06
B96: nbn Forecast Core Services Revenue | G96: 0 | H96: 0 | I96: 0 | J96: 1909.577914 | K96: 16721.46395 | L96: 60957.912 | M96: 163866.7041 | N96: 421454.9125 | O96: 1001002.397 | P96: 1978206 | Q96: 2824879.283 | R96: 3812808.751 | S96: 4595557.269 | T96: 5069584.529 | U96: 5268749.037 | V96: 5651937.517 | W96: 5950250.867 | X96: 6295067.46 | Y96: 6484744.662 | Z96: 6678417.083 | AA96: 6899534.218 | AB96: 7125063.058 | AC96: 7350758.217 | AD96: 7583453.781 | AE96: 7822547.708 | AF96: 8047413.727 | AG96: 8278569.528 | AH96: 8517549.28 | AI96: 8764286.432 | AJ96: 9017276.978 | AK96: 9276603.82 | AL96: 9542444.09
B97: nbn Forecast Core Services Revenue Cap Per Premise Connected Per Month | V97: 75.94715074 | W97: 75.00945397 | X97: 71.83478955 | Y97: 70.00245608 | Z97: 68.38958353 | AA97: 67.9470064 | AB97: 68.59875417 | AC97: 67.52620401 | AD97: 67.16636091 | AE97: 67.23478655 | AF97: 67.44195439 | AG97: 68.12155709 | AH97: 69.18887677 | AI97: 75.63402977 | AJ97: 78.22524644 | AK97: 80.40397534 | AL97: 82.51047187
B98: nbn Forecast Core Services Revenue Per Premise Connected Per Month | G98: 0 | H98: 0 | I98: 0 | J98: 11.75616821 | K98: 19.87810741 | L98: 24.11752474 | M98: 28.12013359 | N98: 31.94576934 | O98: 34.12838286 | P98: 40.85044496 | Q98: 42.55293967 | R98: 43.72049494 | S98: 48.72540332 | T98: 50.51547966 | U98: 51.25074994 | V98: 53.57368426 | W98: 55.28897853 | X98: 57.41121567 | Y98: 58.17462618 | Z98: 59.0719581 | AA98: 60.21244646 | AB98: 61.36412824 | AC98: 62.49486674 | AD98: 63.6523447 | AE98: 64.83373679 | AF98: 65.86257505 | AG98: 66.9279436 | AH98: 68.01894397 | AI98: 69.15406131 | AJ98: 70.30192285 | AK98: 71.48188846 | AL98: 72.67447544
B100: $ Real 14
Y102: Capex | AJ102: Opex
Y124: Revenue | AJ124: Revenue per Premise
B146: nbn Forecast Capex | G146: 0 | H146: 8411.283629 | I146: 273579.6715 | J146: 507876.2978 | K146: 1059300.048 | L146: 1596522.495 | M146: 2134602.76 | N146: 4410982.972 | O146: 5765585.838 | P146: 5757361.004 | Q146: 5295721.586 | R146: 6086372.319 | S146: 2872628.064 | T146: 2394560.105 | U146: 2603065.734 | V146: 2085673.826 | W146: 1435975.669 | X146: 1511804.335 | Y146: 1601409.522 | Z146: 1547183.011 | AA146: 1451600.774 | AB146: 1214888.433 | AC146: 1126988.357 | AD146: 1169181.395 | AE146: 1160010.315 | AF146: 1141623.013 | AG146: 1055028.744 | AH146: 974257.2639 | AI146: 957197.5517 | AJ146: 953568.0886 | AK146: 950003.0319 | AL146: 946531.4544
B147: nbn Forecast Opex | G147: 155.9956332 | H147: 91020.73584 | I147: 355040.9859 | J147: 517542.7356 | K147: 797286.9971 | L147: 1215514.36 | M147: 1567535.74 | N147: 2203593.164 | O147: 3565382.227 | P147: 4050941.156 | Q147: 4108938.803 | R147: 4810068.629 | S147: 3708077.708 | T147: 2653322.283 | U147: 2343607.455 | V147: 2193512.143 | W147: 2115813.985 | X147: 2093140.939 | Y147: 2074674.179 | Z147: 2060776.954 | AA147: 2046041.162 | AB147: 2066879.394 | AC147: 2020446.388 | AD147: 2010603.291 | AE147: 2001245.573 | AF147: 1992224.391 | AG147: 1984632.886 | AH147: 1979679.609 | AI147: 1975891.762 | AJ147: 1972683.683 | AK147: 1969957.228 | AL147: 1967409.006
B148: nbn Forecast Core Services Revenue Cap | V148: 6672925.788 | W148: 6567162.618 | X148: 6251434.143 | Y148: 6042127.46 | Z148: 5840843.781 | AA148: 5738170.153 | AB148: 5727117.607 | AC148: 5571626.463 | AD148: 5476491.977 | AE148: 5416457.388 | AF148: 5367821.163 | AG148: 5354991.531 | AH148: 5371846.416 | AI148: 5798221.26 | AJ148: 5921203.029 | AK148: 6007606.17 | AL148: 6085466.343
B149: nbn Forecast Core Services Revenue | G149: 0 | H149: 0 | I149: 0 | J149: 2014.186266 | K149: 17225.71043 | L149: 60957.912 | M149: 161427.7578 | N149: 410976.7517 | O149: 957598.4989 | P149: 1853911.641 | Q149: 2605877.318 | R149: 3529514.395 | S149: 4096544.737 | T149: 4419657.056 | U149: 4492213.604 | V149: 4707131.416 | W149: 4840612.666 | X149: 4996220.301 | Y149: 5021231.054 | Z149: 5045067.703 | AA149: 5084981.391 | AB149: 5123118.978 | AC149: 5156487.891 | AD149: 5189972.337 | AE149: 5223027.998 | AF149: 5242115.644 | AG149: 5261162.346 | AH149: 5281012.46 | AI149: 5301456.894 | AJ149: 5321452.823 | AK149: 5340967.687 | AL149: 5360023.574
B150: nbn Forecast Core Services Revenue Cap Per Premise Connected Per Month | V150: 63.25144575 | W150: 61.0212445 | X150: 57.01327843 | Y150: 54.20390851 | Z150: 51.6634518 | AA150: 50.07718668 | AB150: 49.3244167 | AC150: 47.36899828 | AD150: 45.96738705 | AE150: 44.89191831 | AF150: 43.93194338 | AG150: 43.29233087 | AH150: 42.89817509 | AI150: 45.75050709 | AJ150: 46.1638208 | AK150: 46.29226843 | AL150: 46.34641504
B151: nbn Forecast Core Services Revenue Per Premise Connected Per Month | G151: 0 | H151: 0 | I151: 0 | J151: 12.4001814 | K151: 20.4775445 | L151: 24.11752474 | M151: 27.70160137 | N151: 31.15153751 | O151: 32.64856138 | P151: 38.28373558 | Q151: 39.25397484 | R151: 40.47203159 | S151: 43.43451357 | T151: 44.03932805 | U151: 43.69714983 | V151: 44.61803965 | W151: 44.97836071 | X151: 45.56568822 | Y151: 45.04544971 | Z151: 44.62465046 | AA151: 44.37678835 | AB151: 44.12251897 | AC151: 43.83956241 | AD151: 43.56246082 | AE151: 43.28876412 | AF151: 42.90312972 | AG151: 42.53377055 | AH151: 42.17279863 | AI151: 41.83081851 | AJ151: 41.48795326 | AK151: 41.15541246 | AL151: 40.82150211

Sheet Output Sheet
B2: Output Variables
B3: Public Version
B4: This document is a public version of the building block model provided by nbn to the ACCC in connection with nbn’s SAU Variation lodged in March 2022 and shows data related to ‘Core Services’ as defined in the SAU Variation. The information in this document is provided solely for the purpose of assisting the ACCC in its assessment of nbn’s SAU Variation and should not be relied on for any other purpose. Any forecast values or indicative estimates in this document reflect nbn’s views and assumptions based on its most recent Integrated Operating Plan (as at August 2021), which included a considered assessment of economic and operating conditions at the time they were made. Any forecasts or indicative estimates are inherently uncertain and subject to a range of risks such that actual performance may differ materially from those forecasts or indicative estimates. Forecasts relating to the period from FY22 to FY25 were previously signed off by nbn’s Board and Shareholders. Any values relating to the period from FY26 onwards are indicative estimates prepared for accounting valuation purposes only and do not reflect an operational forecast – they have not been approved by nbn’s Board or Shareholders and do not include the full potential capex requirements (or specific operational timing) to meet future customer demand and network lifecycle requirements over time. This document allows the user to edit the content to produce different outputs. nbn does not endorse any such different inputs or outputs; such different values should not be relied upon as representing or reflecting nbn’s position. | G4: Cost Commencement Year | L4: First Financial Year
C5: SAU Year: | G5: =H5-1 -> -4 | H5: =I5-1 -> -3 | I5: =J5-1 -> -2 | J5: =K5-1 -> -1 | K5: =L5-1 -> 0 | L5: 1 | M5: =L5+1 -> 2 | N5: 3 | O5: 4 | P5: 5 | Q5: 6 | R5: =Q5+1 -> 7 | S5: 8 | T5: 9 | U5: 10 | V5: 11 | W5: 12 | X5: 13 | Y5: 14 | Z5: 15 | AA5: 16 | AB5: 17 | AC5: 18 | AD5: 19 | AE5: 20 | AF5: 21 | AG5: 22 | AH5: 23 | AI5: 24 | AJ5: 25 | AK5: 26 | AL5: 27
C6: Spreadsheet Year: | G6: 1 | H6: =G6+1 -> 2 | I6: =H6+1 -> 3 | J6: 4 | K6: 5 | L6: 6 | M6: 7 | N6: 8 | O6: 9 | P6: 10 | Q6: 11 | R6: =Q6+1 -> 12 | S6: 13 | T6: 14 | U6: 15 | V6: 16 | W6: 17 | X6: 18 | Y6: 19 | Z6: 20 | AA6: 21 | AB6: 22 | AC6: 23 | AD6: 24 | AE6: 25 | AF6: 26 | AG6: 27 | AH6: 28 | AI6: 29 | AJ6: 30 | AK6: 31 | AL6: 32
B7: Year | E7: Units | F7: 2007-08 | G7: =CONCATENATE(LEFT(F7, 4)+1 &"-" &IF(F7>"2007-08",,"0") &RIGHT(F7,2)+1) -> 2008-09 | H7: 2009-10 | I7: 2010-11 | J7: 2011-12 | K7: 2012-13 | L7: 2013-14 | M7: 2014-15 | N7: 2015-16 | O7: 2016-17 | P7: 2017-18 | Q7: 2018-19 | R7: =CONCATENATE(LEFT(Q7, 4)+1 &"-" &IF(Q7>"2007-08",,"0") &RIGHT(Q7,2)+1) -> 2019-20 | S7: =CONCATENATE(LEFT(R7, 4)+1 &"-" &IF(R7>"2007-08",,"0") &RIGHT(R7,2)+1) -> 2020-21 | T7: =CONCATENATE(LEFT(S7, 4)+1 &"-" &IF(S7>"2007-08",,"0") &RIGHT(S7,2)+1) -> 2021-22 | U7: =CONCATENATE(LEFT(T7, 4)+1 &"-" &IF(T7>"2007-08",,"0") &RIGHT(T7,2)+1) -> 2022-23 | V7: 2023-24 | W7: 2024-25 | X7: 2025-26 | Y7: 2026-27 | Z7: 2027-28 | AA7: 2028-29 | AB7: 2029-30 | AC7: 2030-31 | AD7: 2031-32 | AE7: 2032-33 | AF7: 2033-34 | AG7: 2034-35 | AH7: 2035-36 | AI7: 2036-37 | AJ7: 2037-38 | AK7: 2038-39 | AL7: 2039-40
B9: WACC
B11: Estimated average annual rate of inflation expectations over the Regulatory Cycle (π) | E11: Percentage | G11: ='Reg & Tax Dep Core Calc'!G8 -> 0.01419213974 | H11: ='Reg & Tax Dep Core Calc'!H8 -> 0.03121636168 | I11: ='Reg & Tax Dep Core Calc'!I8 -> 0.03549060543 | J11: ='Reg & Tax Dep Core Calc'!J8 -> 0.01209677419 | K11: ='Reg & Tax Dep Core Calc'!K8 -> 0.02390438247 | L11: ='Reg & Tax Dep Core Calc'!L8 -> 0.03015564202 | M11: ='Reg & Tax Dep Core Calc'!M8 -> 0.01510859301 | N11: ='Reg & Tax Dep Core Calc'!N8 -> 0.01023255814 | O11: ='Reg & Tax Dep Core Calc'!O8 -> 0.01933701657 | P11: ='Reg & Tax Dep Core Calc'!P8 -> 0.02077687444 | Q11: ='Reg & Tax Dep Core Calc'!Q8 -> 0.01592920354 | R11: ='Reg & Tax Dep Core Calc'!R8 -> -0.003484320557 | S11: ='Reg & Tax Dep Core Calc'!S8 -> 0.03846153846 | T11: ='Reg & Tax Dep Core Calc'!T8 -> 0.0225 | U11: ='Reg & Tax Dep Core Calc'!U8 -> 0.0225 | V11: ='Reg & Tax Dep Core Calc'!V8 -> 0.02375 | W11: ='Reg & Tax Dep Core Calc'!W8 -> 0.02375 | X11: ='Reg & Tax Dep Core Calc'!X8 -> 0.025 | Y11: ='Reg & Tax Dep Core Calc'!Y8 -> 0.025 | Z11: ='Reg & Tax Dep Core Calc'!Z8 -> 0.025 | AA11: ='Reg & Tax Dep Core Calc'!AA8 -> 0.025 | AB11: ='Reg & Tax Dep Core Calc'!AB8 -> 0.025 | AC11: ='Reg & Tax Dep Core Calc'!AC8 -> 0.025 | AD11: ='Reg & Tax Dep Core Calc'!AD8 -> 0.025 | AE11: ='Reg & Tax Dep Core Calc'!AE8 -> 0.025 | AF11: ='Reg & Tax Dep Core Calc'!AF8 -> 0.025 | AG11: ='Reg & Tax Dep Core Calc'!AG8 -> 0.025 | AH11: ='Reg & Tax Dep Core Calc'!AH8 -> 0.025 | AI11: ='Reg & Tax Dep Core Calc'!AI8 -> 0.025 | AJ11: ='Reg & Tax Dep Core Calc'!AJ8 -> 0.025 | AK11: ='Reg & Tax Dep Core Calc'!AK8 -> 0.025 | AL11: ='Reg & Tax Dep Core Calc'!AL8 -> 0.025
B12: (forecast) Cumulative Inflation Factor | E12: factor | G12: ='Reg & Tax Dep Core Calc'!G9 -> 0.8772426818 | H12: ='Reg & Tax Dep Core Calc'!H9 -> 0.9046270066 | I12: ='Reg & Tax Dep Core Calc'!I9 -> 0.9367327668 | J12: ='Reg & Tax Dep Core Calc'!J9 -> 0.9480642115 | K12: ='Reg & Tax Dep Core Calc'!K9 -> 0.970727101 | L12: ='Reg & Tax Dep Core Calc'!L9 -> 1 | M12: ='Reg & Tax Dep Core Calc'!M9 -> 1.015108593 | N12: ='Reg & Tax Dep Core Calc'!N9 -> 1.025495751 | O12: ='Reg & Tax Dep Core Calc'!O9 -> 1.045325779 | P12: ='Reg & Tax Dep Core Calc'!P9 -> 1.067044381 | Q12: ='Reg & Tax Dep Core Calc'!Q9 -> 1.084041549 | R12: ='Reg & Tax Dep Core Calc'!R9 -> 1.0802644 | S12: ='Reg & Tax Dep Core Calc'!S9 -> 1.121813031 | T12: ='Reg & Tax Dep Core Calc'!T9 -> 1.147053824 | U12: ='Reg & Tax Dep Core Calc'!U9 -> 1.172862535 | V12: ='Reg & Tax Dep Core Calc'!V9 -> 1.200718021 | W12: ='Reg & Tax Dep Core Calc'!W9 -> 1.229235074 | X12: ='Reg & Tax Dep Core Calc'!X9 -> 1.25996595 | Y12: ='Reg & Tax Dep Core Calc'!Y9 -> 1.291465099 | Z12: ='Reg & Tax Dep Core Calc'!Z9 -> 1.323751727 | AA12: ='Reg & Tax Dep Core Calc'!AA9 -> 1.35684552 | AB12: ='Reg & Tax Dep Core Calc'!AB9 -> 1.390766658 | AC12: ='Reg & Tax Dep Core Calc'!AC9 -> 1.425535824 | AD12: ='Reg & Tax Dep Core Calc'!AD9 -> 1.46117422 | AE12: ='Reg & Tax Dep Core Calc'!AE9 -> 1.497703575 | AF12: ='Reg & Tax Dep Core Calc'!AF9 -> 1.535146165 | AG12: ='Reg & Tax Dep Core Calc'!AG9 -> 1.573524819 | AH12: ='Reg & Tax Dep Core Calc'!AH9 -> 1.612862939 | AI12: ='Reg & Tax Dep Core Calc'!AI9 -> 1.653184513 | AJ12: ='Reg & Tax Dep Core Calc'!AJ9 -> 1.694514126 | AK12: ='Reg & Tax Dep Core Calc'!AK9 -> 1.736876979 | AL12: ='Reg & Tax Dep Core Calc'!AL9 -> 1.780298903
B13: Statutory company taxation rate | E13: Percentage | G13: ='Nominal Inputs'!G43 -> 0.3 | H13: ='Nominal Inputs'!H43 -> 0.3 | I13: ='Nominal Inputs'!I43 -> 0.3 | J13: ='Nominal Inputs'!J43 -> 0.3 | K13: ='Nominal Inputs'!K43 -> 0.3 | L13: ='Nominal Inputs'!L43 -> 0.3 | M13: ='Nominal Inputs'!M43 -> 0.3 | N13: ='Nominal Inputs'!N43 -> 0.3 | O13: ='Nominal Inputs'!O43 -> 0.3 | P13: ='Nominal Inputs'!P43 -> 0.3 | Q13: ='Nominal Inputs'!Q43 -> 0.3 | R13: ='Nominal Inputs'!R43 -> 0.3 | S13: ='Nominal Inputs'!S43 -> 0.3 | T13: ='Nominal Inputs'!T43 -> 0.3 | U13: ='Nominal Inputs'!U43 -> 0.3 | V13: ='Nominal Inputs'!V43 -> 0.3 | W13: ='Nominal Inputs'!W43 -> 0.3 | X13: ='Nominal Inputs'!X43 -> 0.3 | Y13: ='Nominal Inputs'!Y43 -> 0.3 | Z13: ='Nominal Inputs'!Z43 -> 0.3 | AA13: ='Nominal Inputs'!AA43 -> 0.3 | AB13: ='Nominal Inputs'!AB43 -> 0.3 | AC13: ='Nominal Inputs'!AC43 -> 0.3 | AD13: ='Nominal Inputs'!AD43 -> 0.3 | AE13: ='Nominal Inputs'!AE43 -> 0.3 | AF13: ='Nominal Inputs'!AF43 -> 0.3 | AG13: ='Nominal Inputs'!AG43 -> 0.3 | AH13: ='Nominal Inputs'!AH43 -> 0.3 | AI13: ='Nominal Inputs'!AI43 -> 0.3 | AJ13: ='Nominal Inputs'!AJ43 -> 0.3 | AK13: ='Nominal Inputs'!AK43 -> 0.3 | AL13: ='Nominal Inputs'!AL43 -> 0.3
B14: Gamma | E14: Number | G14: ='Nominal Inputs'!G44 -> 0.5 | H14: ='Nominal Inputs'!H44 -> 0.5 | I14: ='Nominal Inputs'!I44 -> 0.5 | J14: ='Nominal Inputs'!J44 -> 0.5 | K14: ='Nominal Inputs'!K44 -> 0.5 | L14: ='Nominal Inputs'!L44 -> 0.5 | M14: ='Nominal Inputs'!M44 -> 0.5 | N14: ='Nominal Inputs'!N44 -> 0.5 | O14: ='Nominal Inputs'!O44 -> 0.5 | P14: ='Nominal Inputs'!P44 -> 0.5 | Q14: ='Nominal Inputs'!Q44 -> 0.5 | R14: ='Nominal Inputs'!R44 -> 0.5 | S14: ='Nominal Inputs'!S44 -> 0.5 | T14: ='Nominal Inputs'!T44 -> 0.25 | U14: ='Nominal Inputs'!U44 -> 0.25 | V14: ='Nominal Inputs'!V44 -> 0.25 | W14: ='Nominal Inputs'!W44 -> 0.25 | X14: ='Nominal Inputs'!X44 -> 0.25 | Y14: ='Nominal Inputs'!Y44 -> 0.25 | Z14: ='Nominal Inputs'!Z44 -> 0.25 | AA14: ='Nominal Inputs'!AA44 -> 0.25 | AB14: ='Nominal Inputs'!AB44 -> 0.25 | AC14: ='Nominal Inputs'!AC44 -> 0.25 | AD14: ='Nominal Inputs'!AD44 -> 0.25 | AE14: ='Nominal Inputs'!AE44 -> 0.25 | AF14: ='Nominal Inputs'!AF44 -> 0.25 | AG14: ='Nominal Inputs'!AG44 -> 0.25 | AH14: ='Nominal Inputs'!AH44 -> 0.25 | AI14: ='Nominal Inputs'!AI44 -> 0.25 | AJ14: ='Nominal Inputs'!AJ44 -> 0.25 | AK14: ='Nominal Inputs'!AK44 -> 0.25 | AL14: ='Nominal Inputs'!AL44 -> 0.25
B16: Core Services
B18: Nominal Forecast Core Services RAB Portion (start period) | E18: $'000 | G18: ='RAB, ABBRR & ICRA'!G27 -> 0 | H18: ='RAB, ABBRR & ICRA'!H27 -> 0 | I18: ='RAB, ABBRR & ICRA'!I27 -> 7609.074331 | J18: ='RAB, ABBRR & ICRA'!J27 -> 262859.8114 | K18: ='RAB, ABBRR & ICRA'!K27 -> 688565.6694 | L18: ='RAB, ABBRR & ICRA'!L27 -> 1565321.563 | M18: ='RAB, ABBRR & ICRA'!M27 -> 2901138.658 | N18: ='RAB, ABBRR & ICRA'!N27 -> 4818889.122 | O18: ='RAB, ABBRR & ICRA'!O27 -> 8944763.349 | P18: ='RAB, ABBRR & ICRA'!P27 -> 14369642.51 | Q18: ='RAB, ABBRR & ICRA'!Q27 -> 19374303.75 | R18: ='RAB, ABBRR & ICRA'!R27 -> 23300741.64 | S18: ='RAB, ABBRR & ICRA'!S27 -> 27226458.88 | T18: ='RAB, ABBRR & ICRA'!T27 -> 28450215.08 | U18: ='RAB, ABBRR & ICRA'!U27 -> 28364402.63 | V18: ='RAB, ABBRR & ICRA'!V27 -> 28465755.42 | W18: ='RAB, ABBRR & ICRA'!W27 -> 27840404.72 | X18: ='RAB, ABBRR & ICRA'!X27 -> 26394263.32 | Y18: ='RAB, ABBRR & ICRA'!Y27 -> 25346370.35 | Z18: ='RAB, ABBRR & ICRA'!Z27 -> 24656777.58 | AA18: ='RAB, ABBRR & ICRA'!AA27 -> 24161253.78 | AB18: ='RAB, ABBRR & ICRA'!AB27 -> 23700851.45 | AC18: ='RAB, ABBRR & ICRA'!AC27 -> 23000119.47 | AD18: ='RAB, ABBRR & ICRA'!AD27 -> 22349797.35 | AE18: ='RAB, ABBRR & ICRA'!AE27 -> 21935671.41 | AF18: ='RAB, ABBRR & ICRA'!AF27 -> 21654387.6 | AG18: ='RAB, ABBRR & ICRA'!AG27 -> 21495005.87 | AH18: ='RAB, ABBRR & ICRA'!AH27 -> 21310584.71 | AI18: ='RAB, ABBRR & ICRA'!AI27 -> 21060237.23 | AJ18: ='RAB, ABBRR & ICRA'!AJ27 -> 20815786.38 | AK18: ='RAB, ABBRR & ICRA'!AK27 -> 20566406.59 | AL18: ='RAB, ABBRR & ICRA'!AL27 -> 20316858.38
B19: Nominal Forecast Core Services RAB Portion (end period) | E19: $'000 | G19: ='RAB, ABBRR & ICRA'!G29 -> 0 | H19: ='RAB, ABBRR & ICRA'!H29 -> 7609.074331 | I19: ='RAB, ABBRR & ICRA'!I29 -> 262859.8114 | J19: ='RAB, ABBRR & ICRA'!J29 -> 688565.6694 | K19: ='RAB, ABBRR & ICRA'!K29 -> 1565321.563 | L19: ='RAB, ABBRR & ICRA'!L29 -> 2901138.658 | M19: ='RAB, ABBRR & ICRA'!M29 -> 4818889.122 | N19: ='RAB, ABBRR & ICRA'!N29 -> 8944763.349 | O19: ='RAB, ABBRR & ICRA'!O29 -> 14369642.51 | P19: ='RAB, ABBRR & ICRA'!P29 -> 19374303.75 | Q19: ='RAB, ABBRR & ICRA'!Q29 -> 23300741.64 | R19: ='RAB, ABBRR & ICRA'!R29 -> 27226458.88 | S19: ='RAB, ABBRR & ICRA'!S29 -> 28450215.08 | T19: ='RAB, ABBRR & ICRA'!T29 -> 28364402.63 | U19: ='RAB, ABBRR & ICRA'!U29 -> 28465755.42 | V19: ='RAB, ABBRR & ICRA'!V29 -> 27840404.72 | W19: ='RAB, ABBRR & ICRA'!W29 -> 26394263.32 | X19: ='RAB, ABBRR & ICRA'!X29 -> 25346370.35 | Y19: ='RAB, ABBRR & ICRA'!Y29 -> 24656777.58 | Z19: ='RAB, ABBRR & ICRA'!Z29 -> 24161253.78 | AA19: ='RAB, ABBRR & ICRA'!AA29 -> 23700851.45 | AB19: ='RAB, ABBRR & ICRA'!AB29 -> 23000119.47 | AC19: ='RAB, ABBRR & ICRA'!AC29 -> 22349797.35 | AD19: ='RAB, ABBRR & ICRA'!AD29 -> 21935671.41 | AE19: ='RAB, ABBRR & ICRA'!AE29 -> 21654387.6 | AF19: ='RAB, ABBRR & ICRA'!AF29 -> 21495005.87 | AG19: ='RAB, ABBRR & ICRA'!AG29 -> 21310584.71 | AH19: ='RAB, ABBRR & ICRA'!AH29 -> 21060237.23 | AI19: ='RAB, ABBRR & ICRA'!AI29 -> 20815786.38 | AJ19: ='RAB, ABBRR & ICRA'!AJ29 -> 20566406.59 | AK19: ='RAB, ABBRR & ICRA'!AK29 -> 20316858.38 | AL19: ='RAB, ABBRR & ICRA'!AL29 -> 20082316.98
B20: Forecast Real Core Services RAB Portion (start period) | E20: $'000 | G20: ='RAB, ABBRR & ICRA'!G19 -> 0 | H20: ='RAB, ABBRR & ICRA'!H19 -> 0 | I20: ='RAB, ABBRR & ICRA'!I19 -> 8411.283629 | J20: ='RAB, ABBRR & ICRA'!J19 -> 280613.4478 | K20: ='RAB, ABBRR & ICRA'!K19 -> 726285.9003 | L20: ='RAB, ABBRR & ICRA'!L19 -> 1612524.84 | M20: ='RAB, ABBRR & ICRA'!M19 -> 2901138.658 | N20: ='RAB, ABBRR & ICRA'!N19 -> 4747166.121 | O20: ='RAB, ABBRR & ICRA'!O19 -> 8722379.73 | P20: ='RAB, ABBRR & ICRA'!P19 -> 13746568.58 | Q20: ='RAB, ABBRR & ICRA'!Q19 -> 18156980.24 | R20: ='RAB, ABBRR & ICRA'!R19 -> 21494325.26 | S20: ='RAB, ABBRR & ICRA'!S19 -> 25203513.94 | T20: ='RAB, ABBRR & ICRA'!T19 -> 25360924.05 | U20: ='RAB, ABBRR & ICRA'!U19 -> 24728048.52 | V20: ='RAB, ABBRR & ICRA'!V19 -> 24270325.43 | W20: ='RAB, ABBRR & ICRA'!W19 -> 23186463.63 | X20: ='RAB, ABBRR & ICRA'!X19 -> 21472103.99 | Y20: ='RAB, ABBRR & ICRA'!Y19 -> 20116710.57 | Z20: ='RAB, ABBRR & ICRA'!Z19 -> 19092097.49 | AA20: ='RAB, ABBRR & ICRA'!AA19 -> 18252103.7 | AB20: ='RAB, ABBRR & ICRA'!AB19 -> 17467612.27 | AC20: ='RAB, ABBRR & ICRA'!AC19 -> 16537727.11 | AD20: ='RAB, ABBRR & ICRA'!AD19 -> 15678173.06 | AE20: ='RAB, ABBRR & ICRA'!AE19 -> 15012358.63 | AF20: ='RAB, ABBRR & ICRA'!AF19 -> 14458393.47 | AG20: ='RAB, ABBRR & ICRA'!AG19 -> 14001927.87 | AH20: ='RAB, ABBRR & ICRA'!AH19 -> 13543214.86 | AI20: ='RAB, ABBRR & ICRA'!AI19 -> 13057673.23 | AJ20: ='RAB, ABBRR & ICRA'!AJ19 -> 12591326.75 | AK20: ='RAB, ABBRR & ICRA'!AK19 -> 12137052.31 | AL20: ='RAB, ABBRR & ICRA'!AL19 -> 11697350.26
B21: Forecast Real Core Services RAB Portion (end period) | E21: $'000 | G21: ='RAB, ABBRR & ICRA'!G23 -> 0 | H21: ='RAB, ABBRR & ICRA'!H23 -> 8411.283629 | I21: ='RAB, ABBRR & ICRA'!I23 -> 280613.4478 | J21: ='RAB, ABBRR & ICRA'!J23 -> 726285.9003 | K21: ='RAB, ABBRR & ICRA'!K23 -> 1612524.84 | L21: ='RAB, ABBRR & ICRA'!L23 -> 2901138.658 | M21: ='RAB, ABBRR & ICRA'!M23 -> 4747166.121 | N21: ='RAB, ABBRR & ICRA'!N23 -> 8722379.73 | O21: ='RAB, ABBRR & ICRA'!O23 -> 13746568.58 | P21: ='RAB, ABBRR & ICRA'!P23 -> 18156980.24 | Q21: ='RAB, ABBRR & ICRA'!Q23 -> 21494325.26 | R21: ='RAB, ABBRR & ICRA'!R23 -> 25203513.94 | S21: ='RAB, ABBRR & ICRA'!S23 -> 25360924.05 | T21: ='RAB, ABBRR & ICRA'!T23 -> 24728048.52 | U21: ='RAB, ABBRR & ICRA'!U23 -> 24270325.43 | V21: ='RAB, ABBRR & ICRA'!V23 -> 23186463.63 | W21: ='RAB, ABBRR & ICRA'!W23 -> 21472103.99 | X21: ='RAB, ABBRR & ICRA'!X23 -> 20116710.57 | Y21: ='RAB, ABBRR & ICRA'!Y23 -> 19092097.49 | Z21: ='RAB, ABBRR & ICRA'!Z23 -> 18252103.7 | AA21: ='RAB, ABBRR & ICRA'!AA23 -> 17467612.27 | AB21: ='RAB, ABBRR & ICRA'!AB23 -> 16537727.11 | AC21: ='RAB, ABBRR & ICRA'!AC23 -> 15678173.06 | AD21: ='RAB, ABBRR & ICRA'!AD23 -> 15012358.63 | AE21: ='RAB, ABBRR & ICRA'!AE23 -> 14458393.47 | AF21: ='RAB, ABBRR & ICRA'!AF23 -> 14001927.87 | AG21: ='RAB, ABBRR & ICRA'!AG23 -> 13543214.86 | AH21: ='RAB, ABBRR & ICRA'!AH23 -> 13057673.23 | AI21: ='RAB, ABBRR & ICRA'!AI23 -> 12591326.75 | AJ21: ='RAB, ABBRR & ICRA'!AJ23 -> 12137052.31 | AK21: ='RAB, ABBRR & ICRA'!AK23 -> 11697350.26 | AL21: ='RAB, ABBRR & ICRA'!AL23 -> 11280306.33
B22: Nominal Forecast Core Services Capital Expenditure | E22: $'000 | G22: ='Nominal Inputs'!G21 -> 0 | H22: ='Nominal Inputs'!H21 -> 7609.074331 | I22: ='Nominal Inputs'!I21 -> 256271.0426 | J22: ='Nominal Inputs'!J21 -> 481499.3418 | K22: ='Nominal Inputs'!K21 -> 1028291.265 | L22: ='Nominal Inputs'!L21 -> 1596522.495 | M22: ='Nominal Inputs'!M21 -> 2166853.604 | N22: ='Nominal Inputs'!N21 -> 4523444.294 | O22: ='Nominal Inputs'!O21 -> 6026915.508 | P22: ='Nominal Inputs'!P21 -> 6143359.711 | Q22: ='Nominal Inputs'!Q21 -> 5740782.23 | R22: ='Nominal Inputs'!R21 -> 6574891.344 | S22: ='Nominal Inputs'!S21 -> 3222551.596 | T22: ='Nominal Inputs'!T21 -> 2746689.326 | U22: ='Nominal Inputs'!U21 -> 3053038.276 | V22: ='Nominal Inputs'!V21 -> 2504306.148 | W22: ='Nominal Inputs'!W21 -> 1765151.658 | X22: ='Nominal Inputs'!X21 -> 1904821.986 | Y22: ='Nominal Inputs'!Y21 -> 2068164.507 | Z22: ='Nominal Inputs'!Z21 -> 2048086.182 | AA22: ='Nominal Inputs'!AA21 -> 1969598.007 | AB22: ='Nominal Inputs'!AB21 -> 1689626.325 | AC22: ='Nominal Inputs'!AC21 -> 1606562.276 | AD22: ='Nominal Inputs'!AD21 -> 1708377.713 | AE22: ='Nominal Inputs'!AE21 -> 1737351.596 | AF22: ='Nominal Inputs'!AF21 -> 1752558.19 | AG22: ='Nominal Inputs'!AG21 -> 1660113.913 | AH22: ='Nominal Inputs'!AH21 -> 1571343.434 | AI22: ='Nominal Inputs'!AI21 -> 1582424.168 | AJ22: ='Nominal Inputs'!AJ21 -> 1615834.596 | AK22: ='Nominal Inputs'!AK21 -> 1650038.396 | AL22: ='Nominal Inputs'!AL21 -> 1685108.91
B23: Real Forecast Core Services Capital Expenditure | E23: $'000 | G23: ='Nominal Inputs'!G21/G12 -> 0 | H23: ='Nominal Inputs'!H21/H12 -> 8411.283629 | I23: ='Nominal Inputs'!I21/I12 -> 273579.6715 | J23: ='Nominal Inputs'!J21/J12 -> 507876.2978 | K23: ='Nominal Inputs'!K21/K12 -> 1059300.048 | L23: ='Nominal Inputs'!L21/L12 -> 1596522.495 | M23: ='Nominal Inputs'!M21/M12 -> 2134602.76 | N23: ='Nominal Inputs'!N21/N12 -> 4410982.972 | O23: ='Nominal Inputs'!O21/O12 -> 5765585.838 | P23: ='Nominal Inputs'!P21/P12 -> 5757361.004 | Q23: ='Nominal Inputs'!Q21/Q12 -> 5295721.586 | R23: ='Nominal Inputs'!R21/R12 -> 6086372.319 | S23: ='Nominal Inputs'!S21/S12 -> 2872628.064 | T23: ='Nominal Inputs'!T21/T12 -> 2394560.105 | U23: ='Nominal Inputs'!U21/U12 -> 2603065.734 | V23: ='Nominal Inputs'!V21/V12 -> 2085673.826 | W23: ='Nominal Inputs'!W21/W12 -> 1435975.669 | X23: ='Nominal Inputs'!X21/X12 -> 1511804.335 | Y23: ='Nominal Inputs'!Y21/Y12 -> 1601409.522 | Z23: ='Nominal Inputs'!Z21/Z12 -> 1547183.011 | AA23: ='Nominal Inputs'!AA21/AA12 -> 1451600.774 | AB23: ='Nominal Inputs'!AB21/AB12 -> 1214888.433 | AC23: ='Nominal Inputs'!AC21/AC12 -> 1126988.357 | AD23: ='Nominal Inputs'!AD21/AD12 -> 1169181.395 | AE23: ='Nominal Inputs'!AE21/AE12 -> 1160010.315 | AF23: ='Nominal Inputs'!AF21/AF12 -> 1141623.013 | AG23: ='Nominal Inputs'!AG21/AG12 -> 1055028.744 | AH23: ='Nominal Inputs'!AH21/AH12 -> 974257.2639 | AI23: ='Nominal Inputs'!AI21/AI12 -> 957197.5517 | AJ23: ='Nominal Inputs'!AJ21/AJ12 -> 953568.0886 | AK23: ='Nominal Inputs'!AK21/AK12 -> 950003.0319 | AL23: ='Nominal Inputs'!AL21/AL12 -> 946531.4544
B24: Real Forecast Core Services Disposals | E24: $'000 | G24: ='Nominal Inputs'!G27/G12 -> 0 | H24: ='Nominal Inputs'!H27/H12 -> 0 | I24: ='Nominal Inputs'!I27/I12 -> 0 | J24: ='Nominal Inputs'!J27/J12 -> 0 | K24: ='Nominal Inputs'!K27/K12 -> 0 | L24: ='Nominal Inputs'!L27/L12 -> 0 | M24: ='Nominal Inputs'!M27/M12 -> 0 | N24: ='Nominal Inputs'!N27/N12 -> 0 | O24: ='Nominal Inputs'!O27/O12 -> 0 | P24: ='Nominal Inputs'!P27/P12 -> 0 | Q24: ='Nominal Inputs'!Q27/Q12 -> 0 | R24: ='Nominal Inputs'!R27/R12 -> 0 | S24: ='Nominal Inputs'!S27/S12 -> 0 | T24: ='Nominal Inputs'!T27/T12 -> 0 | U24: ='Nominal Inputs'!U27/U12 -> 0 | V24: ='Nominal Inputs Data'!V651/V12 -> 0 | W24: ='Nominal Inputs Data'!W651/W12 -> 0 | X24: ='Nominal Inputs Data'!X651/X12 -> 0 | Y24: ='Nominal Inputs Data'!Y651/Y12 -> 0 | Z24: ='Nominal Inputs Data'!Z651/Z12 -> 0 | AA24: ='Nominal Inputs Data'!AA651/AA12 -> 0 | AB24: ='Nominal Inputs Data'!AB651/AB12 -> 0 | AC24: ='Nominal Inputs Data'!AC651/AC12 -> 0 | AD24: ='Nominal Inputs Data'!AD651/AD12 -> 0 | AE24: ='Nominal Inputs Data'!AE651/AE12 -> 0 | AF24: ='Nominal Inputs Data'!AF651/AF12 -> 0 | AG24: ='Nominal Inputs Data'!AG651/AG12 -> 0 | AH24: ='Nominal Inputs Data'!AH651/AH12 -> 0 | AI24: ='Nominal Inputs Data'!AI651/AI12 -> 0 | AJ24: ='Nominal Inputs Data'!AJ651/AJ12 -> 0 | AK24: ='Nominal Inputs Data'!AK651/AK12 -> 0 | AL24: ='Nominal Inputs Data'!AL651/AL12 -> 0
B25: Nominal Forecast Core Services Disposals | E25: $'000 | G25: ='Nominal Inputs'!G27 -> 0 | H25: ='Nominal Inputs'!H27 -> 0 | I25: ='Nominal Inputs'!I27 -> 0 | J25: ='Nominal Inputs'!J27 -> 0 | K25: ='Nominal Inputs'!K27 -> 0 | L25: ='Nominal Inputs'!L27 -> 0 | M25: ='Nominal Inputs'!M27 -> 0 | N25: ='Nominal Inputs'!N27 -> 0 | O25: ='Nominal Inputs'!O27 -> 0 | P25: ='Nominal Inputs'!P27 -> 0 | Q25: ='Nominal Inputs'!Q27 -> 0 | R25: ='Nominal Inputs'!R27 -> 0 | S25: ='Nominal Inputs'!S27 -> 0 | T25: ='Nominal Inputs'!T27 -> 0 | U25: ='Nominal Inputs'!U27 -> 0 | V25: ='Nominal Inputs Data'!V651 -> 0 | W25: ='Nominal Inputs Data'!W651 -> 0 | X25: ='Nominal Inputs Data'!X651 -> 0 | Y25: ='Nominal Inputs Data'!Y651 -> 0 | Z25: ='Nominal Inputs Data'!Z651 -> 0 | AA25: ='Nominal Inputs Data'!AA651 -> 0 | AB25: ='Nominal Inputs Data'!AB651 -> 0 | AC25: ='Nominal Inputs Data'!AC651 -> 0 | AD25: ='Nominal Inputs Data'!AD651 -> 0 | AE25: ='Nominal Inputs Data'!AE651 -> 0 | AF25: ='Nominal Inputs Data'!AF651 -> 0 | AG25: ='Nominal Inputs Data'!AG651 -> 0 | AH25: ='Nominal Inputs Data'!AH651 -> 0 | AI25: ='Nominal Inputs Data'!AI651 -> 0 | AJ25: ='Nominal Inputs Data'!AJ651 -> 0 | AK25: ='Nominal Inputs Data'!AK651 -> 0 | AL25: ='Nominal Inputs Data'!AL651 -> 0
B26: Real Forecast Core Services Depreciation | E26: $'000 | G26: ='RAB, ABBRR & ICRA'!G22 -> 0 | H26: ='RAB, ABBRR & ICRA'!H22 -> 0 | I26: ='RAB, ABBRR & ICRA'!I22 -> 1377.507306 | J26: ='RAB, ABBRR & ICRA'!J22 -> 62203.84531 | K26: ='RAB, ABBRR & ICRA'!K22 -> 173061.1083 | L26: ='RAB, ABBRR & ICRA'!L22 -> 307908.6768 | M26: ='RAB, ABBRR & ICRA'!M22 -> 288575.2969 | N26: ='RAB, ABBRR & ICRA'!N22 -> 435769.3636 | O26: ='RAB, ABBRR & ICRA'!O22 -> 741396.9846 | P26: ='RAB, ABBRR & ICRA'!P22 -> 1346949.343 | Q26: ='RAB, ABBRR & ICRA'!Q22 -> 1958376.568 | R26: ='RAB, ABBRR & ICRA'!R22 -> 2377183.638 | S26: ='RAB, ABBRR & ICRA'!S22 -> 2715217.961 | T26: ='RAB, ABBRR & ICRA'!T22 -> 3027435.628 | U26: ='RAB, ABBRR & ICRA'!U22 -> 3060788.822 | V26: ='RAB, ABBRR & ICRA'!V22 -> 3169535.625 | W26: ='RAB, ABBRR & ICRA'!W22 -> 3150335.317 | X26: ='RAB, ABBRR & ICRA'!X22 -> 2867197.753 | Y26: ='RAB, ABBRR & ICRA'!Y22 -> 2626022.599 | Z26: ='RAB, ABBRR & ICRA'!Z22 -> 2387176.805 | AA26: ='RAB, ABBRR & ICRA'!AA22 -> 2236092.202 | AB26: ='RAB, ABBRR & ICRA'!AB22 -> 2144773.589 | AC26: ='RAB, ABBRR & ICRA'!AC22 -> 1986542.412 | AD26: ='RAB, ABBRR & ICRA'!AD22 -> 1834995.824 | AE26: ='RAB, ABBRR & ICRA'!AE22 -> 1713975.473 | AF26: ='RAB, ABBRR & ICRA'!AF22 -> 1598088.616 | AG26: ='RAB, ABBRR & ICRA'!AG22 -> 1513741.749 | AH26: ='RAB, ABBRR & ICRA'!AH22 -> 1459798.892 | AI26: ='RAB, ABBRR & ICRA'!AI22 -> 1423544.039 | AJ26: ='RAB, ABBRR & ICRA'!AJ22 -> 1407842.521 | AK26: ='RAB, ABBRR & ICRA'!AK22 -> 1389705.089 | AL26: ='RAB, ABBRR & ICRA'!AL22 -> 1363575.386
B27: Forecast Nominal Tax Depreciation in connection with the forecast Nominal Core Services RAB Portion | E27: $'000 | G27: ='RAB, ABBRR & ICRA'!G50 -> 0 | H27: ='RAB, ABBRR & ICRA'!H50 -> 0 | I27: ='RAB, ABBRR & ICRA'!I50 -> 1246.130311 | J27: ='RAB, ABBRR & ICRA'!J50 -> 58224.1542 | K27: ='RAB, ABBRR & ICRA'!K50 -> 163323.9578 | L27: ='RAB, ABBRR & ICRA'!L50 -> 298337.7574 | M27: ='RAB, ABBRR & ICRA'!M50 -> 287238.954 | N27: ='RAB, ABBRR & ICRA'!N50 -> 442177.5571 | O27: ='RAB, ABBRR & ICRA'!O50 -> 758907.1766 | P27: ='RAB, ABBRR & ICRA'!P50 -> 1395766.141 | Q27: ='RAB, ABBRR & ICRA'!Q50 -> 2057169.393 | R27: ='RAB, ABBRR & ICRA'!R50 -> 2518931.696 | S27: ='RAB, ABBRR & ICRA'!S50 -> 2822304.983 | T27: ='RAB, ABBRR & ICRA'!T50 -> 3156242.417 | U27: ='RAB, ABBRR & ICRA'!U50 -> 3170577.233 | V27: ='RAB, ABBRR & ICRA'!V50 -> 3243665.351 | W27: ='RAB, ABBRR & ICRA'!W50 -> 3191595.055 | X27: ='RAB, ABBRR & ICRA'!X50 -> 2934581.636 | Y27: ='RAB, ABBRR & ICRA'!Y50 -> 2773231.973 | Z27: ='RAB, ABBRR & ICRA'!Z50 -> 2572563.944 | AA27: ='RAB, ABBRR & ICRA'!AA50 -> 2467785.284 | AB27: ='RAB, ABBRR & ICRA'!AB50 -> 2405022.667 | AC27: ='RAB, ABBRR & ICRA'!AC50 -> 2263850.566 | AD27: ='RAB, ABBRR & ICRA'!AD50 -> 2161169.418 | AE27: ='RAB, ABBRR & ICRA'!AE50 -> 2135635.144 | AF27: ='RAB, ABBRR & ICRA'!AF50 -> 2159628.336 | AG27: ='RAB, ABBRR & ICRA'!AG50 -> 2162619.708 | AH27: ='RAB, ABBRR & ICRA'!AH50 -> 2144360.176 | AI27: ='RAB, ABBRR & ICRA'!AI50 -> 2122601.534 | AJ27: ='RAB, ABBRR & ICRA'!AJ50 -> 2099342.275 | AK27: ='RAB, ABBRR & ICRA'!AK50 -> 2067473.302 | AL27: ='RAB, ABBRR & ICRA'!AL50 -> 2030026.569
B28: Forecast nominal regulatory depreciation in connection with the forecast Nominal Core Services RAB Portion | E28: $'000 | G28: ='RAB, ABBRR & ICRA'!G35 -> 0 | H28: ='RAB, ABBRR & ICRA'!H35 -> 0 | I28: ='RAB, ABBRR & ICRA'!I35 -> 1020.305575 | J28: ='RAB, ABBRR & ICRA'!J35 -> 55793.48377 | K28: ='RAB, ABBRR & ICRA'!K35 -> 151535.3708 | L28: ='RAB, ABBRR & ICRA'!L35 -> 260705.4001 | M28: ='RAB, ABBRR & ICRA'!M35 -> 249103.1403 | N28: ='RAB, ABBRR & ICRA'!N35 -> 397570.0675 | O28: ='RAB, ABBRR & ICRA'!O35 -> 602036.3433 | P28: ='RAB, ABBRR & ICRA'!P35 -> 1138698.47 | Q28: ='RAB, ABBRR & ICRA'!Q35 -> 1814344.339 | R28: ='RAB, ABBRR & ICRA'!R35 -> 2649174.111 | S28: ='RAB, ABBRR & ICRA'!S35 -> 1998795.396 | T28: ='RAB, ABBRR & ICRA'!T35 -> 2832501.776 | U28: ='RAB, ABBRR & ICRA'!U35 -> 2951685.48 | V28: ='RAB, ABBRR & ICRA'!V35 -> 3129656.851 | W28: ='RAB, ABBRR & ICRA'!W35 -> 3211293.054 | X28: ='RAB, ABBRR & ICRA'!X35 -> 2952714.959 | Y28: ='RAB, ABBRR & ICRA'!Y35 -> 2757757.278 | Z28: ='RAB, ABBRR & ICRA'!Z35 -> 2543609.979 | AA28: ='RAB, ABBRR & ICRA'!AA35 -> 2430000.341 | AB28: ='RAB, ABBRR & ICRA'!AB35 -> 2390358.309 | AC28: ='RAB, ABBRR & ICRA'!AC35 -> 2256884.389 | AD28: ='RAB, ABBRR & ICRA'!AD35 -> 2122503.658 | AE28: ='RAB, ABBRR & ICRA'!AE35 -> 2018635.409 | AF28: ='RAB, ABBRR & ICRA'!AF35 -> 1911939.919 | AG28: ='RAB, ABBRR & ICRA'!AG35 -> 1844535.064 | AH28: ='RAB, ABBRR & ICRA'!AH35 -> 1821690.914 | AI28: ='RAB, ABBRR & ICRA'!AI35 -> 1826875.028 | AJ28: ='RAB, ABBRR & ICRA'!AJ35 -> 1865214.38 | AK28: ='RAB, ABBRR & ICRA'!AK35 -> 1899586.612 | AL28: ='RAB, ABBRR & ICRA'!AL35 -> 1919650.304
B29: Nominal Forecast Core Services Operating Expenditure | E29: $'000 | G29: ='Nominal Inputs'!G34 -> 136.8460276 | H29: ='Nominal Inputs'!H34 -> 82339.8158 | I29: ='Nominal Inputs'!I34 -> 332578.5251 | J29: ='Nominal Inputs'!J34 -> 490663.7456 | K29: ='Nominal Inputs'!K34 -> 773948.0954 | L29: ='Nominal Inputs'!L34 -> 1215514.36 | M29: ='Nominal Inputs'!M34 -> 1591219 | N29: ='Nominal Inputs'!N34 -> 2259775.426 | O29: ='Nominal Inputs'!O34 -> 3726985.954 | P29: ='Nominal Inputs'!P34 -> 4322534 | Q29: ='Nominal Inputs'!Q34 -> 4454260.383 | R29: ='Nominal Inputs'!R34 -> 5196145.904 | S29: ='Nominal Inputs'!S34 -> 4159769.894 | T29: ='Nominal Inputs'!T34 -> 3043503.472 | U29: ='Nominal Inputs'!U34 -> 2748729.381 | V29: ='Nominal Inputs'!V34 -> 2633789.559 | W29: ='Nominal Inputs'!W34 -> 2600832.76 | X29: ='Nominal Inputs'!X34 -> 2637286.313 | Y29: ='Nominal Inputs'!Y34 -> 2679369.295 | Z29: ='Nominal Inputs'!Z34 -> 2727957.052 | AA29: ='Nominal Inputs'!AA34 -> 2776161.784 | AB29: ='Nominal Inputs'!AB34 -> 2874546.946 | AC29: ='Nominal Inputs'!AC34 -> 2880218.707 | AD29: ='Nominal Inputs'!AD34 -> 2937841.695 | AE29: ='Nominal Inputs'!AE34 -> 2997272.65 | AF29: ='Nominal Inputs'!AF34 -> 3058355.633 | AG29: ='Nominal Inputs'!AG34 -> 3122869.102 | AH29: ='Nominal Inputs'!AH34 -> 3192951.874 | AI29: ='Nominal Inputs'!AI34 -> 3266513.661 | AJ29: ='Nominal Inputs'!AJ34 -> 3342740.367 | AK29: ='Nominal Inputs'!AK34 -> 3421573.358 | AL29: ='Nominal Inputs'!AL34 -> 3502576.097
B30: Nominal Forecast Construction in Progress in connection with Core Regulated Services (start period) | E30: $'000 | G30: ='Nominal Inputs'!G30 -> 0 | H30: ='Nominal Inputs'!H30 -> 0 | I30: ='Nominal Inputs'!I30 -> 33677.12307 | J30: ='Nominal Inputs'!J30 -> 235892.678 | K30: ='Nominal Inputs'!K30 -> 620266.9556 | L30: ='Nominal Inputs'!L30 -> 1388872.036 | M30: ='Nominal Inputs'!M30 -> 2315416.445 | N30: ='Nominal Inputs'!N30 -> 3482834.261 | O30: ='Nominal Inputs'!O30 -> 3991029.601 | P30: ='Nominal Inputs'!P30 -> 3737013.538 | Q30: ='Nominal Inputs'!Q30 -> 3168551.623 | R30: ='Nominal Inputs'!R30 -> 3262881.271 | S30: ='Nominal Inputs'!S30 -> 1668280.319 | T30: ='Nominal Inputs'!T30 -> 1123344.551 | U30: ='Nominal Inputs'!U30 -> 1119819.354 | V30: ='Nominal Inputs'!V30 -> 1091599.865 | W30: ='Nominal Inputs'!W30 -> 515564.3709 | X30: ='Nominal Inputs'!X30 -> 458453.1486 | Y30: ='Nominal Inputs'!Y30 -> 663044.7607 | Z30: ='Nominal Inputs'!Z30 -> 621765.9472 | AA30: ='Nominal Inputs'!AA30 -> 643024.1277 | AB30: ='Nominal Inputs'!AB30 -> 543318.0117 | AC30: ='Nominal Inputs'!AC30 -> 363337.6657 | AD30: ='Nominal Inputs'!AD30 -> 460611.3715 | AE30: ='Nominal Inputs'!AE30 -> 465352.8593 | AF30: ='Nominal Inputs'!AF30 -> 489692.4908 | AG30: ='Nominal Inputs'!AG30 -> 480857.8665 | AH30: ='Nominal Inputs'!AH30 -> 397291.346 | AI30: ='Nominal Inputs'!AI30 -> 391813.0044 | AJ30: ='Nominal Inputs'!AJ30 -> 408310.2327 | AK30: ='Nominal Inputs'!AK30 -> 425184.7427 | AL30: ='Nominal Inputs'!AL30 -> 442476.683
B31: Forecast Annual Construction in Progress Allowance (nominal) in connection with Core Regulated Services | E31: $'000 | G31: ='RAB, ABBRR & ICRA'!G41 -> 0 | H31: ='RAB, ABBRR & ICRA'!H41 -> 0 | I31: ='RAB, ABBRR & ICRA'!I41 -> 2998.699891 | J31: ='RAB, ABBRR & ICRA'!J41 -> 20579.44863 | K31: ='RAB, ABBRR & ICRA'!K41 -> 40375.20035 | L31: ='RAB, ABBRR & ICRA'!L41 -> 98301.93987 | M31: ='RAB, ABBRR & ICRA'!M41 -> 167853.274 | N31: ='RAB, ABBRR & ICRA'!N41 -> 227126.8618 | O31: ='RAB, ABBRR & ICRA'!O41 -> 224636.107 | P31: ='RAB, ABBRR & ICRA'!P41 -> 221903.4601 | Q31: ='RAB, ABBRR & ICRA'!Q41 -> 196961.6462 | R31: ='RAB, ABBRR & ICRA'!R41 -> 159721.8547 | S31: ='RAB, ABBRR & ICRA'!S41 -> 73951.86851 | T31: ='RAB, ABBRR & ICRA'!T41 -> 58413.91667 | U31: ='RAB, ABBRR & ICRA'!U41 -> 58230.6064 | V31: ='RAB, ABBRR & ICRA'!V41 -> 78595.19027 | W31: ='RAB, ABBRR & ICRA'!W41 -> 36605.07033 | X31: ='RAB, ABBRR & ICRA'!X41 -> 32550.17355 | Y31: ='RAB, ABBRR & ICRA'!Y41 -> 47076.17801 | Z31: ='RAB, ABBRR & ICRA'!Z41 -> 44145.38225 | AA31: ='RAB, ABBRR & ICRA'!AA41 -> 45654.71306 | AB31: ='RAB, ABBRR & ICRA'!AB41 -> 38575.57883 | AC31: ='RAB, ABBRR & ICRA'!AC41 -> 25796.97426 | AD31: ='RAB, ABBRR & ICRA'!AD41 -> 32703.40738 | AE31: ='RAB, ABBRR & ICRA'!AE41 -> 33040.05301 | AF31: ='RAB, ABBRR & ICRA'!AF41 -> 34768.16685 | AG31: ='RAB, ABBRR & ICRA'!AG41 -> 34140.90852 | AH31: ='RAB, ABBRR & ICRA'!AH41 -> 28207.68556 | AI31: ='RAB, ABBRR & ICRA'!AI41 -> 27818.72331 | AJ31: ='RAB, ABBRR & ICRA'!AJ41 -> 28990.02652 | AK31: ='RAB, ABBRR & ICRA'!AK41 -> 30188.11673 | AL31: ='RAB, ABBRR & ICRA'!AL41 -> 31415.8445
B32: Forecast Core Services Tax Allowance (nominal) | E32: $'000 | G32: ='RAB, ABBRR & ICRA'!G39 -> 0 | H32: ='RAB, ABBRR & ICRA'!H39 -> 0 | I32: ='RAB, ABBRR & ICRA'!I39 -> 0 | J32: ='RAB, ABBRR & ICRA'!J39 -> 0 | K32: ='RAB, ABBRR & ICRA'!K39 -> 0 | L32: ='RAB, ABBRR & ICRA'!L39 -> 0 | M32: ='RAB, ABBRR & ICRA'!M39 -> 0 | N32: ='RAB, ABBRR & ICRA'!N39 -> 0 | O32: ='RAB, ABBRR & ICRA'!O39 -> 0 | P32: ='RAB, ABBRR & ICRA'!P39 -> 0 | Q32: ='RAB, ABBRR & ICRA'!Q39 -> 0 | R32: ='RAB, ABBRR & ICRA'!R39 -> 0 | S32: ='RAB, ABBRR & ICRA'!S39 -> 0 | T32: ='RAB, ABBRR & ICRA'!T39 -> 0 | U32: ='RAB, ABBRR & ICRA'!U39 -> 0 | V32: ='RAB, ABBRR & ICRA'!V39 -> 0 | W32: ='RAB, ABBRR & ICRA'!W39 -> 0 | X32: ='RAB, ABBRR & ICRA'!X39 -> 0 | Y32: ='RAB, ABBRR & ICRA'!Y39 -> 0 | Z32: ='RAB, ABBRR & ICRA'!Z39 -> 0 | AA32: ='RAB, ABBRR & ICRA'!AA39 -> 0 | AB32: ='RAB, ABBRR & ICRA'!AB39 -> 0 | AC32: ='RAB, ABBRR & ICRA'!AC39 -> 0 | AD32: ='RAB, ABBRR & ICRA'!AD39 -> 0 | AE32: ='RAB, ABBRR & ICRA'!AE39 -> 0 | AF32: ='RAB, ABBRR & ICRA'!AF39 -> 0 | AG32: ='RAB, ABBRR & ICRA'!AG39 -> 0 | AH32: ='RAB, ABBRR & ICRA'!AH39 -> 0 | AI32: ='RAB, ABBRR & ICRA'!AI39 -> 641972.052 | AJ32: ='RAB, ABBRR & ICRA'!AJ39 -> 763071.4456 | AK32: ='RAB, ABBRR & ICRA'!AK39 -> 828759.767 | AL32: ='RAB, ABBRR & ICRA'!AL39 -> 894805.7369
B33: Forecast Nominal Core Services ABBRR | E33: $'000 | G33: ='RAB, ABBRR & ICRA'!G43 -> 136.8460276 | H33: ='RAB, ABBRR & ICRA'!H43 -> 82339.8158 | I33: ='RAB, ABBRR & ICRA'!I43 -> 337275.0626 | J33: ='RAB, ABBRR & ICRA'!J43 -> 589968.7589 | K33: ='RAB, ABBRR & ICRA'!K43 -> 1010679.653 | L33: ='RAB, ABBRR & ICRA'!L43 -> 1685312.43 | M33: ='RAB, ABBRR & ICRA'!M43 -> 2218489.902 | N33: ='RAB, ABBRR & ICRA'!N43 -> 3198727.666 | O33: ='RAB, ABBRR & ICRA'!O43 -> 5057116.664 | P33: ='RAB, ABBRR & ICRA'!P43 -> 6536403.75 | Q33: ='RAB, ABBRR & ICRA'!Q43 -> 7669900.467 | R33: ='RAB, ABBRR & ICRA'!R43 -> 9145640.426 | S33: ='RAB, ABBRR & ICRA'!S43 -> 7439417.152 | T33: ='RAB, ABBRR & ICRA'!T43 -> 7413830.349 | U33: ='RAB, ABBRR & ICRA'!U43 -> 7233594.404 | V33: ='RAB, ABBRR & ICRA'!V43 -> 7891575.99 | W33: ='RAB, ABBRR & ICRA'!W43 -> 7825399.619 | X33: ='RAB, ABBRR & ICRA'!X43 -> 7496544.142 | Y33: ='RAB, ABBRR & ICRA'!Y43 -> 7283795.046 | Z33: ='RAB, ABBRR & ICRA'!Z43 -> 7066343.621 | AA33: ='RAB, ABBRR & ICRA'!AA43 -> 6967265.857 | AB33: ='RAB, ABBRR & ICRA'!AB43 -> 6986241.288 | AC33: ='RAB, ABBRR & ICRA'!AC43 -> 6795908.552 | AD33: ='RAB, ABBRR & ICRA'!AD43 -> 6679884.372 | AE33: ='RAB, ABBRR & ICRA'!AE43 -> 6606380.781 | AF33: ='RAB, ABBRR & ICRA'!AF43 -> 6542525.238 | AG33: ='RAB, ABBRR & ICRA'!AG43 -> 6527690.492 | AH33: ='RAB, ABBRR & ICRA'!AH43 -> 6555901.988 | AI33: ='RAB, ABBRR & ICRA'!AI43 -> 7258456.307 | AJ33: ='RAB, ABBRR & ICRA'!AJ43 -> 7477937.051 | AK33: ='RAB, ABBRR & ICRA'!AK43 -> 7640322.722 | AL33: ='RAB, ABBRR & ICRA'!AL43 -> 7790944.927
B34: Forecast Real Core Services ABBRR | G34: ='RAB, ABBRR & ICRA'!G43/G12 -> 155.9956332 | H34: ='RAB, ABBRR & ICRA'!H43/H12 -> 91020.73584 | I34: ='RAB, ABBRR & ICRA'!I43/I12 -> 360054.7291 | J34: ='RAB, ABBRR & ICRA'!J43/J12 -> 622287.7646 | K34: ='RAB, ABBRR & ICRA'!K43/K12 -> 1041157.347 | L34: ='RAB, ABBRR & ICRA'!L43/L12 -> 1685312.43 | M34: ='RAB, ABBRR & ICRA'!M43/M12 -> 2185470.517 | N34: ='RAB, ABBRR & ICRA'!N43/N12 -> 3119201.287 | O34: ='RAB, ABBRR & ICRA'!O43/O12 -> 4837837.893 | P34: ='RAB, ABBRR & ICRA'!P43/P12 -> 6125709.355 | Q34: ='RAB, ABBRR & ICRA'!Q43/Q12 -> 7075282.748 | R34: ='RAB, ABBRR & ICRA'!R43/R12 -> 8466112.947 | S34: ='RAB, ABBRR & ICRA'!S43/S12 -> 6631601.653 | T34: ='RAB, ABBRR & ICRA'!T43/T12 -> 6463367.447 | U34: ='RAB, ABBRR & ICRA'!U43/U12 -> 6167469.917 | V34: ='RAB, ABBRR & ICRA'!V43/V12 -> 6572380.738 | W34: ='RAB, ABBRR & ICRA'!W43/W12 -> 6366072.517 | X34: ='RAB, ABBRR & ICRA'!X43/X12 -> 5949798.992 | Y34: ='RAB, ABBRR & ICRA'!Y43/Y12 -> 5639947.258 | Z34: ='RAB, ABBRR & ICRA'!Z43/Z12 -> 5338118.529 | AA34: ='RAB, ABBRR & ICRA'!AA43/AA12 -> 5134899.85 | AB34: ='RAB, ABBRR & ICRA'!AB43/AB12 -> 5023302.254 | AC34: ='RAB, ABBRR & ICRA'!AC43/AC12 -> 4767266.059 | AD34: ='RAB, ABBRR & ICRA'!AD43/AD12 -> 4571586.523 | AE34: ='RAB, ABBRR & ICRA'!AE43/AE12 -> 4411006.884 | AF34: ='RAB, ABBRR & ICRA'!AF43/AF12 -> 4261825.609 | AG34: ='RAB, ABBRR & ICRA'!AG43/AG12 -> 4148450.926 | AH34: ='RAB, ABBRR & ICRA'!AH43/AH12 -> 4064760.761 | AI34: ='RAB, ABBRR & ICRA'!AI43/AI12 -> 4390590.555 | AJ34: ='RAB, ABBRR & ICRA'!AJ43/AJ12 -> 4413027.273 | AK34: ='RAB, ABBRR & ICRA'!AK43/AK12 -> 4398885.364 | AL34: ='RAB, ABBRR & ICRA'!AL43/AL12 -> 4376200.487

Sheet Sample Depreciation
B2: Sample Depreciation Calculations
B3: Public Version
B4: This document is a public version of the building block model provided by nbn to the ACCC in connection with nbn’s SAU Variation lodged in March 2022 and shows data related to ‘Core Services’ as defined in the SAU Variation. The information in this document is provided solely for the purpose of assisting the ACCC in its assessment of nbn’s SAU Variation and should not be relied on for any other purpose. Any forecast values or indicative estimates in this document reflect nbn’s views and assumptions based on its most recent Integrated Operating Plan (as at August 2021), which included a considered assessment of economic and operating conditions at the time they were made. Any forecasts or indicative estimates are inherently uncertain and subject to a range of risks such that actual performance may differ materially from those forecasts or indicative estimates. Forecasts relating to the period from FY22 to FY25 were previously signed off by nbn’s Board and Shareholders. Any values relating to the period from FY26 onwards are indicative estimates prepared for accounting valuation purposes only and do not reflect an operational forecast – they have not been approved by nbn’s Board or Shareholders and do not include the full potential capex requirements (or specific operational timing) to meet future customer demand and network lifecycle requirements over time. This document allows the user to edit the content to produce different outputs. nbn does not endorse any such different inputs or outputs; such different values should not be relied upon as representing or reflecting nbn’s position. | G4: Cost Commencement Year | L4: First Financial Year
C5: SAU Year: | G5: =H5-1 -> -4 | H5: =I5-1 -> -3 | I5: =J5-1 -> -2 | J5: =K5-1 -> -1 | K5: =L5-1 -> 0 | L5: 1 | M5: =L5+1 -> 2 | N5: 3 | O5: 4 | P5: 5 | Q5: 6 | R5: 7 | S5: 8 | T5: 9 | U5: 10 | V5: 11 | W5: 12 | X5: 13 | Y5: 14 | Z5: 15 | AA5: 16 | AB5: 17 | AC5: =AB5+1 -> 18 | AD5: 19 | AE5: 20 | AF5: 21 | AG5: 22 | AH5: 23 | AI5: 24 | AJ5: 25 | AK5: 26 | AL5: 27
C6: Spreadsheet Year: | G6: 1 | H6: =G6+1 -> 2 | I6: =H6+1 -> 3 | J6: 4 | K6: 5 | L6: 6 | M6: 7 | N6: 8 | O6: 9 | P6: 10 | Q6: 11 | R6: 12 | S6: 13 | T6: 14 | U6: 15 | V6: 16 | W6: 17 | X6: 18 | Y6: 19 | Z6: 20 | AA6: 21 | AB6: 22 | AC6: 23 | AD6: 24 | AE6: 25 | AF6: 26 | AG6: 27 | AH6: 28 | AI6: 29 | AJ6: 30 | AK6: 31 | AL6: 32
B7: Year | F7: 2007-08 | G7: =CONCATENATE(LEFT(F7, 4)+1 &"-" &IF(F7>"2007-08",,"0") &RIGHT(F7,2)+1) -> 2008-09 | H7: 2009-10 | I7: 2010-11 | J7: 2011-12 | K7: 2012-13 | L7: 2013-14 | M7: 2014-15 | N7: 2015-16 | O7: 2016-17 | P7: 2017-18 | Q7: 2018-19 | R7: 2019-20 | S7: =CONCATENATE(LEFT(R7, 4)+1 &"-" &IF(R7>"2007-08",,"0") &RIGHT(R7,2)+1) -> 2020-21 | T7: 2021-22 | U7: 2022-23 | V7: 2023-24 | W7: 2024-25 | X7: 2025-26 | Y7: 2026-27 | Z7: 2027-28 | AA7: 2028-29 | AB7: 2029-30 | AC7: 2030-31 | AD7: 2031-32 | AE7: 2032-33 | AF7: 2033-34 | AG7: 2034-35 | AH7: 2035-36 | AI7: 2036-37 | AJ7: 2037-38 | AK7: 2038-39 | AL7: 2039-40
B9: June Quarter CPI (annual percentage change) - as per Dictionary | G9: ='Nominal Inputs Data'!G8 -> 0.01419213974 | H9: ='Nominal Inputs Data'!H8 -> 0.03121636168 | I9: ='Nominal Inputs Data'!I8 -> 0.03549060543 | J9: ='Nominal Inputs Data'!J8 -> 0.01209677419 | K9: ='Nominal Inputs Data'!K8 -> 0.02390438247 | L9: ='Nominal Inputs Data'!L8 -> 0.03015564202 | M9: ='Nominal Inputs Data'!M8 -> 0.01510859301 | N9: ='Nominal Inputs Data'!N8 -> 0.01023255814 | O9: ='Nominal Inputs Data'!O8 -> 0.01933701657 | P9: ='Nominal Inputs Data'!P8 -> 0.02077687444 | Q9: ='Nominal Inputs Data'!Q8 -> 0.01592920354 | R9: ='Nominal Inputs Data'!R8 -> -0.003484320557 | S9: ='Nominal Inputs Data'!S8 -> 0.03846153846 | T9: ='Nominal Inputs Data'!T8 -> 0.0225 | U9: ='Nominal Inputs Data'!U8 -> 0.0225 | V9: ='Nominal Inputs Data'!V8 -> 0.02375 | W9: ='Nominal Inputs Data'!W8 -> 0.02375 | X9: ='Nominal Inputs Data'!X8 -> 0.025 | Y9: ='Nominal Inputs Data'!Y8 -> 0.025 | Z9: ='Nominal Inputs Data'!Z8 -> 0.025 | AA9: ='Nominal Inputs Data'!AA8 -> 0.025 | AB9: ='Nominal Inputs Data'!AB8 -> 0.025 | AC9: ='Nominal Inputs Data'!AC8 -> 0.025 | AD9: ='Nominal Inputs Data'!AD8 -> 0.025 | AE9: ='Nominal Inputs Data'!AE8 -> 0.025 | AF9: ='Nominal Inputs Data'!AF8 -> 0.025 | AG9: ='Nominal Inputs Data'!AG8 -> 0.025 | AH9: ='Nominal Inputs Data'!AH8 -> 0.025 | AI9: ='Nominal Inputs Data'!AI8 -> 0.025 | AJ9: ='Nominal Inputs Data'!AJ8 -> 0.025 | AK9: ='Nominal Inputs Data'!AK8 -> 0.025 | AL9: ='Nominal Inputs Data'!AL8 -> 0.025
B10: Cumulative Inflation Factor - as per Clauses 1E.9.4(b) and (c) | G10: ='Nominal Inputs Data'!G9 -> 0.8772426818 | H10: ='Nominal Inputs Data'!H9 -> 0.9046270066 | I10: ='Nominal Inputs Data'!I9 -> 0.9367327668 | J10: ='Nominal Inputs Data'!J9 -> 0.9480642115 | K10: ='Nominal Inputs Data'!K9 -> 0.970727101 | L10: ='Nominal Inputs Data'!L9 -> 1 | M10: ='Nominal Inputs Data'!M9 -> 1.015108593 | N10: ='Nominal Inputs Data'!N9 -> 1.025495751 | O10: ='Nominal Inputs Data'!O9 -> 1.045325779 | P10: ='Nominal Inputs Data'!P9 -> 1.067044381 | Q10: ='Nominal Inputs Data'!Q9 -> 1.084041549 | R10: ='Nominal Inputs Data'!R9 -> 1.0802644 | S10: ='Nominal Inputs Data'!S9 -> 1.121813031 | T10: ='Nominal Inputs Data'!T9 -> 1.147053824 | U10: ='Nominal Inputs Data'!U9 -> 1.172862535 | V10: ='Nominal Inputs Data'!V9 -> 1.200718021 | W10: ='Nominal Inputs Data'!W9 -> 1.229235074 | X10: ='Nominal Inputs Data'!X9 -> 1.25996595 | Y10: ='Nominal Inputs Data'!Y9 -> 1.291465099 | Z10: ='Nominal Inputs Data'!Z9 -> 1.323751727 | AA10: ='Nominal Inputs Data'!AA9 -> 1.35684552 | AB10: ='Nominal Inputs Data'!AB9 -> 1.390766658 | AC10: ='Nominal Inputs Data'!AC9 -> 1.425535824 | AD10: ='Nominal Inputs Data'!AD9 -> 1.46117422 | AE10: ='Nominal Inputs Data'!AE9 -> 1.497703575 | AF10: ='Nominal Inputs Data'!AF9 -> 1.535146165 | AG10: ='Nominal Inputs Data'!AG9 -> 1.573524819 | AH10: ='Nominal Inputs Data'!AH9 -> 1.612862939 | AI10: ='Nominal Inputs Data'!AI9 -> 1.653184513 | AJ10: ='Nominal Inputs Data'!AJ9 -> 1.694514126 | AK10: ='Nominal Inputs Data'!AK9 -> 1.736876979 | AL10: ='Nominal Inputs Data'!AL9 -> 1.780298903
B12: Net Real Capex ($'000 REAL) - as per Clause 1E.9.1(a)
B13: ='Nominal Inputs Data'!B17 -> 1 | C13: Land | G13: 0 | H13: 0 | I13: 1816.054917 | J13: 13470.22721 | K13: 4552.749737 | L13: 5646.30661 | M13: 4321.869296 | N13: 10334.55944 | O13: 5507.01201 | P13: 3096.08733 | Q13: 2671.443962 | R13: 57934.44578 | S13: -39980.15667 | T13: 11071.60321 | U13: -21604.3198 | V13: -12700.53514 | W13: 0 | X13: 0 | Y13: 0 | Z13: 0 | AA13: 0 | AB13: 0 | AC13: 0 | AD13: 0 | AE13: 0 | AF13: 0 | AG13: 0 | AH13: 0 | AI13: 0 | AJ13: 0 | AK13: 0 | AL13: 0
B14: ='Nominal Inputs Data'!B18 -> 2 | C14: Transmission | G14: 0 | H14: 0 | I14: 0 | J14: 16780.61857 | K14: 379.1426391 | L14: 0 | M14: 0 | N14: 0 | O14: -3.563760096e-12 | P14: 0 | Q14: 0.001236114979 | R14: 0 | S14: 0 | T14: 0 | U14: 0 | V14: 0 | W14: 0 | X14: 0 | Y14: 0 | Z14: 0 | AA14: 0 | AB14: 0 | AC14: 0 | AD14: 0 | AE14: 0 | AF14: 0 | AG14: 0 | AH14: 0 | AI14: 0 | AJ14: 0 | AK14: 0 | AL14: 0
B15: ='Nominal Inputs Data'!B19 -> 3 | C15: IT | G15: 0 | H15: 0 | I15: 0 | J15: 0 | K15: 674.408905 | L15: 7278.28162 | M15: 0 | N15: 14.07699641 | O15: 0 | P15: 0 | Q15: 0 | R15: 0 | S15: 0 | T15: 0 | U15: 0 | V15: 0 | W15: 0 | X15: 0 | Y15: 0 | Z15: 0 | AA15: 0 | AB15: 0 | AC15: 0 | AD15: 0 | AE15: 0 | AF15: 0 | AG15: 0 | AH15: 0 | AI15: 0 | AJ15: 0 | AK15: 0 | AL15: 0
B16: ='Nominal Inputs Data'!B20 -> 4 | C16: Overheads | G16: 0 | H16: 0 | I16: 0 | J16: 0 | K16: 60314.1891 | L16: 9707.13681 | M16: 0 | N16: 253.483771 | O16: 0 | P16: 0 | Q16: 0 | R16: 0 | S16: 0 | T16: 0 | U16: 0 | V16: 0 | W16: 0 | X16: 0 | Y16: 0 | Z16: 0 | AA16: 0 | AB16: 0 | AC16: 0 | AD16: 0 | AE16: 0 | AF16: 0 | AG16: 0 | AH16: 0 | AI16: 0 | AJ16: 0 | AK16: 0 | AL16: 0
B17: ='Nominal Inputs Data'!B21 -> 5 | C17: Fibre | G17: 0 | H17: 0 | I17: 0 | J17: 0 | K17: 36855.39692 | L17: 32131.98257 | M17: 0 | N17: 577.6602483 | O17: 0 | P17: 0 | Q17: 0 | R17: 0 | S17: 0 | T17: 0 | U17: 0 | V17: 0 | W17: 0 | X17: 0 | Y17: 0 | Z17: 0 | AA17: 0 | AB17: 0 | AC17: 0 | AD17: 0 | AE17: 0 | AF17: 0 | AG17: 0 | AH17: 0 | AI17: 0 | AJ17: 0 | AK17: 0 | AL17: 0
B18: ='Nominal Inputs Data'!B22 -> 6 | C18: Transit | G18: 0 | H18: 0 | I18: 0 | J18: 666.9312594 | K18: 131931.8217 | L18: 48215.91094 | M18: 0 | N18: 1392.861588 | O18: 1367.052854 | P18: 0 | Q18: 147.4758972 | R18: 1457.580046 | S18: 0 | T18: 0 | U18: 0 | V18: 0 | W18: 0 | X18: 0 | Y18: 0 | Z18: 0 | AA18: 0 | AB18: 0 | AC18: 0 | AD18: 0 | AE18: 0 | AF18: 0 | AG18: 0 | AH18: 0 | AI18: 0 | AJ18: 0 | AK18: 0 | AL18: 0
B19: ='Nominal Inputs Data'!B23 -> 7 | C19: NTD's | G19: 0 | H19: 0 | I19: 0 | J19: 0 | K19: 351.6309939 | L19: 365.22003 | M19: 0 | N19: 6.092068149 | O19: 0 | P19: 0 | Q19: 0 | R19: 0 | S19: 0 | T19: 0 | U19: 0 | V19: 0 | W19: 0 | X19: 0 | Y19: 0 | Z19: 0 | AA19: 0 | AB19: 0 | AC19: 0 | AD19: 0 | AE19: 0 | AF19: 0 | AG19: 0 | AH19: 0 | AI19: 0 | AJ19: 0 | AK19: 0 | AL19: 0
B20: ='Nominal Inputs Data'!B24 -> 8 | C20: Tools | G20: 0 | H20: 0 | I20: 0 | J20: 40.37136315 | K20: 2413.402067 | L20: 107.57303 | M20: 0 | N20: 1.743585967 | O20: 0 | P20: 0 | Q20: 0 | R20: 0 | S20: 0 | T20: 0 | U20: 0 | V20: 0 | W20: 0 | X20: 0 | Y20: 0 | Z20: 0 | AA20: 0 | AB20: 0 | AC20: 0 | AD20: 0 | AE20: 0 | AF20: 0 | AG20: 0 | AH20: 0 | AI20: 0 | AJ20: 0 | AK20: 0 | AL20: 0
B21: ='Nominal Inputs Data'!B25 -> 9 | C21: Towers | G21: 0 | H21: 0 | I21: 0 | J21: 0 | K21: 15464.03188 | L21: 12276.49475 | M21: 0 | N21: 228.368406 | O21: 0 | P21: 0 | Q21: 0 | R21: 0 | S21: 0 | T21: 0 | U21: 0 | V21: 0 | W21: 0 | X21: 0 | Y21: 0 | Z21: 0 | AA21: 0 | AB21: 0 | AC21: 0 | AD21: 0 | AE21: 0 | AF21: 0 | AG21: 0 | AH21: 0 | AI21: 0 | AJ21: 0 | AK21: 0 | AL21: 0
B22: ='Nominal Inputs Data'!B26 -> 10 | C22: Copper | G22: 0 | H22: 0 | I22: 0 | J22: 0 | K22: 170.7846093 | L22: 328.47369 | M22: 0 | N22: 4.514343425 | O22: 0 | P22: 0 | Q22: 0 | R22: 0 | S22: 0 | T22: 0 | U22: 0 | V22: 0 | W22: 0 | X22: 0 | Y22: 0 | Z22: 0 | AA22: 0 | AB22: 0 | AC22: 0 | AD22: 0 | AE22: 0 | AF22: 0 | AG22: 0 | AH22: 0 | AI22: 0 | AJ22: 0 | AK22: 0 | AL22: 0
B23: Total | G23: =SUM(G13:G22) -> 0 | H23: 0 | I23: 1816.054917 | J23: 30958.1484 | K23: 253107.5586 | L23: 116057.38 | M23: 4321.869296 | N23: 12813.36045 | O23: 6874.064865 | P23: 3096.08733 | Q23: 2818.921096 | R23: 59392.02582 | S23: -39980.15667 | T23: 11071.60321 | U23: -21604.3198 | V23: -12700.53514 | W23: 0 | X23: 0 | Y23: 0 | Z23: 0 | AA23: 0 | AB23: 0 | AC23: 0 | AD23: 0 | AE23: 0 | AF23: 0 | AG23: 0 | AH23: 0 | AI23: 0 | AJ23: 0 | AK23: 0 | AL23: 0
B25: Net Nominal Capex ($'000 NOMINAL) - as per Clause 1E.9.2(a), and accounting for the treatment of Assets Received for Nil Consideration (as per Clause 1E.9.3)
B26: =B13 -> 1 | C26: Land | G26: 0 | H26: 0 | I26: 1701.158147 | J26: 12770.64034 | K26: 4419.477554 | L26: 5646.30661 | M26: 4387.16666 | N26: 10598.04679 | O26: 5756.62162 | P26: 3303.66259 | Q26: 2895.95625 | R26: 62584.51933 | S26: -44850.26074 | T26: 12699.72481 | U26: -25338.8973 | V26: -15249.76142 | W26: 0 | X26: 0 | Y26: 0 | Z26: 0 | AA26: 0 | AB26: 0 | AC26: 0 | AD26: 0 | AE26: 0 | AF26: 0 | AG26: 0 | AH26: 0 | AI26: 0 | AJ26: 0 | AK26: 0 | AL26: 0
B27: 2 | C27: Transmission | G27: 0 | H27: 0 | I27: 0 | J27: 15909.10391 | K27: 368.044035 | L27: 0 | M27: 0 | N27: 0 | O27: -3.725290298e-12 | P27: 0 | Q27: 0.001339999996 | R27: 0 | S27: 0 | T27: 0 | U27: 0 | V27: 0 | W27: 0 | X27: 0 | Y27: 0 | Z27: 0 | AA27: 0 | AB27: 0 | AC27: 0 | AD27: 0 | AE27: 0 | AF27: 0 | AG27: 0 | AH27: 0 | AI27: 0 | AJ27: 0 | AK27: 0 | AL27: 0
B28: 3 | C28: IT | G28: 0 | H28: 0 | I28: 0 | J28: 0 | K28: 654.6670012 | L28: 7278.28162 | M28: 0 | N28: 14.4359 | O28: 0 | P28: 0 | Q28: 0 | R28: 0 | S28: 0 | T28: 0 | U28: 0 | V28: 0 | W28: 0 | X28: 0 | Y28: 0 | Z28: 0 | AA28: 0 | AB28: 0 | AC28: 0 | AD28: 0 | AE28: 0 | AF28: 0 | AG28: 0 | AH28: 0 | AI28: 0 | AJ28: 0 | AK28: 0 | AL28: 0
B29: 4 | C29: Overheads | G29: 0 | H29: 0 | I29: 0 | J29: 0 | K29: 58548.61794 | L29: 9707.13681 | M29: 0 | N29: 259.94653 | O29: 0 | P29: 0 | Q29: 0 | R29: 0 | S29: 0 | T29: 0 | U29: 0 | V29: 0 | W29: 0 | X29: 0 | Y29: 0 | Z29: 0 | AA29: 0 | AB29: 0 | AC29: 0 | AD29: 0 | AE29: 0 | AF29: 0 | AG29: 0 | AH29: 0 | AI29: 0 | AJ29: 0 | AK29: 0 | AL29: 0
B30: 5 | C30: Fibre | G30: 0 | H30: 0 | I30: 0 | J30: 0 | K30: 35776.53261 | L30: 32131.98257 | M30: 0 | N30: 592.38813 | O30: 0 | P30: 0 | Q30: 0 | R30: 0 | S30: 0 | T30: 0 | U30: 0 | V30: 0 | W30: 0 | X30: 0 | Y30: 0 | Z30: 0 | AA30: 0 | AB30: 0 | AC30: 0 | AD30: 0 | AE30: 0 | AF30: 0 | AG30: 0 | AH30: 0 | AI30: 0 | AJ30: 0 | AK30: 0 | AL30: 0
B31: 6 | C31: Transit | G31: 0 | H31: 0 | I31: 0 | J31: 632.2936586 | K31: 128069.7948 | L31: 48215.91094 | M31: 0 | N31: 1428.37364 | O31: 1429.01559 | P31: 0 | Q31: 159.87 | R31: 1574.571835 | S31: 0 | T31: 0 | U31: 0 | V31: 0 | W31: 0 | X31: 0 | Y31: 0 | Z31: 0 | AA31: 0 | AB31: 0 | AC31: 0 | AD31: 0 | AE31: 0 | AF31: 0 | AG31: 0 | AH31: 0 | AI31: 0 | AJ31: 0 | AK31: 0 | AL31: 0
B32: 7 | C32: NTD's | G32: 0 | H32: 0 | I32: 0 | J32: 0 | K32: 341.3377353 | L32: 365.22003 | M32: 0 | N32: 6.24739 | O32: 0 | P32: 0 | Q32: 0 | R32: 0 | S32: 0 | T32: 0 | U32: 0 | V32: 0 | W32: 0 | X32: 0 | Y32: 0 | Z32: 0 | AA32: 0 | AB32: 0 | AC32: 0 | AD32: 0 | AE32: 0 | AF32: 0 | AG32: 0 | AH32: 0 | AI32: 0 | AJ32: 0 | AK32: 0 | AL32: 0
B33: 8 | C33: Tools | G33: 0 | H33: 0 | I33: 0 | J33: 38.27464457 | K33: 2342.754792 | L33: 107.57303 | M33: 0 | N33: 1.78804 | O33: 0 | P33: 0 | Q33: 0 | R33: 0 | S33: 0 | T33: 0 | U33: 0 | V33: 0 | W33: 0 | X33: 0 | Y33: 0 | Z33: 0 | AA33: 0 | AB33: 0 | AC33: 0 | AD33: 0 | AE33: 0 | AF33: 0 | AG33: 0 | AH33: 0 | AI33: 0 | AJ33: 0 | AK33: 0 | AL33: 0
B34: 9 | C34: Towers | G34: 0 | H34: 0 | I34: 0 | J34: 0 | K34: 15011.35484 | L34: 12276.49475 | M34: 0 | N34: 234.19083 | O34: 0 | P34: 0 | Q34: 0 | R34: 0 | S34: 0 | T34: 0 | U34: 0 | V34: 0 | W34: 0 | X34: 0 | Y34: 0 | Z34: 0 | AA34: 0 | AB34: 0 | AC34: 0 | AD34: 0 | AE34: 0 | AF34: 0 | AG34: 0 | AH34: 0 | AI34: 0 | AJ34: 0 | AK34: 0 | AL34: 0
B35: 10 | C35: Copper | G35: 0 | H35: 0 | I35: 0 | J35: 0 | K35: 165.7852487 | L35: 328.47369 | M35: 0 | N35: 4.62944 | O35: 0 | P35: 0 | Q35: 0 | R35: 0 | S35: 0 | T35: 0 | U35: 0 | V35: 0 | W35: 0 | X35: 0 | Y35: 0 | Z35: 0 | AA35: 0 | AB35: 0 | AC35: 0 | AD35: 0 | AE35: 0 | AF35: 0 | AG35: 0 | AH35: 0 | AI35: 0 | AJ35: 0 | AK35: 0 | AL35: 0
B36: Total | G36: =(G23*G$10)+('Nominal Inputs Data'!G522) -> 0 | H36: =(H23*H$10)+('Nominal Inputs Data'!H522) -> 0 | I36: =(I23*I$10)+('Nominal Inputs Data'!I522) -> 1701.158147 | J36: =(J23*J$10)+('Nominal Inputs Data'!J522) -> 29350.31256 | K36: =(K23*K$10)+('Nominal Inputs Data'!K522) -> 245698.3666 | L36: =(L23*L$10)+('Nominal Inputs Data'!L522) -> 116057.38 | M36: =(M23*M$10)+('Nominal Inputs Data'!M522) -> 4387.16666 | N36: =(N23*N$10)+('Nominal Inputs Data'!N522) -> 13140.04669 | O36: =(O23*O$10)+('Nominal Inputs Data'!O522) -> 7185.63721 | P36: =(P23*P$10)+('Nominal Inputs Data'!P522) -> 3303.66259 | Q36: =(Q23*Q$10)+('Nominal Inputs Data'!Q522) -> 3055.82759 | R36: =(R23*R$10)+('Nominal Inputs Data'!R522) -> 64159.09116 | S36: =(S23*S$10)+('Nominal Inputs Data'!S522) -> -44850.26074 | T36: =(T23*T$10)+('Nominal Inputs Data'!T522) -> 12699.72481 | U36: =(U23*U$10)+('Nominal Inputs Data'!U522) -> -25338.8973 | V36: =(V23*V$10)+('Nominal Inputs Data'!V522) -> -15249.76142 | W36: =(W23*W$10)+('Nominal Inputs Data'!W522) -> 0 | X36: =(X23*X$10)+('Nominal Inputs Data'!X522) -> 0 | Y36: =(Y23*Y$10)+('Nominal Inputs Data'!Y522) -> 0 | Z36: =(Z23*Z$10)+('Nominal Inputs Data'!Z522) -> 0 | AA36: =(AA23*AA$10)+('Nominal Inputs Data'!AA522) -> 0 | AB36: =(AB23*AB$10)+('Nominal Inputs Data'!AB522) -> 0 | AC36: =(AC23*AC$10)+('Nominal Inputs Data'!AC522) -> 0 | AD36: =(AD23*AD$10)+('Nominal Inputs Data'!AD522) -> 0 | AE36: =(AE23*AE$10)+('Nominal Inputs Data'!AE522) -> 0 | AF36: =(AF23*AF$10)+('Nominal Inputs Data'!AF522) -> 0 | AG36: =(AG23*AG$10)+('Nominal Inputs Data'!AG522) -> 0 | AH36: =(AH23*AH$10)+('Nominal Inputs Data'!AH522) -> 0 | AI36: =(AI23*AI$10)+('Nominal Inputs Data'!AI522) -> 0 | AJ36: =(AJ23*AJ$10)+('Nominal Inputs Data'!AJ522) -> 0 | AK36: =(AK23*AK$10)+('Nominal Inputs Data'!AK522) -> 0 | AL36: =(AL23*AL$10)+('Nominal Inputs Data'!AL522) -> 0
B38: Real Straight Line Depreciation ($'000 REAL) - as per Clause 1E.9.1(a)
A39: 1 | B39: =OFFSET($B$13,$A39-1,0) -> 1 | C39: =OFFSET($C$13,$A39-1,0) -> Land | F39: Net Real Capex | G39: =VLOOKUP($B39,$B$13:$AL$22,5+G$6,FALSE) -> 0 | H39: 0 | I39: 1816.054917 | J39: 13470.22721 | K39: 4552.749737 | L39: 5646.30661 | M39: 4321.869296 | N39: 10334.55944 | O39: 5507.01201 | P39: 3096.08733 | Q39: 2671.443962 | R39: 57934.44578 | S39: -39980.15667 | T39: 11071.60321 | U39: -21604.3198 | V39: -12700.53514 | W39: 0 | X39: 0 | Y39: 0 | Z39: 0 | AA39: 0 | AB39: 0 | AC39: 0 | AD39: 0 | AE39: 0 | AF39: 0 | AG39: 0 | AH39: 0 | AI39: 0 | AJ39: 0 | AK39: 0 | AL39: 0
F40: Asset lifetime | G40: n/a | H40: n/a | I40: n/a | J40: n/a | K40: n/a | L40: n/a | M40: n/a | N40: n/a | O40: n/a | P40: n/a | Q40: n/a | R40: n/a | S40: n/a | T40: n/a | U40: n/a | V40: n/a | W40: n/a | X40: n/a | Y40: n/a | Z40: n/a | AA40: n/a | AB40: n/a | AC40: n/a | AD40: n/a | AE40: n/a | AF40: n/a | AG40: n/a | AH40: n/a | AI40: n/a | AJ40: n/a | AK40: n/a | AL40: n/a
D41: 1 | E41: =TRANSPOSE(G39:AL39) -> 0 | H41: =IF(OFFSET(H41,-$D41,0)="n/a","n/a",IF(H$6>OFFSET(H41,-$D41,0)+$D41,$E41-SUM($G41:G41),($E41-SUM($G41:G41))/(OFFSET(H41,-$D41,0)-(H$6-$D41-1)))) -> n/a | I41: =IF(OFFSET(I41,-$D41,0)="n/a","n/a",IF(I$6>OFFSET(I41,-$D41,0)+$D41,$E41-SUM($G41:H41),($E41-SUM($G41:H41))/(OFFSET(I41,-$D41,0)-(I$6-$D41-1)))) -> n/a | J41: =IF(OFFSET(J41,-$D41,0)="n/a","n/a",IF(J$6>OFFSET(J41,-$D41,0)+$D41,$E41-SUM($G41:I41),($E41-SUM($G41:I41))/(OFFSET(J41,-$D41,0)-(J$6-$D41-1)))) -> n/a | K41: =IF(OFFSET(K41,-$D41,0)="n/a","n/a",IF(K$6>OFFSET(K41,-$D41,0)+$D41,$E41-SUM($G41:J41),($E41-SUM($G41:J41))/(OFFSET(K41,-$D41,0)-(K$6-$D41-1)))) -> n/a | L41: =IF(OFFSET(L41,-$D41,0)="n/a","n/a",IF(L$6>OFFSET(L41,-$D41,0)+$D41,$E41-SUM($G41:K41),($E41-SUM($G41:K41))/(OFFSET(L41,-$D41,0)-(L$6-$D41-1)))) -> n/a | M41: =IF(OFFSET(M41,-$D41,0)="n/a","n/a",IF(M$6>OFFSET(M41,-$D41,0)+$D41,$E41-SUM($G41:L41),($E41-SUM($G41:L41))/(OFFSET(M41,-$D41,0)-(M$6-$D41-1)))) -> n/a | N41: =IF(OFFSET(N41,-$D41,0)="n/a","n/a",IF(N$6>OFFSET(N41,-$D41,0)+$D41,$E41-SUM($G41:M41),($E41-SUM($G41:M41))/(OFFSET(N41,-$D41,0)-(N$6-$D41-1)))) -> n/a | O41: =IF(OFFSET(O41,-$D41,0)="n/a","n/a",IF(O$6>OFFSET(O41,-$D41,0)+$D41,$E41-SUM($G41:N41),($E41-SUM($G41:N41))/(OFFSET(O41,-$D41,0)-(O$6-$D41-1)))) -> n/a | P41: =IF(OFFSET(P41,-$D41,0)="n/a","n/a",IF(P$6>OFFSET(P41,-$D41,0)+$D41,$E41-SUM($G41:O41),($E41-SUM($G41:O41))/(OFFSET(P41,-$D41,0)-(P$6-$D41-1)))) -> n/a | Q41: =IF(OFFSET(Q41,-$D41,0)="n/a","n/a",IF(Q$6>OFFSET(Q41,-$D41,0)+$D41,$E41-SUM($G41:P41),($E41-SUM($G41:P41))/(OFFSET(Q41,-$D41,0)-(Q$6-$D41-1)))) -> n/a | R41: =IF(OFFSET(R41,-$D41,0)="n/a","n/a",IF(R$6>OFFSET(R41,-$D41,0)+$D41,$E41-SUM($G41:Q41),($E41-SUM($G41:Q41))/(OFFSET(R41,-$D41,0)-(R$6-$D41-1)))) -> n/a | S41: =IF(OFFSET(S41,-$D41,0)="n/a","n/a",IF(S$6>OFFSET(S41,-$D41,0)+$D41,$E41-SUM($G41:R41),($E41-SUM($G41:R41))/(OFFSET(S41,-$D41,0)-(S$6-$D41-1)))) -> n/a | T41: =IF(OFFSET(T41,-$D41,0)="n/a","n/a",IF(T$6>OFFSET(T41,-$D41,0)+$D41,$E41-SUM($G41:S41),($E41-SUM($G41:S41))/(OFFSET(T41,-$D41,0)-(T$6-$D41-1)))) -> n/a | U41: =IF(OFFSET(U41,-$D41,0)="n/a","n/a",IF(U$6>OFFSET(U41,-$D41,0)+$D41,$E41-SUM($G41:T41),($E41-SUM($G41:T41))/(OFFSET(U41,-$D41,0)-(U$6-$D41-1)))) -> n/a | V41: =IF(OFFSET(V41,-$D41,0)="n/a","n/a",IF(V$6>OFFSET(V41,-$D41,0)+$D41,$E41-SUM($G41:U41),($E41-SUM($G41:U41))/(OFFSET(V41,-$D41,0)-(V$6-$D41-1)))) -> n/a | W41: =IF(OFFSET(W41,-$D41,0)="n/a","n/a",IF(W$6>OFFSET(W41,-$D41,0)+$D41,$E41-SUM($G41:V41),($E41-SUM($G41:V41))/(OFFSET(W41,-$D41,0)-(W$6-$D41-1)))) -> n/a | X41: =IF(OFFSET(X41,-$D41,0)="n/a","n/a",IF(X$6>OFFSET(X41,-$D41,0)+$D41,$E41-SUM($G41:W41),($E41-SUM($G41:W41))/(OFFSET(X41,-$D41,0)-(X$6-$D41-1)))) -> n/a | Y41: =IF(OFFSET(Y41,-$D41,0)="n/a","n/a",IF(Y$6>OFFSET(Y41,-$D41,0)+$D41,$E41-SUM($G41:X41),($E41-SUM($G41:X41))/(OFFSET(Y41,-$D41,0)-(Y$6-$D41-1)))) -> n/a | Z41: =IF(OFFSET(Z41,-$D41,0)="n/a","n/a",IF(Z$6>OFFSET(Z41,-$D41,0)+$D41,$E41-SUM($G41:Y41),($E41-SUM($G41:Y41))/(OFFSET(Z41,-$D41,0)-(Z$6-$D41-1)))) -> n/a | AA41: =IF(OFFSET(AA41,-$D41,0)="n/a","n/a",IF(AA$6>OFFSET(AA41,-$D41,0)+$D41,$E41-SUM($G41:Z41),($E41-SUM($G41:Z41))/(OFFSET(AA41,-$D41,0)-(AA$6-$D41-1)))) -> n/a | AB41: =IF(OFFSET(AB41,-$D41,0)="n/a","n/a",IF(AB$6>OFFSET(AB41,-$D41,0)+$D41,$E41-SUM($G41:AA41),($E41-SUM($G41:AA41))/(OFFSET(AB41,-$D41,0)-(AB$6-$D41-1)))) -> n/a | AC41: =IF(OFFSET(AC41,-$D41,0)="n/a","n/a",IF(AC$6>OFFSET(AC41,-$D41,0)+$D41,$E41-SUM($G41:AB41),($E41-SUM($G41:AB41))/(OFFSET(AC41,-$D41,0)-(AC$6-$D41-1)))) -> n/a | AD41: =IF(OFFSET(AD41,-$D41,0)="n/a","n/a",IF(AD$6>OFFSET(AD41,-$D41,0)+$D41,$E41-SUM($G41:AC41),($E41-SUM($G41:AC41))/(OFFSET(AD41,-$D41,0)-(AD$6-$D41-1)))) -> n/a | AE41: =IF(OFFSET(AE41,-$D41,0)="n/a","n/a",IF(AE$6>OFFSET(AE41,-$D41,0)+$D41,$E41-SUM($G41:AD41),($E41-SUM($G41:AD41))/(OFFSET(AE41,-$D41,0)-(AE$6-$D41-1)))) -> n/a | AF41: =IF(OFFSET(AF41,-$D41,0)="n/a","n/a",IF(AF$6>OFFSET(AF41,-$D41,0)+$D41,$E41-SUM($G41:AE41),($E41-SUM($G41:AE41))/(OFFSET(AF41,-$D41,0)-(AF$6-$D41-1)))) -> n/a | AG41: =IF(OFFSET(AG41,-$D41,0)="n/a","n/a",IF(AG$6>OFFSET(AG41,-$D41,0)+$D41,$E41-SUM($G41:AF41),($E41-SUM($G41:AF41))/(OFFSET(AG41,-$D41,0)-(AG$6-$D41-1)))) -> n/a | AH41: =IF(OFFSET(AH41,-$D41,0)="n/a","n/a",IF(AH$6>OFFSET(AH41,-$D41,0)+$D41,$E41-SUM($G41:AG41),($E41-SUM($G41:AG41))/(OFFSET(AH41,-$D41,0)-(AH$6-$D41-1)))) -> n/a | AI41: =IF(OFFSET(AI41,-$D41,0)="n/a","n/a",IF(AI$6>OFFSET(AI41,-$D41,0)+$D41,$E41-SUM($G41:AH41),($E41-SUM($G41:AH41))/(OFFSET(AI41,-$D41,0)-(AI$6-$D41-1)))) -> n/a | AJ41: =IF(OFFSET(AJ41,-$D41,0)="n/a","n/a",IF(AJ$6>OFFSET(AJ41,-$D41,0)+$D41,$E41-SUM($G41:AI41),($E41-SUM($G41:AI41))/(OFFSET(AJ41,-$D41,0)-(AJ$6-$D41-1)))) -> n/a | AK41: =IF(OFFSET(AK41,-$D41,0)="n/a","n/a",IF(AK$6>OFFSET(AK41,-$D41,0)+$D41,$E41-SUM($G41:AJ41),($E41-SUM($G41:AJ41))/(OFFSET(AK41,-$D41,0)-(AK$6-$D41-1)))) -> n/a | AL41: =IF(OFFSET(AL41,-$D41,0)="n/a","n/a",IF(AL$6>OFFSET(AL41,-$D41,0)+$D41,$E41-SUM($G41:AK41),($E41-SUM($G41:AK41))/(OFFSET(AL41,-$D41,0)-(AL$6-$D41-1)))) -> n/a
C42: Net Real Capex in Spreadsheet Year | D42: 2 | E42: 0 | I42: =IF(OFFSET(I42,-$D42,0)="n/a","n/a",IF(I$6>OFFSET(I42,-$D42,0)+$D42,$E42-SUM($G42:H42),($E42-SUM($G42:H42))/(OFFSET(I42,-$D42,0)-(I$6-$D42-1)))) -> n/a | J42: =IF(OFFSET(J42,-$D42,0)="n/a","n/a",IF(J$6>OFFSET(J42,-$D42,0)+$D42,$E42-SUM($G42:I42),($E42-SUM($G42:I42))/(OFFSET(J42,-$D42,0)-(J$6-$D42-1)))) -> n/a | K42: =IF(OFFSET(K42,-$D42,0)="n/a","n/a",IF(K$6>OFFSET(K42,-$D42,0)+$D42,$E42-SUM($G42:J42),($E42-SUM($G42:J42))/(OFFSET(K42,-$D42,0)-(K$6-$D42-1)))) -> n/a | L42: =IF(OFFSET(L42,-$D42,0)="n/a","n/a",IF(L$6>OFFSET(L42,-$D42,0)+$D42,$E42-SUM($G42:K42),($E42-SUM($G42:K42))/(OFFSET(L42,-$D42,0)-(L$6-$D42-1)))) -> n/a | M42: =IF(OFFSET(M42,-$D42,0)="n/a","n/a",IF(M$6>OFFSET(M42,-$D42,0)+$D42,$E42-SUM($G42:L42),($E42-SUM($G42:L42))/(OFFSET(M42,-$D42,0)-(M$6-$D42-1)))) -> n/a | N42: =IF(OFFSET(N42,-$D42,0)="n/a","n/a",IF(N$6>OFFSET(N42,-$D42,0)+$D42,$E42-SUM($G42:M42),($E42-SUM($G42:M42))/(OFFSET(N42,-$D42,0)-(N$6-$D42-1)))) -> n/a | O42: =IF(OFFSET(O42,-$D42,0)="n/a","n/a",IF(O$6>OFFSET(O42,-$D42,0)+$D42,$E42-SUM($G42:N42),($E42-SUM($G42:N42))/(OFFSET(O42,-$D42,0)-(O$6-$D42-1)))) -> n/a | P42: =IF(OFFSET(P42,-$D42,0)="n/a","n/a",IF(P$6>OFFSET(P42,-$D42,0)+$D42,$E42-SUM($G42:O42),($E42-SUM($G42:O42))/(OFFSET(P42,-$D42,0)-(P$6-$D42-1)))) -> n/a | Q42: =IF(OFFSET(Q42,-$D42,0)="n/a","n/a",IF(Q$6>OFFSET(Q42,-$D42,0)+$D42,$E42-SUM($G42:P42),($E42-SUM($G42:P42))/(OFFSET(Q42,-$D42,0)-(Q$6-$D42-1)))) -> n/a | R42: =IF(OFFSET(R42,-$D42,0)="n/a","n/a",IF(R$6>OFFSET(R42,-$D42,0)+$D42,$E42-SUM($G42:Q42),($E42-SUM($G42:Q42))/(OFFSET(R42,-$D42,0)-(R$6-$D42-1)))) -> n/a | S42: =IF(OFFSET(S42,-$D42,0)="n/a","n/a",IF(S$6>OFFSET(S42,-$D42,0)+$D42,$E42-SUM($G42:R42),($E42-SUM($G42:R42))/(OFFSET(S42,-$D42,0)-(S$6-$D42-1)))) -> n/a | T42: =IF(OFFSET(T42,-$D42,0)="n/a","n/a",IF(T$6>OFFSET(T42,-$D42,0)+$D42,$E42-SUM($G42:S42),($E42-SUM($G42:S42))/(OFFSET(T42,-$D42,0)-(T$6-$D42-1)))) -> n/a | U42: =IF(OFFSET(U42,-$D42,0)="n/a","n/a",IF(U$6>OFFSET(U42,-$D42,0)+$D42,$E42-SUM($G42:T42),($E42-SUM($G42:T42))/(OFFSET(U42,-$D42,0)-(U$6-$D42-1)))) -> n/a | V42: =IF(OFFSET(V42,-$D42,0)="n/a","n/a",IF(V$6>OFFSET(V42,-$D42,0)+$D42,$E42-SUM($G42:U42),($E42-SUM($G42:U42))/(OFFSET(V42,-$D42,0)-(V$6-$D42-1)))) -> n/a | W42: =IF(OFFSET(W42,-$D42,0)="n/a","n/a",IF(W$6>OFFSET(W42,-$D42,0)+$D42,$E42-SUM($G42:V42),($E42-SUM($G42:V42))/(OFFSET(W42,-$D42,0)-(W$6-$D42-1)))) -> n/a | X42: =IF(OFFSET(X42,-$D42,0)="n/a","n/a",IF(X$6>OFFSET(X42,-$D42,0)+$D42,$E42-SUM($G42:W42),($E42-SUM($G42:W42))/(OFFSET(X42,-$D42,0)-(X$6-$D42-1)))) -> n/a | Y42: =IF(OFFSET(Y42,-$D42,0)="n/a","n/a",IF(Y$6>OFFSET(Y42,-$D42,0)+$D42,$E42-SUM($G42:X42),($E42-SUM($G42:X42))/(OFFSET(Y42,-$D42,0)-(Y$6-$D42-1)))) -> n/a | Z42: =IF(OFFSET(Z42,-$D42,0)="n/a","n/a",IF(Z$6>OFFSET(Z42,-$D42,0)+$D42,$E42-SUM($G42:Y42),($E42-SUM($G42:Y42))/(OFFSET(Z42,-$D42,0)-(Z$6-$D42-1)))) -> n/a | AA42: =IF(OFFSET(AA42,-$D42,0)="n/a","n/a",IF(AA$6>OFFSET(AA42,-$D42,0)+$D42,$E42-SUM($G42:Z42),($E42-SUM($G42:Z42))/(OFFSET(AA42,-$D42,0)-(AA$6-$D42-1)))) -> n/a | AB42: =IF(OFFSET(AB42,-$D42,0)="n/a","n/a",IF(AB$6>OFFSET(AB42,-$D42,0)+$D42,$E42-SUM($G42:AA42),($E42-SUM($G42:AA42))/(OFFSET(AB42,-$D42,0)-(AB$6-$D42-1)))) -> n/a | AC42: =IF(OFFSET(AC42,-$D42,0)="n/a","n/a",IF(AC$6>OFFSET(AC42,-$D42,0)+$D42,$E42-SUM($G42:AB42),($E42-SUM($G42:AB42))/(OFFSET(AC42,-$D42,0)-(AC$6-$D42-1)))) -> n/a | AD42: =IF(OFFSET(AD42,-$D42,0)="n/a","n/a",IF(AD$6>OFFSET(AD42,-$D42,0)+$D42,$E42-SUM($G42:AC42),($E42-SUM($G42:AC42))/(OFFSET(AD42,-$D42,0)-(AD$6-$D42-1)))) -> n/a | AE42: =IF(OFFSET(AE42,-$D42,0)="n/a","n/a",IF(AE$6>OFFSET(AE42,-$D42,0)+$D42,$E42-SUM($G42:AD42),($E42-SUM($G42:AD42))/(OFFSET(AE42,-$D42,0)-(AE$6-$D42-1)))) -> n/a | AF42: =IF(OFFSET(AF42,-$D42,0)="n/a","n/a",IF(AF$6>OFFSET(AF42,-$D42,0)+$D42,$E42-SUM($G42:AE42),($E42-SUM($G42:AE42))/(OFFSET(AF42,-$D42,0)-(AF$6-$D42-1)))) -> n/a | AG42: =IF(OFFSET(AG42,-$D42,0)="n/a","n/a",IF(AG$6>OFFSET(AG42,-$D42,0)+$D42,$E42-SUM($G42:AF42),($E42-SUM($G42:AF42))/(OFFSET(AG42,-$D42,0)-(AG$6-$D42-1)))) -> n/a | AH42: =IF(OFFSET(AH42,-$D42,0)="n/a","n/a",IF(AH$6>OFFSET(AH42,-$D42,0)+$D42,$E42-SUM($G42:AG42),($E42-SUM($G42:AG42))/(OFFSET(AH42,-$D42,0)-(AH$6-$D42-1)))) -> n/a | AI42: =IF(OFFSET(AI42,-$D42,0)="n/a","n/a",IF(AI$6>OFFSET(AI42,-$D42,0)+$D42,$E42-SUM($G42:AH42),($E42-SUM($G42:AH42))/(OFFSET(AI42,-$D42,0)-(AI$6-$D42-1)))) -> n/a | AJ42: =IF(OFFSET(AJ42,-$D42,0)="n/a","n/a",IF(AJ$6>OFFSET(AJ42,-$D42,0)+$D42,$E42-SUM($G42:AI42),($E42-SUM($G42:AI42))/(OFFSET(AJ42,-$D42,0)-(AJ$6-$D42-1)))) -> n/a | AK42: =IF(OFFSET(AK42,-$D42,0)="n/a","n/a",IF(AK$6>OFFSET(AK42,-$D42,0)+$D42,$E42-SUM($G42:AJ42),($E42-SUM($G42:AJ42))/(OFFSET(AK42,-$D42,0)-(AK$6-$D42-1)))) -> n/a | AL42: =IF(OFFSET(AL42,-$D42,0)="n/a","n/a",IF(AL$6>OFFSET(AL42,-$D42,0)+$D42,$E42-SUM($G42:AK42),($E42-SUM($G42:AK42))/(OFFSET(AL42,-$D42,0)-(AL$6-$D42-1)))) -> n/a
D43: 3 | E43: 1816.054917 | J43: =IF(OFFSET(J43,-$D43,0)="n/a","n/a",IF(J$6>OFFSET(J43,-$D43,0)+$D43,$E43-SUM($G43:I43),($E43-SUM($G43:I43))/(OFFSET(J43,-$D43,0)-(J$6-$D43-1)))) -> n/a | K43: =IF(OFFSET(K43,-$D43,0)="n/a","n/a",IF(K$6>OFFSET(K43,-$D43,0)+$D43,$E43-SUM($G43:J43),($E43-SUM($G43:J43))/(OFFSET(K43,-$D43,0)-(K$6-$D43-1)))) -> n/a | L43: =IF(OFFSET(L43,-$D43,0)="n/a","n/a",IF(L$6>OFFSET(L43,-$D43,0)+$D43,$E43-SUM($G43:K43),($E43-SUM($G43:K43))/(OFFSET(L43,-$D43,0)-(L$6-$D43-1)))) -> n/a | M43: =IF(OFFSET(M43,-$D43,0)="n/a","n/a",IF(M$6>OFFSET(M43,-$D43,0)+$D43,$E43-SUM($G43:L43),($E43-SUM($G43:L43))/(OFFSET(M43,-$D43,0)-(M$6-$D43-1)))) -> n/a | N43: =IF(OFFSET(N43,-$D43,0)="n/a","n/a",IF(N$6>OFFSET(N43,-$D43,0)+$D43,$E43-SUM($G43:M43),($E43-SUM($G43:M43))/(OFFSET(N43,-$D43,0)-(N$6-$D43-1)))) -> n/a | O43: =IF(OFFSET(O43,-$D43,0)="n/a","n/a",IF(O$6>OFFSET(O43,-$D43,0)+$D43,$E43-SUM($G43:N43),($E43-SUM($G43:N43))/(OFFSET(O43,-$D43,0)-(O$6-$D43-1)))) -> n/a | P43: =IF(OFFSET(P43,-$D43,0)="n/a","n/a",IF(P$6>OFFSET(P43,-$D43,0)+$D43,$E43-SUM($G43:O43),($E43-SUM($G43:O43))/(OFFSET(P43,-$D43,0)-(P$6-$D43-1)))) -> n/a | Q43: =IF(OFFSET(Q43,-$D43,0)="n/a","n/a",IF(Q$6>OFFSET(Q43,-$D43,0)+$D43,$E43-SUM($G43:P43),($E43-SUM($G43:P43))/(OFFSET(Q43,-$D43,0)-(Q$6-$D43-1)))) -> n/a | R43: =IF(OFFSET(R43,-$D43,0)="n/a","n/a",IF(R$6>OFFSET(R43,-$D43,0)+$D43,$E43-SUM($G43:Q43),($E43-SUM($G43:Q43))/(OFFSET(R43,-$D43,0)-(R$6-$D43-1)))) -> n/a | S43: =IF(OFFSET(S43,-$D43,0)="n/a","n/a",IF(S$6>OFFSET(S43,-$D43,0)+$D43,$E43-SUM($G43:R43),($E43-SUM($G43:R43))/(OFFSET(S43,-$D43,0)-(S$6-$D43-1)))) -> n/a | T43: =IF(OFFSET(T43,-$D43,0)="n/a","n/a",IF(T$6>OFFSET(T43,-$D43,0)+$D43,$E43-SUM($G43:S43),($E43-SUM($G43:S43))/(OFFSET(T43,-$D43,0)-(T$6-$D43-1)))) -> n/a | U43: =IF(OFFSET(U43,-$D43,0)="n/a","n/a",IF(U$6>OFFSET(U43,-$D43,0)+$D43,$E43-SUM($G43:T43),($E43-SUM($G43:T43))/(OFFSET(U43,-$D43,0)-(U$6-$D43-1)))) -> n/a | V43: =IF(OFFSET(V43,-$D43,0)="n/a","n/a",IF(V$6>OFFSET(V43,-$D43,0)+$D43,$E43-SUM($G43:U43),($E43-SUM($G43:U43))/(OFFSET(V43,-$D43,0)-(V$6-$D43-1)))) -> n/a | W43: =IF(OFFSET(W43,-$D43,0)="n/a","n/a",IF(W$6>OFFSET(W43,-$D43,0)+$D43,$E43-SUM($G43:V43),($E43-SUM($G43:V43))/(OFFSET(W43,-$D43,0)-(W$6-$D43-1)))) -> n/a | X43: =IF(OFFSET(X43,-$D43,0)="n/a","n/a",IF(X$6>OFFSET(X43,-$D43,0)+$D43,$E43-SUM($G43:W43),($E43-SUM($G43:W43))/(OFFSET(X43,-$D43,0)-(X$6-$D43-1)))) -> n/a | Y43: =IF(OFFSET(Y43,-$D43,0)="n/a","n/a",IF(Y$6>OFFSET(Y43,-$D43,0)+$D43,$E43-SUM($G43:X43),($E43-SUM($G43:X43))/(OFFSET(Y43,-$D43,0)-(Y$6-$D43-1)))) -> n/a | Z43: =IF(OFFSET(Z43,-$D43,0)="n/a","n/a",IF(Z$6>OFFSET(Z43,-$D43,0)+$D43,$E43-SUM($G43:Y43),($E43-SUM($G43:Y43))/(OFFSET(Z43,-$D43,0)-(Z$6-$D43-1)))) -> n/a | AA43: =IF(OFFSET(AA43,-$D43,0)="n/a","n/a",IF(AA$6>OFFSET(AA43,-$D43,0)+$D43,$E43-SUM($G43:Z43),($E43-SUM($G43:Z43))/(OFFSET(AA43,-$D43,0)-(AA$6-$D43-1)))) -> n/a | AB43: =IF(OFFSET(AB43,-$D43,0)="n/a","n/a",IF(AB$6>OFFSET(AB43,-$D43,0)+$D43,$E43-SUM($G43:AA43),($E43-SUM($G43:AA43))/(OFFSET(AB43,-$D43,0)-(AB$6-$D43-1)))) -> n/a | AC43: =IF(OFFSET(AC43,-$D43,0)="n/a","n/a",IF(AC$6>OFFSET(AC43,-$D43,0)+$D43,$E43-SUM($G43:AB43),($E43-SUM($G43:AB43))/(OFFSET(AC43,-$D43,0)-(AC$6-$D43-1)))) -> n/a | AD43: =IF(OFFSET(AD43,-$D43,0)="n/a","n/a",IF(AD$6>OFFSET(AD43,-$D43,0)+$D43,$E43-SUM($G43:AC43),($E43-SUM($G43:AC43))/(OFFSET(AD43,-$D43,0)-(AD$6-$D43-1)))) -> n/a | AE43: =IF(OFFSET(AE43,-$D43,0)="n/a","n/a",IF(AE$6>OFFSET(AE43,-$D43,0)+$D43,$E43-SUM($G43:AD43),($E43-SUM($G43:AD43))/(OFFSET(AE43,-$D43,0)-(AE$6-$D43-1)))) -> n/a | AF43: =IF(OFFSET(AF43,-$D43,0)="n/a","n/a",IF(AF$6>OFFSET(AF43,-$D43,0)+$D43,$E43-SUM($G43:AE43),($E43-SUM($G43:AE43))/(OFFSET(AF43,-$D43,0)-(AF$6-$D43-1)))) -> n/a | AG43: =IF(OFFSET(AG43,-$D43,0)="n/a","n/a",IF(AG$6>OFFSET(AG43,-$D43,0)+$D43,$E43-SUM($G43:AF43),($E43-SUM($G43:AF43))/(OFFSET(AG43,-$D43,0)-(AG$6-$D43-1)))) -> n/a | AH43: =IF(OFFSET(AH43,-$D43,0)="n/a","n/a",IF(AH$6>OFFSET(AH43,-$D43,0)+$D43,$E43-SUM($G43:AG43),($E43-SUM($G43:AG43))/(OFFSET(AH43,-$D43,0)-(AH$6-$D43-1)))) -> n/a | AI43: =IF(OFFSET(AI43,-$D43,0)="n/a","n/a",IF(AI$6>OFFSET(AI43,-$D43,0)+$D43,$E43-SUM($G43:AH43),($E43-SUM($G43:AH43))/(OFFSET(AI43,-$D43,0)-(AI$6-$D43-1)))) -> n/a | AJ43: =IF(OFFSET(AJ43,-$D43,0)="n/a","n/a",IF(AJ$6>OFFSET(AJ43,-$D43,0)+$D43,$E43-SUM($G43:AI43),($E43-SUM($G43:AI43))/(OFFSET(AJ43,-$D43,0)-(AJ$6-$D43-1)))) -> n/a | AK43: =IF(OFFSET(AK43,-$D43,0)="n/a","n/a",IF(AK$6>OFFSET(AK43,-$D43,0)+$D43,$E43-SUM($G43:AJ43),($E43-SUM($G43:AJ43))/(OFFSET(AK43,-$D43,0)-(AK$6-$D43-1)))) -> n/a | AL43: =IF(OFFSET(AL43,-$D43,0)="n/a","n/a",IF(AL$6>OFFSET(AL43,-$D43,0)+$D43,$E43-SUM($G43:AK43),($E43-SUM($G43:AK43))/(OFFSET(AL43,-$D43,0)-(AL$6-$D43-1)))) -> n/a
D44: 4 | E44: 13470.22721 | K44: =IF(OFFSET(K44,-$D44,0)="n/a","n/a",IF(K$6>OFFSET(K44,-$D44,0)+$D44,$E44-SUM($G44:J44),($E44-SUM($G44:J44))/(OFFSET(K44,-$D44,0)-(K$6-$D44-1)))) -> n/a | L44: =IF(OFFSET(L44,-$D44,0)="n/a","n/a",IF(L$6>OFFSET(L44,-$D44,0)+$D44,$E44-SUM($G44:K44),($E44-SUM($G44:K44))/(OFFSET(L44,-$D44,0)-(L$6-$D44-1)))) -> n/a | M44: =IF(OFFSET(M44,-$D44,0)="n/a","n/a",IF(M$6>OFFSET(M44,-$D44,0)+$D44,$E44-SUM($G44:L44),($E44-SUM($G44:L44))/(OFFSET(M44,-$D44,0)-(M$6-$D44-1)))) -> n/a | N44: =IF(OFFSET(N44,-$D44,0)="n/a","n/a",IF(N$6>OFFSET(N44,-$D44,0)+$D44,$E44-SUM($G44:M44),($E44-SUM($G44:M44))/(OFFSET(N44,-$D44,0)-(N$6-$D44-1)))) -> n/a | O44: =IF(OFFSET(O44,-$D44,0)="n/a","n/a",IF(O$6>OFFSET(O44,-$D44,0)+$D44,$E44-SUM($G44:N44),($E44-SUM($G44:N44))/(OFFSET(O44,-$D44,0)-(O$6-$D44-1)))) -> n/a | P44: =IF(OFFSET(P44,-$D44,0)="n/a","n/a",IF(P$6>OFFSET(P44,-$D44,0)+$D44,$E44-SUM($G44:O44),($E44-SUM($G44:O44))/(OFFSET(P44,-$D44,0)-(P$6-$D44-1)))) -> n/a | Q44: =IF(OFFSET(Q44,-$D44,0)="n/a","n/a",IF(Q$6>OFFSET(Q44,-$D44,0)+$D44,$E44-SUM($G44:P44),($E44-SUM($G44:P44))/(OFFSET(Q44,-$D44,0)-(Q$6-$D44-1)))) -> n/a | R44: =IF(OFFSET(R44,-$D44,0)="n/a","n/a",IF(R$6>OFFSET(R44,-$D44,0)+$D44,$E44-SUM($G44:Q44),($E44-SUM($G44:Q44))/(OFFSET(R44,-$D44,0)-(R$6-$D44-1)))) -> n/a | S44: =IF(OFFSET(S44,-$D44,0)="n/a","n/a",IF(S$6>OFFSET(S44,-$D44,0)+$D44,$E44-SUM($G44:R44),($E44-SUM($G44:R44))/(OFFSET(S44,-$D44,0)-(S$6-$D44-1)))) -> n/a | T44: =IF(OFFSET(T44,-$D44,0)="n/a","n/a",IF(T$6>OFFSET(T44,-$D44,0)+$D44,$E44-SUM($G44:S44),($E44-SUM($G44:S44))/(OFFSET(T44,-$D44,0)-(T$6-$D44-1)))) -> n/a | U44: =IF(OFFSET(U44,-$D44,0)="n/a","n/a",IF(U$6>OFFSET(U44,-$D44,0)+$D44,$E44-SUM($G44:T44),($E44-SUM($G44:T44))/(OFFSET(U44,-$D44,0)-(U$6-$D44-1)))) -> n/a | V44: =IF(OFFSET(V44,-$D44,0)="n/a","n/a",IF(V$6>OFFSET(V44,-$D44,0)+$D44,$E44-SUM($G44:U44),($E44-SUM($G44:U44))/(OFFSET(V44,-$D44,0)-(V$6-$D44-1)))) -> n/a | W44: =IF(OFFSET(W44,-$D44,0)="n/a","n/a",IF(W$6>OFFSET(W44,-$D44,0)+$D44,$E44-SUM($G44:V44),($E44-SUM($G44:V44))/(OFFSET(W44,-$D44,0)-(W$6-$D44-1)))) -> n/a | X44: =IF(OFFSET(X44,-$D44,0)="n/a","n/a",IF(X$6>OFFSET(X44,-$D44,0)+$D44,$E44-SUM($G44:W44),($E44-SUM($G44:W44))/(OFFSET(X44,-$D44,0)-(X$6-$D44-1)))) -> n/a | Y44: =IF(OFFSET(Y44,-$D44,0)="n/a","n/a",IF(Y$6>OFFSET(Y44,-$D44,0)+$D44,$E44-SUM($G44:X44),($E44-SUM($G44:X44))/(OFFSET(Y44,-$D44,0)-(Y$6-$D44-1)))) -> n/a | Z44: =IF(OFFSET(Z44,-$D44,0)="n/a","n/a",IF(Z$6>OFFSET(Z44,-$D44,0)+$D44,$E44-SUM($G44:Y44),($E44-SUM($G44:Y44))/(OFFSET(Z44,-$D44,0)-(Z$6-$D44-1)))) -> n/a | AA44: =IF(OFFSET(AA44,-$D44,0)="n/a","n/a",IF(AA$6>OFFSET(AA44,-$D44,0)+$D44,$E44-SUM($G44:Z44),($E44-SUM($G44:Z44))/(OFFSET(AA44,-$D44,0)-(AA$6-$D44-1)))) -> n/a | AB44: =IF(OFFSET(AB44,-$D44,0)="n/a","n/a",IF(AB$6>OFFSET(AB44,-$D44,0)+$D44,$E44-SUM($G44:AA44),($E44-SUM($G44:AA44))/(OFFSET(AB44,-$D44,0)-(AB$6-$D44-1)))) -> n/a | AC44: =IF(OFFSET(AC44,-$D44,0)="n/a","n/a",IF(AC$6>OFFSET(AC44,-$D44,0)+$D44,$E44-SUM($G44:AB44),($E44-SUM($G44:AB44))/(OFFSET(AC44,-$D44,0)-(AC$6-$D44-1)))) -> n/a | AD44: =IF(OFFSET(AD44,-$D44,0)="n/a","n/a",IF(AD$6>OFFSET(AD44,-$D44,0)+$D44,$E44-SUM($G44:AC44),($E44-SUM($G44:AC44))/(OFFSET(AD44,-$D44,0)-(AD$6-$D44-1)))) -> n/a | AE44: =IF(OFFSET(AE44,-$D44,0)="n/a","n/a",IF(AE$6>OFFSET(AE44,-$D44,0)+$D44,$E44-SUM($G44:AD44),($E44-SUM($G44:AD44))/(OFFSET(AE44,-$D44,0)-(AE$6-$D44-1)))) -> n/a | AF44: =IF(OFFSET(AF44,-$D44,0)="n/a","n/a",IF(AF$6>OFFSET(AF44,-$D44,0)+$D44,$E44-SUM($G44:AE44),($E44-SUM($G44:AE44))/(OFFSET(AF44,-$D44,0)-(AF$6-$D44-1)))) -> n/a | AG44: =IF(OFFSET(AG44,-$D44,0)="n/a","n/a",IF(AG$6>OFFSET(AG44,-$D44,0)+$D44,$E44-SUM($G44:AF44),($E44-SUM($G44:AF44))/(OFFSET(AG44,-$D44,0)-(AG$6-$D44-1)))) -> n/a | AH44: =IF(OFFSET(AH44,-$D44,0)="n/a","n/a",IF(AH$6>OFFSET(AH44,-$D44,0)+$D44,$E44-SUM($G44:AG44),($E44-SUM($G44:AG44))/(OFFSET(AH44,-$D44,0)-(AH$6-$D44-1)))) -> n/a | AI44: =IF(OFFSET(AI44,-$D44,0)="n/a","n/a",IF(AI$6>OFFSET(AI44,-$D44,0)+$D44,$E44-SUM($G44:AH44),($E44-SUM($G44:AH44))/(OFFSET(AI44,-$D44,0)-(AI$6-$D44-1)))) -> n/a | AJ44: =IF(OFFSET(AJ44,-$D44,0)="n/a","n/a",IF(AJ$6>OFFSET(AJ44,-$D44,0)+$D44,$E44-SUM($G44:AI44),($E44-SUM($G44:AI44))/(OFFSET(AJ44,-$D44,0)-(AJ$6-$D44-1)))) -> n/a | AK44: =IF(OFFSET(AK44,-$D44,0)="n/a","n/a",IF(AK$6>OFFSET(AK44,-$D44,0)+$D44,$E44-SUM($G44:AJ44),($E44-SUM($G44:AJ44))/(OFFSET(AK44,-$D44,0)-(AK$6-$D44-1)))) -> n/a | AL44: =IF(OFFSET(AL44,-$D44,0)="n/a","n/a",IF(AL$6>OFFSET(AL44,-$D44,0)+$D44,$E44-SUM($G44:AK44),($E44-SUM($G44:AK44))/(OFFSET(AL44,-$D44,0)-(AL$6-$D44-1)))) -> n/a
D45: 5 | E45: 4552.749737 | L45: =IF(OFFSET(L45,-$D45,0)="n/a","n/a",IF(L$6>OFFSET(L45,-$D45,0)+$D45,$E45-SUM($G45:K45),($E45-SUM($G45:K45))/(OFFSET(L45,-$D45,0)-(L$6-$D45-1)))) -> n/a | M45: =IF(OFFSET(M45,-$D45,0)="n/a","n/a",IF(M$6>OFFSET(M45,-$D45,0)+$D45,$E45-SUM($G45:L45),($E45-SUM($G45:L45))/(OFFSET(M45,-$D45,0)-(M$6-$D45-1)))) -> n/a | N45: =IF(OFFSET(N45,-$D45,0)="n/a","n/a",IF(N$6>OFFSET(N45,-$D45,0)+$D45,$E45-SUM($G45:M45),($E45-SUM($G45:M45))/(OFFSET(N45,-$D45,0)-(N$6-$D45-1)))) -> n/a | O45: =IF(OFFSET(O45,-$D45,0)="n/a","n/a",IF(O$6>OFFSET(O45,-$D45,0)+$D45,$E45-SUM($G45:N45),($E45-SUM($G45:N45))/(OFFSET(O45,-$D45,0)-(O$6-$D45-1)))) -> n/a | P45: =IF(OFFSET(P45,-$D45,0)="n/a","n/a",IF(P$6>OFFSET(P45,-$D45,0)+$D45,$E45-SUM($G45:O45),($E45-SUM($G45:O45))/(OFFSET(P45,-$D45,0)-(P$6-$D45-1)))) -> n/a | Q45: =IF(OFFSET(Q45,-$D45,0)="n/a","n/a",IF(Q$6>OFFSET(Q45,-$D45,0)+$D45,$E45-SUM($G45:P45),($E45-SUM($G45:P45))/(OFFSET(Q45,-$D45,0)-(Q$6-$D45-1)))) -> n/a | R45: =IF(OFFSET(R45,-$D45,0)="n/a","n/a",IF(R$6>OFFSET(R45,-$D45,0)+$D45,$E45-SUM($G45:Q45),($E45-SUM($G45:Q45))/(OFFSET(R45,-$D45,0)-(R$6-$D45-1)))) -> n/a | S45: =IF(OFFSET(S45,-$D45,0)="n/a","n/a",IF(S$6>OFFSET(S45,-$D45,0)+$D45,$E45-SUM($G45:R45),($E45-SUM($G45:R45))/(OFFSET(S45,-$D45,0)-(S$6-$D45-1)))) -> n/a | T45: =IF(OFFSET(T45,-$D45,0)="n/a","n/a",IF(T$6>OFFSET(T45,-$D45,0)+$D45,$E45-SUM($G45:S45),($E45-SUM($G45:S45))/(OFFSET(T45,-$D45,0)-(T$6-$D45-1)))) -> n/a | U45: =IF(OFFSET(U45,-$D45,0)="n/a","n/a",IF(U$6>OFFSET(U45,-$D45,0)+$D45,$E45-SUM($G45:T45),($E45-SUM($G45:T45))/(OFFSET(U45,-$D45,0)-(U$6-$D45-1)))) -> n/a | V45: =IF(OFFSET(V45,-$D45,0)="n/a","n/a",IF(V$6>OFFSET(V45,-$D45,0)+$D45,$E45-SUM($G45:U45),($E45-SUM($G45:U45))/(OFFSET(V45,-$D45,0)-(V$6-$D45-1)))) -> n/a | W45: =IF(OFFSET(W45,-$D45,0)="n/a","n/a",IF(W$6>OFFSET(W45,-$D45,0)+$D45,$E45-SUM($G45:V45),($E45-SUM($G45:V45))/(OFFSET(W45,-$D45,0)-(W$6-$D45-1)))) -> n/a | X45: =IF(OFFSET(X45,-$D45,0)="n/a","n/a",IF(X$6>OFFSET(X45,-$D45,0)+$D45,$E45-SUM($G45:W45),($E45-SUM($G45:W45))/(OFFSET(X45,-$D45,0)-(X$6-$D45-1)))) -> n/a | Y45: =IF(OFFSET(Y45,-$D45,0)="n/a","n/a",IF(Y$6>OFFSET(Y45,-$D45,0)+$D45,$E45-SUM($G45:X45),($E45-SUM($G45:X45))/(OFFSET(Y45,-$D45,0)-(Y$6-$D45-1)))) -> n/a | Z45: =IF(OFFSET(Z45,-$D45,0)="n/a","n/a",IF(Z$6>OFFSET(Z45,-$D45,0)+$D45,$E45-SUM($G45:Y45),($E45-SUM($G45:Y45))/(OFFSET(Z45,-$D45,0)-(Z$6-$D45-1)))) -> n/a | AA45: =IF(OFFSET(AA45,-$D45,0)="n/a","n/a",IF(AA$6>OFFSET(AA45,-$D45,0)+$D45,$E45-SUM($G45:Z45),($E45-SUM($G45:Z45))/(OFFSET(AA45,-$D45,0)-(AA$6-$D45-1)))) -> n/a | AB45: =IF(OFFSET(AB45,-$D45,0)="n/a","n/a",IF(AB$6>OFFSET(AB45,-$D45,0)+$D45,$E45-SUM($G45:AA45),($E45-SUM($G45:AA45))/(OFFSET(AB45,-$D45,0)-(AB$6-$D45-1)))) -> n/a | AC45: =IF(OFFSET(AC45,-$D45,0)="n/a","n/a",IF(AC$6>OFFSET(AC45,-$D45,0)+$D45,$E45-SUM($G45:AB45),($E45-SUM($G45:AB45))/(OFFSET(AC45,-$D45,0)-(AC$6-$D45-1)))) -> n/a | AD45: =IF(OFFSET(AD45,-$D45,0)="n/a","n/a",IF(AD$6>OFFSET(AD45,-$D45,0)+$D45,$E45-SUM($G45:AC45),($E45-SUM($G45:AC45))/(OFFSET(AD45,-$D45,0)-(AD$6-$D45-1)))) -> n/a | AE45: =IF(OFFSET(AE45,-$D45,0)="n/a","n/a",IF(AE$6>OFFSET(AE45,-$D45,0)+$D45,$E45-SUM($G45:AD45),($E45-SUM($G45:AD45))/(OFFSET(AE45,-$D45,0)-(AE$6-$D45-1)))) -> n/a | AF45: =IF(OFFSET(AF45,-$D45,0)="n/a","n/a",IF(AF$6>OFFSET(AF45,-$D45,0)+$D45,$E45-SUM($G45:AE45),($E45-SUM($G45:AE45))/(OFFSET(AF45,-$D45,0)-(AF$6-$D45-1)))) -> n/a | AG45: =IF(OFFSET(AG45,-$D45,0)="n/a","n/a",IF(AG$6>OFFSET(AG45,-$D45,0)+$D45,$E45-SUM($G45:AF45),($E45-SUM($G45:AF45))/(OFFSET(AG45,-$D45,0)-(AG$6-$D45-1)))) -> n/a | AH45: =IF(OFFSET(AH45,-$D45,0)="n/a","n/a",IF(AH$6>OFFSET(AH45,-$D45,0)+$D45,$E45-SUM($G45:AG45),($E45-SUM($G45:AG45))/(OFFSET(AH45,-$D45,0)-(AH$6-$D45-1)))) -> n/a | AI45: =IF(OFFSET(AI45,-$D45,0)="n/a","n/a",IF(AI$6>OFFSET(AI45,-$D45,0)+$D45,$E45-SUM($G45:AH45),($E45-SUM($G45:AH45))/(OFFSET(AI45,-$D45,0)-(AI$6-$D45-1)))) -> n/a | AJ45: =IF(OFFSET(AJ45,-$D45,0)="n/a","n/a",IF(AJ$6>OFFSET(AJ45,-$D45,0)+$D45,$E45-SUM($G45:AI45),($E45-SUM($G45:AI45))/(OFFSET(AJ45,-$D45,0)-(AJ$6-$D45-1)))) -> n/a | AK45: =IF(OFFSET(AK45,-$D45,0)="n/a","n/a",IF(AK$6>OFFSET(AK45,-$D45,0)+$D45,$E45-SUM($G45:AJ45),($E45-SUM($G45:AJ45))/(OFFSET(AK45,-$D45,0)-(AK$6-$D45-1)))) -> n/a | AL45: =IF(OFFSET(AL45,-$D45,0)="n/a","n/a",IF(AL$6>OFFSET(AL45,-$D45,0)+$D45,$E45-SUM($G45:AK45),($E45-SUM($G45:AK45))/(OFFSET(AL45,-$D45,0)-(AL$6-$D45-1)))) -> n/a
D46: 6 | E46: 5646.30661 | M46: =IF(OFFSET(M46,-$D46,0)="n/a","n/a",IF(M$6>OFFSET(M46,-$D46,0)+$D46,$E46-SUM($G46:L46),($E46-SUM($G46:L46))/(OFFSET(M46,-$D46,0)-(M$6-$D46-1)))) -> n/a | N46: =IF(OFFSET(N46,-$D46,0)="n/a","n/a",IF(N$6>OFFSET(N46,-$D46,0)+$D46,$E46-SUM($G46:M46),($E46-SUM($G46:M46))/(OFFSET(N46,-$D46,0)-(N$6-$D46-1)))) -> n/a | O46: =IF(OFFSET(O46,-$D46,0)="n/a","n/a",IF(O$6>OFFSET(O46,-$D46,0)+$D46,$E46-SUM($G46:N46),($E46-SUM($G46:N46))/(OFFSET(O46,-$D46,0)-(O$6-$D46-1)))) -> n/a | P46: =IF(OFFSET(P46,-$D46,0)="n/a","n/a",IF(P$6>OFFSET(P46,-$D46,0)+$D46,$E46-SUM($G46:O46),($E46-SUM($G46:O46))/(OFFSET(P46,-$D46,0)-(P$6-$D46-1)))) -> n/a | Q46: =IF(OFFSET(Q46,-$D46,0)="n/a","n/a",IF(Q$6>OFFSET(Q46,-$D46,0)+$D46,$E46-SUM($G46:P46),($E46-SUM($G46:P46))/(OFFSET(Q46,-$D46,0)-(Q$6-$D46-1)))) -> n/a | R46: =IF(OFFSET(R46,-$D46,0)="n/a","n/a",IF(R$6>OFFSET(R46,-$D46,0)+$D46,$E46-SUM($G46:Q46),($E46-SUM($G46:Q46))/(OFFSET(R46,-$D46,0)-(R$6-$D46-1)))) -> n/a | S46: =IF(OFFSET(S46,-$D46,0)="n/a","n/a",IF(S$6>OFFSET(S46,-$D46,0)+$D46,$E46-SUM($G46:R46),($E46-SUM($G46:R46))/(OFFSET(S46,-$D46,0)-(S$6-$D46-1)))) -> n/a | T46: =IF(OFFSET(T46,-$D46,0)="n/a","n/a",IF(T$6>OFFSET(T46,-$D46,0)+$D46,$E46-SUM($G46:S46),($E46-SUM($G46:S46))/(OFFSET(T46,-$D46,0)-(T$6-$D46-1)))) -> n/a | U46: =IF(OFFSET(U46,-$D46,0)="n/a","n/a",IF(U$6>OFFSET(U46,-$D46,0)+$D46,$E46-SUM($G46:T46),($E46-SUM($G46:T46))/(OFFSET(U46,-$D46,0)-(U$6-$D46-1)))) -> n/a | V46: =IF(OFFSET(V46,-$D46,0)="n/a","n/a",IF(V$6>OFFSET(V46,-$D46,0)+$D46,$E46-SUM($G46:U46),($E46-SUM($G46:U46))/(OFFSET(V46,-$D46,0)-(V$6-$D46-1)))) -> n/a | W46: =IF(OFFSET(W46,-$D46,0)="n/a","n/a",IF(W$6>OFFSET(W46,-$D46,0)+$D46,$E46-SUM($G46:V46),($E46-SUM($G46:V46))/(OFFSET(W46,-$D46,0)-(W$6-$D46-1)))) -> n/a | X46: =IF(OFFSET(X46,-$D46,0)="n/a","n/a",IF(X$6>OFFSET(X46,-$D46,0)+$D46,$E46-SUM($G46:W46),($E46-SUM($G46:W46))/(OFFSET(X46,-$D46,0)-(X$6-$D46-1)))) -> n/a | Y46: =IF(OFFSET(Y46,-$D46,0)="n/a","n/a",IF(Y$6>OFFSET(Y46,-$D46,0)+$D46,$E46-SUM($G46:X46),($E46-SUM($G46:X46))/(OFFSET(Y46,-$D46,0)-(Y$6-$D46-1)))) -> n/a | Z46: =IF(OFFSET(Z46,-$D46,0)="n/a","n/a",IF(Z$6>OFFSET(Z46,-$D46,0)+$D46,$E46-SUM($G46:Y46),($E46-SUM($G46:Y46))/(OFFSET(Z46,-$D46,0)-(Z$6-$D46-1)))) -> n/a | AA46: =IF(OFFSET(AA46,-$D46,0)="n/a","n/a",IF(AA$6>OFFSET(AA46,-$D46,0)+$D46,$E46-SUM($G46:Z46),($E46-SUM($G46:Z46))/(OFFSET(AA46,-$D46,0)-(AA$6-$D46-1)))) -> n/a | AB46: =IF(OFFSET(AB46,-$D46,0)="n/a","n/a",IF(AB$6>OFFSET(AB46,-$D46,0)+$D46,$E46-SUM($G46:AA46),($E46-SUM($G46:AA46))/(OFFSET(AB46,-$D46,0)-(AB$6-$D46-1)))) -> n/a | AC46: =IF(OFFSET(AC46,-$D46,0)="n/a","n/a",IF(AC$6>OFFSET(AC46,-$D46,0)+$D46,$E46-SUM($G46:AB46),($E46-SUM($G46:AB46))/(OFFSET(AC46,-$D46,0)-(AC$6-$D46-1)))) -> n/a | AD46: =IF(OFFSET(AD46,-$D46,0)="n/a","n/a",IF(AD$6>OFFSET(AD46,-$D46,0)+$D46,$E46-SUM($G46:AC46),($E46-SUM($G46:AC46))/(OFFSET(AD46,-$D46,0)-(AD$6-$D46-1)))) -> n/a | AE46: =IF(OFFSET(AE46,-$D46,0)="n/a","n/a",IF(AE$6>OFFSET(AE46,-$D46,0)+$D46,$E46-SUM($G46:AD46),($E46-SUM($G46:AD46))/(OFFSET(AE46,-$D46,0)-(AE$6-$D46-1)))) -> n/a | AF46: =IF(OFFSET(AF46,-$D46,0)="n/a","n/a",IF(AF$6>OFFSET(AF46,-$D46,0)+$D46,$E46-SUM($G46:AE46),($E46-SUM($G46:AE46))/(OFFSET(AF46,-$D46,0)-(AF$6-$D46-1)))) -> n/a | AG46: =IF(OFFSET(AG46,-$D46,0)="n/a","n/a",IF(AG$6>OFFSET(AG46,-$D46,0)+$D46,$E46-SUM($G46:AF46),($E46-SUM($G46:AF46))/(OFFSET(AG46,-$D46,0)-(AG$6-$D46-1)))) -> n/a | AH46: =IF(OFFSET(AH46,-$D46,0)="n/a","n/a",IF(AH$6>OFFSET(AH46,-$D46,0)+$D46,$E46-SUM($G46:AG46),($E46-SUM($G46:AG46))/(OFFSET(AH46,-$D46,0)-(AH$6-$D46-1)))) -> n/a | AI46: =IF(OFFSET(AI46,-$D46,0)="n/a","n/a",IF(AI$6>OFFSET(AI46,-$D46,0)+$D46,$E46-SUM($G46:AH46),($E46-SUM($G46:AH46))/(OFFSET(AI46,-$D46,0)-(AI$6-$D46-1)))) -> n/a | AJ46: =IF(OFFSET(AJ46,-$D46,0)="n/a","n/a",IF(AJ$6>OFFSET(AJ46,-$D46,0)+$D46,$E46-SUM($G46:AI46),($E46-SUM($G46:AI46))/(OFFSET(AJ46,-$D46,0)-(AJ$6-$D46-1)))) -> n/a | AK46: =IF(OFFSET(AK46,-$D46,0)="n/a","n/a",IF(AK$6>OFFSET(AK46,-$D46,0)+$D46,$E46-SUM($G46:AJ46),($E46-SUM($G46:AJ46))/(OFFSET(AK46,-$D46,0)-(AK$6-$D46-1)))) -> n/a | AL46: =IF(OFFSET(AL46,-$D46,0)="n/a","n/a",IF(AL$6>OFFSET(AL46,-$D46,0)+$D46,$E46-SUM($G46:AK46),($E46-SUM($G46:AK46))/(OFFSET(AL46,-$D46,0)-(AL$6-$D46-1)))) -> n/a
D47: 7 | E47: 4321.869296 | N47: =IF(OFFSET(N47,-$D47,0)="n/a","n/a",IF(N$6>OFFSET(N47,-$D47,0)+$D47,$E47-SUM($G47:M47),($E47-SUM($G47:M47))/(OFFSET(N47,-$D47,0)-(N$6-$D47-1)))) -> n/a | O47: =IF(OFFSET(O47,-$D47,0)="n/a","n/a",IF(O$6>OFFSET(O47,-$D47,0)+$D47,$E47-SUM($G47:N47),($E47-SUM($G47:N47))/(OFFSET(O47,-$D47,0)-(O$6-$D47-1)))) -> n/a | P47: =IF(OFFSET(P47,-$D47,0)="n/a","n/a",IF(P$6>OFFSET(P47,-$D47,0)+$D47,$E47-SUM($G47:O47),($E47-SUM($G47:O47))/(OFFSET(P47,-$D47,0)-(P$6-$D47-1)))) -> n/a | Q47: =IF(OFFSET(Q47,-$D47,0)="n/a","n/a",IF(Q$6>OFFSET(Q47,-$D47,0)+$D47,$E47-SUM($G47:P47),($E47-SUM($G47:P47))/(OFFSET(Q47,-$D47,0)-(Q$6-$D47-1)))) -> n/a | R47: =IF(OFFSET(R47,-$D47,0)="n/a","n/a",IF(R$6>OFFSET(R47,-$D47,0)+$D47,$E47-SUM($G47:Q47),($E47-SUM($G47:Q47))/(OFFSET(R47,-$D47,0)-(R$6-$D47-1)))) -> n/a | S47: =IF(OFFSET(S47,-$D47,0)="n/a","n/a",IF(S$6>OFFSET(S47,-$D47,0)+$D47,$E47-SUM($G47:R47),($E47-SUM($G47:R47))/(OFFSET(S47,-$D47,0)-(S$6-$D47-1)))) -> n/a | T47: =IF(OFFSET(T47,-$D47,0)="n/a","n/a",IF(T$6>OFFSET(T47,-$D47,0)+$D47,$E47-SUM($G47:S47),($E47-SUM($G47:S47))/(OFFSET(T47,-$D47,0)-(T$6-$D47-1)))) -> n/a | U47: =IF(OFFSET(U47,-$D47,0)="n/a","n/a",IF(U$6>OFFSET(U47,-$D47,0)+$D47,$E47-SUM($G47:T47),($E47-SUM($G47:T47))/(OFFSET(U47,-$D47,0)-(U$6-$D47-1)))) -> n/a | V47: =IF(OFFSET(V47,-$D47,0)="n/a","n/a",IF(V$6>OFFSET(V47,-$D47,0)+$D47,$E47-SUM($G47:U47),($E47-SUM($G47:U47))/(OFFSET(V47,-$D47,0)-(V$6-$D47-1)))) -> n/a | W47: =IF(OFFSET(W47,-$D47,0)="n/a","n/a",IF(W$6>OFFSET(W47,-$D47,0)+$D47,$E47-SUM($G47:V47),($E47-SUM($G47:V47))/(OFFSET(W47,-$D47,0)-(W$6-$D47-1)))) -> n/a | X47: =IF(OFFSET(X47,-$D47,0)="n/a","n/a",IF(X$6>OFFSET(X47,-$D47,0)+$D47,$E47-SUM($G47:W47),($E47-SUM($G47:W47))/(OFFSET(X47,-$D47,0)-(X$6-$D47-1)))) -> n/a | Y47: =IF(OFFSET(Y47,-$D47,0)="n/a","n/a",IF(Y$6>OFFSET(Y47,-$D47,0)+$D47,$E47-SUM($G47:X47),($E47-SUM($G47:X47))/(OFFSET(Y47,-$D47,0)-(Y$6-$D47-1)))) -> n/a | Z47: =IF(OFFSET(Z47,-$D47,0)="n/a","n/a",IF(Z$6>OFFSET(Z47,-$D47,0)+$D47,$E47-SUM($G47:Y47),($E47-SUM($G47:Y47))/(OFFSET(Z47,-$D47,0)-(Z$6-$D47-1)))) -> n/a | AA47: =IF(OFFSET(AA47,-$D47,0)="n/a","n/a",IF(AA$6>OFFSET(AA47,-$D47,0)+$D47,$E47-SUM($G47:Z47),($E47-SUM($G47:Z47))/(OFFSET(AA47,-$D47,0)-(AA$6-$D47-1)))) -> n/a | AB47: =IF(OFFSET(AB47,-$D47,0)="n/a","n/a",IF(AB$6>OFFSET(AB47,-$D47,0)+$D47,$E47-SUM($G47:AA47),($E47-SUM($G47:AA47))/(OFFSET(AB47,-$D47,0)-(AB$6-$D47-1)))) -> n/a | AC47: =IF(OFFSET(AC47,-$D47,0)="n/a","n/a",IF(AC$6>OFFSET(AC47,-$D47,0)+$D47,$E47-SUM($G47:AB47),($E47-SUM($G47:AB47))/(OFFSET(AC47,-$D47,0)-(AC$6-$D47-1)))) -> n/a | AD47: =IF(OFFSET(AD47,-$D47,0)="n/a","n/a",IF(AD$6>OFFSET(AD47,-$D47,0)+$D47,$E47-SUM($G47:AC47),($E47-SUM($G47:AC47))/(OFFSET(AD47,-$D47,0)-(AD$6-$D47-1)))) -> n/a | AE47: =IF(OFFSET(AE47,-$D47,0)="n/a","n/a",IF(AE$6>OFFSET(AE47,-$D47,0)+$D47,$E47-SUM($G47:AD47),($E47-SUM($G47:AD47))/(OFFSET(AE47,-$D47,0)-(AE$6-$D47-1)))) -> n/a | AF47: =IF(OFFSET(AF47,-$D47,0)="n/a","n/a",IF(AF$6>OFFSET(AF47,-$D47,0)+$D47,$E47-SUM($G47:AE47),($E47-SUM($G47:AE47))/(OFFSET(AF47,-$D47,0)-(AF$6-$D47-1)))) -> n/a | AG47: =IF(OFFSET(AG47,-$D47,0)="n/a","n/a",IF(AG$6>OFFSET(AG47,-$D47,0)+$D47,$E47-SUM($G47:AF47),($E47-SUM($G47:AF47))/(OFFSET(AG47,-$D47,0)-(AG$6-$D47-1)))) -> n/a | AH47: =IF(OFFSET(AH47,-$D47,0)="n/a","n/a",IF(AH$6>OFFSET(AH47,-$D47,0)+$D47,$E47-SUM($G47:AG47),($E47-SUM($G47:AG47))/(OFFSET(AH47,-$D47,0)-(AH$6-$D47-1)))) -> n/a | AI47: =IF(OFFSET(AI47,-$D47,0)="n/a","n/a",IF(AI$6>OFFSET(AI47,-$D47,0)+$D47,$E47-SUM($G47:AH47),($E47-SUM($G47:AH47))/(OFFSET(AI47,-$D47,0)-(AI$6-$D47-1)))) -> n/a | AJ47: =IF(OFFSET(AJ47,-$D47,0)="n/a","n/a",IF(AJ$6>OFFSET(AJ47,-$D47,0)+$D47,$E47-SUM($G47:AI47),($E47-SUM($G47:AI47))/(OFFSET(AJ47,-$D47,0)-(AJ$6-$D47-1)))) -> n/a | AK47: =IF(OFFSET(AK47,-$D47,0)="n/a","n/a",IF(AK$6>OFFSET(AK47,-$D47,0)+$D47,$E47-SUM($G47:AJ47),($E47-SUM($G47:AJ47))/(OFFSET(AK47,-$D47,0)-(AK$6-$D47-1)))) -> n/a | AL47: =IF(OFFSET(AL47,-$D47,0)="n/a","n/a",IF(AL$6>OFFSET(AL47,-$D47,0)+$D47,$E47-SUM($G47:AK47),($E47-SUM($G47:AK47))/(OFFSET(AL47,-$D47,0)-(AL$6-$D47-1)))) -> n/a
D48: 8 | E48: 10334.55944 | O48: =IF(OFFSET(O48,-$D48,0)="n/a","n/a",IF(O$6>OFFSET(O48,-$D48,0)+$D48,$E48-SUM($G48:N48),($E48-SUM($G48:N48))/(OFFSET(O48,-$D48,0)-(O$6-$D48-1)))) -> n/a | P48: =IF(OFFSET(P48,-$D48,0)="n/a","n/a",IF(P$6>OFFSET(P48,-$D48,0)+$D48,$E48-SUM($G48:O48),($E48-SUM($G48:O48))/(OFFSET(P48,-$D48,0)-(P$6-$D48-1)))) -> n/a | Q48: =IF(OFFSET(Q48,-$D48,0)="n/a","n/a",IF(Q$6>OFFSET(Q48,-$D48,0)+$D48,$E48-SUM($G48:P48),($E48-SUM($G48:P48))/(OFFSET(Q48,-$D48,0)-(Q$6-$D48-1)))) -> n/a | R48: =IF(OFFSET(R48,-$D48,0)="n/a","n/a",IF(R$6>OFFSET(R48,-$D48,0)+$D48,$E48-SUM($G48:Q48),($E48-SUM($G48:Q48))/(OFFSET(R48,-$D48,0)-(R$6-$D48-1)))) -> n/a | S48: =IF(OFFSET(S48,-$D48,0)="n/a","n/a",IF(S$6>OFFSET(S48,-$D48,0)+$D48,$E48-SUM($G48:R48),($E48-SUM($G48:R48))/(OFFSET(S48,-$D48,0)-(S$6-$D48-1)))) -> n/a | T48: =IF(OFFSET(T48,-$D48,0)="n/a","n/a",IF(T$6>OFFSET(T48,-$D48,0)+$D48,$E48-SUM($G48:S48),($E48-SUM($G48:S48))/(OFFSET(T48,-$D48,0)-(T$6-$D48-1)))) -> n/a | U48: =IF(OFFSET(U48,-$D48,0)="n/a","n/a",IF(U$6>OFFSET(U48,-$D48,0)+$D48,$E48-SUM($G48:T48),($E48-SUM($G48:T48))/(OFFSET(U48,-$D48,0)-(U$6-$D48-1)))) -> n/a | V48: =IF(OFFSET(V48,-$D48,0)="n/a","n/a",IF(V$6>OFFSET(V48,-$D48,0)+$D48,$E48-SUM($G48:U48),($E48-SUM($G48:U48))/(OFFSET(V48,-$D48,0)-(V$6-$D48-1)))) -> n/a | W48: =IF(OFFSET(W48,-$D48,0)="n/a","n/a",IF(W$6>OFFSET(W48,-$D48,0)+$D48,$E48-SUM($G48:V48),($E48-SUM($G48:V48))/(OFFSET(W48,-$D48,0)-(W$6-$D48-1)))) -> n/a | X48: =IF(OFFSET(X48,-$D48,0)="n/a","n/a",IF(X$6>OFFSET(X48,-$D48,0)+$D48,$E48-SUM($G48:W48),($E48-SUM($G48:W48))/(OFFSET(X48,-$D48,0)-(X$6-$D48-1)))) -> n/a | Y48: =IF(OFFSET(Y48,-$D48,0)="n/a","n/a",IF(Y$6>OFFSET(Y48,-$D48,0)+$D48,$E48-SUM($G48:X48),($E48-SUM($G48:X48))/(OFFSET(Y48,-$D48,0)-(Y$6-$D48-1)))) -> n/a | Z48: =IF(OFFSET(Z48,-$D48,0)="n/a","n/a",IF(Z$6>OFFSET(Z48,-$D48,0)+$D48,$E48-SUM($G48:Y48),($E48-SUM($G48:Y48))/(OFFSET(Z48,-$D48,0)-(Z$6-$D48-1)))) -> n/a | AA48: =IF(OFFSET(AA48,-$D48,0)="n/a","n/a",IF(AA$6>OFFSET(AA48,-$D48,0)+$D48,$E48-SUM($G48:Z48),($E48-SUM($G48:Z48))/(OFFSET(AA48,-$D48,0)-(AA$6-$D48-1)))) -> n/a | AB48: =IF(OFFSET(AB48,-$D48,0)="n/a","n/a",IF(AB$6>OFFSET(AB48,-$D48,0)+$D48,$E48-SUM($G48:AA48),($E48-SUM($G48:AA48))/(OFFSET(AB48,-$D48,0)-(AB$6-$D48-1)))) -> n/a | AC48: =IF(OFFSET(AC48,-$D48,0)="n/a","n/a",IF(AC$6>OFFSET(AC48,-$D48,0)+$D48,$E48-SUM($G48:AB48),($E48-SUM($G48:AB48))/(OFFSET(AC48,-$D48,0)-(AC$6-$D48-1)))) -> n/a | AD48: =IF(OFFSET(AD48,-$D48,0)="n/a","n/a",IF(AD$6>OFFSET(AD48,-$D48,0)+$D48,$E48-SUM($G48:AC48),($E48-SUM($G48:AC48))/(OFFSET(AD48,-$D48,0)-(AD$6-$D48-1)))) -> n/a | AE48: =IF(OFFSET(AE48,-$D48,0)="n/a","n/a",IF(AE$6>OFFSET(AE48,-$D48,0)+$D48,$E48-SUM($G48:AD48),($E48-SUM($G48:AD48))/(OFFSET(AE48,-$D48,0)-(AE$6-$D48-1)))) -> n/a | AF48: =IF(OFFSET(AF48,-$D48,0)="n/a","n/a",IF(AF$6>OFFSET(AF48,-$D48,0)+$D48,$E48-SUM($G48:AE48),($E48-SUM($G48:AE48))/(OFFSET(AF48,-$D48,0)-(AF$6-$D48-1)))) -> n/a | AG48: =IF(OFFSET(AG48,-$D48,0)="n/a","n/a",IF(AG$6>OFFSET(AG48,-$D48,0)+$D48,$E48-SUM($G48:AF48),($E48-SUM($G48:AF48))/(OFFSET(AG48,-$D48,0)-(AG$6-$D48-1)))) -> n/a | AH48: =IF(OFFSET(AH48,-$D48,0)="n/a","n/a",IF(AH$6>OFFSET(AH48,-$D48,0)+$D48,$E48-SUM($G48:AG48),($E48-SUM($G48:AG48))/(OFFSET(AH48,-$D48,0)-(AH$6-$D48-1)))) -> n/a | AI48: =IF(OFFSET(AI48,-$D48,0)="n/a","n/a",IF(AI$6>OFFSET(AI48,-$D48,0)+$D48,$E48-SUM($G48:AH48),($E48-SUM($G48:AH48))/(OFFSET(AI48,-$D48,0)-(AI$6-$D48-1)))) -> n/a | AJ48: =IF(OFFSET(AJ48,-$D48,0)="n/a","n/a",IF(AJ$6>OFFSET(AJ48,-$D48,0)+$D48,$E48-SUM($G48:AI48),($E48-SUM($G48:AI48))/(OFFSET(AJ48,-$D48,0)-(AJ$6-$D48-1)))) -> n/a | AK48: =IF(OFFSET(AK48,-$D48,0)="n/a","n/a",IF(AK$6>OFFSET(AK48,-$D48,0)+$D48,$E48-SUM($G48:AJ48),($E48-SUM($G48:AJ48))/(OFFSET(AK48,-$D48,0)-(AK$6-$D48-1)))) -> n/a | AL48: =IF(OFFSET(AL48,-$D48,0)="n/a","n/a",IF(AL$6>OFFSET(AL48,-$D48,0)+$D48,$E48-SUM($G48:AK48),($E48-SUM($G48:AK48))/(OFFSET(AL48,-$D48,0)-(AL$6-$D48-1)))) -> n/a
D49: 9 | E49: 5507.01201 | P49: =IF(OFFSET(P49,-$D49,0)="n/a","n/a",IF(P$6>OFFSET(P49,-$D49,0)+$D49,$E49-SUM($G49:O49),($E49-SUM($G49:O49))/(OFFSET(P49,-$D49,0)-(P$6-$D49-1)))) -> n/a | Q49: =IF(OFFSET(Q49,-$D49,0)="n/a","n/a",IF(Q$6>OFFSET(Q49,-$D49,0)+$D49,$E49-SUM($G49:P49),($E49-SUM($G49:P49))/(OFFSET(Q49,-$D49,0)-(Q$6-$D49-1)))) -> n/a | R49: =IF(OFFSET(R49,-$D49,0)="n/a","n/a",IF(R$6>OFFSET(R49,-$D49,0)+$D49,$E49-SUM($G49:Q49),($E49-SUM($G49:Q49))/(OFFSET(R49,-$D49,0)-(R$6-$D49-1)))) -> n/a | S49: =IF(OFFSET(S49,-$D49,0)="n/a","n/a",IF(S$6>OFFSET(S49,-$D49,0)+$D49,$E49-SUM($G49:R49),($E49-SUM($G49:R49))/(OFFSET(S49,-$D49,0)-(S$6-$D49-1)))) -> n/a | T49: =IF(OFFSET(T49,-$D49,0)="n/a","n/a",IF(T$6>OFFSET(T49,-$D49,0)+$D49,$E49-SUM($G49:S49),($E49-SUM($G49:S49))/(OFFSET(T49,-$D49,0)-(T$6-$D49-1)))) -> n/a | U49: =IF(OFFSET(U49,-$D49,0)="n/a","n/a",IF(U$6>OFFSET(U49,-$D49,0)+$D49,$E49-SUM($G49:T49),($E49-SUM($G49:T49))/(OFFSET(U49,-$D49,0)-(U$6-$D49-1)))) -> n/a | V49: =IF(OFFSET(V49,-$D49,0)="n/a","n/a",IF(V$6>OFFSET(V49,-$D49,0)+$D49,$E49-SUM($G49:U49),($E49-SUM($G49:U49))/(OFFSET(V49,-$D49,0)-(V$6-$D49-1)))) -> n/a | W49: =IF(OFFSET(W49,-$D49,0)="n/a","n/a",IF(W$6>OFFSET(W49,-$D49,0)+$D49,$E49-SUM($G49:V49),($E49-SUM($G49:V49))/(OFFSET(W49,-$D49,0)-(W$6-$D49-1)))) -> n/a | X49: =IF(OFFSET(X49,-$D49,0)="n/a","n/a",IF(X$6>OFFSET(X49,-$D49,0)+$D49,$E49-SUM($G49:W49),($E49-SUM($G49:W49))/(OFFSET(X49,-$D49,0)-(X$6-$D49-1)))) -> n/a | Y49: =IF(OFFSET(Y49,-$D49,0)="n/a","n/a",IF(Y$6>OFFSET(Y49,-$D49,0)+$D49,$E49-SUM($G49:X49),($E49-SUM($G49:X49))/(OFFSET(Y49,-$D49,0)-(Y$6-$D49-1)))) -> n/a | Z49: =IF(OFFSET(Z49,-$D49,0)="n/a","n/a",IF(Z$6>OFFSET(Z49,-$D49,0)+$D49,$E49-SUM($G49:Y49),($E49-SUM($G49:Y49))/(OFFSET(Z49,-$D49,0)-(Z$6-$D49-1)))) -> n/a | AA49: =IF(OFFSET(AA49,-$D49,0)="n/a","n/a",IF(AA$6>OFFSET(AA49,-$D49,0)+$D49,$E49-SUM($G49:Z49),($E49-SUM($G49:Z49))/(OFFSET(AA49,-$D49,0)-(AA$6-$D49-1)))) -> n/a | AB49: =IF(OFFSET(AB49,-$D49,0)="n/a","n/a",IF(AB$6>OFFSET(AB49,-$D49,0)+$D49,$E49-SUM($G49:AA49),($E49-SUM($G49:AA49))/(OFFSET(AB49,-$D49,0)-(AB$6-$D49-1)))) -> n/a | AC49: =IF(OFFSET(AC49,-$D49,0)="n/a","n/a",IF(AC$6>OFFSET(AC49,-$D49,0)+$D49,$E49-SUM($G49:AB49),($E49-SUM($G49:AB49))/(OFFSET(AC49,-$D49,0)-(AC$6-$D49-1)))) -> n/a | AD49: =IF(OFFSET(AD49,-$D49,0)="n/a","n/a",IF(AD$6>OFFSET(AD49,-$D49,0)+$D49,$E49-SUM($G49:AC49),($E49-SUM($G49:AC49))/(OFFSET(AD49,-$D49,0)-(AD$6-$D49-1)))) -> n/a | AE49: =IF(OFFSET(AE49,-$D49,0)="n/a","n/a",IF(AE$6>OFFSET(AE49,-$D49,0)+$D49,$E49-SUM($G49:AD49),($E49-SUM($G49:AD49))/(OFFSET(AE49,-$D49,0)-(AE$6-$D49-1)))) -> n/a | AF49: =IF(OFFSET(AF49,-$D49,0)="n/a","n/a",IF(AF$6>OFFSET(AF49,-$D49,0)+$D49,$E49-SUM($G49:AE49),($E49-SUM($G49:AE49))/(OFFSET(AF49,-$D49,0)-(AF$6-$D49-1)))) -> n/a | AG49: =IF(OFFSET(AG49,-$D49,0)="n/a","n/a",IF(AG$6>OFFSET(AG49,-$D49,0)+$D49,$E49-SUM($G49:AF49),($E49-SUM($G49:AF49))/(OFFSET(AG49,-$D49,0)-(AG$6-$D49-1)))) -> n/a | AH49: =IF(OFFSET(AH49,-$D49,0)="n/a","n/a",IF(AH$6>OFFSET(AH49,-$D49,0)+$D49,$E49-SUM($G49:AG49),($E49-SUM($G49:AG49))/(OFFSET(AH49,-$D49,0)-(AH$6-$D49-1)))) -> n/a | AI49: =IF(OFFSET(AI49,-$D49,0)="n/a","n/a",IF(AI$6>OFFSET(AI49,-$D49,0)+$D49,$E49-SUM($G49:AH49),($E49-SUM($G49:AH49))/(OFFSET(AI49,-$D49,0)-(AI$6-$D49-1)))) -> n/a | AJ49: =IF(OFFSET(AJ49,-$D49,0)="n/a","n/a",IF(AJ$6>OFFSET(AJ49,-$D49,0)+$D49,$E49-SUM($G49:AI49),($E49-SUM($G49:AI49))/(OFFSET(AJ49,-$D49,0)-(AJ$6-$D49-1)))) -> n/a | AK49: =IF(OFFSET(AK49,-$D49,0)="n/a","n/a",IF(AK$6>OFFSET(AK49,-$D49,0)+$D49,$E49-SUM($G49:AJ49),($E49-SUM($G49:AJ49))/(OFFSET(AK49,-$D49,0)-(AK$6-$D49-1)))) -> n/a | AL49: =IF(OFFSET(AL49,-$D49,0)="n/a","n/a",IF(AL$6>OFFSET(AL49,-$D49,0)+$D49,$E49-SUM($G49:AK49),($E49-SUM($G49:AK49))/(OFFSET(AL49,-$D49,0)-(AL$6-$D49-1)))) -> n/a
D50: 10 | E50: 3096.08733 | Q50: =IF(OFFSET(Q50,-$D50,0)="n/a","n/a",IF(Q$6>OFFSET(Q50,-$D50,0)+$D50,$E50-SUM($G50:P50),($E50-SUM($G50:P50))/(OFFSET(Q50,-$D50,0)-(Q$6-$D50-1)))) -> n/a | R50: =IF(OFFSET(R50,-$D50,0)="n/a","n/a",IF(R$6>OFFSET(R50,-$D50,0)+$D50,$E50-SUM($G50:Q50),($E50-SUM($G50:Q50))/(OFFSET(R50,-$D50,0)-(R$6-$D50-1)))) -> n/a | S50: =IF(OFFSET(S50,-$D50,0)="n/a","n/a",IF(S$6>OFFSET(S50,-$D50,0)+$D50,$E50-SUM($G50:R50),($E50-SUM($G50:R50))/(OFFSET(S50,-$D50,0)-(S$6-$D50-1)))) -> n/a | T50: =IF(OFFSET(T50,-$D50,0)="n/a","n/a",IF(T$6>OFFSET(T50,-$D50,0)+$D50,$E50-SUM($G50:S50),($E50-SUM($G50:S50))/(OFFSET(T50,-$D50,0)-(T$6-$D50-1)))) -> n/a | U50: =IF(OFFSET(U50,-$D50,0)="n/a","n/a",IF(U$6>OFFSET(U50,-$D50,0)+$D50,$E50-SUM($G50:T50),($E50-SUM($G50:T50))/(OFFSET(U50,-$D50,0)-(U$6-$D50-1)))) -> n/a | V50: =IF(OFFSET(V50,-$D50,0)="n/a","n/a",IF(V$6>OFFSET(V50,-$D50,0)+$D50,$E50-SUM($G50:U50),($E50-SUM($G50:U50))/(OFFSET(V50,-$D50,0)-(V$6-$D50-1)))) -> n/a | W50: =IF(OFFSET(W50,-$D50,0)="n/a","n/a",IF(W$6>OFFSET(W50,-$D50,0)+$D50,$E50-SUM($G50:V50),($E50-SUM($G50:V50))/(OFFSET(W50,-$D50,0)-(W$6-$D50-1)))) -> n/a | X50: =IF(OFFSET(X50,-$D50,0)="n/a","n/a",IF(X$6>OFFSET(X50,-$D50,0)+$D50,$E50-SUM($G50:W50),($E50-SUM($G50:W50))/(OFFSET(X50,-$D50,0)-(X$6-$D50-1)))) -> n/a | Y50: =IF(OFFSET(Y50,-$D50,0)="n/a","n/a",IF(Y$6>OFFSET(Y50,-$D50,0)+$D50,$E50-SUM($G50:X50),($E50-SUM($G50:X50))/(OFFSET(Y50,-$D50,0)-(Y$6-$D50-1)))) -> n/a | Z50: =IF(OFFSET(Z50,-$D50,0)="n/a","n/a",IF(Z$6>OFFSET(Z50,-$D50,0)+$D50,$E50-SUM($G50:Y50),($E50-SUM($G50:Y50))/(OFFSET(Z50,-$D50,0)-(Z$6-$D50-1)))) -> n/a | AA50: =IF(OFFSET(AA50,-$D50,0)="n/a","n/a",IF(AA$6>OFFSET(AA50,-$D50,0)+$D50,$E50-SUM($G50:Z50),($E50-SUM($G50:Z50))/(OFFSET(AA50,-$D50,0)-(AA$6-$D50-1)))) -> n/a | AB50: =IF(OFFSET(AB50,-$D50,0)="n/a","n/a",IF(AB$6>OFFSET(AB50,-$D50,0)+$D50,$E50-SUM($G50:AA50),($E50-SUM($G50:AA50))/(OFFSET(AB50,-$D50,0)-(AB$6-$D50-1)))) -> n/a | AC50: =IF(OFFSET(AC50,-$D50,0)="n/a","n/a",IF(AC$6>OFFSET(AC50,-$D50,0)+$D50,$E50-SUM($G50:AB50),($E50-SUM($G50:AB50))/(OFFSET(AC50,-$D50,0)-(AC$6-$D50-1)))) -> n/a | AD50: =IF(OFFSET(AD50,-$D50,0)="n/a","n/a",IF(AD$6>OFFSET(AD50,-$D50,0)+$D50,$E50-SUM($G50:AC50),($E50-SUM($G50:AC50))/(OFFSET(AD50,-$D50,0)-(AD$6-$D50-1)))) -> n/a | AE50: =IF(OFFSET(AE50,-$D50,0)="n/a","n/a",IF(AE$6>OFFSET(AE50,-$D50,0)+$D50,$E50-SUM($G50:AD50),($E50-SUM($G50:AD50))/(OFFSET(AE50,-$D50,0)-(AE$6-$D50-1)))) -> n/a | AF50: =IF(OFFSET(AF50,-$D50,0)="n/a","n/a",IF(AF$6>OFFSET(AF50,-$D50,0)+$D50,$E50-SUM($G50:AE50),($E50-SUM($G50:AE50))/(OFFSET(AF50,-$D50,0)-(AF$6-$D50-1)))) -> n/a | AG50: =IF(OFFSET(AG50,-$D50,0)="n/a","n/a",IF(AG$6>OFFSET(AG50,-$D50,0)+$D50,$E50-SUM($G50:AF50),($E50-SUM($G50:AF50))/(OFFSET(AG50,-$D50,0)-(AG$6-$D50-1)))) -> n/a | AH50: =IF(OFFSET(AH50,-$D50,0)="n/a","n/a",IF(AH$6>OFFSET(AH50,-$D50,0)+$D50,$E50-SUM($G50:AG50),($E50-SUM($G50:AG50))/(OFFSET(AH50,-$D50,0)-(AH$6-$D50-1)))) -> n/a | AI50: =IF(OFFSET(AI50,-$D50,0)="n/a","n/a",IF(AI$6>OFFSET(AI50,-$D50,0)+$D50,$E50-SUM($G50:AH50),($E50-SUM($G50:AH50))/(OFFSET(AI50,-$D50,0)-(AI$6-$D50-1)))) -> n/a | AJ50: =IF(OFFSET(AJ50,-$D50,0)="n/a","n/a",IF(AJ$6>OFFSET(AJ50,-$D50,0)+$D50,$E50-SUM($G50:AI50),($E50-SUM($G50:AI50))/(OFFSET(AJ50,-$D50,0)-(AJ$6-$D50-1)))) -> n/a | AK50: =IF(OFFSET(AK50,-$D50,0)="n/a","n/a",IF(AK$6>OFFSET(AK50,-$D50,0)+$D50,$E50-SUM($G50:AJ50),($E50-SUM($G50:AJ50))/(OFFSET(AK50,-$D50,0)-(AK$6-$D50-1)))) -> n/a | AL50: =IF(OFFSET(AL50,-$D50,0)="n/a","n/a",IF(AL$6>OFFSET(AL50,-$D50,0)+$D50,$E50-SUM($G50:AK50),($E50-SUM($G50:AK50))/(OFFSET(AL50,-$D50,0)-(AL$6-$D50-1)))) -> n/a
D51: 11 | E51: 2671.443962 | R51: =IF(OFFSET(R51,-$D51,0)="n/a","n/a",IF(R$6>OFFSET(R51,-$D51,0)+$D51,$E51-SUM($G51:Q51),($E51-SUM($G51:Q51))/(OFFSET(R51,-$D51,0)-(R$6-$D51-1)))) -> n/a | S51: =IF(OFFSET(S51,-$D51,0)="n/a","n/a",IF(S$6>OFFSET(S51,-$D51,0)+$D51,$E51-SUM($G51:R51),($E51-SUM($G51:R51))/(OFFSET(S51,-$D51,0)-(S$6-$D51-1)))) -> n/a | T51: =IF(OFFSET(T51,-$D51,0)="n/a","n/a",IF(T$6>OFFSET(T51,-$D51,0)+$D51,$E51-SUM($G51:S51),($E51-SUM($G51:S51))/(OFFSET(T51,-$D51,0)-(T$6-$D51-1)))) -> n/a | U51: =IF(OFFSET(U51,-$D51,0)="n/a","n/a",IF(U$6>OFFSET(U51,-$D51,0)+$D51,$E51-SUM($G51:T51),($E51-SUM($G51:T51))/(OFFSET(U51,-$D51,0)-(U$6-$D51-1)))) -> n/a | V51: =IF(OFFSET(V51,-$D51,0)="n/a","n/a",IF(V$6>OFFSET(V51,-$D51,0)+$D51,$E51-SUM($G51:U51),($E51-SUM($G51:U51))/(OFFSET(V51,-$D51,0)-(V$6-$D51-1)))) -> n/a | W51: =IF(OFFSET(W51,-$D51,0)="n/a","n/a",IF(W$6>OFFSET(W51,-$D51,0)+$D51,$E51-SUM($G51:V51),($E51-SUM($G51:V51))/(OFFSET(W51,-$D51,0)-(W$6-$D51-1)))) -> n/a | X51: =IF(OFFSET(X51,-$D51,0)="n/a","n/a",IF(X$6>OFFSET(X51,-$D51,0)+$D51,$E51-SUM($G51:W51),($E51-SUM($G51:W51))/(OFFSET(X51,-$D51,0)-(X$6-$D51-1)))) -> n/a | Y51: =IF(OFFSET(Y51,-$D51,0)="n/a","n/a",IF(Y$6>OFFSET(Y51,-$D51,0)+$D51,$E51-SUM($G51:X51),($E51-SUM($G51:X51))/(OFFSET(Y51,-$D51,0)-(Y$6-$D51-1)))) -> n/a | Z51: =IF(OFFSET(Z51,-$D51,0)="n/a","n/a",IF(Z$6>OFFSET(Z51,-$D51,0)+$D51,$E51-SUM($G51:Y51),($E51-SUM($G51:Y51))/(OFFSET(Z51,-$D51,0)-(Z$6-$D51-1)))) -> n/a | AA51: =IF(OFFSET(AA51,-$D51,0)="n/a","n/a",IF(AA$6>OFFSET(AA51,-$D51,0)+$D51,$E51-SUM($G51:Z51),($E51-SUM($G51:Z51))/(OFFSET(AA51,-$D51,0)-(AA$6-$D51-1)))) -> n/a | AB51: =IF(OFFSET(AB51,-$D51,0)="n/a","n/a",IF(AB$6>OFFSET(AB51,-$D51,0)+$D51,$E51-SUM($G51:AA51),($E51-SUM($G51:AA51))/(OFFSET(AB51,-$D51,0)-(AB$6-$D51-1)))) -> n/a | AC51: =IF(OFFSET(AC51,-$D51,0)="n/a","n/a",IF(AC$6>OFFSET(AC51,-$D51,0)+$D51,$E51-SUM($G51:AB51),($E51-SUM($G51:AB51))/(OFFSET(AC51,-$D51,0)-(AC$6-$D51-1)))) -> n/a | AD51: =IF(OFFSET(AD51,-$D51,0)="n/a","n/a",IF(AD$6>OFFSET(AD51,-$D51,0)+$D51,$E51-SUM($G51:AC51),($E51-SUM($G51:AC51))/(OFFSET(AD51,-$D51,0)-(AD$6-$D51-1)))) -> n/a | AE51: =IF(OFFSET(AE51,-$D51,0)="n/a","n/a",IF(AE$6>OFFSET(AE51,-$D51,0)+$D51,$E51-SUM($G51:AD51),($E51-SUM($G51:AD51))/(OFFSET(AE51,-$D51,0)-(AE$6-$D51-1)))) -> n/a | AF51: =IF(OFFSET(AF51,-$D51,0)="n/a","n/a",IF(AF$6>OFFSET(AF51,-$D51,0)+$D51,$E51-SUM($G51:AE51),($E51-SUM($G51:AE51))/(OFFSET(AF51,-$D51,0)-(AF$6-$D51-1)))) -> n/a | AG51: =IF(OFFSET(AG51,-$D51,0)="n/a","n/a",IF(AG$6>OFFSET(AG51,-$D51,0)+$D51,$E51-SUM($G51:AF51),($E51-SUM($G51:AF51))/(OFFSET(AG51,-$D51,0)-(AG$6-$D51-1)))) -> n/a | AH51: =IF(OFFSET(AH51,-$D51,0)="n/a","n/a",IF(AH$6>OFFSET(AH51,-$D51,0)+$D51,$E51-SUM($G51:AG51),($E51-SUM($G51:AG51))/(OFFSET(AH51,-$D51,0)-(AH$6-$D51-1)))) -> n/a | AI51: =IF(OFFSET(AI51,-$D51,0)="n/a","n/a",IF(AI$6>OFFSET(AI51,-$D51,0)+$D51,$E51-SUM($G51:AH51),($E51-SUM($G51:AH51))/(OFFSET(AI51,-$D51,0)-(AI$6-$D51-1)))) -> n/a | AJ51: =IF(OFFSET(AJ51,-$D51,0)="n/a","n/a",IF(AJ$6>OFFSET(AJ51,-$D51,0)+$D51,$E51-SUM($G51:AI51),($E51-SUM($G51:AI51))/(OFFSET(AJ51,-$D51,0)-(AJ$6-$D51-1)))) -> n/a | AK51: =IF(OFFSET(AK51,-$D51,0)="n/a","n/a",IF(AK$6>OFFSET(AK51,-$D51,0)+$D51,$E51-SUM($G51:AJ51),($E51-SUM($G51:AJ51))/(OFFSET(AK51,-$D51,0)-(AK$6-$D51-1)))) -> n/a | AL51: =IF(OFFSET(AL51,-$D51,0)="n/a","n/a",IF(AL$6>OFFSET(AL51,-$D51,0)+$D51,$E51-SUM($G51:AK51),($E51-SUM($G51:AK51))/(OFFSET(AL51,-$D51,0)-(AL$6-$D51-1)))) -> n/a
D52: 12 | E52: 57934.44578 | S52: =IF(OFFSET(S52,-$D52,0)="n/a","n/a",IF(S$6>OFFSET(S52,-$D52,0)+$D52,$E52-SUM($G52:R52),($E52-SUM($G52:R52))/(OFFSET(S52,-$D52,0)-(S$6-$D52-1)))) -> n/a | T52: =IF(OFFSET(T52,-$D52,0)="n/a","n/a",IF(T$6>OFFSET(T52,-$D52,0)+$D52,$E52-SUM($G52:S52),($E52-SUM($G52:S52))/(OFFSET(T52,-$D52,0)-(T$6-$D52-1)))) -> n/a | U52: =IF(OFFSET(U52,-$D52,0)="n/a","n/a",IF(U$6>OFFSET(U52,-$D52,0)+$D52,$E52-SUM($G52:T52),($E52-SUM($G52:T52))/(OFFSET(U52,-$D52,0)-(U$6-$D52-1)))) -> n/a | V52: =IF(OFFSET(V52,-$D52,0)="n/a","n/a",IF(V$6>OFFSET(V52,-$D52,0)+$D52,$E52-SUM($G52:U52),($E52-SUM($G52:U52))/(OFFSET(V52,-$D52,0)-(V$6-$D52-1)))) -> n/a | W52: =IF(OFFSET(W52,-$D52,0)="n/a","n/a",IF(W$6>OFFSET(W52,-$D52,0)+$D52,$E52-SUM($G52:V52),($E52-SUM($G52:V52))/(OFFSET(W52,-$D52,0)-(W$6-$D52-1)))) -> n/a | X52: =IF(OFFSET(X52,-$D52,0)="n/a","n/a",IF(X$6>OFFSET(X52,-$D52,0)+$D52,$E52-SUM($G52:W52),($E52-SUM($G52:W52))/(OFFSET(X52,-$D52,0)-(X$6-$D52-1)))) -> n/a | Y52: =IF(OFFSET(Y52,-$D52,0)="n/a","n/a",IF(Y$6>OFFSET(Y52,-$D52,0)+$D52,$E52-SUM($G52:X52),($E52-SUM($G52:X52))/(OFFSET(Y52,-$D52,0)-(Y$6-$D52-1)))) -> n/a | Z52: =IF(OFFSET(Z52,-$D52,0)="n/a","n/a",IF(Z$6>OFFSET(Z52,-$D52,0)+$D52,$E52-SUM($G52:Y52),($E52-SUM($G52:Y52))/(OFFSET(Z52,-$D52,0)-(Z$6-$D52-1)))) -> n/a | AA52: =IF(OFFSET(AA52,-$D52,0)="n/a","n/a",IF(AA$6>OFFSET(AA52,-$D52,0)+$D52,$E52-SUM($G52:Z52),($E52-SUM($G52:Z52))/(OFFSET(AA52,-$D52,0)-(AA$6-$D52-1)))) -> n/a | AB52: =IF(OFFSET(AB52,-$D52,0)="n/a","n/a",IF(AB$6>OFFSET(AB52,-$D52,0)+$D52,$E52-SUM($G52:AA52),($E52-SUM($G52:AA52))/(OFFSET(AB52,-$D52,0)-(AB$6-$D52-1)))) -> n/a | AC52: =IF(OFFSET(AC52,-$D52,0)="n/a","n/a",IF(AC$6>OFFSET(AC52,-$D52,0)+$D52,$E52-SUM($G52:AB52),($E52-SUM($G52:AB52))/(OFFSET(AC52,-$D52,0)-(AC$6-$D52-1)))) -> n/a | AD52: =IF(OFFSET(AD52,-$D52,0)="n/a","n/a",IF(AD$6>OFFSET(AD52,-$D52,0)+$D52,$E52-SUM($G52:AC52),($E52-SUM($G52:AC52))/(OFFSET(AD52,-$D52,0)-(AD$6-$D52-1)))) -> n/a | AE52: =IF(OFFSET(AE52,-$D52,0)="n/a","n/a",IF(AE$6>OFFSET(AE52,-$D52,0)+$D52,$E52-SUM($G52:AD52),($E52-SUM($G52:AD52))/(OFFSET(AE52,-$D52,0)-(AE$6-$D52-1)))) -> n/a | AF52: =IF(OFFSET(AF52,-$D52,0)="n/a","n/a",IF(AF$6>OFFSET(AF52,-$D52,0)+$D52,$E52-SUM($G52:AE52),($E52-SUM($G52:AE52))/(OFFSET(AF52,-$D52,0)-(AF$6-$D52-1)))) -> n/a | AG52: =IF(OFFSET(AG52,-$D52,0)="n/a","n/a",IF(AG$6>OFFSET(AG52,-$D52,0)+$D52,$E52-SUM($G52:AF52),($E52-SUM($G52:AF52))/(OFFSET(AG52,-$D52,0)-(AG$6-$D52-1)))) -> n/a | AH52: =IF(OFFSET(AH52,-$D52,0)="n/a","n/a",IF(AH$6>OFFSET(AH52,-$D52,0)+$D52,$E52-SUM($G52:AG52),($E52-SUM($G52:AG52))/(OFFSET(AH52,-$D52,0)-(AH$6-$D52-1)))) -> n/a | AI52: =IF(OFFSET(AI52,-$D52,0)="n/a","n/a",IF(AI$6>OFFSET(AI52,-$D52,0)+$D52,$E52-SUM($G52:AH52),($E52-SUM($G52:AH52))/(OFFSET(AI52,-$D52,0)-(AI$6-$D52-1)))) -> n/a | AJ52: =IF(OFFSET(AJ52,-$D52,0)="n/a","n/a",IF(AJ$6>OFFSET(AJ52,-$D52,0)+$D52,$E52-SUM($G52:AI52),($E52-SUM($G52:AI52))/(OFFSET(AJ52,-$D52,0)-(AJ$6-$D52-1)))) -> n/a | AK52: =IF(OFFSET(AK52,-$D52,0)="n/a","n/a",IF(AK$6>OFFSET(AK52,-$D52,0)+$D52,$E52-SUM($G52:AJ52),($E52-SUM($G52:AJ52))/(OFFSET(AK52,-$D52,0)-(AK$6-$D52-1)))) -> n/a | AL52: =IF(OFFSET(AL52,-$D52,0)="n/a","n/a",IF(AL$6>OFFSET(AL52,-$D52,0)+$D52,$E52-SUM($G52:AK52),($E52-SUM($G52:AK52))/(OFFSET(AL52,-$D52,0)-(AL$6-$D52-1)))) -> n/a
D53: 13 | E53: -39980.15667 | T53: =IF(OFFSET(T53,-$D53,0)="n/a","n/a",IF(T$6>OFFSET(T53,-$D53,0)+$D53,$E53-SUM($G53:S53),($E53-SUM($G53:S53))/(OFFSET(T53,-$D53,0)-(T$6-$D53-1)))) -> n/a | U53: =IF(OFFSET(U53,-$D53,0)="n/a","n/a",IF(U$6>OFFSET(U53,-$D53,0)+$D53,$E53-SUM($G53:T53),($E53-SUM($G53:T53))/(OFFSET(U53,-$D53,0)-(U$6-$D53-1)))) -> n/a | V53: =IF(OFFSET(V53,-$D53,0)="n/a","n/a",IF(V$6>OFFSET(V53,-$D53,0)+$D53,$E53-SUM($G53:U53),($E53-SUM($G53:U53))/(OFFSET(V53,-$D53,0)-(V$6-$D53-1)))) -> n/a | W53: =IF(OFFSET(W53,-$D53,0)="n/a","n/a",IF(W$6>OFFSET(W53,-$D53,0)+$D53,$E53-SUM($G53:V53),($E53-SUM($G53:V53))/(OFFSET(W53,-$D53,0)-(W$6-$D53-1)))) -> n/a | X53: =IF(OFFSET(X53,-$D53,0)="n/a","n/a",IF(X$6>OFFSET(X53,-$D53,0)+$D53,$E53-SUM($G53:W53),($E53-SUM($G53:W53))/(OFFSET(X53,-$D53,0)-(X$6-$D53-1)))) -> n/a | Y53: =IF(OFFSET(Y53,-$D53,0)="n/a","n/a",IF(Y$6>OFFSET(Y53,-$D53,0)+$D53,$E53-SUM($G53:X53),($E53-SUM($G53:X53))/(OFFSET(Y53,-$D53,0)-(Y$6-$D53-1)))) -> n/a | Z53: =IF(OFFSET(Z53,-$D53,0)="n/a","n/a",IF(Z$6>OFFSET(Z53,-$D53,0)+$D53,$E53-SUM($G53:Y53),($E53-SUM($G53:Y53))/(OFFSET(Z53,-$D53,0)-(Z$6-$D53-1)))) -> n/a | AA53: =IF(OFFSET(AA53,-$D53,0)="n/a","n/a",IF(AA$6>OFFSET(AA53,-$D53,0)+$D53,$E53-SUM($G53:Z53),($E53-SUM($G53:Z53))/(OFFSET(AA53,-$D53,0)-(AA$6-$D53-1)))) -> n/a | AB53: =IF(OFFSET(AB53,-$D53,0)="n/a","n/a",IF(AB$6>OFFSET(AB53,-$D53,0)+$D53,$E53-SUM($G53:AA53),($E53-SUM($G53:AA53))/(OFFSET(AB53,-$D53,0)-(AB$6-$D53-1)))) -> n/a | AC53: =IF(OFFSET(AC53,-$D53,0)="n/a","n/a",IF(AC$6>OFFSET(AC53,-$D53,0)+$D53,$E53-SUM($G53:AB53),($E53-SUM($G53:AB53))/(OFFSET(AC53,-$D53,0)-(AC$6-$D53-1)))) -> n/a | AD53: =IF(OFFSET(AD53,-$D53,0)="n/a","n/a",IF(AD$6>OFFSET(AD53,-$D53,0)+$D53,$E53-SUM($G53:AC53),($E53-SUM($G53:AC53))/(OFFSET(AD53,-$D53,0)-(AD$6-$D53-1)))) -> n/a | AE53: =IF(OFFSET(AE53,-$D53,0)="n/a","n/a",IF(AE$6>OFFSET(AE53,-$D53,0)+$D53,$E53-SUM($G53:AD53),($E53-SUM($G53:AD53))/(OFFSET(AE53,-$D53,0)-(AE$6-$D53-1)))) -> n/a | AF53: =IF(OFFSET(AF53,-$D53,0)="n/a","n/a",IF(AF$6>OFFSET(AF53,-$D53,0)+$D53,$E53-SUM($G53:AE53),($E53-SUM($G53:AE53))/(OFFSET(AF53,-$D53,0)-(AF$6-$D53-1)))) -> n/a | AG53: =IF(OFFSET(AG53,-$D53,0)="n/a","n/a",IF(AG$6>OFFSET(AG53,-$D53,0)+$D53,$E53-SUM($G53:AF53),($E53-SUM($G53:AF53))/(OFFSET(AG53,-$D53,0)-(AG$6-$D53-1)))) -> n/a | AH53: =IF(OFFSET(AH53,-$D53,0)="n/a","n/a",IF(AH$6>OFFSET(AH53,-$D53,0)+$D53,$E53-SUM($G53:AG53),($E53-SUM($G53:AG53))/(OFFSET(AH53,-$D53,0)-(AH$6-$D53-1)))) -> n/a | AI53: =IF(OFFSET(AI53,-$D53,0)="n/a","n/a",IF(AI$6>OFFSET(AI53,-$D53,0)+$D53,$E53-SUM($G53:AH53),($E53-SUM($G53:AH53))/(OFFSET(AI53,-$D53,0)-(AI$6-$D53-1)))) -> n/a | AJ53: =IF(OFFSET(AJ53,-$D53,0)="n/a","n/a",IF(AJ$6>OFFSET(AJ53,-$D53,0)+$D53,$E53-SUM($G53:AI53),($E53-SUM($G53:AI53))/(OFFSET(AJ53,-$D53,0)-(AJ$6-$D53-1)))) -> n/a | AK53: =IF(OFFSET(AK53,-$D53,0)="n/a","n/a",IF(AK$6>OFFSET(AK53,-$D53,0)+$D53,$E53-SUM($G53:AJ53),($E53-SUM($G53:AJ53))/(OFFSET(AK53,-$D53,0)-(AK$6-$D53-1)))) -> n/a | AL53: =IF(OFFSET(AL53,-$D53,0)="n/a","n/a",IF(AL$6>OFFSET(AL53,-$D53,0)+$D53,$E53-SUM($G53:AK53),($E53-SUM($G53:AK53))/(OFFSET(AL53,-$D53,0)-(AL$6-$D53-1)))) -> n/a
D54: 14 | E54: 11071.60321 | U54: =IF(OFFSET(U54,-$D54,0)="n/a","n/a",IF(U$6>OFFSET(U54,-$D54,0)+$D54,$E54-SUM($G54:T54),($E54-SUM($G54:T54))/(OFFSET(U54,-$D54,0)-(U$6-$D54-1)))) -> n/a | V54: =IF(OFFSET(V54,-$D54,0)="n/a","n/a",IF(V$6>OFFSET(V54,-$D54,0)+$D54,$E54-SUM($G54:U54),($E54-SUM($G54:U54))/(OFFSET(V54,-$D54,0)-(V$6-$D54-1)))) -> n/a | W54: =IF(OFFSET(W54,-$D54,0)="n/a","n/a",IF(W$6>OFFSET(W54,-$D54,0)+$D54,$E54-SUM($G54:V54),($E54-SUM($G54:V54))/(OFFSET(W54,-$D54,0)-(W$6-$D54-1)))) -> n/a | X54: =IF(OFFSET(X54,-$D54,0)="n/a","n/a",IF(X$6>OFFSET(X54,-$D54,0)+$D54,$E54-SUM($G54:W54),($E54-SUM($G54:W54))/(OFFSET(X54,-$D54,0)-(X$6-$D54-1)))) -> n/a | Y54: =IF(OFFSET(Y54,-$D54,0)="n/a","n/a",IF(Y$6>OFFSET(Y54,-$D54,0)+$D54,$E54-SUM($G54:X54),($E54-SUM($G54:X54))/(OFFSET(Y54,-$D54,0)-(Y$6-$D54-1)))) -> n/a | Z54: =IF(OFFSET(Z54,-$D54,0)="n/a","n/a",IF(Z$6>OFFSET(Z54,-$D54,0)+$D54,$E54-SUM($G54:Y54),($E54-SUM($G54:Y54))/(OFFSET(Z54,-$D54,0)-(Z$6-$D54-1)))) -> n/a | AA54: =IF(OFFSET(AA54,-$D54,0)="n/a","n/a",IF(AA$6>OFFSET(AA54,-$D54,0)+$D54,$E54-SUM($G54:Z54),($E54-SUM($G54:Z54))/(OFFSET(AA54,-$D54,0)-(AA$6-$D54-1)))) -> n/a | AB54: =IF(OFFSET(AB54,-$D54,0)="n/a","n/a",IF(AB$6>OFFSET(AB54,-$D54,0)+$D54,$E54-SUM($G54:AA54),($E54-SUM($G54:AA54))/(OFFSET(AB54,-$D54,0)-(AB$6-$D54-1)))) -> n/a | AC54: =IF(OFFSET(AC54,-$D54,0)="n/a","n/a",IF(AC$6>OFFSET(AC54,-$D54,0)+$D54,$E54-SUM($G54:AB54),($E54-SUM($G54:AB54))/(OFFSET(AC54,-$D54,0)-(AC$6-$D54-1)))) -> n/a | AD54: =IF(OFFSET(AD54,-$D54,0)="n/a","n/a",IF(AD$6>OFFSET(AD54,-$D54,0)+$D54,$E54-SUM($G54:AC54),($E54-SUM($G54:AC54))/(OFFSET(AD54,-$D54,0)-(AD$6-$D54-1)))) -> n/a | AE54: =IF(OFFSET(AE54,-$D54,0)="n/a","n/a",IF(AE$6>OFFSET(AE54,-$D54,0)+$D54,$E54-SUM($G54:AD54),($E54-SUM($G54:AD54))/(OFFSET(AE54,-$D54,0)-(AE$6-$D54-1)))) -> n/a | AF54: =IF(OFFSET(AF54,-$D54,0)="n/a","n/a",IF(AF$6>OFFSET(AF54,-$D54,0)+$D54,$E54-SUM($G54:AE54),($E54-SUM($G54:AE54))/(OFFSET(AF54,-$D54,0)-(AF$6-$D54-1)))) -> n/a | AG54: =IF(OFFSET(AG54,-$D54,0)="n/a","n/a",IF(AG$6>OFFSET(AG54,-$D54,0)+$D54,$E54-SUM($G54:AF54),($E54-SUM($G54:AF54))/(OFFSET(AG54,-$D54,0)-(AG$6-$D54-1)))) -> n/a | AH54: =IF(OFFSET(AH54,-$D54,0)="n/a","n/a",IF(AH$6>OFFSET(AH54,-$D54,0)+$D54,$E54-SUM($G54:AG54),($E54-SUM($G54:AG54))/(OFFSET(AH54,-$D54,0)-(AH$6-$D54-1)))) -> n/a | AI54: =IF(OFFSET(AI54,-$D54,0)="n/a","n/a",IF(AI$6>OFFSET(AI54,-$D54,0)+$D54,$E54-SUM($G54:AH54),($E54-SUM($G54:AH54))/(OFFSET(AI54,-$D54,0)-(AI$6-$D54-1)))) -> n/a | AJ54: =IF(OFFSET(AJ54,-$D54,0)="n/a","n/a",IF(AJ$6>OFFSET(AJ54,-$D54,0)+$D54,$E54-SUM($G54:AI54),($E54-SUM($G54:AI54))/(OFFSET(AJ54,-$D54,0)-(AJ$6-$D54-1)))) -> n/a | AK54: =IF(OFFSET(AK54,-$D54,0)="n/a","n/a",IF(AK$6>OFFSET(AK54,-$D54,0)+$D54,$E54-SUM($G54:AJ54),($E54-SUM($G54:AJ54))/(OFFSET(AK54,-$D54,0)-(AK$6-$D54-1)))) -> n/a | AL54: =IF(OFFSET(AL54,-$D54,0)="n/a","n/a",IF(AL$6>OFFSET(AL54,-$D54,0)+$D54,$E54-SUM($G54:AK54),($E54-SUM($G54:AK54))/(OFFSET(AL54,-$D54,0)-(AL$6-$D54-1)))) -> n/a
D55: 15 | E55: -21604.3198 | V55: =IF(OFFSET(V55,-$D55,0)="n/a","n/a",IF(V$6>OFFSET(V55,-$D55,0)+$D55,$E55-SUM($G55:U55),($E55-SUM($G55:U55))/(OFFSET(V55,-$D55,0)-(V$6-$D55-1)))) -> n/a | W55: =IF(OFFSET(W55,-$D55,0)="n/a","n/a",IF(W$6>OFFSET(W55,-$D55,0)+$D55,$E55-SUM($G55:V55),($E55-SUM($G55:V55))/(OFFSET(W55,-$D55,0)-(W$6-$D55-1)))) -> n/a | X55: =IF(OFFSET(X55,-$D55,0)="n/a","n/a",IF(X$6>OFFSET(X55,-$D55,0)+$D55,$E55-SUM($G55:W55),($E55-SUM($G55:W55))/(OFFSET(X55,-$D55,0)-(X$6-$D55-1)))) -> n/a | Y55: =IF(OFFSET(Y55,-$D55,0)="n/a","n/a",IF(Y$6>OFFSET(Y55,-$D55,0)+$D55,$E55-SUM($G55:X55),($E55-SUM($G55:X55))/(OFFSET(Y55,-$D55,0)-(Y$6-$D55-1)))) -> n/a | Z55: =IF(OFFSET(Z55,-$D55,0)="n/a","n/a",IF(Z$6>OFFSET(Z55,-$D55,0)+$D55,$E55-SUM($G55:Y55),($E55-SUM($G55:Y55))/(OFFSET(Z55,-$D55,0)-(Z$6-$D55-1)))) -> n/a | AA55: =IF(OFFSET(AA55,-$D55,0)="n/a","n/a",IF(AA$6>OFFSET(AA55,-$D55,0)+$D55,$E55-SUM($G55:Z55),($E55-SUM($G55:Z55))/(OFFSET(AA55,-$D55,0)-(AA$6-$D55-1)))) -> n/a | AB55: =IF(OFFSET(AB55,-$D55,0)="n/a","n/a",IF(AB$6>OFFSET(AB55,-$D55,0)+$D55,$E55-SUM($G55:AA55),($E55-SUM($G55:AA55))/(OFFSET(AB55,-$D55,0)-(AB$6-$D55-1)))) -> n/a | AC55: =IF(OFFSET(AC55,-$D55,0)="n/a","n/a",IF(AC$6>OFFSET(AC55,-$D55,0)+$D55,$E55-SUM($G55:AB55),($E55-SUM($G55:AB55))/(OFFSET(AC55,-$D55,0)-(AC$6-$D55-1)))) -> n/a | AD55: =IF(OFFSET(AD55,-$D55,0)="n/a","n/a",IF(AD$6>OFFSET(AD55,-$D55,0)+$D55,$E55-SUM($G55:AC55),($E55-SUM($G55:AC55))/(OFFSET(AD55,-$D55,0)-(AD$6-$D55-1)))) -> n/a | AE55: =IF(OFFSET(AE55,-$D55,0)="n/a","n/a",IF(AE$6>OFFSET(AE55,-$D55,0)+$D55,$E55-SUM($G55:AD55),($E55-SUM($G55:AD55))/(OFFSET(AE55,-$D55,0)-(AE$6-$D55-1)))) -> n/a | AF55: =IF(OFFSET(AF55,-$D55,0)="n/a","n/a",IF(AF$6>OFFSET(AF55,-$D55,0)+$D55,$E55-SUM($G55:AE55),($E55-SUM($G55:AE55))/(OFFSET(AF55,-$D55,0)-(AF$6-$D55-1)))) -> n/a | AG55: =IF(OFFSET(AG55,-$D55,0)="n/a","n/a",IF(AG$6>OFFSET(AG55,-$D55,0)+$D55,$E55-SUM($G55:AF55),($E55-SUM($G55:AF55))/(OFFSET(AG55,-$D55,0)-(AG$6-$D55-1)))) -> n/a | AH55: =IF(OFFSET(AH55,-$D55,0)="n/a","n/a",IF(AH$6>OFFSET(AH55,-$D55,0)+$D55,$E55-SUM($G55:AG55),($E55-SUM($G55:AG55))/(OFFSET(AH55,-$D55,0)-(AH$6-$D55-1)))) -> n/a | AI55: =IF(OFFSET(AI55,-$D55,0)="n/a","n/a",IF(AI$6>OFFSET(AI55,-$D55,0)+$D55,$E55-SUM($G55:AH55),($E55-SUM($G55:AH55))/(OFFSET(AI55,-$D55,0)-(AI$6-$D55-1)))) -> n/a | AJ55: =IF(OFFSET(AJ55,-$D55,0)="n/a","n/a",IF(AJ$6>OFFSET(AJ55,-$D55,0)+$D55,$E55-SUM($G55:AI55),($E55-SUM($G55:AI55))/(OFFSET(AJ55,-$D55,0)-(AJ$6-$D55-1)))) -> n/a | AK55: =IF(OFFSET(AK55,-$D55,0)="n/a","n/a",IF(AK$6>OFFSET(AK55,-$D55,0)+$D55,$E55-SUM($G55:AJ55),($E55-SUM($G55:AJ55))/(OFFSET(AK55,-$D55,0)-(AK$6-$D55-1)))) -> n/a | AL55: =IF(OFFSET(AL55,-$D55,0)="n/a","n/a",IF(AL$6>OFFSET(AL55,-$D55,0)+$D55,$E55-SUM($G55:AK55),($E55-SUM($G55:AK55))/(OFFSET(AL55,-$D55,0)-(AL$6-$D55-1)))) -> n/a
D56: 16 | E56: -12700.53514 | W56: =IF(OFFSET(W56,-$D56,0)="n/a","n/a",IF(W$6>OFFSET(W56,-$D56,0)+$D56,$E56-SUM($G56:V56),($E56-SUM($G56:V56))/(OFFSET(W56,-$D56,0)-(W$6-$D56-1)))) -> n/a | X56: =IF(OFFSET(X56,-$D56,0)="n/a","n/a",IF(X$6>OFFSET(X56,-$D56,0)+$D56,$E56-SUM($G56:W56),($E56-SUM($G56:W56))/(OFFSET(X56,-$D56,0)-(X$6-$D56-1)))) -> n/a | Y56: =IF(OFFSET(Y56,-$D56,0)="n/a","n/a",IF(Y$6>OFFSET(Y56,-$D56,0)+$D56,$E56-SUM($G56:X56),($E56-SUM($G56:X56))/(OFFSET(Y56,-$D56,0)-(Y$6-$D56-1)))) -> n/a | Z56: =IF(OFFSET(Z56,-$D56,0)="n/a","n/a",IF(Z$6>OFFSET(Z56,-$D56,0)+$D56,$E56-SUM($G56:Y56),($E56-SUM($G56:Y56))/(OFFSET(Z56,-$D56,0)-(Z$6-$D56-1)))) -> n/a | AA56: =IF(OFFSET(AA56,-$D56,0)="n/a","n/a",IF(AA$6>OFFSET(AA56,-$D56,0)+$D56,$E56-SUM($G56:Z56),($E56-SUM($G56:Z56))/(OFFSET(AA56,-$D56,0)-(AA$6-$D56-1)))) -> n/a | AB56: =IF(OFFSET(AB56,-$D56,0)="n/a","n/a",IF(AB$6>OFFSET(AB56,-$D56,0)+$D56,$E56-SUM($G56:AA56),($E56-SUM($G56:AA56))/(OFFSET(AB56,-$D56,0)-(AB$6-$D56-1)))) -> n/a | AC56: =IF(OFFSET(AC56,-$D56,0)="n/a","n/a",IF(AC$6>OFFSET(AC56,-$D56,0)+$D56,$E56-SUM($G56:AB56),($E56-SUM($G56:AB56))/(OFFSET(AC56,-$D56,0)-(AC$6-$D56-1)))) -> n/a | AD56: =IF(OFFSET(AD56,-$D56,0)="n/a","n/a",IF(AD$6>OFFSET(AD56,-$D56,0)+$D56,$E56-SUM($G56:AC56),($E56-SUM($G56:AC56))/(OFFSET(AD56,-$D56,0)-(AD$6-$D56-1)))) -> n/a | AE56: =IF(OFFSET(AE56,-$D56,0)="n/a","n/a",IF(AE$6>OFFSET(AE56,-$D56,0)+$D56,$E56-SUM($G56:AD56),($E56-SUM($G56:AD56))/(OFFSET(AE56,-$D56,0)-(AE$6-$D56-1)))) -> n/a | AF56: =IF(OFFSET(AF56,-$D56,0)="n/a","n/a",IF(AF$6>OFFSET(AF56,-$D56,0)+$D56,$E56-SUM($G56:AE56),($E56-SUM($G56:AE56))/(OFFSET(AF56,-$D56,0)-(AF$6-$D56-1)))) -> n/a | AG56: =IF(OFFSET(AG56,-$D56,0)="n/a","n/a",IF(AG$6>OFFSET(AG56,-$D56,0)+$D56,$E56-SUM($G56:AF56),($E56-SUM($G56:AF56))/(OFFSET(AG56,-$D56,0)-(AG$6-$D56-1)))) -> n/a | AH56: =IF(OFFSET(AH56,-$D56,0)="n/a","n/a",IF(AH$6>OFFSET(AH56,-$D56,0)+$D56,$E56-SUM($G56:AG56),($E56-SUM($G56:AG56))/(OFFSET(AH56,-$D56,0)-(AH$6-$D56-1)))) -> n/a | AI56: =IF(OFFSET(AI56,-$D56,0)="n/a","n/a",IF(AI$6>OFFSET(AI56,-$D56,0)+$D56,$E56-SUM($G56:AH56),($E56-SUM($G56:AH56))/(OFFSET(AI56,-$D56,0)-(AI$6-$D56-1)))) -> n/a | AJ56: =IF(OFFSET(AJ56,-$D56,0)="n/a","n/a",IF(AJ$6>OFFSET(AJ56,-$D56,0)+$D56,$E56-SUM($G56:AI56),($E56-SUM($G56:AI56))/(OFFSET(AJ56,-$D56,0)-(AJ$6-$D56-1)))) -> n/a | AK56: =IF(OFFSET(AK56,-$D56,0)="n/a","n/a",IF(AK$6>OFFSET(AK56,-$D56,0)+$D56,$E56-SUM($G56:AJ56),($E56-SUM($G56:AJ56))/(OFFSET(AK56,-$D56,0)-(AK$6-$D56-1)))) -> n/a | AL56: =IF(OFFSET(AL56,-$D56,0)="n/a","n/a",IF(AL$6>OFFSET(AL56,-$D56,0)+$D56,$E56-SUM($G56:AK56),($E56-SUM($G56:AK56))/(OFFSET(AL56,-$D56,0)-(AL$6-$D56-1)))) -> n/a
D57: 17 | E57: 0 | X57: =IF(OFFSET(X57,-$D57,0)="n/a","n/a",IF(X$6>OFFSET(X57,-$D57,0)+$D57,$E57-SUM($G57:W57),($E57-SUM($G57:W57))/(OFFSET(X57,-$D57,0)-(X$6-$D57-1)))) -> n/a | Y57: =IF(OFFSET(Y57,-$D57,0)="n/a","n/a",IF(Y$6>OFFSET(Y57,-$D57,0)+$D57,$E57-SUM($G57:X57),($E57-SUM($G57:X57))/(OFFSET(Y57,-$D57,0)-(Y$6-$D57-1)))) -> n/a | Z57: =IF(OFFSET(Z57,-$D57,0)="n/a","n/a",IF(Z$6>OFFSET(Z57,-$D57,0)+$D57,$E57-SUM($G57:Y57),($E57-SUM($G57:Y57))/(OFFSET(Z57,-$D57,0)-(Z$6-$D57-1)))) -> n/a | AA57: =IF(OFFSET(AA57,-$D57,0)="n/a","n/a",IF(AA$6>OFFSET(AA57,-$D57,0)+$D57,$E57-SUM($G57:Z57),($E57-SUM($G57:Z57))/(OFFSET(AA57,-$D57,0)-(AA$6-$D57-1)))) -> n/a | AB57: =IF(OFFSET(AB57,-$D57,0)="n/a","n/a",IF(AB$6>OFFSET(AB57,-$D57,0)+$D57,$E57-SUM($G57:AA57),($E57-SUM($G57:AA57))/(OFFSET(AB57,-$D57,0)-(AB$6-$D57-1)))) -> n/a | AC57: =IF(OFFSET(AC57,-$D57,0)="n/a","n/a",IF(AC$6>OFFSET(AC57,-$D57,0)+$D57,$E57-SUM($G57:AB57),($E57-SUM($G57:AB57))/(OFFSET(AC57,-$D57,0)-(AC$6-$D57-1)))) -> n/a | AD57: =IF(OFFSET(AD57,-$D57,0)="n/a","n/a",IF(AD$6>OFFSET(AD57,-$D57,0)+$D57,$E57-SUM($G57:AC57),($E57-SUM($G57:AC57))/(OFFSET(AD57,-$D57,0)-(AD$6-$D57-1)))) -> n/a | AE57: =IF(OFFSET(AE57,-$D57,0)="n/a","n/a",IF(AE$6>OFFSET(AE57,-$D57,0)+$D57,$E57-SUM($G57:AD57),($E57-SUM($G57:AD57))/(OFFSET(AE57,-$D57,0)-(AE$6-$D57-1)))) -> n/a | AF57: =IF(OFFSET(AF57,-$D57,0)="n/a","n/a",IF(AF$6>OFFSET(AF57,-$D57,0)+$D57,$E57-SUM($G57:AE57),($E57-SUM($G57:AE57))/(OFFSET(AF57,-$D57,0)-(AF$6-$D57-1)))) -> n/a | AG57: =IF(OFFSET(AG57,-$D57,0)="n/a","n/a",IF(AG$6>OFFSET(AG57,-$D57,0)+$D57,$E57-SUM($G57:AF57),($E57-SUM($G57:AF57))/(OFFSET(AG57,-$D57,0)-(AG$6-$D57-1)))) -> n/a | AH57: =IF(OFFSET(AH57,-$D57,0)="n/a","n/a",IF(AH$6>OFFSET(AH57,-$D57,0)+$D57,$E57-SUM($G57:AG57),($E57-SUM($G57:AG57))/(OFFSET(AH57,-$D57,0)-(AH$6-$D57-1)))) -> n/a | AI57: =IF(OFFSET(AI57,-$D57,0)="n/a","n/a",IF(AI$6>OFFSET(AI57,-$D57,0)+$D57,$E57-SUM($G57:AH57),($E57-SUM($G57:AH57))/(OFFSET(AI57,-$D57,0)-(AI$6-$D57-1)))) -> n/a | AJ57: =IF(OFFSET(AJ57,-$D57,0)="n/a","n/a",IF(AJ$6>OFFSET(AJ57,-$D57,0)+$D57,$E57-SUM($G57:AI57),($E57-SUM($G57:AI57))/(OFFSET(AJ57,-$D57,0)-(AJ$6-$D57-1)))) -> n/a | AK57: =IF(OFFSET(AK57,-$D57,0)="n/a","n/a",IF(AK$6>OFFSET(AK57,-$D57,0)+$D57,$E57-SUM($G57:AJ57),($E57-SUM($G57:AJ57))/(OFFSET(AK57,-$D57,0)-(AK$6-$D57-1)))) -> n/a | AL57: =IF(OFFSET(AL57,-$D57,0)="n/a","n/a",IF(AL$6>OFFSET(AL57,-$D57,0)+$D57,$E57-SUM($G57:AK57),($E57-SUM($G57:AK57))/(OFFSET(AL57,-$D57,0)-(AL$6-$D57-1)))) -> n/a
D58: 18 | E58: 0 | Y58: =IF(OFFSET(Y58,-$D58,0)="n/a","n/a",IF(Y$6>OFFSET(Y58,-$D58,0)+$D58,$E58-SUM($G58:X58),($E58-SUM($G58:X58))/(OFFSET(Y58,-$D58,0)-(Y$6-$D58-1)))) -> n/a | Z58: =IF(OFFSET(Z58,-$D58,0)="n/a","n/a",IF(Z$6>OFFSET(Z58,-$D58,0)+$D58,$E58-SUM($G58:Y58),($E58-SUM($G58:Y58))/(OFFSET(Z58,-$D58,0)-(Z$6-$D58-1)))) -> n/a | AA58: =IF(OFFSET(AA58,-$D58,0)="n/a","n/a",IF(AA$6>OFFSET(AA58,-$D58,0)+$D58,$E58-SUM($G58:Z58),($E58-SUM($G58:Z58))/(OFFSET(AA58,-$D58,0)-(AA$6-$D58-1)))) -> n/a | AB58: =IF(OFFSET(AB58,-$D58,0)="n/a","n/a",IF(AB$6>OFFSET(AB58,-$D58,0)+$D58,$E58-SUM($G58:AA58),($E58-SUM($G58:AA58))/(OFFSET(AB58,-$D58,0)-(AB$6-$D58-1)))) -> n/a | AC58: =IF(OFFSET(AC58,-$D58,0)="n/a","n/a",IF(AC$6>OFFSET(AC58,-$D58,0)+$D58,$E58-SUM($G58:AB58),($E58-SUM($G58:AB58))/(OFFSET(AC58,-$D58,0)-(AC$6-$D58-1)))) -> n/a | AD58: =IF(OFFSET(AD58,-$D58,0)="n/a","n/a",IF(AD$6>OFFSET(AD58,-$D58,0)+$D58,$E58-SUM($G58:AC58),($E58-SUM($G58:AC58))/(OFFSET(AD58,-$D58,0)-(AD$6-$D58-1)))) -> n/a | AE58: =IF(OFFSET(AE58,-$D58,0)="n/a","n/a",IF(AE$6>OFFSET(AE58,-$D58,0)+$D58,$E58-SUM($G58:AD58),($E58-SUM($G58:AD58))/(OFFSET(AE58,-$D58,0)-(AE$6-$D58-1)))) -> n/a | AF58: =IF(OFFSET(AF58,-$D58,0)="n/a","n/a",IF(AF$6>OFFSET(AF58,-$D58,0)+$D58,$E58-SUM($G58:AE58),($E58-SUM($G58:AE58))/(OFFSET(AF58,-$D58,0)-(AF$6-$D58-1)))) -> n/a | AG58: =IF(OFFSET(AG58,-$D58,0)="n/a","n/a",IF(AG$6>OFFSET(AG58,-$D58,0)+$D58,$E58-SUM($G58:AF58),($E58-SUM($G58:AF58))/(OFFSET(AG58,-$D58,0)-(AG$6-$D58-1)))) -> n/a | AH58: =IF(OFFSET(AH58,-$D58,0)="n/a","n/a",IF(AH$6>OFFSET(AH58,-$D58,0)+$D58,$E58-SUM($G58:AG58),($E58-SUM($G58:AG58))/(OFFSET(AH58,-$D58,0)-(AH$6-$D58-1)))) -> n/a | AI58: =IF(OFFSET(AI58,-$D58,0)="n/a","n/a",IF(AI$6>OFFSET(AI58,-$D58,0)+$D58,$E58-SUM($G58:AH58),($E58-SUM($G58:AH58))/(OFFSET(AI58,-$D58,0)-(AI$6-$D58-1)))) -> n/a | AJ58: =IF(OFFSET(AJ58,-$D58,0)="n/a","n/a",IF(AJ$6>OFFSET(AJ58,-$D58,0)+$D58,$E58-SUM($G58:AI58),($E58-SUM($G58:AI58))/(OFFSET(AJ58,-$D58,0)-(AJ$6-$D58-1)))) -> n/a | AK58: =IF(OFFSET(AK58,-$D58,0)="n/a","n/a",IF(AK$6>OFFSET(AK58,-$D58,0)+$D58,$E58-SUM($G58:AJ58),($E58-SUM($G58:AJ58))/(OFFSET(AK58,-$D58,0)-(AK$6-$D58-1)))) -> n/a | AL58: =IF(OFFSET(AL58,-$D58,0)="n/a","n/a",IF(AL$6>OFFSET(AL58,-$D58,0)+$D58,$E58-SUM($G58:AK58),($E58-SUM($G58:AK58))/(OFFSET(AL58,-$D58,0)-(AL$6-$D58-1)))) -> n/a
D59: 19 | E59: 0 | Z59: =IF(OFFSET(Z59,-$D59,0)="n/a","n/a",IF(Z$6>OFFSET(Z59,-$D59,0)+$D59,$E59-SUM($G59:Y59),($E59-SUM($G59:Y59))/(OFFSET(Z59,-$D59,0)-(Z$6-$D59-1)))) -> n/a | AA59: =IF(OFFSET(AA59,-$D59,0)="n/a","n/a",IF(AA$6>OFFSET(AA59,-$D59,0)+$D59,$E59-SUM($G59:Z59),($E59-SUM($G59:Z59))/(OFFSET(AA59,-$D59,0)-(AA$6-$D59-1)))) -> n/a | AB59: =IF(OFFSET(AB59,-$D59,0)="n/a","n/a",IF(AB$6>OFFSET(AB59,-$D59,0)+$D59,$E59-SUM($G59:AA59),($E59-SUM($G59:AA59))/(OFFSET(AB59,-$D59,0)-(AB$6-$D59-1)))) -> n/a | AC59: =IF(OFFSET(AC59,-$D59,0)="n/a","n/a",IF(AC$6>OFFSET(AC59,-$D59,0)+$D59,$E59-SUM($G59:AB59),($E59-SUM($G59:AB59))/(OFFSET(AC59,-$D59,0)-(AC$6-$D59-1)))) -> n/a | AD59: =IF(OFFSET(AD59,-$D59,0)="n/a","n/a",IF(AD$6>OFFSET(AD59,-$D59,0)+$D59,$E59-SUM($G59:AC59),($E59-SUM($G59:AC59))/(OFFSET(AD59,-$D59,0)-(AD$6-$D59-1)))) -> n/a | AE59: =IF(OFFSET(AE59,-$D59,0)="n/a","n/a",IF(AE$6>OFFSET(AE59,-$D59,0)+$D59,$E59-SUM($G59:AD59),($E59-SUM($G59:AD59))/(OFFSET(AE59,-$D59,0)-(AE$6-$D59-1)))) -> n/a | AF59: =IF(OFFSET(AF59,-$D59,0)="n/a","n/a",IF(AF$6>OFFSET(AF59,-$D59,0)+$D59,$E59-SUM($G59:AE59),($E59-SUM($G59:AE59))/(OFFSET(AF59,-$D59,0)-(AF$6-$D59-1)))) -> n/a | AG59: =IF(OFFSET(AG59,-$D59,0)="n/a","n/a",IF(AG$6>OFFSET(AG59,-$D59,0)+$D59,$E59-SUM($G59:AF59),($E59-SUM($G59:AF59))/(OFFSET(AG59,-$D59,0)-(AG$6-$D59-1)))) -> n/a | AH59: =IF(OFFSET(AH59,-$D59,0)="n/a","n/a",IF(AH$6>OFFSET(AH59,-$D59,0)+$D59,$E59-SUM($G59:AG59),($E59-SUM($G59:AG59))/(OFFSET(AH59,-$D59,0)-(AH$6-$D59-1)))) -> n/a | AI59: =IF(OFFSET(AI59,-$D59,0)="n/a","n/a",IF(AI$6>OFFSET(AI59,-$D59,0)+$D59,$E59-SUM($G59:AH59),($E59-SUM($G59:AH59))/(OFFSET(AI59,-$D59,0)-(AI$6-$D59-1)))) -> n/a | AJ59: =IF(OFFSET(AJ59,-$D59,0)="n/a","n/a",IF(AJ$6>OFFSET(AJ59,-$D59,0)+$D59,$E59-SUM($G59:AI59),($E59-SUM($G59:AI59))/(OFFSET(AJ59,-$D59,0)-(AJ$6-$D59-1)))) -> n/a | AK59: =IF(OFFSET(AK59,-$D59,0)="n/a","n/a",IF(AK$6>OFFSET(AK59,-$D59,0)+$D59,$E59-SUM($G59:AJ59),($E59-SUM($G59:AJ59))/(OFFSET(AK59,-$D59,0)-(AK$6-$D59-1)))) -> n/a | AL59: =IF(OFFSET(AL59,-$D59,0)="n/a","n/a",IF(AL$6>OFFSET(AL59,-$D59,0)+$D59,$E59-SUM($G59:AK59),($E59-SUM($G59:AK59))/(OFFSET(AL59,-$D59,0)-(AL$6-$D59-1)))) -> n/a
D60: 20 | E60: 0 | AA60: =IF(OFFSET(AA60,-$D60,0)="n/a","n/a",IF(AA$6>OFFSET(AA60,-$D60,0)+$D60,$E60-SUM($G60:Z60),($E60-SUM($G60:Z60))/(OFFSET(AA60,-$D60,0)-(AA$6-$D60-1)))) -> n/a | AB60: =IF(OFFSET(AB60,-$D60,0)="n/a","n/a",IF(AB$6>OFFSET(AB60,-$D60,0)+$D60,$E60-SUM($G60:AA60),($E60-SUM($G60:AA60))/(OFFSET(AB60,-$D60,0)-(AB$6-$D60-1)))) -> n/a | AC60: =IF(OFFSET(AC60,-$D60,0)="n/a","n/a",IF(AC$6>OFFSET(AC60,-$D60,0)+$D60,$E60-SUM($G60:AB60),($E60-SUM($G60:AB60))/(OFFSET(AC60,-$D60,0)-(AC$6-$D60-1)))) -> n/a | AD60: =IF(OFFSET(AD60,-$D60,0)="n/a","n/a",IF(AD$6>OFFSET(AD60,-$D60,0)+$D60,$E60-SUM($G60:AC60),($E60-SUM($G60:AC60))/(OFFSET(AD60,-$D60,0)-(AD$6-$D60-1)))) -> n/a | AE60: =IF(OFFSET(AE60,-$D60,0)="n/a","n/a",IF(AE$6>OFFSET(AE60,-$D60,0)+$D60,$E60-SUM($G60:AD60),($E60-SUM($G60:AD60))/(OFFSET(AE60,-$D60,0)-(AE$6-$D60-1)))) -> n/a | AF60: =IF(OFFSET(AF60,-$D60,0)="n/a","n/a",IF(AF$6>OFFSET(AF60,-$D60,0)+$D60,$E60-SUM($G60:AE60),($E60-SUM($G60:AE60))/(OFFSET(AF60,-$D60,0)-(AF$6-$D60-1)))) -> n/a | AG60: =IF(OFFSET(AG60,-$D60,0)="n/a","n/a",IF(AG$6>OFFSET(AG60,-$D60,0)+$D60,$E60-SUM($G60:AF60),($E60-SUM($G60:AF60))/(OFFSET(AG60,-$D60,0)-(AG$6-$D60-1)))) -> n/a | AH60: =IF(OFFSET(AH60,-$D60,0)="n/a","n/a",IF(AH$6>OFFSET(AH60,-$D60,0)+$D60,$E60-SUM($G60:AG60),($E60-SUM($G60:AG60))/(OFFSET(AH60,-$D60,0)-(AH$6-$D60-1)))) -> n/a | AI60: =IF(OFFSET(AI60,-$D60,0)="n/a","n/a",IF(AI$6>OFFSET(AI60,-$D60,0)+$D60,$E60-SUM($G60:AH60),($E60-SUM($G60:AH60))/(OFFSET(AI60,-$D60,0)-(AI$6-$D60-1)))) -> n/a | AJ60: =IF(OFFSET(AJ60,-$D60,0)="n/a","n/a",IF(AJ$6>OFFSET(AJ60,-$D60,0)+$D60,$E60-SUM($G60:AI60),($E60-SUM($G60:AI60))/(OFFSET(AJ60,-$D60,0)-(AJ$6-$D60-1)))) -> n/a | AK60: =IF(OFFSET(AK60,-$D60,0)="n/a","n/a",IF(AK$6>OFFSET(AK60,-$D60,0)+$D60,$E60-SUM($G60:AJ60),($E60-SUM($G60:AJ60))/(OFFSET(AK60,-$D60,0)-(AK$6-$D60-1)))) -> n/a | AL60: =IF(OFFSET(AL60,-$D60,0)="n/a","n/a",IF(AL$6>OFFSET(AL60,-$D60,0)+$D60,$E60-SUM($G60:AK60),($E60-SUM($G60:AK60))/(OFFSET(AL60,-$D60,0)-(AL$6-$D60-1)))) -> n/a
D61: 21 | E61: 0 | AB61: =IF(OFFSET(AB61,-$D61,0)="n/a","n/a",IF(AB$6>OFFSET(AB61,-$D61,0)+$D61,$E61-SUM($G61:AA61),($E61-SUM($G61:AA61))/(OFFSET(AB61,-$D61,0)-(AB$6-$D61-1)))) -> n/a | AC61: =IF(OFFSET(AC61,-$D61,0)="n/a","n/a",IF(AC$6>OFFSET(AC61,-$D61,0)+$D61,$E61-SUM($G61:AB61),($E61-SUM($G61:AB61))/(OFFSET(AC61,-$D61,0)-(AC$6-$D61-1)))) -> n/a | AD61: =IF(OFFSET(AD61,-$D61,0)="n/a","n/a",IF(AD$6>OFFSET(AD61,-$D61,0)+$D61,$E61-SUM($G61:AC61),($E61-SUM($G61:AC61))/(OFFSET(AD61,-$D61,0)-(AD$6-$D61-1)))) -> n/a | AE61: =IF(OFFSET(AE61,-$D61,0)="n/a","n/a",IF(AE$6>OFFSET(AE61,-$D61,0)+$D61,$E61-SUM($G61:AD61),($E61-SUM($G61:AD61))/(OFFSET(AE61,-$D61,0)-(AE$6-$D61-1)))) -> n/a | AF61: =IF(OFFSET(AF61,-$D61,0)="n/a","n/a",IF(AF$6>OFFSET(AF61,-$D61,0)+$D61,$E61-SUM($G61:AE61),($E61-SUM($G61:AE61))/(OFFSET(AF61,-$D61,0)-(AF$6-$D61-1)))) -> n/a | AG61: =IF(OFFSET(AG61,-$D61,0)="n/a","n/a",IF(AG$6>OFFSET(AG61,-$D61,0)+$D61,$E61-SUM($G61:AF61),($E61-SUM($G61:AF61))/(OFFSET(AG61,-$D61,0)-(AG$6-$D61-1)))) -> n/a | AH61: =IF(OFFSET(AH61,-$D61,0)="n/a","n/a",IF(AH$6>OFFSET(AH61,-$D61,0)+$D61,$E61-SUM($G61:AG61),($E61-SUM($G61:AG61))/(OFFSET(AH61,-$D61,0)-(AH$6-$D61-1)))) -> n/a | AI61: =IF(OFFSET(AI61,-$D61,0)="n/a","n/a",IF(AI$6>OFFSET(AI61,-$D61,0)+$D61,$E61-SUM($G61:AH61),($E61-SUM($G61:AH61))/(OFFSET(AI61,-$D61,0)-(AI$6-$D61-1)))) -> n/a | AJ61: =IF(OFFSET(AJ61,-$D61,0)="n/a","n/a",IF(AJ$6>OFFSET(AJ61,-$D61,0)+$D61,$E61-SUM($G61:AI61),($E61-SUM($G61:AI61))/(OFFSET(AJ61,-$D61,0)-(AJ$6-$D61-1)))) -> n/a | AK61: =IF(OFFSET(AK61,-$D61,0)="n/a","n/a",IF(AK$6>OFFSET(AK61,-$D61,0)+$D61,$E61-SUM($G61:AJ61),($E61-SUM($G61:AJ61))/(OFFSET(AK61,-$D61,0)-(AK$6-$D61-1)))) -> n/a | AL61: =IF(OFFSET(AL61,-$D61,0)="n/a","n/a",IF(AL$6>OFFSET(AL61,-$D61,0)+$D61,$E61-SUM($G61:AK61),($E61-SUM($G61:AK61))/(OFFSET(AL61,-$D61,0)-(AL$6-$D61-1)))) -> n/a
D62: 22 | E62: 0 | AC62: =IF(OFFSET(AC62,-$D62,0)="n/a","n/a",IF(AC$6>OFFSET(AC62,-$D62,0)+$D62,$E62-SUM($G62:AB62),($E62-SUM($G62:AB62))/(OFFSET(AC62,-$D62,0)-(AC$6-$D62-1)))) -> n/a | AD62: =IF(OFFSET(AD62,-$D62,0)="n/a","n/a",IF(AD$6>OFFSET(AD62,-$D62,0)+$D62,$E62-SUM($G62:AC62),($E62-SUM($G62:AC62))/(OFFSET(AD62,-$D62,0)-(AD$6-$D62-1)))) -> n/a | AE62: =IF(OFFSET(AE62,-$D62,0)="n/a","n/a",IF(AE$6>OFFSET(AE62,-$D62,0)+$D62,$E62-SUM($G62:AD62),($E62-SUM($G62:AD62))/(OFFSET(AE62,-$D62,0)-(AE$6-$D62-1)))) -> n/a | AF62: =IF(OFFSET(AF62,-$D62,0)="n/a","n/a",IF(AF$6>OFFSET(AF62,-$D62,0)+$D62,$E62-SUM($G62:AE62),($E62-SUM($G62:AE62))/(OFFSET(AF62,-$D62,0)-(AF$6-$D62-1)))) -> n/a | AG62: =IF(OFFSET(AG62,-$D62,0)="n/a","n/a",IF(AG$6>OFFSET(AG62,-$D62,0)+$D62,$E62-SUM($G62:AF62),($E62-SUM($G62:AF62))/(OFFSET(AG62,-$D62,0)-(AG$6-$D62-1)))) -> n/a | AH62: =IF(OFFSET(AH62,-$D62,0)="n/a","n/a",IF(AH$6>OFFSET(AH62,-$D62,0)+$D62,$E62-SUM($G62:AG62),($E62-SUM($G62:AG62))/(OFFSET(AH62,-$D62,0)-(AH$6-$D62-1)))) -> n/a | AI62: =IF(OFFSET(AI62,-$D62,0)="n/a","n/a",IF(AI$6>OFFSET(AI62,-$D62,0)+$D62,$E62-SUM($G62:AH62),($E62-SUM($G62:AH62))/(OFFSET(AI62,-$D62,0)-(AI$6-$D62-1)))) -> n/a | AJ62: =IF(OFFSET(AJ62,-$D62,0)="n/a","n/a",IF(AJ$6>OFFSET(AJ62,-$D62,0)+$D62,$E62-SUM($G62:AI62),($E62-SUM($G62:AI62))/(OFFSET(AJ62,-$D62,0)-(AJ$6-$D62-1)))) -> n/a | AK62: =IF(OFFSET(AK62,-$D62,0)="n/a","n/a",IF(AK$6>OFFSET(AK62,-$D62,0)+$D62,$E62-SUM($G62:AJ62),($E62-SUM($G62:AJ62))/(OFFSET(AK62,-$D62,0)-(AK$6-$D62-1)))) -> n/a | AL62: =IF(OFFSET(AL62,-$D62,0)="n/a","n/a",IF(AL$6>OFFSET(AL62,-$D62,0)+$D62,$E62-SUM($G62:AK62),($E62-SUM($G62:AK62))/(OFFSET(AL62,-$D62,0)-(AL$6-$D62-1)))) -> n/a
D63: 23 | E63: 0 | AD63: =IF(OFFSET(AD63,-$D63,0)="n/a","n/a",IF(AD$6>OFFSET(AD63,-$D63,0)+$D63,$E63-SUM($G63:AC63),($E63-SUM($G63:AC63))/(OFFSET(AD63,-$D63,0)-(AD$6-$D63-1)))) -> n/a | AE63: =IF(OFFSET(AE63,-$D63,0)="n/a","n/a",IF(AE$6>OFFSET(AE63,-$D63,0)+$D63,$E63-SUM($G63:AD63),($E63-SUM($G63:AD63))/(OFFSET(AE63,-$D63,0)-(AE$6-$D63-1)))) -> n/a | AF63: =IF(OFFSET(AF63,-$D63,0)="n/a","n/a",IF(AF$6>OFFSET(AF63,-$D63,0)+$D63,$E63-SUM($G63:AE63),($E63-SUM($G63:AE63))/(OFFSET(AF63,-$D63,0)-(AF$6-$D63-1)))) -> n/a | AG63: =IF(OFFSET(AG63,-$D63,0)="n/a","n/a",IF(AG$6>OFFSET(AG63,-$D63,0)+$D63,$E63-SUM($G63:AF63),($E63-SUM($G63:AF63))/(OFFSET(AG63,-$D63,0)-(AG$6-$D63-1)))) -> n/a | AH63: =IF(OFFSET(AH63,-$D63,0)="n/a","n/a",IF(AH$6>OFFSET(AH63,-$D63,0)+$D63,$E63-SUM($G63:AG63),($E63-SUM($G63:AG63))/(OFFSET(AH63,-$D63,0)-(AH$6-$D63-1)))) -> n/a | AI63: =IF(OFFSET(AI63,-$D63,0)="n/a","n/a",IF(AI$6>OFFSET(AI63,-$D63,0)+$D63,$E63-SUM($G63:AH63),($E63-SUM($G63:AH63))/(OFFSET(AI63,-$D63,0)-(AI$6-$D63-1)))) -> n/a | AJ63: =IF(OFFSET(AJ63,-$D63,0)="n/a","n/a",IF(AJ$6>OFFSET(AJ63,-$D63,0)+$D63,$E63-SUM($G63:AI63),($E63-SUM($G63:AI63))/(OFFSET(AJ63,-$D63,0)-(AJ$6-$D63-1)))) -> n/a | AK63: =IF(OFFSET(AK63,-$D63,0)="n/a","n/a",IF(AK$6>OFFSET(AK63,-$D63,0)+$D63,$E63-SUM($G63:AJ63),($E63-SUM($G63:AJ63))/(OFFSET(AK63,-$D63,0)-(AK$6-$D63-1)))) -> n/a | AL63: =IF(OFFSET(AL63,-$D63,0)="n/a","n/a",IF(AL$6>OFFSET(AL63,-$D63,0)+$D63,$E63-SUM($G63:AK63),($E63-SUM($G63:AK63))/(OFFSET(AL63,-$D63,0)-(AL$6-$D63-1)))) -> n/a
D64: 24 | E64: 0 | AE64: =IF(OFFSET(AE64,-$D64,0)="n/a","n/a",IF(AE$6>OFFSET(AE64,-$D64,0)+$D64,$E64-SUM($G64:AD64),($E64-SUM($G64:AD64))/(OFFSET(AE64,-$D64,0)-(AE$6-$D64-1)))) -> n/a | AF64: =IF(OFFSET(AF64,-$D64,0)="n/a","n/a",IF(AF$6>OFFSET(AF64,-$D64,0)+$D64,$E64-SUM($G64:AE64),($E64-SUM($G64:AE64))/(OFFSET(AF64,-$D64,0)-(AF$6-$D64-1)))) -> n/a | AG64: =IF(OFFSET(AG64,-$D64,0)="n/a","n/a",IF(AG$6>OFFSET(AG64,-$D64,0)+$D64,$E64-SUM($G64:AF64),($E64-SUM($G64:AF64))/(OFFSET(AG64,-$D64,0)-(AG$6-$D64-1)))) -> n/a | AH64: =IF(OFFSET(AH64,-$D64,0)="n/a","n/a",IF(AH$6>OFFSET(AH64,-$D64,0)+$D64,$E64-SUM($G64:AG64),($E64-SUM($G64:AG64))/(OFFSET(AH64,-$D64,0)-(AH$6-$D64-1)))) -> n/a | AI64: =IF(OFFSET(AI64,-$D64,0)="n/a","n/a",IF(AI$6>OFFSET(AI64,-$D64,0)+$D64,$E64-SUM($G64:AH64),($E64-SUM($G64:AH64))/(OFFSET(AI64,-$D64,0)-(AI$6-$D64-1)))) -> n/a | AJ64: =IF(OFFSET(AJ64,-$D64,0)="n/a","n/a",IF(AJ$6>OFFSET(AJ64,-$D64,0)+$D64,$E64-SUM($G64:AI64),($E64-SUM($G64:AI64))/(OFFSET(AJ64,-$D64,0)-(AJ$6-$D64-1)))) -> n/a | AK64: =IF(OFFSET(AK64,-$D64,0)="n/a","n/a",IF(AK$6>OFFSET(AK64,-$D64,0)+$D64,$E64-SUM($G64:AJ64),($E64-SUM($G64:AJ64))/(OFFSET(AK64,-$D64,0)-(AK$6-$D64-1)))) -> n/a | AL64: =IF(OFFSET(AL64,-$D64,0)="n/a","n/a",IF(AL$6>OFFSET(AL64,-$D64,0)+$D64,$E64-SUM($G64:AK64),($E64-SUM($G64:AK64))/(OFFSET(AL64,-$D64,0)-(AL$6-$D64-1)))) -> n/a
D65: 25 | E65: 0 | AF65: =IF(OFFSET(AF65,-$D65,0)="n/a","n/a",IF(AF$6>OFFSET(AF65,-$D65,0)+$D65,$E65-SUM($G65:AE65),($E65-SUM($G65:AE65))/(OFFSET(AF65,-$D65,0)-(AF$6-$D65-1)))) -> n/a | AG65: =IF(OFFSET(AG65,-$D65,0)="n/a","n/a",IF(AG$6>OFFSET(AG65,-$D65,0)+$D65,$E65-SUM($G65:AF65),($E65-SUM($G65:AF65))/(OFFSET(AG65,-$D65,0)-(AG$6-$D65-1)))) -> n/a | AH65: =IF(OFFSET(AH65,-$D65,0)="n/a","n/a",IF(AH$6>OFFSET(AH65,-$D65,0)+$D65,$E65-SUM($G65:AG65),($E65-SUM($G65:AG65))/(OFFSET(AH65,-$D65,0)-(AH$6-$D65-1)))) -> n/a | AI65: =IF(OFFSET(AI65,-$D65,0)="n/a","n/a",IF(AI$6>OFFSET(AI65,-$D65,0)+$D65,$E65-SUM($G65:AH65),($E65-SUM($G65:AH65))/(OFFSET(AI65,-$D65,0)-(AI$6-$D65-1)))) -> n/a | AJ65: =IF(OFFSET(AJ65,-$D65,0)="n/a","n/a",IF(AJ$6>OFFSET(AJ65,-$D65,0)+$D65,$E65-SUM($G65:AI65),($E65-SUM($G65:AI65))/(OFFSET(AJ65,-$D65,0)-(AJ$6-$D65-1)))) -> n/a | AK65: =IF(OFFSET(AK65,-$D65,0)="n/a","n/a",IF(AK$6>OFFSET(AK65,-$D65,0)+$D65,$E65-SUM($G65:AJ65),($E65-SUM($G65:AJ65))/(OFFSET(AK65,-$D65,0)-(AK$6-$D65-1)))) -> n/a | AL65: =IF(OFFSET(AL65,-$D65,0)="n/a","n/a",IF(AL$6>OFFSET(AL65,-$D65,0)+$D65,$E65-SUM($G65:AK65),($E65-SUM($G65:AK65))/(OFFSET(AL65,-$D65,0)-(AL$6-$D65-1)))) -> n/a
D66: 26 | E66: 0 | AG66: =IF(OFFSET(AG66,-$D66,0)="n/a","n/a",IF(AG$6>OFFSET(AG66,-$D66,0)+$D66,$E66-SUM($G66:AF66),($E66-SUM($G66:AF66))/(OFFSET(AG66,-$D66,0)-(AG$6-$D66-1)))) -> n/a | AH66: =IF(OFFSET(AH66,-$D66,0)="n/a","n/a",IF(AH$6>OFFSET(AH66,-$D66,0)+$D66,$E66-SUM($G66:AG66),($E66-SUM($G66:AG66))/(OFFSET(AH66,-$D66,0)-(AH$6-$D66-1)))) -> n/a | AI66: =IF(OFFSET(AI66,-$D66,0)="n/a","n/a",IF(AI$6>OFFSET(AI66,-$D66,0)+$D66,$E66-SUM($G66:AH66),($E66-SUM($G66:AH66))/(OFFSET(AI66,-$D66,0)-(AI$6-$D66-1)))) -> n/a | AJ66: =IF(OFFSET(AJ66,-$D66,0)="n/a","n/a",IF(AJ$6>OFFSET(AJ66,-$D66,0)+$D66,$E66-SUM($G66:AI66),($E66-SUM($G66:AI66))/(OFFSET(AJ66,-$D66,0)-(AJ$6-$D66-1)))) -> n/a | AK66: =IF(OFFSET(AK66,-$D66,0)="n/a","n/a",IF(AK$6>OFFSET(AK66,-$D66,0)+$D66,$E66-SUM($G66:AJ66),($E66-SUM($G66:AJ66))/(OFFSET(AK66,-$D66,0)-(AK$6-$D66-1)))) -> n/a | AL66: =IF(OFFSET(AL66,-$D66,0)="n/a","n/a",IF(AL$6>OFFSET(AL66,-$D66,0)+$D66,$E66-SUM($G66:AK66),($E66-SUM($G66:AK66))/(OFFSET(AL66,-$D66,0)-(AL$6-$D66-1)))) -> n/a
D67: 27 | E67: 0 | AH67: =IF(OFFSET(AH67,-$D67,0)="n/a","n/a",IF(AH$6>OFFSET(AH67,-$D67,0)+$D67,$E67-SUM($G67:AG67),($E67-SUM($G67:AG67))/(OFFSET(AH67,-$D67,0)-(AH$6-$D67-1)))) -> n/a | AI67: =IF(OFFSET(AI67,-$D67,0)="n/a","n/a",IF(AI$6>OFFSET(AI67,-$D67,0)+$D67,$E67-SUM($G67:AH67),($E67-SUM($G67:AH67))/(OFFSET(AI67,-$D67,0)-(AI$6-$D67-1)))) -> n/a | AJ67: =IF(OFFSET(AJ67,-$D67,0)="n/a","n/a",IF(AJ$6>OFFSET(AJ67,-$D67,0)+$D67,$E67-SUM($G67:AI67),($E67-SUM($G67:AI67))/(OFFSET(AJ67,-$D67,0)-(AJ$6-$D67-1)))) -> n/a | AK67: =IF(OFFSET(AK67,-$D67,0)="n/a","n/a",IF(AK$6>OFFSET(AK67,-$D67,0)+$D67,$E67-SUM($G67:AJ67),($E67-SUM($G67:AJ67))/(OFFSET(AK67,-$D67,0)-(AK$6-$D67-1)))) -> n/a | AL67: =IF(OFFSET(AL67,-$D67,0)="n/a","n/a",IF(AL$6>OFFSET(AL67,-$D67,0)+$D67,$E67-SUM($G67:AK67),($E67-SUM($G67:AK67))/(OFFSET(AL67,-$D67,0)-(AL$6-$D67-1)))) -> n/a
D68: 28 | E68: 0 | AI68: =IF(OFFSET(AI68,-$D68,0)="n/a","n/a",IF(AI$6>OFFSET(AI68,-$D68,0)+$D68,$E68-SUM($G68:AH68),($E68-SUM($G68:AH68))/(OFFSET(AI68,-$D68,0)-(AI$6-$D68-1)))) -> n/a | AJ68: =IF(OFFSET(AJ68,-$D68,0)="n/a","n/a",IF(AJ$6>OFFSET(AJ68,-$D68,0)+$D68,$E68-SUM($G68:AI68),($E68-SUM($G68:AI68))/(OFFSET(AJ68,-$D68,0)-(AJ$6-$D68-1)))) -> n/a | AK68: =IF(OFFSET(AK68,-$D68,0)="n/a","n/a",IF(AK$6>OFFSET(AK68,-$D68,0)+$D68,$E68-SUM($G68:AJ68),($E68-SUM($G68:AJ68))/(OFFSET(AK68,-$D68,0)-(AK$6-$D68-1)))) -> n/a | AL68: =IF(OFFSET(AL68,-$D68,0)="n/a","n/a",IF(AL$6>OFFSET(AL68,-$D68,0)+$D68,$E68-SUM($G68:AK68),($E68-SUM($G68:AK68))/(OFFSET(AL68,-$D68,0)-(AL$6-$D68-1)))) -> n/a
D69: 29 | E69: 0 | AJ69: =IF(OFFSET(AJ69,-$D69,0)="n/a","n/a",IF(AJ$6>OFFSET(AJ69,-$D69,0)+$D69,$E69-SUM($G69:AI69),($E69-SUM($G69:AI69))/(OFFSET(AJ69,-$D69,0)-(AJ$6-$D69-1)))) -> n/a | AK69: =IF(OFFSET(AK69,-$D69,0)="n/a","n/a",IF(AK$6>OFFSET(AK69,-$D69,0)+$D69,$E69-SUM($G69:AJ69),($E69-SUM($G69:AJ69))/(OFFSET(AK69,-$D69,0)-(AK$6-$D69-1)))) -> n/a | AL69: =IF(OFFSET(AL69,-$D69,0)="n/a","n/a",IF(AL$6>OFFSET(AL69,-$D69,0)+$D69,$E69-SUM($G69:AK69),($E69-SUM($G69:AK69))/(OFFSET(AL69,-$D69,0)-(AL$6-$D69-1)))) -> n/a
D70: 30 | E70: 0 | AK70: =IF(OFFSET(AK70,-$D70,0)="n/a","n/a",IF(AK$6>OFFSET(AK70,-$D70,0)+$D70,$E70-SUM($G70:AJ70),($E70-SUM($G70:AJ70))/(OFFSET(AK70,-$D70,0)-(AK$6-$D70-1)))) -> n/a | AL70: =IF(OFFSET(AL70,-$D70,0)="n/a","n/a",IF(AL$6>OFFSET(AL70,-$D70,0)+$D70,$E70-SUM($G70:AK70),($E70-SUM($G70:AK70))/(OFFSET(AL70,-$D70,0)-(AL$6-$D70-1)))) -> n/a
D71: 31 | E71: 0 | AL71: =IF(OFFSET(AL71,-$D71,0)="n/a","n/a",IF(AL$6>OFFSET(AL71,-$D71,0)+$D71,$E71-SUM($G71:AK71),($E71-SUM($G71:AK71))/(OFFSET(AL71,-$D71,0)-(AL$6-$D71-1)))) -> n/a
D72: 32 | E72: 0
B73: =B39 -> 1 | C73: =C39 -> Land | F73: Asset Real Straight Line Depreciation | G73: =SUM(G41:G72) -> 0 | H73: =SUM(H41:H72) -> 0 | I73: =SUM(I41:I72) -> 0 | J73: 0 | K73: 0 | L73: 0 | M73: 0 | N73: 0 | O73: 0 | P73: 0 | Q73: 0 | R73: 0 | S73: 0 | T73: 0 | U73: 0 | V73: 0 | W73: 0 | X73: 0 | Y73: 0 | Z73: 0 | AA73: 0 | AB73: 0 | AC73: 0 | AD73: 0 | AE73: 0 | AF73: 0 | AG73: 0 | AH73: 0 | AI73: 0 | AJ73: 0 | AK73: 0 | AL73: 0
A74: =A39+1 -> 2 | B74: =OFFSET($B$13,$A74-1,0) -> 2 | C74: =OFFSET($C$13,$A74-1,0) -> Transmission | F74: Net Real Capex | G74: =VLOOKUP($B74,$B$13:$AL$22,5+G$6,FALSE) -> 0 | H74: 0 | I74: 0 | J74: 16780.61857 | K74: 379.1426391 | L74: 0 | M74: 0 | N74: 0 | O74: -3.563760096e-12 | P74: 0 | Q74: 0.001236114979 | R74: 0 | S74: 0 | T74: 0 | U74: 0 | V74: 0 | W74: 0 | X74: 0 | Y74: 0 | Z74: 0 | AA74: 0 | AB74: 0 | AC74: 0 | AD74: 0 | AE74: 0 | AF74: 0 | AG74: 0 | AH74: 0 | AI74: 0 | AJ74: 0 | AK74: 0 | AL74: 0
F75: Asset lifetime | G75: 40 | H75: 40 | I75: 40 | J75: 40 | K75: 40 | L75: 40 | M75: 40 | N75: 40 | O75: 40 | P75: 40 | Q75: 40 | R75: 40 | S75: 40 | T75: 40 | U75: 40 | V75: 40 | W75: 40 | X75: 40 | Y75: 40 | Z75: 40 | AA75: 40 | AB75: 40 | AC75: 40 | AD75: 40 | AE75: 40 | AF75: 40 | AG75: 40 | AH75: 40 | AI75: 40 | AJ75: 40 | AK75: 40 | AL75: 40
C76: Net Real Capex in Spreadsheet Year | D76: 1 | E76: =TRANSPOSE(G74:AL74) -> 0 | H76: =IF(OFFSET(H76,-$D76,0)="n/a","n/a",IF(H$6>OFFSET(H76,-$D76,0)+$D76,$E76-SUM($G76:G76),($E76-SUM($G76:G76))/(OFFSET(H76,-$D76,0)-(H$6-$D76-1)))) -> 0 | I76: =IF(OFFSET(I76,-$D76,0)="n/a","n/a",IF(I$6>OFFSET(I76,-$D76,0)+$D76,$E76-SUM($G76:H76),($E76-SUM($G76:H76))/(OFFSET(I76,-$D76,0)-(I$6-$D76-1)))) -> 0 | J76: =IF(OFFSET(J76,-$D76,0)="n/a","n/a",IF(J$6>OFFSET(J76,-$D76,0)+$D76,$E76-SUM($G76:I76),($E76-SUM($G76:I76))/(OFFSET(J76,-$D76,0)-(J$6-$D76-1)))) -> 0 | K76: =IF(OFFSET(K76,-$D76,0)="n/a","n/a",IF(K$6>OFFSET(K76,-$D76,0)+$D76,$E76-SUM($G76:J76),($E76-SUM($G76:J76))/(OFFSET(K76,-$D76,0)-(K$6-$D76-1)))) -> 0 | L76: =IF(OFFSET(L76,-$D76,0)="n/a","n/a",IF(L$6>OFFSET(L76,-$D76,0)+$D76,$E76-SUM($G76:K76),($E76-SUM($G76:K76))/(OFFSET(L76,-$D76,0)-(L$6-$D76-1)))) -> 0 | M76: =IF(OFFSET(M76,-$D76,0)="n/a","n/a",IF(M$6>OFFSET(M76,-$D76,0)+$D76,$E76-SUM($G76:L76),($E76-SUM($G76:L76))/(OFFSET(M76,-$D76,0)-(M$6-$D76-1)))) -> 0 | N76: =IF(OFFSET(N76,-$D76,0)="n/a","n/a",IF(N$6>OFFSET(N76,-$D76,0)+$D76,$E76-SUM($G76:M76),($E76-SUM($G76:M76))/(OFFSET(N76,-$D76,0)-(N$6-$D76-1)))) -> 0 | O76: =IF(OFFSET(O76,-$D76,0)="n/a","n/a",IF(O$6>OFFSET(O76,-$D76,0)+$D76,$E76-SUM($G76:N76),($E76-SUM($G76:N76))/(OFFSET(O76,-$D76,0)-(O$6-$D76-1)))) -> 0 | P76: =IF(OFFSET(P76,-$D76,0)="n/a","n/a",IF(P$6>OFFSET(P76,-$D76,0)+$D76,$E76-SUM($G76:O76),($E76-SUM($G76:O76))/(OFFSET(P76,-$D76,0)-(P$6-$D76-1)))) -> 0 | Q76: =IF(OFFSET(Q76,-$D76,0)="n/a","n/a",IF(Q$6>OFFSET(Q76,-$D76,0)+$D76,$E76-SUM($G76:P76),($E76-SUM($G76:P76))/(OFFSET(Q76,-$D76,0)-(Q$6-$D76-1)))) -> 0 | R76: =IF(OFFSET(R76,-$D76,0)="n/a","n/a",IF(R$6>OFFSET(R76,-$D76,0)+$D76,$E76-SUM($G76:Q76),($E76-SUM($G76:Q76))/(OFFSET(R76,-$D76,0)-(R$6-$D76-1)))) -> 0 | S76: =IF(OFFSET(S76,-$D76,0)="n/a","n/a",IF(S$6>OFFSET(S76,-$D76,0)+$D76,$E76-SUM($G76:R76),($E76-SUM($G76:R76))/(OFFSET(S76,-$D76,0)-(S$6-$D76-1)))) -> 0 | T76: =IF(OFFSET(T76,-$D76,0)="n/a","n/a",IF(T$6>OFFSET(T76,-$D76,0)+$D76,$E76-SUM($G76:S76),($E76-SUM($G76:S76))/(OFFSET(T76,-$D76,0)-(T$6-$D76-1)))) -> 0 | U76: =IF(OFFSET(U76,-$D76,0)="n/a","n/a",IF(U$6>OFFSET(U76,-$D76,0)+$D76,$E76-SUM($G76:T76),($E76-SUM($G76:T76))/(OFFSET(U76,-$D76,0)-(U$6-$D76-1)))) -> 0 | V76: =IF(OFFSET(V76,-$D76,0)="n/a","n/a",IF(V$6>OFFSET(V76,-$D76,0)+$D76,$E76-SUM($G76:U76),($E76-SUM($G76:U76))/(OFFSET(V76,-$D76,0)-(V$6-$D76-1)))) -> 0 | W76: =IF(OFFSET(W76,-$D76,0)="n/a","n/a",IF(W$6>OFFSET(W76,-$D76,0)+$D76,$E76-SUM($G76:V76),($E76-SUM($G76:V76))/(OFFSET(W76,-$D76,0)-(W$6-$D76-1)))) -> 0 | X76: =IF(OFFSET(X76,-$D76,0)="n/a","n/a",IF(X$6>OFFSET(X76,-$D76,0)+$D76,$E76-SUM($G76:W76),($E76-SUM($G76:W76))/(OFFSET(X76,-$D76,0)-(X$6-$D76-1)))) -> 0 | Y76: =IF(OFFSET(Y76,-$D76,0)="n/a","n/a",IF(Y$6>OFFSET(Y76,-$D76,0)+$D76,$E76-SUM($G76:X76),($E76-SUM($G76:X76))/(OFFSET(Y76,-$D76,0)-(Y$6-$D76-1)))) -> 0 | Z76: =IF(OFFSET(Z76,-$D76,0)="n/a","n/a",IF(Z$6>OFFSET(Z76,-$D76,0)+$D76,$E76-SUM($G76:Y76),($E76-SUM($G76:Y76))/(OFFSET(Z76,-$D76,0)-(Z$6-$D76-1)))) -> 0 | AA76: =IF(OFFSET(AA76,-$D76,0)="n/a","n/a",IF(AA$6>OFFSET(AA76,-$D76,0)+$D76,$E76-SUM($G76:Z76),($E76-SUM($G76:Z76))/(OFFSET(AA76,-$D76,0)-(AA$6-$D76-1)))) -> 0 | AB76: =IF(OFFSET(AB76,-$D76,0)="n/a","n/a",IF(AB$6>OFFSET(AB76,-$D76,0)+$D76,$E76-SUM($G76:AA76),($E76-SUM($G76:AA76))/(OFFSET(AB76,-$D76,0)-(AB$6-$D76-1)))) -> 0 | AC76: =IF(OFFSET(AC76,-$D76,0)="n/a","n/a",IF(AC$6>OFFSET(AC76,-$D76,0)+$D76,$E76-SUM($G76:AB76),($E76-SUM($G76:AB76))/(OFFSET(AC76,-$D76,0)-(AC$6-$D76-1)))) -> 0 | AD76: =IF(OFFSET(AD76,-$D76,0)="n/a","n/a",IF(AD$6>OFFSET(AD76,-$D76,0)+$D76,$E76-SUM($G76:AC76),($E76-SUM($G76:AC76))/(OFFSET(AD76,-$D76,0)-(AD$6-$D76-1)))) -> 0 | AE76: =IF(OFFSET(AE76,-$D76,0)="n/a","n/a",IF(AE$6>OFFSET(AE76,-$D76,0)+$D76,$E76-SUM($G76:AD76),($E76-SUM($G76:AD76))/(OFFSET(AE76,-$D76,0)-(AE$6-$D76-1)))) -> 0 | AF76: =IF(OFFSET(AF76,-$D76,0)="n/a","n/a",IF(AF$6>OFFSET(AF76,-$D76,0)+$D76,$E76-SUM($G76:AE76),($E76-SUM($G76:AE76))/(OFFSET(AF76,-$D76,0)-(AF$6-$D76-1)))) -> 0 | AG76: =IF(OFFSET(AG76,-$D76,0)="n/a","n/a",IF(AG$6>OFFSET(AG76,-$D76,0)+$D76,$E76-SUM($G76:AF76),($E76-SUM($G76:AF76))/(OFFSET(AG76,-$D76,0)-(AG$6-$D76-1)))) -> 0 | AH76: =IF(OFFSET(AH76,-$D76,0)="n/a","n/a",IF(AH$6>OFFSET(AH76,-$D76,0)+$D76,$E76-SUM($G76:AG76),($E76-SUM($G76:AG76))/(OFFSET(AH76,-$D76,0)-(AH$6-$D76-1)))) -> 0 | AI76: =IF(OFFSET(AI76,-$D76,0)="n/a","n/a",IF(AI$6>OFFSET(AI76,-$D76,0)+$D76,$E76-SUM($G76:AH76),($E76-SUM($G76:AH76))/(OFFSET(AI76,-$D76,0)-(AI$6-$D76-1)))) -> 0 | AJ76: =IF(OFFSET(AJ76,-$D76,0)="n/a","n/a",IF(AJ$6>OFFSET(AJ76,-$D76,0)+$D76,$E76-SUM($G76:AI76),($E76-SUM($G76:AI76))/(OFFSET(AJ76,-$D76,0)-(AJ$6-$D76-1)))) -> 0 | AK76: =IF(OFFSET(AK76,-$D76,0)="n/a","n/a",IF(AK$6>OFFSET(AK76,-$D76,0)+$D76,$E76-SUM($G76:AJ76),($E76-SUM($G76:AJ76))/(OFFSET(AK76,-$D76,0)-(AK$6-$D76-1)))) -> 0 | AL76: =IF(OFFSET(AL76,-$D76,0)="n/a","n/a",IF(AL$6>OFFSET(AL76,-$D76,0)+$D76,$E76-SUM($G76:AK76),($E76-SUM($G76:AK76))/(OFFSET(AL76,-$D76,0)-(AL$6-$D76-1)))) -> 0
D77: 2 | E77: 0 | I77: =IF(OFFSET(I77,-$D77,0)="n/a","n/a",IF(I$6>OFFSET(I77,-$D77,0)+$D77,$E77-SUM($G77:H77),($E77-SUM($G77:H77))/(OFFSET(I77,-$D77,0)-(I$6-$D77-1)))) -> 0 | J77: =IF(OFFSET(J77,-$D77,0)="n/a","n/a",IF(J$6>OFFSET(J77,-$D77,0)+$D77,$E77-SUM($G77:I77),($E77-SUM($G77:I77))/(OFFSET(J77,-$D77,0)-(J$6-$D77-1)))) -> 0 | K77: =IF(OFFSET(K77,-$D77,0)="n/a","n/a",IF(K$6>OFFSET(K77,-$D77,0)+$D77,$E77-SUM($G77:J77),($E77-SUM($G77:J77))/(OFFSET(K77,-$D77,0)-(K$6-$D77-1)))) -> 0 | L77: =IF(OFFSET(L77,-$D77,0)="n/a","n/a",IF(L$6>OFFSET(L77,-$D77,0)+$D77,$E77-SUM($G77:K77),($E77-SUM($G77:K77))/(OFFSET(L77,-$D77,0)-(L$6-$D77-1)))) -> 0 | M77: =IF(OFFSET(M77,-$D77,0)="n/a","n/a",IF(M$6>OFFSET(M77,-$D77,0)+$D77,$E77-SUM($G77:L77),($E77-SUM($G77:L77))/(OFFSET(M77,-$D77,0)-(M$6-$D77-1)))) -> 0 | N77: =IF(OFFSET(N77,-$D77,0)="n/a","n/a",IF(N$6>OFFSET(N77,-$D77,0)+$D77,$E77-SUM($G77:M77),($E77-SUM($G77:M77))/(OFFSET(N77,-$D77,0)-(N$6-$D77-1)))) -> 0 | O77: =IF(OFFSET(O77,-$D77,0)="n/a","n/a",IF(O$6>OFFSET(O77,-$D77,0)+$D77,$E77-SUM($G77:N77),($E77-SUM($G77:N77))/(OFFSET(O77,-$D77,0)-(O$6-$D77-1)))) -> 0 | P77: =IF(OFFSET(P77,-$D77,0)="n/a","n/a",IF(P$6>OFFSET(P77,-$D77,0)+$D77,$E77-SUM($G77:O77),($E77-SUM($G77:O77))/(OFFSET(P77,-$D77,0)-(P$6-$D77-1)))) -> 0 | Q77: =IF(OFFSET(Q77,-$D77,0)="n/a","n/a",IF(Q$6>OFFSET(Q77,-$D77,0)+$D77,$E77-SUM($G77:P77),($E77-SUM($G77:P77))/(OFFSET(Q77,-$D77,0)-(Q$6-$D77-1)))) -> 0 | R77: =IF(OFFSET(R77,-$D77,0)="n/a","n/a",IF(R$6>OFFSET(R77,-$D77,0)+$D77,$E77-SUM($G77:Q77),($E77-SUM($G77:Q77))/(OFFSET(R77,-$D77,0)-(R$6-$D77-1)))) -> 0 | S77: =IF(OFFSET(S77,-$D77,0)="n/a","n/a",IF(S$6>OFFSET(S77,-$D77,0)+$D77,$E77-SUM($G77:R77),($E77-SUM($G77:R77))/(OFFSET(S77,-$D77,0)-(S$6-$D77-1)))) -> 0 | T77: =IF(OFFSET(T77,-$D77,0)="n/a","n/a",IF(T$6>OFFSET(T77,-$D77,0)+$D77,$E77-SUM($G77:S77),($E77-SUM($G77:S77))/(OFFSET(T77,-$D77,0)-(T$6-$D77-1)))) -> 0 | U77: =IF(OFFSET(U77,-$D77,0)="n/a","n/a",IF(U$6>OFFSET(U77,-$D77,0)+$D77,$E77-SUM($G77:T77),($E77-SUM($G77:T77))/(OFFSET(U77,-$D77,0)-(U$6-$D77-1)))) -> 0 | V77: =IF(OFFSET(V77,-$D77,0)="n/a","n/a",IF(V$6>OFFSET(V77,-$D77,0)+$D77,$E77-SUM($G77:U77),($E77-SUM($G77:U77))/(OFFSET(V77,-$D77,0)-(V$6-$D77-1)))) -> 0 | W77: =IF(OFFSET(W77,-$D77,0)="n/a","n/a",IF(W$6>OFFSET(W77,-$D77,0)+$D77,$E77-SUM($G77:V77),($E77-SUM($G77:V77))/(OFFSET(W77,-$D77,0)-(W$6-$D77-1)))) -> 0 | X77: =IF(OFFSET(X77,-$D77,0)="n/a","n/a",IF(X$6>OFFSET(X77,-$D77,0)+$D77,$E77-SUM($G77:W77),($E77-SUM($G77:W77))/(OFFSET(X77,-$D77,0)-(X$6-$D77-1)))) -> 0 | Y77: =IF(OFFSET(Y77,-$D77,0)="n/a","n/a",IF(Y$6>OFFSET(Y77,-$D77,0)+$D77,$E77-SUM($G77:X77),($E77-SUM($G77:X77))/(OFFSET(Y77,-$D77,0)-(Y$6-$D77-1)))) -> 0 | Z77: =IF(OFFSET(Z77,-$D77,0)="n/a","n/a",IF(Z$6>OFFSET(Z77,-$D77,0)+$D77,$E77-SUM($G77:Y77),($E77-SUM($G77:Y77))/(OFFSET(Z77,-$D77,0)-(Z$6-$D77-1)))) -> 0 | AA77: =IF(OFFSET(AA77,-$D77,0)="n/a","n/a",IF(AA$6>OFFSET(AA77,-$D77,0)+$D77,$E77-SUM($G77:Z77),($E77-SUM($G77:Z77))/(OFFSET(AA77,-$D77,0)-(AA$6-$D77-1)))) -> 0 | AB77: =IF(OFFSET(AB77,-$D77,0)="n/a","n/a",IF(AB$6>OFFSET(AB77,-$D77,0)+$D77,$E77-SUM($G77:AA77),($E77-SUM($G77:AA77))/(OFFSET(AB77,-$D77,0)-(AB$6-$D77-1)))) -> 0 | AC77: =IF(OFFSET(AC77,-$D77,0)="n/a","n/a",IF(AC$6>OFFSET(AC77,-$D77,0)+$D77,$E77-SUM($G77:AB77),($E77-SUM($G77:AB77))/(OFFSET(AC77,-$D77,0)-(AC$6-$D77-1)))) -> 0 | AD77: =IF(OFFSET(AD77,-$D77,0)="n/a","n/a",IF(AD$6>OFFSET(AD77,-$D77,0)+$D77,$E77-SUM($G77:AC77),($E77-SUM($G77:AC77))/(OFFSET(AD77,-$D77,0)-(AD$6-$D77-1)))) -> 0 | AE77: =IF(OFFSET(AE77,-$D77,0)="n/a","n/a",IF(AE$6>OFFSET(AE77,-$D77,0)+$D77,$E77-SUM($G77:AD77),($E77-SUM($G77:AD77))/(OFFSET(AE77,-$D77,0)-(AE$6-$D77-1)))) -> 0 | AF77: =IF(OFFSET(AF77,-$D77,0)="n/a","n/a",IF(AF$6>OFFSET(AF77,-$D77,0)+$D77,$E77-SUM($G77:AE77),($E77-SUM($G77:AE77))/(OFFSET(AF77,-$D77,0)-(AF$6-$D77-1)))) -> 0 | AG77: =IF(OFFSET(AG77,-$D77,0)="n/a","n/a",IF(AG$6>OFFSET(AG77,-$D77,0)+$D77,$E77-SUM($G77:AF77),($E77-SUM($G77:AF77))/(OFFSET(AG77,-$D77,0)-(AG$6-$D77-1)))) -> 0 | AH77: =IF(OFFSET(AH77,-$D77,0)="n/a","n/a",IF(AH$6>OFFSET(AH77,-$D77,0)+$D77,$E77-SUM($G77:AG77),($E77-SUM($G77:AG77))/(OFFSET(AH77,-$D77,0)-(AH$6-$D77-1)))) -> 0 | AI77: =IF(OFFSET(AI77,-$D77,0)="n/a","n/a",IF(AI$6>OFFSET(AI77,-$D77,0)+$D77,$E77-SUM($G77:AH77),($E77-SUM($G77:AH77))/(OFFSET(AI77,-$D77,0)-(AI$6-$D77-1)))) -> 0 | AJ77: =IF(OFFSET(AJ77,-$D77,0)="n/a","n/a",IF(AJ$6>OFFSET(AJ77,-$D77,0)+$D77,$E77-SUM($G77:AI77),($E77-SUM($G77:AI77))/(OFFSET(AJ77,-$D77,0)-(AJ$6-$D77-1)))) -> 0 | AK77: =IF(OFFSET(AK77,-$D77,0)="n/a","n/a",IF(AK$6>OFFSET(AK77,-$D77,0)+$D77,$E77-SUM($G77:AJ77),($E77-SUM($G77:AJ77))/(OFFSET(AK77,-$D77,0)-(AK$6-$D77-1)))) -> 0 | AL77: =IF(OFFSET(AL77,-$D77,0)="n/a","n/a",IF(AL$6>OFFSET(AL77,-$D77,0)+$D77,$E77-SUM($G77:AK77),($E77-SUM($G77:AK77))/(OFFSET(AL77,-$D77,0)-(AL$6-$D77-1)))) -> 0
D78: 3 | E78: 0 | J78: =IF(OFFSET(J78,-$D78,0)="n/a","n/a",IF(J$6>OFFSET(J78,-$D78,0)+$D78,$E78-SUM($G78:I78),($E78-SUM($G78:I78))/(OFFSET(J78,-$D78,0)-(J$6-$D78-1)))) -> 0 | K78: =IF(OFFSET(K78,-$D78,0)="n/a","n/a",IF(K$6>OFFSET(K78,-$D78,0)+$D78,$E78-SUM($G78:J78),($E78-SUM($G78:J78))/(OFFSET(K78,-$D78,0)-(K$6-$D78-1)))) -> 0 | L78: =IF(OFFSET(L78,-$D78,0)="n/a","n/a",IF(L$6>OFFSET(L78,-$D78,0)+$D78,$E78-SUM($G78:K78),($E78-SUM($G78:K78))/(OFFSET(L78,-$D78,0)-(L$6-$D78-1)))) -> 0 | M78: =IF(OFFSET(M78,-$D78,0)="n/a","n/a",IF(M$6>OFFSET(M78,-$D78,0)+$D78,$E78-SUM($G78:L78),($E78-SUM($G78:L78))/(OFFSET(M78,-$D78,0)-(M$6-$D78-1)))) -> 0 | N78: =IF(OFFSET(N78,-$D78,0)="n/a","n/a",IF(N$6>OFFSET(N78,-$D78,0)+$D78,$E78-SUM($G78:M78),($E78-SUM($G78:M78))/(OFFSET(N78,-$D78,0)-(N$6-$D78-1)))) -> 0 | O78: =IF(OFFSET(O78,-$D78,0)="n/a","n/a",IF(O$6>OFFSET(O78,-$D78,0)+$D78,$E78-SUM($G78:N78),($E78-SUM($G78:N78))/(OFFSET(O78,-$D78,0)-(O$6-$D78-1)))) -> 0 | P78: =IF(OFFSET(P78,-$D78,0)="n/a","n/a",IF(P$6>OFFSET(P78,-$D78,0)+$D78,$E78-SUM($G78:O78),($E78-SUM($G78:O78))/(OFFSET(P78,-$D78,0)-(P$6-$D78-1)))) -> 0 | Q78: =IF(OFFSET(Q78,-$D78,0)="n/a","n/a",IF(Q$6>OFFSET(Q78,-$D78,0)+$D78,$E78-SUM($G78:P78),($E78-SUM($G78:P78))/(OFFSET(Q78,-$D78,0)-(Q$6-$D78-1)))) -> 0 | R78: =IF(OFFSET(R78,-$D78,0)="n/a","n/a",IF(R$6>OFFSET(R78,-$D78,0)+$D78,$E78-SUM($G78:Q78),($E78-SUM($G78:Q78))/(OFFSET(R78,-$D78,0)-(R$6-$D78-1)))) -> 0 | S78: =IF(OFFSET(S78,-$D78,0)="n/a","n/a",IF(S$6>OFFSET(S78,-$D78,0)+$D78,$E78-SUM($G78:R78),($E78-SUM($G78:R78))/(OFFSET(S78,-$D78,0)-(S$6-$D78-1)))) -> 0 | T78: =IF(OFFSET(T78,-$D78,0)="n/a","n/a",IF(T$6>OFFSET(T78,-$D78,0)+$D78,$E78-SUM($G78:S78),($E78-SUM($G78:S78))/(OFFSET(T78,-$D78,0)-(T$6-$D78-1)))) -> 0 | U78: =IF(OFFSET(U78,-$D78,0)="n/a","n/a",IF(U$6>OFFSET(U78,-$D78,0)+$D78,$E78-SUM($G78:T78),($E78-SUM($G78:T78))/(OFFSET(U78,-$D78,0)-(U$6-$D78-1)))) -> 0 | V78: =IF(OFFSET(V78,-$D78,0)="n/a","n/a",IF(V$6>OFFSET(V78,-$D78,0)+$D78,$E78-SUM($G78:U78),($E78-SUM($G78:U78))/(OFFSET(V78,-$D78,0)-(V$6-$D78-1)))) -> 0 | W78: =IF(OFFSET(W78,-$D78,0)="n/a","n/a",IF(W$6>OFFSET(W78,-$D78,0)+$D78,$E78-SUM($G78:V78),($E78-SUM($G78:V78))/(OFFSET(W78,-$D78,0)-(W$6-$D78-1)))) -> 0 | X78: =IF(OFFSET(X78,-$D78,0)="n/a","n/a",IF(X$6>OFFSET(X78,-$D78,0)+$D78,$E78-SUM($G78:W78),($E78-SUM($G78:W78))/(OFFSET(X78,-$D78,0)-(X$6-$D78-1)))) -> 0 | Y78: =IF(OFFSET(Y78,-$D78,0)="n/a","n/a",IF(Y$6>OFFSET(Y78,-$D78,0)+$D78,$E78-SUM($G78:X78),($E78-SUM($G78:X78))/(OFFSET(Y78,-$D78,0)-(Y$6-$D78-1)))) -> 0 | Z78: =IF(OFFSET(Z78,-$D78,0)="n/a","n/a",IF(Z$6>OFFSET(Z78,-$D78,0)+$D78,$E78-SUM($G78:Y78),($E78-SUM($G78:Y78))/(OFFSET(Z78,-$D78,0)-(Z$6-$D78-1)))) -> 0 | AA78: =IF(OFFSET(AA78,-$D78,0)="n/a","n/a",IF(AA$6>OFFSET(AA78,-$D78,0)+$D78,$E78-SUM($G78:Z78),($E78-SUM($G78:Z78))/(OFFSET(AA78,-$D78,0)-(AA$6-$D78-1)))) -> 0 | AB78: =IF(OFFSET(AB78,-$D78,0)="n/a","n/a",IF(AB$6>OFFSET(AB78,-$D78,0)+$D78,$E78-SUM($G78:AA78),($E78-SUM($G78:AA78))/(OFFSET(AB78,-$D78,0)-(AB$6-$D78-1)))) -> 0 | AC78: =IF(OFFSET(AC78,-$D78,0)="n/a","n/a",IF(AC$6>OFFSET(AC78,-$D78,0)+$D78,$E78-SUM($G78:AB78),($E78-SUM($G78:AB78))/(OFFSET(AC78,-$D78,0)-(AC$6-$D78-1)))) -> 0 | AD78: =IF(OFFSET(AD78,-$D78,0)="n/a","n/a",IF(AD$6>OFFSET(AD78,-$D78,0)+$D78,$E78-SUM($G78:AC78),($E78-SUM($G78:AC78))/(OFFSET(AD78,-$D78,0)-(AD$6-$D78-1)))) -> 0 | AE78: =IF(OFFSET(AE78,-$D78,0)="n/a","n/a",IF(AE$6>OFFSET(AE78,-$D78,0)+$D78,$E78-SUM($G78:AD78),($E78-SUM($G78:AD78))/(OFFSET(AE78,-$D78,0)-(AE$6-$D78-1)))) -> 0 | AF78: =IF(OFFSET(AF78,-$D78,0)="n/a","n/a",IF(AF$6>OFFSET(AF78,-$D78,0)+$D78,$E78-SUM($G78:AE78),($E78-SUM($G78:AE78))/(OFFSET(AF78,-$D78,0)-(AF$6-$D78-1)))) -> 0 | AG78: =IF(OFFSET(AG78,-$D78,0)="n/a","n/a",IF(AG$6>OFFSET(AG78,-$D78,0)+$D78,$E78-SUM($G78:AF78),($E78-SUM($G78:AF78))/(OFFSET(AG78,-$D78,0)-(AG$6-$D78-1)))) -> 0 | AH78: =IF(OFFSET(AH78,-$D78,0)="n/a","n/a",IF(AH$6>OFFSET(AH78,-$D78,0)+$D78,$E78-SUM($G78:AG78),($E78-SUM($G78:AG78))/(OFFSET(AH78,-$D78,0)-(AH$6-$D78-1)))) -> 0 | AI78: =IF(OFFSET(AI78,-$D78,0)="n/a","n/a",IF(AI$6>OFFSET(AI78,-$D78,0)+$D78,$E78-SUM($G78:AH78),($E78-SUM($G78:AH78))/(OFFSET(AI78,-$D78,0)-(AI$6-$D78-1)))) -> 0 | AJ78: =IF(OFFSET(AJ78,-$D78,0)="n/a","n/a",IF(AJ$6>OFFSET(AJ78,-$D78,0)+$D78,$E78-SUM($G78:AI78),($E78-SUM($G78:AI78))/(OFFSET(AJ78,-$D78,0)-(AJ$6-$D78-1)))) -> 0 | AK78: =IF(OFFSET(AK78,-$D78,0)="n/a","n/a",IF(AK$6>OFFSET(AK78,-$D78,0)+$D78,$E78-SUM($G78:AJ78),($E78-SUM($G78:AJ78))/(OFFSET(AK78,-$D78,0)-(AK$6-$D78-1)))) -> 0 | AL78: =IF(OFFSET(AL78,-$D78,0)="n/a","n/a",IF(AL$6>OFFSET(AL78,-$D78,0)+$D78,$E78-SUM($G78:AK78),($E78-SUM($G78:AK78))/(OFFSET(AL78,-$D78,0)-(AL$6-$D78-1)))) -> 0
D79: 4 | E79: 16780.61857 | K79: =IF(OFFSET(K79,-$D79,0)="n/a","n/a",IF(K$6>OFFSET(K79,-$D79,0)+$D79,$E79-SUM($G79:J79),($E79-SUM($G79:J79))/(OFFSET(K79,-$D79,0)-(K$6-$D79-1)))) -> 419.5154643 | L79: =IF(OFFSET(L79,-$D79,0)="n/a","n/a",IF(L$6>OFFSET(L79,-$D79,0)+$D79,$E79-SUM($G79:K79),($E79-SUM($G79:K79))/(OFFSET(L79,-$D79,0)-(L$6-$D79-1)))) -> 419.5154643 | M79: =IF(OFFSET(M79,-$D79,0)="n/a","n/a",IF(M$6>OFFSET(M79,-$D79,0)+$D79,$E79-SUM($G79:L79),($E79-SUM($G79:L79))/(OFFSET(M79,-$D79,0)-(M$6-$D79-1)))) -> 419.5154643 | N79: =IF(OFFSET(N79,-$D79,0)="n/a","n/a",IF(N$6>OFFSET(N79,-$D79,0)+$D79,$E79-SUM($G79:M79),($E79-SUM($G79:M79))/(OFFSET(N79,-$D79,0)-(N$6-$D79-1)))) -> 419.5154643 | O79: =IF(OFFSET(O79,-$D79,0)="n/a","n/a",IF(O$6>OFFSET(O79,-$D79,0)+$D79,$E79-SUM($G79:N79),($E79-SUM($G79:N79))/(OFFSET(O79,-$D79,0)-(O$6-$D79-1)))) -> 419.5154643 | P79: =IF(OFFSET(P79,-$D79,0)="n/a","n/a",IF(P$6>OFFSET(P79,-$D79,0)+$D79,$E79-SUM($G79:O79),($E79-SUM($G79:O79))/(OFFSET(P79,-$D79,0)-(P$6-$D79-1)))) -> 419.5154643 | Q79: =IF(OFFSET(Q79,-$D79,0)="n/a","n/a",IF(Q$6>OFFSET(Q79,-$D79,0)+$D79,$E79-SUM($G79:P79),($E79-SUM($G79:P79))/(OFFSET(Q79,-$D79,0)-(Q$6-$D79-1)))) -> 419.5154643 | R79: =IF(OFFSET(R79,-$D79,0)="n/a","n/a",IF(R$6>OFFSET(R79,-$D79,0)+$D79,$E79-SUM($G79:Q79),($E79-SUM($G79:Q79))/(OFFSET(R79,-$D79,0)-(R$6-$D79-1)))) -> 419.5154643 | S79: =IF(OFFSET(S79,-$D79,0)="n/a","n/a",IF(S$6>OFFSET(S79,-$D79,0)+$D79,$E79-SUM($G79:R79),($E79-SUM($G79:R79))/(OFFSET(S79,-$D79,0)-(S$6-$D79-1)))) -> 419.5154643 | T79: =IF(OFFSET(T79,-$D79,0)="n/a","n/a",IF(T$6>OFFSET(T79,-$D79,0)+$D79,$E79-SUM($G79:S79),($E79-SUM($G79:S79))/(OFFSET(T79,-$D79,0)-(T$6-$D79-1)))) -> 419.5154643 | U79: =IF(OFFSET(U79,-$D79,0)="n/a","n/a",IF(U$6>OFFSET(U79,-$D79,0)+$D79,$E79-SUM($G79:T79),($E79-SUM($G79:T79))/(OFFSET(U79,-$D79,0)-(U$6-$D79-1)))) -> 419.5154643 | V79: =IF(OFFSET(V79,-$D79,0)="n/a","n/a",IF(V$6>OFFSET(V79,-$D79,0)+$D79,$E79-SUM($G79:U79),($E79-SUM($G79:U79))/(OFFSET(V79,-$D79,0)-(V$6-$D79-1)))) -> 419.5154643 | W79: =IF(OFFSET(W79,-$D79,0)="n/a","n/a",IF(W$6>OFFSET(W79,-$D79,0)+$D79,$E79-SUM($G79:V79),($E79-SUM($G79:V79))/(OFFSET(W79,-$D79,0)-(W$6-$D79-1)))) -> 419.5154643 | X79: =IF(OFFSET(X79,-$D79,0)="n/a","n/a",IF(X$6>OFFSET(X79,-$D79,0)+$D79,$E79-SUM($G79:W79),($E79-SUM($G79:W79))/(OFFSET(X79,-$D79,0)-(X$6-$D79-1)))) -> 419.5154643 | Y79: =IF(OFFSET(Y79,-$D79,0)="n/a","n/a",IF(Y$6>OFFSET(Y79,-$D79,0)+$D79,$E79-SUM($G79:X79),($E79-SUM($G79:X79))/(OFFSET(Y79,-$D79,0)-(Y$6-$D79-1)))) -> 419.5154643 | Z79: =IF(OFFSET(Z79,-$D79,0)="n/a","n/a",IF(Z$6>OFFSET(Z79,-$D79,0)+$D79,$E79-SUM($G79:Y79),($E79-SUM($G79:Y79))/(OFFSET(Z79,-$D79,0)-(Z$6-$D79-1)))) -> 419.5154643 | AA79: =IF(OFFSET(AA79,-$D79,0)="n/a","n/a",IF(AA$6>OFFSET(AA79,-$D79,0)+$D79,$E79-SUM($G79:Z79),($E79-SUM($G79:Z79))/(OFFSET(AA79,-$D79,0)-(AA$6-$D79-1)))) -> 419.5154643 | AB79: =IF(OFFSET(AB79,-$D79,0)="n/a","n/a",IF(AB$6>OFFSET(AB79,-$D79,0)+$D79,$E79-SUM($G79:AA79),($E79-SUM($G79:AA79))/(OFFSET(AB79,-$D79,0)-(AB$6-$D79-1)))) -> 419.5154643 | AC79: =IF(OFFSET(AC79,-$D79,0)="n/a","n/a",IF(AC$6>OFFSET(AC79,-$D79,0)+$D79,$E79-SUM($G79:AB79),($E79-SUM($G79:AB79))/(OFFSET(AC79,-$D79,0)-(AC$6-$D79-1)))) -> 419.5154643 | AD79: =IF(OFFSET(AD79,-$D79,0)="n/a","n/a",IF(AD$6>OFFSET(AD79,-$D79,0)+$D79,$E79-SUM($G79:AC79),($E79-SUM($G79:AC79))/(OFFSET(AD79,-$D79,0)-(AD$6-$D79-1)))) -> 419.5154643 | AE79: =IF(OFFSET(AE79,-$D79,0)="n/a","n/a",IF(AE$6>OFFSET(AE79,-$D79,0)+$D79,$E79-SUM($G79:AD79),($E79-SUM($G79:AD79))/(OFFSET(AE79,-$D79,0)-(AE$6-$D79-1)))) -> 419.5154643 | AF79: =IF(OFFSET(AF79,-$D79,0)="n/a","n/a",IF(AF$6>OFFSET(AF79,-$D79,0)+$D79,$E79-SUM($G79:AE79),($E79-SUM($G79:AE79))/(OFFSET(AF79,-$D79,0)-(AF$6-$D79-1)))) -> 419.5154643 | AG79: =IF(OFFSET(AG79,-$D79,0)="n/a","n/a",IF(AG$6>OFFSET(AG79,-$D79,0)+$D79,$E79-SUM($G79:AF79),($E79-SUM($G79:AF79))/(OFFSET(AG79,-$D79,0)-(AG$6-$D79-1)))) -> 419.5154643 | AH79: =IF(OFFSET(AH79,-$D79,0)="n/a","n/a",IF(AH$6>OFFSET(AH79,-$D79,0)+$D79,$E79-SUM($G79:AG79),($E79-SUM($G79:AG79))/(OFFSET(AH79,-$D79,0)-(AH$6-$D79-1)))) -> 419.5154643 | AI79: =IF(OFFSET(AI79,-$D79,0)="n/a","n/a",IF(AI$6>OFFSET(AI79,-$D79,0)+$D79,$E79-SUM($G79:AH79),($E79-SUM($G79:AH79))/(OFFSET(AI79,-$D79,0)-(AI$6-$D79-1)))) -> 419.5154643 | AJ79: =IF(OFFSET(AJ79,-$D79,0)="n/a","n/a",IF(AJ$6>OFFSET(AJ79,-$D79,0)+$D79,$E79-SUM($G79:AI79),($E79-SUM($G79:AI79))/(OFFSET(AJ79,-$D79,0)-(AJ$6-$D79-1)))) -> 419.5154643 | AK79: =IF(OFFSET(AK79,-$D79,0)="n/a","n/a",IF(AK$6>OFFSET(AK79,-$D79,0)+$D79,$E79-SUM($G79:AJ79),($E79-SUM($G79:AJ79))/(OFFSET(AK79,-$D79,0)-(AK$6-$D79-1)))) -> 419.5154643 | AL79: =IF(OFFSET(AL79,-$D79,0)="n/a","n/a",IF(AL$6>OFFSET(AL79,-$D79,0)+$D79,$E79-SUM($G79:AK79),($E79-SUM($G79:AK79))/(OFFSET(AL79,-$D79,0)-(AL$6-$D79-1)))) -> 419.5154643
D80: 5 | E80: 379.1426391 | L80: =IF(OFFSET(L80,-$D80,0)="n/a","n/a",IF(L$6>OFFSET(L80,-$D80,0)+$D80,$E80-SUM($G80:K80),($E80-SUM($G80:K80))/(OFFSET(L80,-$D80,0)-(L$6-$D80-1)))) -> 9.478565978 | M80: =IF(OFFSET(M80,-$D80,0)="n/a","n/a",IF(M$6>OFFSET(M80,-$D80,0)+$D80,$E80-SUM($G80:L80),($E80-SUM($G80:L80))/(OFFSET(M80,-$D80,0)-(M$6-$D80-1)))) -> 9.478565978 | N80: =IF(OFFSET(N80,-$D80,0)="n/a","n/a",IF(N$6>OFFSET(N80,-$D80,0)+$D80,$E80-SUM($G80:M80),($E80-SUM($G80:M80))/(OFFSET(N80,-$D80,0)-(N$6-$D80-1)))) -> 9.478565978 | O80: =IF(OFFSET(O80,-$D80,0)="n/a","n/a",IF(O$6>OFFSET(O80,-$D80,0)+$D80,$E80-SUM($G80:N80),($E80-SUM($G80:N80))/(OFFSET(O80,-$D80,0)-(O$6-$D80-1)))) -> 9.478565978 | P80: =IF(OFFSET(P80,-$D80,0)="n/a","n/a",IF(P$6>OFFSET(P80,-$D80,0)+$D80,$E80-SUM($G80:O80),($E80-SUM($G80:O80))/(OFFSET(P80,-$D80,0)-(P$6-$D80-1)))) -> 9.478565978 | Q80: =IF(OFFSET(Q80,-$D80,0)="n/a","n/a",IF(Q$6>OFFSET(Q80,-$D80,0)+$D80,$E80-SUM($G80:P80),($E80-SUM($G80:P80))/(OFFSET(Q80,-$D80,0)-(Q$6-$D80-1)))) -> 9.478565978 | R80: =IF(OFFSET(R80,-$D80,0)="n/a","n/a",IF(R$6>OFFSET(R80,-$D80,0)+$D80,$E80-SUM($G80:Q80),($E80-SUM($G80:Q80))/(OFFSET(R80,-$D80,0)-(R$6-$D80-1)))) -> 9.478565978 | S80: =IF(OFFSET(S80,-$D80,0)="n/a","n/a",IF(S$6>OFFSET(S80,-$D80,0)+$D80,$E80-SUM($G80:R80),($E80-SUM($G80:R80))/(OFFSET(S80,-$D80,0)-(S$6-$D80-1)))) -> 9.478565978 | T80: =IF(OFFSET(T80,-$D80,0)="n/a","n/a",IF(T$6>OFFSET(T80,-$D80,0)+$D80,$E80-SUM($G80:S80),($E80-SUM($G80:S80))/(OFFSET(T80,-$D80,0)-(T$6-$D80-1)))) -> 9.478565978 | U80: =IF(OFFSET(U80,-$D80,0)="n/a","n/a",IF(U$6>OFFSET(U80,-$D80,0)+$D80,$E80-SUM($G80:T80),($E80-SUM($G80:T80))/(OFFSET(U80,-$D80,0)-(U$6-$D80-1)))) -> 9.478565978 | V80: =IF(OFFSET(V80,-$D80,0)="n/a","n/a",IF(V$6>OFFSET(V80,-$D80,0)+$D80,$E80-SUM($G80:U80),($E80-SUM($G80:U80))/(OFFSET(V80,-$D80,0)-(V$6-$D80-1)))) -> 9.478565978 | W80: =IF(OFFSET(W80,-$D80,0)="n/a","n/a",IF(W$6>OFFSET(W80,-$D80,0)+$D80,$E80-SUM($G80:V80),($E80-SUM($G80:V80))/(OFFSET(W80,-$D80,0)-(W$6-$D80-1)))) -> 9.478565978 | X80: =IF(OFFSET(X80,-$D80,0)="n/a","n/a",IF(X$6>OFFSET(X80,-$D80,0)+$D80,$E80-SUM($G80:W80),($E80-SUM($G80:W80))/(OFFSET(X80,-$D80,0)-(X$6-$D80-1)))) -> 9.478565978 | Y80: =IF(OFFSET(Y80,-$D80,0)="n/a","n/a",IF(Y$6>OFFSET(Y80,-$D80,0)+$D80,$E80-SUM($G80:X80),($E80-SUM($G80:X80))/(OFFSET(Y80,-$D80,0)-(Y$6-$D80-1)))) -> 9.478565978 | Z80: =IF(OFFSET(Z80,-$D80,0)="n/a","n/a",IF(Z$6>OFFSET(Z80,-$D80,0)+$D80,$E80-SUM($G80:Y80),($E80-SUM($G80:Y80))/(OFFSET(Z80,-$D80,0)-(Z$6-$D80-1)))) -> 9.478565978 | AA80: =IF(OFFSET(AA80,-$D80,0)="n/a","n/a",IF(AA$6>OFFSET(AA80,-$D80,0)+$D80,$E80-SUM($G80:Z80),($E80-SUM($G80:Z80))/(OFFSET(AA80,-$D80,0)-(AA$6-$D80-1)))) -> 9.478565978 | AB80: =IF(OFFSET(AB80,-$D80,0)="n/a","n/a",IF(AB$6>OFFSET(AB80,-$D80,0)+$D80,$E80-SUM($G80:AA80),($E80-SUM($G80:AA80))/(OFFSET(AB80,-$D80,0)-(AB$6-$D80-1)))) -> 9.478565978 | AC80: =IF(OFFSET(AC80,-$D80,0)="n/a","n/a",IF(AC$6>OFFSET(AC80,-$D80,0)+$D80,$E80-SUM($G80:AB80),($E80-SUM($G80:AB80))/(OFFSET(AC80,-$D80,0)-(AC$6-$D80-1)))) -> 9.478565978 | AD80: =IF(OFFSET(AD80,-$D80,0)="n/a","n/a",IF(AD$6>OFFSET(AD80,-$D80,0)+$D80,$E80-SUM($G80:AC80),($E80-SUM($G80:AC80))/(OFFSET(AD80,-$D80,0)-(AD$6-$D80-1)))) -> 9.478565978 | AE80: =IF(OFFSET(AE80,-$D80,0)="n/a","n/a",IF(AE$6>OFFSET(AE80,-$D80,0)+$D80,$E80-SUM($G80:AD80),($E80-SUM($G80:AD80))/(OFFSET(AE80,-$D80,0)-(AE$6-$D80-1)))) -> 9.478565978 | AF80: =IF(OFFSET(AF80,-$D80,0)="n/a","n/a",IF(AF$6>OFFSET(AF80,-$D80,0)+$D80,$E80-SUM($G80:AE80),($E80-SUM($G80:AE80))/(OFFSET(AF80,-$D80,0)-(AF$6-$D80-1)))) -> 9.478565978 | AG80: =IF(OFFSET(AG80,-$D80,0)="n/a","n/a",IF(AG$6>OFFSET(AG80,-$D80,0)+$D80,$E80-SUM($G80:AF80),($E80-SUM($G80:AF80))/(OFFSET(AG80,-$D80,0)-(AG$6-$D80-1)))) -> 9.478565978 | AH80: =IF(OFFSET(AH80,-$D80,0)="n/a","n/a",IF(AH$6>OFFSET(AH80,-$D80,0)+$D80,$E80-SUM($G80:AG80),($E80-SUM($G80:AG80))/(OFFSET(AH80,-$D80,0)-(AH$6-$D80-1)))) -> 9.478565978 | AI80: =IF(OFFSET(AI80,-$D80,0)="n/a","n/a",IF(AI$6>OFFSET(AI80,-$D80,0)+$D80,$E80-SUM($G80:AH80),($E80-SUM($G80:AH80))/(OFFSET(AI80,-$D80,0)-(AI$6-$D80-1)))) -> 9.478565978 | AJ80: =IF(OFFSET(AJ80,-$D80,0)="n/a","n/a",IF(AJ$6>OFFSET(AJ80,-$D80,0)+$D80,$E80-SUM($G80:AI80),($E80-SUM($G80:AI80))/(OFFSET(AJ80,-$D80,0)-(AJ$6-$D80-1)))) -> 9.478565978 | AK80: =IF(OFFSET(AK80,-$D80,0)="n/a","n/a",IF(AK$6>OFFSET(AK80,-$D80,0)+$D80,$E80-SUM($G80:AJ80),($E80-SUM($G80:AJ80))/(OFFSET(AK80,-$D80,0)-(AK$6-$D80-1)))) -> 9.478565978 | AL80: =IF(OFFSET(AL80,-$D80,0)="n/a","n/a",IF(AL$6>OFFSET(AL80,-$D80,0)+$D80,$E80-SUM($G80:AK80),($E80-SUM($G80:AK80))/(OFFSET(AL80,-$D80,0)-(AL$6-$D80-1)))) -> 9.478565978
D81: 6 | E81: 0 | M81: =IF(OFFSET(M81,-$D81,0)="n/a","n/a",IF(M$6>OFFSET(M81,-$D81,0)+$D81,$E81-SUM($G81:L81),($E81-SUM($G81:L81))/(OFFSET(M81,-$D81,0)-(M$6-$D81-1)))) -> 0 | N81: =IF(OFFSET(N81,-$D81,0)="n/a","n/a",IF(N$6>OFFSET(N81,-$D81,0)+$D81,$E81-SUM($G81:M81),($E81-SUM($G81:M81))/(OFFSET(N81,-$D81,0)-(N$6-$D81-1)))) -> 0 | O81: =IF(OFFSET(O81,-$D81,0)="n/a","n/a",IF(O$6>OFFSET(O81,-$D81,0)+$D81,$E81-SUM($G81:N81),($E81-SUM($G81:N81))/(OFFSET(O81,-$D81,0)-(O$6-$D81-1)))) -> 0 | P81: =IF(OFFSET(P81,-$D81,0)="n/a","n/a",IF(P$6>OFFSET(P81,-$D81,0)+$D81,$E81-SUM($G81:O81),($E81-SUM($G81:O81))/(OFFSET(P81,-$D81,0)-(P$6-$D81-1)))) -> 0 | Q81: =IF(OFFSET(Q81,-$D81,0)="n/a","n/a",IF(Q$6>OFFSET(Q81,-$D81,0)+$D81,$E81-SUM($G81:P81),($E81-SUM($G81:P81))/(OFFSET(Q81,-$D81,0)-(Q$6-$D81-1)))) -> 0 | R81: =IF(OFFSET(R81,-$D81,0)="n/a","n/a",IF(R$6>OFFSET(R81,-$D81,0)+$D81,$E81-SUM($G81:Q81),($E81-SUM($G81:Q81))/(OFFSET(R81,-$D81,0)-(R$6-$D81-1)))) -> 0 | S81: =IF(OFFSET(S81,-$D81,0)="n/a","n/a",IF(S$6>OFFSET(S81,-$D81,0)+$D81,$E81-SUM($G81:R81),($E81-SUM($G81:R81))/(OFFSET(S81,-$D81,0)-(S$6-$D81-1)))) -> 0 | T81: =IF(OFFSET(T81,-$D81,0)="n/a","n/a",IF(T$6>OFFSET(T81,-$D81,0)+$D81,$E81-SUM($G81:S81),($E81-SUM($G81:S81))/(OFFSET(T81,-$D81,0)-(T$6-$D81-1)))) -> 0 | U81: =IF(OFFSET(U81,-$D81,0)="n/a","n/a",IF(U$6>OFFSET(U81,-$D81,0)+$D81,$E81-SUM($G81:T81),($E81-SUM($G81:T81))/(OFFSET(U81,-$D81,0)-(U$6-$D81-1)))) -> 0 | V81: =IF(OFFSET(V81,-$D81,0)="n/a","n/a",IF(V$6>OFFSET(V81,-$D81,0)+$D81,$E81-SUM($G81:U81),($E81-SUM($G81:U81))/(OFFSET(V81,-$D81,0)-(V$6-$D81-1)))) -> 0 | W81: =IF(OFFSET(W81,-$D81,0)="n/a","n/a",IF(W$6>OFFSET(W81,-$D81,0)+$D81,$E81-SUM($G81:V81),($E81-SUM($G81:V81))/(OFFSET(W81,-$D81,0)-(W$6-$D81-1)))) -> 0 | X81: =IF(OFFSET(X81,-$D81,0)="n/a","n/a",IF(X$6>OFFSET(X81,-$D81,0)+$D81,$E81-SUM($G81:W81),($E81-SUM($G81:W81))/(OFFSET(X81,-$D81,0)-(X$6-$D81-1)))) -> 0 | Y81: =IF(OFFSET(Y81,-$D81,0)="n/a","n/a",IF(Y$6>OFFSET(Y81,-$D81,0)+$D81,$E81-SUM($G81:X81),($E81-SUM($G81:X81))/(OFFSET(Y81,-$D81,0)-(Y$6-$D81-1)))) -> 0 | Z81: =IF(OFFSET(Z81,-$D81,0)="n/a","n/a",IF(Z$6>OFFSET(Z81,-$D81,0)+$D81,$E81-SUM($G81:Y81),($E81-SUM($G81:Y81))/(OFFSET(Z81,-$D81,0)-(Z$6-$D81-1)))) -> 0 | AA81: =IF(OFFSET(AA81,-$D81,0)="n/a","n/a",IF(AA$6>OFFSET(AA81,-$D81,0)+$D81,$E81-SUM($G81:Z81),($E81-SUM($G81:Z81))/(OFFSET(AA81,-$D81,0)-(AA$6-$D81-1)))) -> 0 | AB81: =IF(OFFSET(AB81,-$D81,0)="n/a","n/a",IF(AB$6>OFFSET(AB81,-$D81,0)+$D81,$E81-SUM($G81:AA81),($E81-SUM($G81:AA81))/(OFFSET(AB81,-$D81,0)-(AB$6-$D81-1)))) -> 0 | AC81: =IF(OFFSET(AC81,-$D81,0)="n/a","n/a",IF(AC$6>OFFSET(AC81,-$D81,0)+$D81,$E81-SUM($G81:AB81),($E81-SUM($G81:AB81))/(OFFSET(AC81,-$D81,0)-(AC$6-$D81-1)))) -> 0 | AD81: =IF(OFFSET(AD81,-$D81,0)="n/a","n/a",IF(AD$6>OFFSET(AD81,-$D81,0)+$D81,$E81-SUM($G81:AC81),($E81-SUM($G81:AC81))/(OFFSET(AD81,-$D81,0)-(AD$6-$D81-1)))) -> 0 | AE81: =IF(OFFSET(AE81,-$D81,0)="n/a","n/a",IF(AE$6>OFFSET(AE81,-$D81,0)+$D81,$E81-SUM($G81:AD81),($E81-SUM($G81:AD81))/(OFFSET(AE81,-$D81,0)-(AE$6-$D81-1)))) -> 0 | AF81: =IF(OFFSET(AF81,-$D81,0)="n/a","n/a",IF(AF$6>OFFSET(AF81,-$D81,0)+$D81,$E81-SUM($G81:AE81),($E81-SUM($G81:AE81))/(OFFSET(AF81,-$D81,0)-(AF$6-$D81-1)))) -> 0 | AG81: =IF(OFFSET(AG81,-$D81,0)="n/a","n/a",IF(AG$6>OFFSET(AG81,-$D81,0)+$D81,$E81-SUM($G81:AF81),($E81-SUM($G81:AF81))/(OFFSET(AG81,-$D81,0)-(AG$6-$D81-1)))) -> 0 | AH81: =IF(OFFSET(AH81,-$D81,0)="n/a","n/a",IF(AH$6>OFFSET(AH81,-$D81,0)+$D81,$E81-SUM($G81:AG81),($E81-SUM($G81:AG81))/(OFFSET(AH81,-$D81,0)-(AH$6-$D81-1)))) -> 0 | AI81: =IF(OFFSET(AI81,-$D81,0)="n/a","n/a",IF(AI$6>OFFSET(AI81,-$D81,0)+$D81,$E81-SUM($G81:AH81),($E81-SUM($G81:AH81))/(OFFSET(AI81,-$D81,0)-(AI$6-$D81-1)))) -> 0 | AJ81: =IF(OFFSET(AJ81,-$D81,0)="n/a","n/a",IF(AJ$6>OFFSET(AJ81,-$D81,0)+$D81,$E81-SUM($G81:AI81),($E81-SUM($G81:AI81))/(OFFSET(AJ81,-$D81,0)-(AJ$6-$D81-1)))) -> 0 | AK81: =IF(OFFSET(AK81,-$D81,0)="n/a","n/a",IF(AK$6>OFFSET(AK81,-$D81,0)+$D81,$E81-SUM($G81:AJ81),($E81-SUM($G81:AJ81))/(OFFSET(AK81,-$D81,0)-(AK$6-$D81-1)))) -> 0 | AL81: =IF(OFFSET(AL81,-$D81,0)="n/a","n/a",IF(AL$6>OFFSET(AL81,-$D81,0)+$D81,$E81-SUM($G81:AK81),($E81-SUM($G81:AK81))/(OFFSET(AL81,-$D81,0)-(AL$6-$D81-1)))) -> 0
D82: 7 | E82: 0 | N82: =IF(OFFSET(N82,-$D82,0)="n/a","n/a",IF(N$6>OFFSET(N82,-$D82,0)+$D82,$E82-SUM($G82:M82),($E82-SUM($G82:M82))/(OFFSET(N82,-$D82,0)-(N$6-$D82-1)))) -> 0 | O82: =IF(OFFSET(O82,-$D82,0)="n/a","n/a",IF(O$6>OFFSET(O82,-$D82,0)+$D82,$E82-SUM($G82:N82),($E82-SUM($G82:N82))/(OFFSET(O82,-$D82,0)-(O$6-$D82-1)))) -> 0 | P82: =IF(OFFSET(P82,-$D82,0)="n/a","n/a",IF(P$6>OFFSET(P82,-$D82,0)+$D82,$E82-SUM($G82:O82),($E82-SUM($G82:O82))/(OFFSET(P82,-$D82,0)-(P$6-$D82-1)))) -> 0 | Q82: =IF(OFFSET(Q82,-$D82,0)="n/a","n/a",IF(Q$6>OFFSET(Q82,-$D82,0)+$D82,$E82-SUM($G82:P82),($E82-SUM($G82:P82))/(OFFSET(Q82,-$D82,0)-(Q$6-$D82-1)))) -> 0 | R82: =IF(OFFSET(R82,-$D82,0)="n/a","n/a",IF(R$6>OFFSET(R82,-$D82,0)+$D82,$E82-SUM($G82:Q82),($E82-SUM($G82:Q82))/(OFFSET(R82,-$D82,0)-(R$6-$D82-1)))) -> 0 | S82: =IF(OFFSET(S82,-$D82,0)="n/a","n/a",IF(S$6>OFFSET(S82,-$D82,0)+$D82,$E82-SUM($G82:R82),($E82-SUM($G82:R82))/(OFFSET(S82,-$D82,0)-(S$6-$D82-1)))) -> 0 | T82: =IF(OFFSET(T82,-$D82,0)="n/a","n/a",IF(T$6>OFFSET(T82,-$D82,0)+$D82,$E82-SUM($G82:S82),($E82-SUM($G82:S82))/(OFFSET(T82,-$D82,0)-(T$6-$D82-1)))) -> 0 | U82: =IF(OFFSET(U82,-$D82,0)="n/a","n/a",IF(U$6>OFFSET(U82,-$D82,0)+$D82,$E82-SUM($G82:T82),($E82-SUM($G82:T82))/(OFFSET(U82,-$D82,0)-(U$6-$D82-1)))) -> 0 | V82: =IF(OFFSET(V82,-$D82,0)="n/a","n/a",IF(V$6>OFFSET(V82,-$D82,0)+$D82,$E82-SUM($G82:U82),($E82-SUM($G82:U82))/(OFFSET(V82,-$D82,0)-(V$6-$D82-1)))) -> 0 | W82: =IF(OFFSET(W82,-$D82,0)="n/a","n/a",IF(W$6>OFFSET(W82,-$D82,0)+$D82,$E82-SUM($G82:V82),($E82-SUM($G82:V82))/(OFFSET(W82,-$D82,0)-(W$6-$D82-1)))) -> 0 | X82: =IF(OFFSET(X82,-$D82,0)="n/a","n/a",IF(X$6>OFFSET(X82,-$D82,0)+$D82,$E82-SUM($G82:W82),($E82-SUM($G82:W82))/(OFFSET(X82,-$D82,0)-(X$6-$D82-1)))) -> 0 | Y82: =IF(OFFSET(Y82,-$D82,0)="n/a","n/a",IF(Y$6>OFFSET(Y82,-$D82,0)+$D82,$E82-SUM($G82:X82),($E82-SUM($G82:X82))/(OFFSET(Y82,-$D82,0)-(Y$6-$D82-1)))) -> 0 | Z82: =IF(OFFSET(Z82,-$D82,0)="n/a","n/a",IF(Z$6>OFFSET(Z82,-$D82,0)+$D82,$E82-SUM($G82:Y82),($E82-SUM($G82:Y82))/(OFFSET(Z82,-$D82,0)-(Z$6-$D82-1)))) -> 0 | AA82: =IF(OFFSET(AA82,-$D82,0)="n/a","n/a",IF(AA$6>OFFSET(AA82,-$D82,0)+$D82,$E82-SUM($G82:Z82),($E82-SUM($G82:Z82))/(OFFSET(AA82,-$D82,0)-(AA$6-$D82-1)))) -> 0 | AB82: =IF(OFFSET(AB82,-$D82,0)="n/a","n/a",IF(AB$6>OFFSET(AB82,-$D82,0)+$D82,$E82-SUM($G82:AA82),($E82-SUM($G82:AA82))/(OFFSET(AB82,-$D82,0)-(AB$6-$D82-1)))) -> 0 | AC82: =IF(OFFSET(AC82,-$D82,0)="n/a","n/a",IF(AC$6>OFFSET(AC82,-$D82,0)+$D82,$E82-SUM($G82:AB82),($E82-SUM($G82:AB82))/(OFFSET(AC82,-$D82,0)-(AC$6-$D82-1)))) -> 0 | AD82: =IF(OFFSET(AD82,-$D82,0)="n/a","n/a",IF(AD$6>OFFSET(AD82,-$D82,0)+$D82,$E82-SUM($G82:AC82),($E82-SUM($G82:AC82))/(OFFSET(AD82,-$D82,0)-(AD$6-$D82-1)))) -> 0 | AE82: =IF(OFFSET(AE82,-$D82,0)="n/a","n/a",IF(AE$6>OFFSET(AE82,-$D82,0)+$D82,$E82-SUM($G82:AD82),($E82-SUM($G82:AD82))/(OFFSET(AE82,-$D82,0)-(AE$6-$D82-1)))) -> 0 | AF82: =IF(OFFSET(AF82,-$D82,0)="n/a","n/a",IF(AF$6>OFFSET(AF82,-$D82,0)+$D82,$E82-SUM($G82:AE82),($E82-SUM($G82:AE82))/(OFFSET(AF82,-$D82,0)-(AF$6-$D82-1)))) -> 0 | AG82: =IF(OFFSET(AG82,-$D82,0)="n/a","n/a",IF(AG$6>OFFSET(AG82,-$D82,0)+$D82,$E82-SUM($G82:AF82),($E82-SUM($G82:AF82))/(OFFSET(AG82,-$D82,0)-(AG$6-$D82-1)))) -> 0 | AH82: =IF(OFFSET(AH82,-$D82,0)="n/a","n/a",IF(AH$6>OFFSET(AH82,-$D82,0)+$D82,$E82-SUM($G82:AG82),($E82-SUM($G82:AG82))/(OFFSET(AH82,-$D82,0)-(AH$6-$D82-1)))) -> 0 | AI82: =IF(OFFSET(AI82,-$D82,0)="n/a","n/a",IF(AI$6>OFFSET(AI82,-$D82,0)+$D82,$E82-SUM($G82:AH82),($E82-SUM($G82:AH82))/(OFFSET(AI82,-$D82,0)-(AI$6-$D82-1)))) -> 0 | AJ82: =IF(OFFSET(AJ82,-$D82,0)="n/a","n/a",IF(AJ$6>OFFSET(AJ82,-$D82,0)+$D82,$E82-SUM($G82:AI82),($E82-SUM($G82:AI82))/(OFFSET(AJ82,-$D82,0)-(AJ$6-$D82-1)))) -> 0 | AK82: =IF(OFFSET(AK82,-$D82,0)="n/a","n/a",IF(AK$6>OFFSET(AK82,-$D82,0)+$D82,$E82-SUM($G82:AJ82),($E82-SUM($G82:AJ82))/(OFFSET(AK82,-$D82,0)-(AK$6-$D82-1)))) -> 0 | AL82: =IF(OFFSET(AL82,-$D82,0)="n/a","n/a",IF(AL$6>OFFSET(AL82,-$D82,0)+$D82,$E82-SUM($G82:AK82),($E82-SUM($G82:AK82))/(OFFSET(AL82,-$D82,0)-(AL$6-$D82-1)))) -> 0
D83: 8 | E83: 0 | O83: =IF(OFFSET(O83,-$D83,0)="n/a","n/a",IF(O$6>OFFSET(O83,-$D83,0)+$D83,$E83-SUM($G83:N83),($E83-SUM($G83:N83))/(OFFSET(O83,-$D83,0)-(O$6-$D83-1)))) -> 0 | P83: =IF(OFFSET(P83,-$D83,0)="n/a","n/a",IF(P$6>OFFSET(P83,-$D83,0)+$D83,$E83-SUM($G83:O83),($E83-SUM($G83:O83))/(OFFSET(P83,-$D83,0)-(P$6-$D83-1)))) -> 0 | Q83: =IF(OFFSET(Q83,-$D83,0)="n/a","n/a",IF(Q$6>OFFSET(Q83,-$D83,0)+$D83,$E83-SUM($G83:P83),($E83-SUM($G83:P83))/(OFFSET(Q83,-$D83,0)-(Q$6-$D83-1)))) -> 0 | R83: =IF(OFFSET(R83,-$D83,0)="n/a","n/a",IF(R$6>OFFSET(R83,-$D83,0)+$D83,$E83-SUM($G83:Q83),($E83-SUM($G83:Q83))/(OFFSET(R83,-$D83,0)-(R$6-$D83-1)))) -> 0 | S83: =IF(OFFSET(S83,-$D83,0)="n/a","n/a",IF(S$6>OFFSET(S83,-$D83,0)+$D83,$E83-SUM($G83:R83),($E83-SUM($G83:R83))/(OFFSET(S83,-$D83,0)-(S$6-$D83-1)))) -> 0 | T83: =IF(OFFSET(T83,-$D83,0)="n/a","n/a",IF(T$6>OFFSET(T83,-$D83,0)+$D83,$E83-SUM($G83:S83),($E83-SUM($G83:S83))/(OFFSET(T83,-$D83,0)-(T$6-$D83-1)))) -> 0 | U83: =IF(OFFSET(U83,-$D83,0)="n/a","n/a",IF(U$6>OFFSET(U83,-$D83,0)+$D83,$E83-SUM($G83:T83),($E83-SUM($G83:T83))/(OFFSET(U83,-$D83,0)-(U$6-$D83-1)))) -> 0 | V83: =IF(OFFSET(V83,-$D83,0)="n/a","n/a",IF(V$6>OFFSET(V83,-$D83,0)+$D83,$E83-SUM($G83:U83),($E83-SUM($G83:U83))/(OFFSET(V83,-$D83,0)-(V$6-$D83-1)))) -> 0 | W83: =IF(OFFSET(W83,-$D83,0)="n/a","n/a",IF(W$6>OFFSET(W83,-$D83,0)+$D83,$E83-SUM($G83:V83),($E83-SUM($G83:V83))/(OFFSET(W83,-$D83,0)-(W$6-$D83-1)))) -> 0 | X83: =IF(OFFSET(X83,-$D83,0)="n/a","n/a",IF(X$6>OFFSET(X83,-$D83,0)+$D83,$E83-SUM($G83:W83),($E83-SUM($G83:W83))/(OFFSET(X83,-$D83,0)-(X$6-$D83-1)))) -> 0 | Y83: =IF(OFFSET(Y83,-$D83,0)="n/a","n/a",IF(Y$6>OFFSET(Y83,-$D83,0)+$D83,$E83-SUM($G83:X83),($E83-SUM($G83:X83))/(OFFSET(Y83,-$D83,0)-(Y$6-$D83-1)))) -> 0 | Z83: =IF(OFFSET(Z83,-$D83,0)="n/a","n/a",IF(Z$6>OFFSET(Z83,-$D83,0)+$D83,$E83-SUM($G83:Y83),($E83-SUM($G83:Y83))/(OFFSET(Z83,-$D83,0)-(Z$6-$D83-1)))) -> 0 | AA83: =IF(OFFSET(AA83,-$D83,0)="n/a","n/a",IF(AA$6>OFFSET(AA83,-$D83,0)+$D83,$E83-SUM($G83:Z83),($E83-SUM($G83:Z83))/(OFFSET(AA83,-$D83,0)-(AA$6-$D83-1)))) -> 0 | AB83: =IF(OFFSET(AB83,-$D83,0)="n/a","n/a",IF(AB$6>OFFSET(AB83,-$D83,0)+$D83,$E83-SUM($G83:AA83),($E83-SUM($G83:AA83))/(OFFSET(AB83,-$D83,0)-(AB$6-$D83-1)))) -> 0 | AC83: =IF(OFFSET(AC83,-$D83,0)="n/a","n/a",IF(AC$6>OFFSET(AC83,-$D83,0)+$D83,$E83-SUM($G83:AB83),($E83-SUM($G83:AB83))/(OFFSET(AC83,-$D83,0)-(AC$6-$D83-1)))) -> 0 | AD83: =IF(OFFSET(AD83,-$D83,0)="n/a","n/a",IF(AD$6>OFFSET(AD83,-$D83,0)+$D83,$E83-SUM($G83:AC83),($E83-SUM($G83:AC83))/(OFFSET(AD83,-$D83,0)-(AD$6-$D83-1)))) -> 0 | AE83: =IF(OFFSET(AE83,-$D83,0)="n/a","n/a",IF(AE$6>OFFSET(AE83,-$D83,0)+$D83,$E83-SUM($G83:AD83),($E83-SUM($G83:AD83))/(OFFSET(AE83,-$D83,0)-(AE$6-$D83-1)))) -> 0 | AF83: =IF(OFFSET(AF83,-$D83,0)="n/a","n/a",IF(AF$6>OFFSET(AF83,-$D83,0)+$D83,$E83-SUM($G83:AE83),($E83-SUM($G83:AE83))/(OFFSET(AF83,-$D83,0)-(AF$6-$D83-1)))) -> 0 | AG83: =IF(OFFSET(AG83,-$D83,0)="n/a","n/a",IF(AG$6>OFFSET(AG83,-$D83,0)+$D83,$E83-SUM($G83:AF83),($E83-SUM($G83:AF83))/(OFFSET(AG83,-$D83,0)-(AG$6-$D83-1)))) -> 0 | AH83: =IF(OFFSET(AH83,-$D83,0)="n/a","n/a",IF(AH$6>OFFSET(AH83,-$D83,0)+$D83,$E83-SUM($G83:AG83),($E83-SUM($G83:AG83))/(OFFSET(AH83,-$D83,0)-(AH$6-$D83-1)))) -> 0 | AI83: =IF(OFFSET(AI83,-$D83,0)="n/a","n/a",IF(AI$6>OFFSET(AI83,-$D83,0)+$D83,$E83-SUM($G83:AH83),($E83-SUM($G83:AH83))/(OFFSET(AI83,-$D83,0)-(AI$6-$D83-1)))) -> 0 | AJ83: =IF(OFFSET(AJ83,-$D83,0)="n/a","n/a",IF(AJ$6>OFFSET(AJ83,-$D83,0)+$D83,$E83-SUM($G83:AI83),($E83-SUM($G83:AI83))/(OFFSET(AJ83,-$D83,0)-(AJ$6-$D83-1)))) -> 0 | AK83: =IF(OFFSET(AK83,-$D83,0)="n/a","n/a",IF(AK$6>OFFSET(AK83,-$D83,0)+$D83,$E83-SUM($G83:AJ83),($E83-SUM($G83:AJ83))/(OFFSET(AK83,-$D83,0)-(AK$6-$D83-1)))) -> 0 | AL83: =IF(OFFSET(AL83,-$D83,0)="n/a","n/a",IF(AL$6>OFFSET(AL83,-$D83,0)+$D83,$E83-SUM($G83:AK83),($E83-SUM($G83:AK83))/(OFFSET(AL83,-$D83,0)-(AL$6-$D83-1)))) -> 0
D84: 9 | E84: -3.563760096e-12 | P84: =IF(OFFSET(P84,-$D84,0)="n/a","n/a",IF(P$6>OFFSET(P84,-$D84,0)+$D84,$E84-SUM($G84:O84),($E84-SUM($G84:O84))/(OFFSET(P84,-$D84,0)-(P$6-$D84-1)))) -> -8.90940024e-14 | Q84: =IF(OFFSET(Q84,-$D84,0)="n/a","n/a",IF(Q$6>OFFSET(Q84,-$D84,0)+$D84,$E84-SUM($G84:P84),($E84-SUM($G84:P84))/(OFFSET(Q84,-$D84,0)-(Q$6-$D84-1)))) -> -8.90940024e-14 | R84: =IF(OFFSET(R84,-$D84,0)="n/a","n/a",IF(R$6>OFFSET(R84,-$D84,0)+$D84,$E84-SUM($G84:Q84),($E84-SUM($G84:Q84))/(OFFSET(R84,-$D84,0)-(R$6-$D84-1)))) -> -8.90940024e-14 | S84: =IF(OFFSET(S84,-$D84,0)="n/a","n/a",IF(S$6>OFFSET(S84,-$D84,0)+$D84,$E84-SUM($G84:R84),($E84-SUM($G84:R84))/(OFFSET(S84,-$D84,0)-(S$6-$D84-1)))) -> -8.90940024e-14 | T84: =IF(OFFSET(T84,-$D84,0)="n/a","n/a",IF(T$6>OFFSET(T84,-$D84,0)+$D84,$E84-SUM($G84:S84),($E84-SUM($G84:S84))/(OFFSET(T84,-$D84,0)-(T$6-$D84-1)))) -> -8.90940024e-14 | U84: =IF(OFFSET(U84,-$D84,0)="n/a","n/a",IF(U$6>OFFSET(U84,-$D84,0)+$D84,$E84-SUM($G84:T84),($E84-SUM($G84:T84))/(OFFSET(U84,-$D84,0)-(U$6-$D84-1)))) -> -8.90940024e-14 | V84: =IF(OFFSET(V84,-$D84,0)="n/a","n/a",IF(V$6>OFFSET(V84,-$D84,0)+$D84,$E84-SUM($G84:U84),($E84-SUM($G84:U84))/(OFFSET(V84,-$D84,0)-(V$6-$D84-1)))) -> -8.90940024e-14 | W84: =IF(OFFSET(W84,-$D84,0)="n/a","n/a",IF(W$6>OFFSET(W84,-$D84,0)+$D84,$E84-SUM($G84:V84),($E84-SUM($G84:V84))/(OFFSET(W84,-$D84,0)-(W$6-$D84-1)))) -> -8.90940024e-14 | X84: =IF(OFFSET(X84,-$D84,0)="n/a","n/a",IF(X$6>OFFSET(X84,-$D84,0)+$D84,$E84-SUM($G84:W84),($E84-SUM($G84:W84))/(OFFSET(X84,-$D84,0)-(X$6-$D84-1)))) -> -8.90940024e-14 | Y84: =IF(OFFSET(Y84,-$D84,0)="n/a","n/a",IF(Y$6>OFFSET(Y84,-$D84,0)+$D84,$E84-SUM($G84:X84),($E84-SUM($G84:X84))/(OFFSET(Y84,-$D84,0)-(Y$6-$D84-1)))) -> -8.90940024e-14 | Z84: =IF(OFFSET(Z84,-$D84,0)="n/a","n/a",IF(Z$6>OFFSET(Z84,-$D84,0)+$D84,$E84-SUM($G84:Y84),($E84-SUM($G84:Y84))/(OFFSET(Z84,-$D84,0)-(Z$6-$D84-1)))) -> -8.90940024e-14 | AA84: =IF(OFFSET(AA84,-$D84,0)="n/a","n/a",IF(AA$6>OFFSET(AA84,-$D84,0)+$D84,$E84-SUM($G84:Z84),($E84-SUM($G84:Z84))/(OFFSET(AA84,-$D84,0)-(AA$6-$D84-1)))) -> -8.90940024e-14 | AB84: =IF(OFFSET(AB84,-$D84,0)="n/a","n/a",IF(AB$6>OFFSET(AB84,-$D84,0)+$D84,$E84-SUM($G84:AA84),($E84-SUM($G84:AA84))/(OFFSET(AB84,-$D84,0)-(AB$6-$D84-1)))) -> -8.90940024e-14 | AC84: =IF(OFFSET(AC84,-$D84,0)="n/a","n/a",IF(AC$6>OFFSET(AC84,-$D84,0)+$D84,$E84-SUM($G84:AB84),($E84-SUM($G84:AB84))/(OFFSET(AC84,-$D84,0)-(AC$6-$D84-1)))) -> -8.90940024e-14 | AD84: =IF(OFFSET(AD84,-$D84,0)="n/a","n/a",IF(AD$6>OFFSET(AD84,-$D84,0)+$D84,$E84-SUM($G84:AC84),($E84-SUM($G84:AC84))/(OFFSET(AD84,-$D84,0)-(AD$6-$D84-1)))) -> -8.90940024e-14 | AE84: =IF(OFFSET(AE84,-$D84,0)="n/a","n/a",IF(AE$6>OFFSET(AE84,-$D84,0)+$D84,$E84-SUM($G84:AD84),($E84-SUM($G84:AD84))/(OFFSET(AE84,-$D84,0)-(AE$6-$D84-1)))) -> -8.90940024e-14 | AF84: =IF(OFFSET(AF84,-$D84,0)="n/a","n/a",IF(AF$6>OFFSET(AF84,-$D84,0)+$D84,$E84-SUM($G84:AE84),($E84-SUM($G84:AE84))/(OFFSET(AF84,-$D84,0)-(AF$6-$D84-1)))) -> -8.90940024e-14 | AG84: =IF(OFFSET(AG84,-$D84,0)="n/a","n/a",IF(AG$6>OFFSET(AG84,-$D84,0)+$D84,$E84-SUM($G84:AF84),($E84-SUM($G84:AF84))/(OFFSET(AG84,-$D84,0)-(AG$6-$D84-1)))) -> -8.90940024e-14 | AH84: =IF(OFFSET(AH84,-$D84,0)="n/a","n/a",IF(AH$6>OFFSET(AH84,-$D84,0)+$D84,$E84-SUM($G84:AG84),($E84-SUM($G84:AG84))/(OFFSET(AH84,-$D84,0)-(AH$6-$D84-1)))) -> -8.90940024e-14 | AI84: =IF(OFFSET(AI84,-$D84,0)="n/a","n/a",IF(AI$6>OFFSET(AI84,-$D84,0)+$D84,$E84-SUM($G84:AH84),($E84-SUM($G84:AH84))/(OFFSET(AI84,-$D84,0)-(AI$6-$D84-1)))) -> -8.90940024e-14 | AJ84: =IF(OFFSET(AJ84,-$D84,0)="n/a","n/a",IF(AJ$6>OFFSET(AJ84,-$D84,0)+$D84,$E84-SUM($G84:AI84),($E84-SUM($G84:AI84))/(OFFSET(AJ84,-$D84,0)-(AJ$6-$D84-1)))) -> -8.90940024e-14 | AK84: =IF(OFFSET(AK84,-$D84,0)="n/a","n/a",IF(AK$6>OFFSET(AK84,-$D84,0)+$D84,$E84-SUM($G84:AJ84),($E84-SUM($G84:AJ84))/(OFFSET(AK84,-$D84,0)-(AK$6-$D84-1)))) -> -8.90940024e-14 | AL84: =IF(OFFSET(AL84,-$D84,0)="n/a","n/a",IF(AL$6>OFFSET(AL84,-$D84,0)+$D84,$E84-SUM($G84:AK84),($E84-SUM($G84:AK84))/(OFFSET(AL84,-$D84,0)-(AL$6-$D84-1)))) -> -8.90940024e-14
D85: 10 | E85: 0 | Q85: =IF(OFFSET(Q85,-$D85,0)="n/a","n/a",IF(Q$6>OFFSET(Q85,-$D85,0)+$D85,$E85-SUM($G85:P85),($E85-SUM($G85:P85))/(OFFSET(Q85,-$D85,0)-(Q$6-$D85-1)))) -> 0 | R85: =IF(OFFSET(R85,-$D85,0)="n/a","n/a",IF(R$6>OFFSET(R85,-$D85,0)+$D85,$E85-SUM($G85:Q85),($E85-SUM($G85:Q85))/(OFFSET(R85,-$D85,0)-(R$6-$D85-1)))) -> 0 | S85: =IF(OFFSET(S85,-$D85,0)="n/a","n/a",IF(S$6>OFFSET(S85,-$D85,0)+$D85,$E85-SUM($G85:R85),($E85-SUM($G85:R85))/(OFFSET(S85,-$D85,0)-(S$6-$D85-1)))) -> 0 | T85: =IF(OFFSET(T85,-$D85,0)="n/a","n/a",IF(T$6>OFFSET(T85,-$D85,0)+$D85,$E85-SUM($G85:S85),($E85-SUM($G85:S85))/(OFFSET(T85,-$D85,0)-(T$6-$D85-1)))) -> 0 | U85: =IF(OFFSET(U85,-$D85,0)="n/a","n/a",IF(U$6>OFFSET(U85,-$D85,0)+$D85,$E85-SUM($G85:T85),($E85-SUM($G85:T85))/(OFFSET(U85,-$D85,0)-(U$6-$D85-1)))) -> 0 | V85: =IF(OFFSET(V85,-$D85,0)="n/a","n/a",IF(V$6>OFFSET(V85,-$D85,0)+$D85,$E85-SUM($G85:U85),($E85-SUM($G85:U85))/(OFFSET(V85,-$D85,0)-(V$6-$D85-1)))) -> 0 | W85: =IF(OFFSET(W85,-$D85,0)="n/a","n/a",IF(W$6>OFFSET(W85,-$D85,0)+$D85,$E85-SUM($G85:V85),($E85-SUM($G85:V85))/(OFFSET(W85,-$D85,0)-(W$6-$D85-1)))) -> 0 | X85: =IF(OFFSET(X85,-$D85,0)="n/a","n/a",IF(X$6>OFFSET(X85,-$D85,0)+$D85,$E85-SUM($G85:W85),($E85-SUM($G85:W85))/(OFFSET(X85,-$D85,0)-(X$6-$D85-1)))) -> 0 | Y85: =IF(OFFSET(Y85,-$D85,0)="n/a","n/a",IF(Y$6>OFFSET(Y85,-$D85,0)+$D85,$E85-SUM($G85:X85),($E85-SUM($G85:X85))/(OFFSET(Y85,-$D85,0)-(Y$6-$D85-1)))) -> 0 | Z85: =IF(OFFSET(Z85,-$D85,0)="n/a","n/a",IF(Z$6>OFFSET(Z85,-$D85,0)+$D85,$E85-SUM($G85:Y85),($E85-SUM($G85:Y85))/(OFFSET(Z85,-$D85,0)-(Z$6-$D85-1)))) -> 0 | AA85: =IF(OFFSET(AA85,-$D85,0)="n/a","n/a",IF(AA$6>OFFSET(AA85,-$D85,0)+$D85,$E85-SUM($G85:Z85),($E85-SUM($G85:Z85))/(OFFSET(AA85,-$D85,0)-(AA$6-$D85-1)))) -> 0 | AB85: =IF(OFFSET(AB85,-$D85,0)="n/a","n/a",IF(AB$6>OFFSET(AB85,-$D85,0)+$D85,$E85-SUM($G85:AA85),($E85-SUM($G85:AA85))/(OFFSET(AB85,-$D85,0)-(AB$6-$D85-1)))) -> 0 | AC85: =IF(OFFSET(AC85,-$D85,0)="n/a","n/a",IF(AC$6>OFFSET(AC85,-$D85,0)+$D85,$E85-SUM($G85:AB85),($E85-SUM($G85:AB85))/(OFFSET(AC85,-$D85,0)-(AC$6-$D85-1)))) -> 0 | AD85: =IF(OFFSET(AD85,-$D85,0)="n/a","n/a",IF(AD$6>OFFSET(AD85,-$D85,0)+$D85,$E85-SUM($G85:AC85),($E85-SUM($G85:AC85))/(OFFSET(AD85,-$D85,0)-(AD$6-$D85-1)))) -> 0 | AE85: =IF(OFFSET(AE85,-$D85,0)="n/a","n/a",IF(AE$6>OFFSET(AE85,-$D85,0)+$D85,$E85-SUM($G85:AD85),($E85-SUM($G85:AD85))/(OFFSET(AE85,-$D85,0)-(AE$6-$D85-1)))) -> 0 | AF85: =IF(OFFSET(AF85,-$D85,0)="n/a","n/a",IF(AF$6>OFFSET(AF85,-$D85,0)+$D85,$E85-SUM($G85:AE85),($E85-SUM($G85:AE85))/(OFFSET(AF85,-$D85,0)-(AF$6-$D85-1)))) -> 0 | AG85: =IF(OFFSET(AG85,-$D85,0)="n/a","n/a",IF(AG$6>OFFSET(AG85,-$D85,0)+$D85,$E85-SUM($G85:AF85),($E85-SUM($G85:AF85))/(OFFSET(AG85,-$D85,0)-(AG$6-$D85-1)))) -> 0 | AH85: =IF(OFFSET(AH85,-$D85,0)="n/a","n/a",IF(AH$6>OFFSET(AH85,-$D85,0)+$D85,$E85-SUM($G85:AG85),($E85-SUM($G85:AG85))/(OFFSET(AH85,-$D85,0)-(AH$6-$D85-1)))) -> 0 | AI85: =IF(OFFSET(AI85,-$D85,0)="n/a","n/a",IF(AI$6>OFFSET(AI85,-$D85,0)+$D85,$E85-SUM($G85:AH85),($E85-SUM($G85:AH85))/(OFFSET(AI85,-$D85,0)-(AI$6-$D85-1)))) -> 0 | AJ85: =IF(OFFSET(AJ85,-$D85,0)="n/a","n/a",IF(AJ$6>OFFSET(AJ85,-$D85,0)+$D85,$E85-SUM($G85:AI85),($E85-SUM($G85:AI85))/(OFFSET(AJ85,-$D85,0)-(AJ$6-$D85-1)))) -> 0 | AK85: =IF(OFFSET(AK85,-$D85,0)="n/a","n/a",IF(AK$6>OFFSET(AK85,-$D85,0)+$D85,$E85-SUM($G85:AJ85),($E85-SUM($G85:AJ85))/(OFFSET(AK85,-$D85,0)-(AK$6-$D85-1)))) -> 0 | AL85: =IF(OFFSET(AL85,-$D85,0)="n/a","n/a",IF(AL$6>OFFSET(AL85,-$D85,0)+$D85,$E85-SUM($G85:AK85),($E85-SUM($G85:AK85))/(OFFSET(AL85,-$D85,0)-(AL$6-$D85-1)))) -> 0
D86: 11 | E86: 0.001236114979 | R86: =IF(OFFSET(R86,-$D86,0)="n/a","n/a",IF(R$6>OFFSET(R86,-$D86,0)+$D86,$E86-SUM($G86:Q86),($E86-SUM($G86:Q86))/(OFFSET(R86,-$D86,0)-(R$6-$D86-1)))) -> 3.090287448e-05 | S86: =IF(OFFSET(S86,-$D86,0)="n/a","n/a",IF(S$6>OFFSET(S86,-$D86,0)+$D86,$E86-SUM($G86:R86),($E86-SUM($G86:R86))/(OFFSET(S86,-$D86,0)-(S$6-$D86-1)))) -> 3.090287448e-05 | T86: =IF(OFFSET(T86,-$D86,0)="n/a","n/a",IF(T$6>OFFSET(T86,-$D86,0)+$D86,$E86-SUM($G86:S86),($E86-SUM($G86:S86))/(OFFSET(T86,-$D86,0)-(T$6-$D86-1)))) -> 3.090287448e-05 | U86: =IF(OFFSET(U86,-$D86,0)="n/a","n/a",IF(U$6>OFFSET(U86,-$D86,0)+$D86,$E86-SUM($G86:T86),($E86-SUM($G86:T86))/(OFFSET(U86,-$D86,0)-(U$6-$D86-1)))) -> 3.090287448e-05 | V86: =IF(OFFSET(V86,-$D86,0)="n/a","n/a",IF(V$6>OFFSET(V86,-$D86,0)+$D86,$E86-SUM($G86:U86),($E86-SUM($G86:U86))/(OFFSET(V86,-$D86,0)-(V$6-$D86-1)))) -> 3.090287448e-05 | W86: =IF(OFFSET(W86,-$D86,0)="n/a","n/a",IF(W$6>OFFSET(W86,-$D86,0)+$D86,$E86-SUM($G86:V86),($E86-SUM($G86:V86))/(OFFSET(W86,-$D86,0)-(W$6-$D86-1)))) -> 3.090287448e-05 | X86: =IF(OFFSET(X86,-$D86,0)="n/a","n/a",IF(X$6>OFFSET(X86,-$D86,0)+$D86,$E86-SUM($G86:W86),($E86-SUM($G86:W86))/(OFFSET(X86,-$D86,0)-(X$6-$D86-1)))) -> 3.090287448e-05 | Y86: =IF(OFFSET(Y86,-$D86,0)="n/a","n/a",IF(Y$6>OFFSET(Y86,-$D86,0)+$D86,$E86-SUM($G86:X86),($E86-SUM($G86:X86))/(OFFSET(Y86,-$D86,0)-(Y$6-$D86-1)))) -> 3.090287448e-05 | Z86: =IF(OFFSET(Z86,-$D86,0)="n/a","n/a",IF(Z$6>OFFSET(Z86,-$D86,0)+$D86,$E86-SUM($G86:Y86),($E86-SUM($G86:Y86))/(OFFSET(Z86,-$D86,0)-(Z$6-$D86-1)))) -> 3.090287448e-05 | AA86: =IF(OFFSET(AA86,-$D86,0)="n/a","n/a",IF(AA$6>OFFSET(AA86,-$D86,0)+$D86,$E86-SUM($G86:Z86),($E86-SUM($G86:Z86))/(OFFSET(AA86,-$D86,0)-(AA$6-$D86-1)))) -> 3.090287448e-05 | AB86: =IF(OFFSET(AB86,-$D86,0)="n/a","n/a",IF(AB$6>OFFSET(AB86,-$D86,0)+$D86,$E86-SUM($G86:AA86),($E86-SUM($G86:AA86))/(OFFSET(AB86,-$D86,0)-(AB$6-$D86-1)))) -> 3.090287448e-05 | AC86: =IF(OFFSET(AC86,-$D86,0)="n/a","n/a",IF(AC$6>OFFSET(AC86,-$D86,0)+$D86,$E86-SUM($G86:AB86),($E86-SUM($G86:AB86))/(OFFSET(AC86,-$D86,0)-(AC$6-$D86-1)))) -> 3.090287448e-05 | AD86: =IF(OFFSET(AD86,-$D86,0)="n/a","n/a",IF(AD$6>OFFSET(AD86,-$D86,0)+$D86,$E86-SUM($G86:AC86),($E86-SUM($G86:AC86))/(OFFSET(AD86,-$D86,0)-(AD$6-$D86-1)))) -> 3.090287448e-05 | AE86: =IF(OFFSET(AE86,-$D86,0)="n/a","n/a",IF(AE$6>OFFSET(AE86,-$D86,0)+$D86,$E86-SUM($G86:AD86),($E86-SUM($G86:AD86))/(OFFSET(AE86,-$D86,0)-(AE$6-$D86-1)))) -> 3.090287448e-05 | AF86: =IF(OFFSET(AF86,-$D86,0)="n/a","n/a",IF(AF$6>OFFSET(AF86,-$D86,0)+$D86,$E86-SUM($G86:AE86),($E86-SUM($G86:AE86))/(OFFSET(AF86,-$D86,0)-(AF$6-$D86-1)))) -> 3.090287448e-05 | AG86: =IF(OFFSET(AG86,-$D86,0)="n/a","n/a",IF(AG$6>OFFSET(AG86,-$D86,0)+$D86,$E86-SUM($G86:AF86),($E86-SUM($G86:AF86))/(OFFSET(AG86,-$D86,0)-(AG$6-$D86-1)))) -> 3.090287448e-05 | AH86: =IF(OFFSET(AH86,-$D86,0)="n/a","n/a",IF(AH$6>OFFSET(AH86,-$D86,0)+$D86,$E86-SUM($G86:AG86),($E86-SUM($G86:AG86))/(OFFSET(AH86,-$D86,0)-(AH$6-$D86-1)))) -> 3.090287448e-05 | AI86: =IF(OFFSET(AI86,-$D86,0)="n/a","n/a",IF(AI$6>OFFSET(AI86,-$D86,0)+$D86,$E86-SUM($G86:AH86),($E86-SUM($G86:AH86))/(OFFSET(AI86,-$D86,0)-(AI$6-$D86-1)))) -> 3.090287448e-05 | AJ86: =IF(OFFSET(AJ86,-$D86,0)="n/a","n/a",IF(AJ$6>OFFSET(AJ86,-$D86,0)+$D86,$E86-SUM($G86:AI86),($E86-SUM($G86:AI86))/(OFFSET(AJ86,-$D86,0)-(AJ$6-$D86-1)))) -> 3.090287448e-05 | AK86: =IF(OFFSET(AK86,-$D86,0)="n/a","n/a",IF(AK$6>OFFSET(AK86,-$D86,0)+$D86,$E86-SUM($G86:AJ86),($E86-SUM($G86:AJ86))/(OFFSET(AK86,-$D86,0)-(AK$6-$D86-1)))) -> 3.090287448e-05 | AL86: =IF(OFFSET(AL86,-$D86,0)="n/a","n/a",IF(AL$6>OFFSET(AL86,-$D86,0)+$D86,$E86-SUM($G86:AK86),($E86-SUM($G86:AK86))/(OFFSET(AL86,-$D86,0)-(AL$6-$D86-1)))) -> 3.090287448e-05
D87: 12 | E87: 0 | S87: =IF(OFFSET(S87,-$D87,0)="n/a","n/a",IF(S$6>OFFSET(S87,-$D87,0)+$D87,$E87-SUM($G87:R87),($E87-SUM($G87:R87))/(OFFSET(S87,-$D87,0)-(S$6-$D87-1)))) -> 0 | T87: =IF(OFFSET(T87,-$D87,0)="n/a","n/a",IF(T$6>OFFSET(T87,-$D87,0)+$D87,$E87-SUM($G87:S87),($E87-SUM($G87:S87))/(OFFSET(T87,-$D87,0)-(T$6-$D87-1)))) -> 0 | U87: =IF(OFFSET(U87,-$D87,0)="n/a","n/a",IF(U$6>OFFSET(U87,-$D87,0)+$D87,$E87-SUM($G87:T87),($E87-SUM($G87:T87))/(OFFSET(U87,-$D87,0)-(U$6-$D87-1)))) -> 0 | V87: =IF(OFFSET(V87,-$D87,0)="n/a","n/a",IF(V$6>OFFSET(V87,-$D87,0)+$D87,$E87-SUM($G87:U87),($E87-SUM($G87:U87))/(OFFSET(V87,-$D87,0)-(V$6-$D87-1)))) -> 0 | W87: =IF(OFFSET(W87,-$D87,0)="n/a","n/a",IF(W$6>OFFSET(W87,-$D87,0)+$D87,$E87-SUM($G87:V87),($E87-SUM($G87:V87))/(OFFSET(W87,-$D87,0)-(W$6-$D87-1)))) -> 0 | X87: =IF(OFFSET(X87,-$D87,0)="n/a","n/a",IF(X$6>OFFSET(X87,-$D87,0)+$D87,$E87-SUM($G87:W87),($E87-SUM($G87:W87))/(OFFSET(X87,-$D87,0)-(X$6-$D87-1)))) -> 0 | Y87: =IF(OFFSET(Y87,-$D87,0)="n/a","n/a",IF(Y$6>OFFSET(Y87,-$D87,0)+$D87,$E87-SUM($G87:X87),($E87-SUM($G87:X87))/(OFFSET(Y87,-$D87,0)-(Y$6-$D87-1)))) -> 0 | Z87: =IF(OFFSET(Z87,-$D87,0)="n/a","n/a",IF(Z$6>OFFSET(Z87,-$D87,0)+$D87,$E87-SUM($G87:Y87),($E87-SUM($G87:Y87))/(OFFSET(Z87,-$D87,0)-(Z$6-$D87-1)))) -> 0 | AA87: =IF(OFFSET(AA87,-$D87,0)="n/a","n/a",IF(AA$6>OFFSET(AA87,-$D87,0)+$D87,$E87-SUM($G87:Z87),($E87-SUM($G87:Z87))/(OFFSET(AA87,-$D87,0)-(AA$6-$D87-1)))) -> 0 | AB87: =IF(OFFSET(AB87,-$D87,0)="n/a","n/a",IF(AB$6>OFFSET(AB87,-$D87,0)+$D87,$E87-SUM($G87:AA87),($E87-SUM($G87:AA87))/(OFFSET(AB87,-$D87,0)-(AB$6-$D87-1)))) -> 0 | AC87: =IF(OFFSET(AC87,-$D87,0)="n/a","n/a",IF(AC$6>OFFSET(AC87,-$D87,0)+$D87,$E87-SUM($G87:AB87),($E87-SUM($G87:AB87))/(OFFSET(AC87,-$D87,0)-(AC$6-$D87-1)))) -> 0 | AD87: =IF(OFFSET(AD87,-$D87,0)="n/a","n/a",IF(AD$6>OFFSET(AD87,-$D87,0)+$D87,$E87-SUM($G87:AC87),($E87-SUM($G87:AC87))/(OFFSET(AD87,-$D87,0)-(AD$6-$D87-1)))) -> 0 | AE87: =IF(OFFSET(AE87,-$D87,0)="n/a","n/a",IF(AE$6>OFFSET(AE87,-$D87,0)+$D87,$E87-SUM($G87:AD87),($E87-SUM($G87:AD87))/(OFFSET(AE87,-$D87,0)-(AE$6-$D87-1)))) -> 0 | AF87: =IF(OFFSET(AF87,-$D87,0)="n/a","n/a",IF(AF$6>OFFSET(AF87,-$D87,0)+$D87,$E87-SUM($G87:AE87),($E87-SUM($G87:AE87))/(OFFSET(AF87,-$D87,0)-(AF$6-$D87-1)))) -> 0 | AG87: =IF(OFFSET(AG87,-$D87,0)="n/a","n/a",IF(AG$6>OFFSET(AG87,-$D87,0)+$D87,$E87-SUM($G87:AF87),($E87-SUM($G87:AF87))/(OFFSET(AG87,-$D87,0)-(AG$6-$D87-1)))) -> 0 | AH87: =IF(OFFSET(AH87,-$D87,0)="n/a","n/a",IF(AH$6>OFFSET(AH87,-$D87,0)+$D87,$E87-SUM($G87:AG87),($E87-SUM($G87:AG87))/(OFFSET(AH87,-$D87,0)-(AH$6-$D87-1)))) -> 0 | AI87: =IF(OFFSET(AI87,-$D87,0)="n/a","n/a",IF(AI$6>OFFSET(AI87,-$D87,0)+$D87,$E87-SUM($G87:AH87),($E87-SUM($G87:AH87))/(OFFSET(AI87,-$D87,0)-(AI$6-$D87-1)))) -> 0 | AJ87: =IF(OFFSET(AJ87,-$D87,0)="n/a","n/a",IF(AJ$6>OFFSET(AJ87,-$D87,0)+$D87,$E87-SUM($G87:AI87),($E87-SUM($G87:AI87))/(OFFSET(AJ87,-$D87,0)-(AJ$6-$D87-1)))) -> 0 | AK87: =IF(OFFSET(AK87,-$D87,0)="n/a","n/a",IF(AK$6>OFFSET(AK87,-$D87,0)+$D87,$E87-SUM($G87:AJ87),($E87-SUM($G87:AJ87))/(OFFSET(AK87,-$D87,0)-(AK$6-$D87-1)))) -> 0 | AL87: =IF(OFFSET(AL87,-$D87,0)="n/a","n/a",IF(AL$6>OFFSET(AL87,-$D87,0)+$D87,$E87-SUM($G87:AK87),($E87-SUM($G87:AK87))/(OFFSET(AL87,-$D87,0)-(AL$6-$D87-1)))) -> 0
D88: 13 | E88: 0 | T88: =IF(OFFSET(T88,-$D88,0)="n/a","n/a",IF(T$6>OFFSET(T88,-$D88,0)+$D88,$E88-SUM($G88:S88),($E88-SUM($G88:S88))/(OFFSET(T88,-$D88,0)-(T$6-$D88-1)))) -> 0 | U88: =IF(OFFSET(U88,-$D88,0)="n/a","n/a",IF(U$6>OFFSET(U88,-$D88,0)+$D88,$E88-SUM($G88:T88),($E88-SUM($G88:T88))/(OFFSET(U88,-$D88,0)-(U$6-$D88-1)))) -> 0 | V88: =IF(OFFSET(V88,-$D88,0)="n/a","n/a",IF(V$6>OFFSET(V88,-$D88,0)+$D88,$E88-SUM($G88:U88),($E88-SUM($G88:U88))/(OFFSET(V88,-$D88,0)-(V$6-$D88-1)))) -> 0 | W88: =IF(OFFSET(W88,-$D88,0)="n/a","n/a",IF(W$6>OFFSET(W88,-$D88,0)+$D88,$E88-SUM($G88:V88),($E88-SUM($G88:V88))/(OFFSET(W88,-$D88,0)-(W$6-$D88-1)))) -> 0 | X88: =IF(OFFSET(X88,-$D88,0)="n/a","n/a",IF(X$6>OFFSET(X88,-$D88,0)+$D88,$E88-SUM($G88:W88),($E88-SUM($G88:W88))/(OFFSET(X88,-$D88,0)-(X$6-$D88-1)))) -> 0 | Y88: =IF(OFFSET(Y88,-$D88,0)="n/a","n/a",IF(Y$6>OFFSET(Y88,-$D88,0)+$D88,$E88-SUM($G88:X88),($E88-SUM($G88:X88))/(OFFSET(Y88,-$D88,0)-(Y$6-$D88-1)))) -> 0 | Z88: =IF(OFFSET(Z88,-$D88,0)="n/a","n/a",IF(Z$6>OFFSET(Z88,-$D88,0)+$D88,$E88-SUM($G88:Y88),($E88-SUM($G88:Y88))/(OFFSET(Z88,-$D88,0)-(Z$6-$D88-1)))) -> 0 | AA88: =IF(OFFSET(AA88,-$D88,0)="n/a","n/a",IF(AA$6>OFFSET(AA88,-$D88,0)+$D88,$E88-SUM($G88:Z88),($E88-SUM($G88:Z88))/(OFFSET(AA88,-$D88,0)-(AA$6-$D88-1)))) -> 0 | AB88: =IF(OFFSET(AB88,-$D88,0)="n/a","n/a",IF(AB$6>OFFSET(AB88,-$D88,0)+$D88,$E88-SUM($G88:AA88),($E88-SUM($G88:AA88))/(OFFSET(AB88,-$D88,0)-(AB$6-$D88-1)))) -> 0 | AC88: =IF(OFFSET(AC88,-$D88,0)="n/a","n/a",IF(AC$6>OFFSET(AC88,-$D88,0)+$D88,$E88-SUM($G88:AB88),($E88-SUM($G88:AB88))/(OFFSET(AC88,-$D88,0)-(AC$6-$D88-1)))) -> 0 | AD88: =IF(OFFSET(AD88,-$D88,0)="n/a","n/a",IF(AD$6>OFFSET(AD88,-$D88,0)+$D88,$E88-SUM($G88:AC88),($E88-SUM($G88:AC88))/(OFFSET(AD88,-$D88,0)-(AD$6-$D88-1)))) -> 0 | AE88: =IF(OFFSET(AE88,-$D88,0)="n/a","n/a",IF(AE$6>OFFSET(AE88,-$D88,0)+$D88,$E88-SUM($G88:AD88),($E88-SUM($G88:AD88))/(OFFSET(AE88,-$D88,0)-(AE$6-$D88-1)))) -> 0 | AF88: =IF(OFFSET(AF88,-$D88,0)="n/a","n/a",IF(AF$6>OFFSET(AF88,-$D88,0)+$D88,$E88-SUM($G88:AE88),($E88-SUM($G88:AE88))/(OFFSET(AF88,-$D88,0)-(AF$6-$D88-1)))) -> 0 | AG88: =IF(OFFSET(AG88,-$D88,0)="n/a","n/a",IF(AG$6>OFFSET(AG88,-$D88,0)+$D88,$E88-SUM($G88:AF88),($E88-SUM($G88:AF88))/(OFFSET(AG88,-$D88,0)-(AG$6-$D88-1)))) -> 0 | AH88: =IF(OFFSET(AH88,-$D88,0)="n/a","n/a",IF(AH$6>OFFSET(AH88,-$D88,0)+$D88,$E88-SUM($G88:AG88),($E88-SUM($G88:AG88))/(OFFSET(AH88,-$D88,0)-(AH$6-$D88-1)))) -> 0 | AI88: =IF(OFFSET(AI88,-$D88,0)="n/a","n/a",IF(AI$6>OFFSET(AI88,-$D88,0)+$D88,$E88-SUM($G88:AH88),($E88-SUM($G88:AH88))/(OFFSET(AI88,-$D88,0)-(AI$6-$D88-1)))) -> 0 | AJ88: =IF(OFFSET(AJ88,-$D88,0)="n/a","n/a",IF(AJ$6>OFFSET(AJ88,-$D88,0)+$D88,$E88-SUM($G88:AI88),($E88-SUM($G88:AI88))/(OFFSET(AJ88,-$D88,0)-(AJ$6-$D88-1)))) -> 0 | AK88: =IF(OFFSET(AK88,-$D88,0)="n/a","n/a",IF(AK$6>OFFSET(AK88,-$D88,0)+$D88,$E88-SUM($G88:AJ88),($E88-SUM($G88:AJ88))/(OFFSET(AK88,-$D88,0)-(AK$6-$D88-1)))) -> 0 | AL88: =IF(OFFSET(AL88,-$D88,0)="n/a","n/a",IF(AL$6>OFFSET(AL88,-$D88,0)+$D88,$E88-SUM($G88:AK88),($E88-SUM($G88:AK88))/(OFFSET(AL88,-$D88,0)-(AL$6-$D88-1)))) -> 0
D89: 14 | E89: 0 | U89: =IF(OFFSET(U89,-$D89,0)="n/a","n/a",IF(U$6>OFFSET(U89,-$D89,0)+$D89,$E89-SUM($G89:T89),($E89-SUM($G89:T89))/(OFFSET(U89,-$D89,0)-(U$6-$D89-1)))) -> 0 | V89: =IF(OFFSET(V89,-$D89,0)="n/a","n/a",IF(V$6>OFFSET(V89,-$D89,0)+$D89,$E89-SUM($G89:U89),($E89-SUM($G89:U89))/(OFFSET(V89,-$D89,0)-(V$6-$D89-1)))) -> 0 | W89: =IF(OFFSET(W89,-$D89,0)="n/a","n/a",IF(W$6>OFFSET(W89,-$D89,0)+$D89,$E89-SUM($G89:V89),($E89-SUM($G89:V89))/(OFFSET(W89,-$D89,0)-(W$6-$D89-1)))) -> 0 | X89: =IF(OFFSET(X89,-$D89,0)="n/a","n/a",IF(X$6>OFFSET(X89,-$D89,0)+$D89,$E89-SUM($G89:W89),($E89-SUM($G89:W89))/(OFFSET(X89,-$D89,0)-(X$6-$D89-1)))) -> 0 | Y89: =IF(OFFSET(Y89,-$D89,0)="n/a","n/a",IF(Y$6>OFFSET(Y89,-$D89,0)+$D89,$E89-SUM($G89:X89),($E89-SUM($G89:X89))/(OFFSET(Y89,-$D89,0)-(Y$6-$D89-1)))) -> 0 | Z89: =IF(OFFSET(Z89,-$D89,0)="n/a","n/a",IF(Z$6>OFFSET(Z89,-$D89,0)+$D89,$E89-SUM($G89:Y89),($E89-SUM($G89:Y89))/(OFFSET(Z89,-$D89,0)-(Z$6-$D89-1)))) -> 0 | AA89: =IF(OFFSET(AA89,-$D89,0)="n/a","n/a",IF(AA$6>OFFSET(AA89,-$D89,0)+$D89,$E89-SUM($G89:Z89),($E89-SUM($G89:Z89))/(OFFSET(AA89,-$D89,0)-(AA$6-$D89-1)))) -> 0 | AB89: =IF(OFFSET(AB89,-$D89,0)="n/a","n/a",IF(AB$6>OFFSET(AB89,-$D89,0)+$D89,$E89-SUM($G89:AA89),($E89-SUM($G89:AA89))/(OFFSET(AB89,-$D89,0)-(AB$6-$D89-1)))) -> 0 | AC89: =IF(OFFSET(AC89,-$D89,0)="n/a","n/a",IF(AC$6>OFFSET(AC89,-$D89,0)+$D89,$E89-SUM($G89:AB89),($E89-SUM($G89:AB89))/(OFFSET(AC89,-$D89,0)-(AC$6-$D89-1)))) -> 0 | AD89: =IF(OFFSET(AD89,-$D89,0)="n/a","n/a",IF(AD$6>OFFSET(AD89,-$D89,0)+$D89,$E89-SUM($G89:AC89),($E89-SUM($G89:AC89))/(OFFSET(AD89,-$D89,0)-(AD$6-$D89-1)))) -> 0 | AE89: =IF(OFFSET(AE89,-$D89,0)="n/a","n/a",IF(AE$6>OFFSET(AE89,-$D89,0)+$D89,$E89-SUM($G89:AD89),($E89-SUM($G89:AD89))/(OFFSET(AE89,-$D89,0)-(AE$6-$D89-1)))) -> 0 | AF89: =IF(OFFSET(AF89,-$D89,0)="n/a","n/a",IF(AF$6>OFFSET(AF89,-$D89,0)+$D89,$E89-SUM($G89:AE89),($E89-SUM($G89:AE89))/(OFFSET(AF89,-$D89,0)-(AF$6-$D89-1)))) -> 0 | AG89: =IF(OFFSET(AG89,-$D89,0)="n/a","n/a",IF(AG$6>OFFSET(AG89,-$D89,0)+$D89,$E89-SUM($G89:AF89),($E89-SUM($G89:AF89))/(OFFSET(AG89,-$D89,0)-(AG$6-$D89-1)))) -> 0 | AH89: =IF(OFFSET(AH89,-$D89,0)="n/a","n/a",IF(AH$6>OFFSET(AH89,-$D89,0)+$D89,$E89-SUM($G89:AG89),($E89-SUM($G89:AG89))/(OFFSET(AH89,-$D89,0)-(AH$6-$D89-1)))) -> 0 | AI89: =IF(OFFSET(AI89,-$D89,0)="n/a","n/a",IF(AI$6>OFFSET(AI89,-$D89,0)+$D89,$E89-SUM($G89:AH89),($E89-SUM($G89:AH89))/(OFFSET(AI89,-$D89,0)-(AI$6-$D89-1)))) -> 0 | AJ89: =IF(OFFSET(AJ89,-$D89,0)="n/a","n/a",IF(AJ$6>OFFSET(AJ89,-$D89,0)+$D89,$E89-SUM($G89:AI89),($E89-SUM($G89:AI89))/(OFFSET(AJ89,-$D89,0)-(AJ$6-$D89-1)))) -> 0 | AK89: =IF(OFFSET(AK89,-$D89,0)="n/a","n/a",IF(AK$6>OFFSET(AK89,-$D89,0)+$D89,$E89-SUM($G89:AJ89),($E89-SUM($G89:AJ89))/(OFFSET(AK89,-$D89,0)-(AK$6-$D89-1)))) -> 0 | AL89: =IF(OFFSET(AL89,-$D89,0)="n/a","n/a",IF(AL$6>OFFSET(AL89,-$D89,0)+$D89,$E89-SUM($G89:AK89),($E89-SUM($G89:AK89))/(OFFSET(AL89,-$D89,0)-(AL$6-$D89-1)))) -> 0
D90: 15 | E90: 0 | V90: =IF(OFFSET(V90,-$D90,0)="n/a","n/a",IF(V$6>OFFSET(V90,-$D90,0)+$D90,$E90-SUM($G90:U90),($E90-SUM($G90:U90))/(OFFSET(V90,-$D90,0)-(V$6-$D90-1)))) -> 0 | W90: =IF(OFFSET(W90,-$D90,0)="n/a","n/a",IF(W$6>OFFSET(W90,-$D90,0)+$D90,$E90-SUM($G90:V90),($E90-SUM($G90:V90))/(OFFSET(W90,-$D90,0)-(W$6-$D90-1)))) -> 0 | X90: =IF(OFFSET(X90,-$D90,0)="n/a","n/a",IF(X$6>OFFSET(X90,-$D90,0)+$D90,$E90-SUM($G90:W90),($E90-SUM($G90:W90))/(OFFSET(X90,-$D90,0)-(X$6-$D90-1)))) -> 0 | Y90: =IF(OFFSET(Y90,-$D90,0)="n/a","n/a",IF(Y$6>OFFSET(Y90,-$D90,0)+$D90,$E90-SUM($G90:X90),($E90-SUM($G90:X90))/(OFFSET(Y90,-$D90,0)-(Y$6-$D90-1)))) -> 0 | Z90: =IF(OFFSET(Z90,-$D90,0)="n/a","n/a",IF(Z$6>OFFSET(Z90,-$D90,0)+$D90,$E90-SUM($G90:Y90),($E90-SUM($G90:Y90))/(OFFSET(Z90,-$D90,0)-(Z$6-$D90-1)))) -> 0 | AA90: =IF(OFFSET(AA90,-$D90,0)="n/a","n/a",IF(AA$6>OFFSET(AA90,-$D90,0)+$D90,$E90-SUM($G90:Z90),($E90-SUM($G90:Z90))/(OFFSET(AA90,-$D90,0)-(AA$6-$D90-1)))) -> 0 | AB90: =IF(OFFSET(AB90,-$D90,0)="n/a","n/a",IF(AB$6>OFFSET(AB90,-$D90,0)+$D90,$E90-SUM($G90:AA90),($E90-SUM($G90:AA90))/(OFFSET(AB90,-$D90,0)-(AB$6-$D90-1)))) -> 0 | AC90: =IF(OFFSET(AC90,-$D90,0)="n/a","n/a",IF(AC$6>OFFSET(AC90,-$D90,0)+$D90,$E90-SUM($G90:AB90),($E90-SUM($G90:AB90))/(OFFSET(AC90,-$D90,0)-(AC$6-$D90-1)))) -> 0 | AD90: =IF(OFFSET(AD90,-$D90,0)="n/a","n/a",IF(AD$6>OFFSET(AD90,-$D90,0)+$D90,$E90-SUM($G90:AC90),($E90-SUM($G90:AC90))/(OFFSET(AD90,-$D90,0)-(AD$6-$D90-1)))) -> 0 | AE90: =IF(OFFSET(AE90,-$D90,0)="n/a","n/a",IF(AE$6>OFFSET(AE90,-$D90,0)+$D90,$E90-SUM($G90:AD90),($E90-SUM($G90:AD90))/(OFFSET(AE90,-$D90,0)-(AE$6-$D90-1)))) -> 0 | AF90: =IF(OFFSET(AF90,-$D90,0)="n/a","n/a",IF(AF$6>OFFSET(AF90,-$D90,0)+$D90,$E90-SUM($G90:AE90),($E90-SUM($G90:AE90))/(OFFSET(AF90,-$D90,0)-(AF$6-$D90-1)))) -> 0 | AG90: =IF(OFFSET(AG90,-$D90,0)="n/a","n/a",IF(AG$6>OFFSET(AG90,-$D90,0)+$D90,$E90-SUM($G90:AF90),($E90-SUM($G90:AF90))/(OFFSET(AG90,-$D90,0)-(AG$6-$D90-1)))) -> 0 | AH90: =IF(OFFSET(AH90,-$D90,0)="n/a","n/a",IF(AH$6>OFFSET(AH90,-$D90,0)+$D90,$E90-SUM($G90:AG90),($E90-SUM($G90:AG90))/(OFFSET(AH90,-$D90,0)-(AH$6-$D90-1)))) -> 0 | AI90: =IF(OFFSET(AI90,-$D90,0)="n/a","n/a",IF(AI$6>OFFSET(AI90,-$D90,0)+$D90,$E90-SUM($G90:AH90),($E90-SUM($G90:AH90))/(OFFSET(AI90,-$D90,0)-(AI$6-$D90-1)))) -> 0 | AJ90: =IF(OFFSET(AJ90,-$D90,0)="n/a","n/a",IF(AJ$6>OFFSET(AJ90,-$D90,0)+$D90,$E90-SUM($G90:AI90),($E90-SUM($G90:AI90))/(OFFSET(AJ90,-$D90,0)-(AJ$6-$D90-1)))) -> 0 | AK90: =IF(OFFSET(AK90,-$D90,0)="n/a","n/a",IF(AK$6>OFFSET(AK90,-$D90,0)+$D90,$E90-SUM($G90:AJ90),($E90-SUM($G90:AJ90))/(OFFSET(AK90,-$D90,0)-(AK$6-$D90-1)))) -> 0 | AL90: =IF(OFFSET(AL90,-$D90,0)="n/a","n/a",IF(AL$6>OFFSET(AL90,-$D90,0)+$D90,$E90-SUM($G90:AK90),($E90-SUM($G90:AK90))/(OFFSET(AL90,-$D90,0)-(AL$6-$D90-1)))) -> 0
D91: 16 | E91: 0 | W91: =IF(OFFSET(W91,-$D91,0)="n/a","n/a",IF(W$6>OFFSET(W91,-$D91,0)+$D91,$E91-SUM($G91:V91),($E91-SUM($G91:V91))/(OFFSET(W91,-$D91,0)-(W$6-$D91-1)))) -> 0 | X91: =IF(OFFSET(X91,-$D91,0)="n/a","n/a",IF(X$6>OFFSET(X91,-$D91,0)+$D91,$E91-SUM($G91:W91),($E91-SUM($G91:W91))/(OFFSET(X91,-$D91,0)-(X$6-$D91-1)))) -> 0 | Y91: =IF(OFFSET(Y91,-$D91,0)="n/a","n/a",IF(Y$6>OFFSET(Y91,-$D91,0)+$D91,$E91-SUM($G91:X91),($E91-SUM($G91:X91))/(OFFSET(Y91,-$D91,0)-(Y$6-$D91-1)))) -> 0 | Z91: =IF(OFFSET(Z91,-$D91,0)="n/a","n/a",IF(Z$6>OFFSET(Z91,-$D91,0)+$D91,$E91-SUM($G91:Y91),($E91-SUM($G91:Y91))/(OFFSET(Z91,-$D91,0)-(Z$6-$D91-1)))) -> 0 | AA91: =IF(OFFSET(AA91,-$D91,0)="n/a","n/a",IF(AA$6>OFFSET(AA91,-$D91,0)+$D91,$E91-SUM($G91:Z91),($E91-SUM($G91:Z91))/(OFFSET(AA91,-$D91,0)-(AA$6-$D91-1)))) -> 0 | AB91: =IF(OFFSET(AB91,-$D91,0)="n/a","n/a",IF(AB$6>OFFSET(AB91,-$D91,0)+$D91,$E91-SUM($G91:AA91),($E91-SUM($G91:AA91))/(OFFSET(AB91,-$D91,0)-(AB$6-$D91-1)))) -> 0 | AC91: =IF(OFFSET(AC91,-$D91,0)="n/a","n/a",IF(AC$6>OFFSET(AC91,-$D91,0)+$D91,$E91-SUM($G91:AB91),($E91-SUM($G91:AB91))/(OFFSET(AC91,-$D91,0)-(AC$6-$D91-1)))) -> 0 | AD91: =IF(OFFSET(AD91,-$D91,0)="n/a","n/a",IF(AD$6>OFFSET(AD91,-$D91,0)+$D91,$E91-SUM($G91:AC91),($E91-SUM($G91:AC91))/(OFFSET(AD91,-$D91,0)-(AD$6-$D91-1)))) -> 0 | AE91: =IF(OFFSET(AE91,-$D91,0)="n/a","n/a",IF(AE$6>OFFSET(AE91,-$D91,0)+$D91,$E91-SUM($G91:AD91),($E91-SUM($G91:AD91))/(OFFSET(AE91,-$D91,0)-(AE$6-$D91-1)))) -> 0 | AF91: =IF(OFFSET(AF91,-$D91,0)="n/a","n/a",IF(AF$6>OFFSET(AF91,-$D91,0)+$D91,$E91-SUM($G91:AE91),($E91-SUM($G91:AE91))/(OFFSET(AF91,-$D91,0)-(AF$6-$D91-1)))) -> 0 | AG91: =IF(OFFSET(AG91,-$D91,0)="n/a","n/a",IF(AG$6>OFFSET(AG91,-$D91,0)+$D91,$E91-SUM($G91:AF91),($E91-SUM($G91:AF91))/(OFFSET(AG91,-$D91,0)-(AG$6-$D91-1)))) -> 0 | AH91: =IF(OFFSET(AH91,-$D91,0)="n/a","n/a",IF(AH$6>OFFSET(AH91,-$D91,0)+$D91,$E91-SUM($G91:AG91),($E91-SUM($G91:AG91))/(OFFSET(AH91,-$D91,0)-(AH$6-$D91-1)))) -> 0 | AI91: =IF(OFFSET(AI91,-$D91,0)="n/a","n/a",IF(AI$6>OFFSET(AI91,-$D91,0)+$D91,$E91-SUM($G91:AH91),($E91-SUM($G91:AH91))/(OFFSET(AI91,-$D91,0)-(AI$6-$D91-1)))) -> 0 | AJ91: =IF(OFFSET(AJ91,-$D91,0)="n/a","n/a",IF(AJ$6>OFFSET(AJ91,-$D91,0)+$D91,$E91-SUM($G91:AI91),($E91-SUM($G91:AI91))/(OFFSET(AJ91,-$D91,0)-(AJ$6-$D91-1)))) -> 0 | AK91: =IF(OFFSET(AK91,-$D91,0)="n/a","n/a",IF(AK$6>OFFSET(AK91,-$D91,0)+$D91,$E91-SUM($G91:AJ91),($E91-SUM($G91:AJ91))/(OFFSET(AK91,-$D91,0)-(AK$6-$D91-1)))) -> 0 | AL91: =IF(OFFSET(AL91,-$D91,0)="n/a","n/a",IF(AL$6>OFFSET(AL91,-$D91,0)+$D91,$E91-SUM($G91:AK91),($E91-SUM($G91:AK91))/(OFFSET(AL91,-$D91,0)-(AL$6-$D91-1)))) -> 0
D92: 17 | E92: 0 | X92: =IF(OFFSET(X92,-$D92,0)="n/a","n/a",IF(X$6>OFFSET(X92,-$D92,0)+$D92,$E92-SUM($G92:W92),($E92-SUM($G92:W92))/(OFFSET(X92,-$D92,0)-(X$6-$D92-1)))) -> 0 | Y92: =IF(OFFSET(Y92,-$D92,0)="n/a","n/a",IF(Y$6>OFFSET(Y92,-$D92,0)+$D92,$E92-SUM($G92:X92),($E92-SUM($G92:X92))/(OFFSET(Y92,-$D92,0)-(Y$6-$D92-1)))) -> 0 | Z92: =IF(OFFSET(Z92,-$D92,0)="n/a","n/a",IF(Z$6>OFFSET(Z92,-$D92,0)+$D92,$E92-SUM($G92:Y92),($E92-SUM($G92:Y92))/(OFFSET(Z92,-$D92,0)-(Z$6-$D92-1)))) -> 0 | AA92: =IF(OFFSET(AA92,-$D92,0)="n/a","n/a",IF(AA$6>OFFSET(AA92,-$D92,0)+$D92,$E92-SUM($G92:Z92),($E92-SUM($G92:Z92))/(OFFSET(AA92,-$D92,0)-(AA$6-$D92-1)))) -> 0 | AB92: =IF(OFFSET(AB92,-$D92,0)="n/a","n/a",IF(AB$6>OFFSET(AB92,-$D92,0)+$D92,$E92-SUM($G92:AA92),($E92-SUM($G92:AA92))/(OFFSET(AB92,-$D92,0)-(AB$6-$D92-1)))) -> 0 | AC92: =IF(OFFSET(AC92,-$D92,0)="n/a","n/a",IF(AC$6>OFFSET(AC92,-$D92,0)+$D92,$E92-SUM($G92:AB92),($E92-SUM($G92:AB92))/(OFFSET(AC92,-$D92,0)-(AC$6-$D92-1)))) -> 0 | AD92: =IF(OFFSET(AD92,-$D92,0)="n/a","n/a",IF(AD$6>OFFSET(AD92,-$D92,0)+$D92,$E92-SUM($G92:AC92),($E92-SUM($G92:AC92))/(OFFSET(AD92,-$D92,0)-(AD$6-$D92-1)))) -> 0 | AE92: =IF(OFFSET(AE92,-$D92,0)="n/a","n/a",IF(AE$6>OFFSET(AE92,-$D92,0)+$D92,$E92-SUM($G92:AD92),($E92-SUM($G92:AD92))/(OFFSET(AE92,-$D92,0)-(AE$6-$D92-1)))) -> 0 | AF92: =IF(OFFSET(AF92,-$D92,0)="n/a","n/a",IF(AF$6>OFFSET(AF92,-$D92,0)+$D92,$E92-SUM($G92:AE92),($E92-SUM($G92:AE92))/(OFFSET(AF92,-$D92,0)-(AF$6-$D92-1)))) -> 0 | AG92: =IF(OFFSET(AG92,-$D92,0)="n/a","n/a",IF(AG$6>OFFSET(AG92,-$D92,0)+$D92,$E92-SUM($G92:AF92),($E92-SUM($G92:AF92))/(OFFSET(AG92,-$D92,0)-(AG$6-$D92-1)))) -> 0 | AH92: =IF(OFFSET(AH92,-$D92,0)="n/a","n/a",IF(AH$6>OFFSET(AH92,-$D92,0)+$D92,$E92-SUM($G92:AG92),($E92-SUM($G92:AG92))/(OFFSET(AH92,-$D92,0)-(AH$6-$D92-1)))) -> 0 | AI92: =IF(OFFSET(AI92,-$D92,0)="n/a","n/a",IF(AI$6>OFFSET(AI92,-$D92,0)+$D92,$E92-SUM($G92:AH92),($E92-SUM($G92:AH92))/(OFFSET(AI92,-$D92,0)-(AI$6-$D92-1)))) -> 0 | AJ92: =IF(OFFSET(AJ92,-$D92,0)="n/a","n/a",IF(AJ$6>OFFSET(AJ92,-$D92,0)+$D92,$E92-SUM($G92:AI92),($E92-SUM($G92:AI92))/(OFFSET(AJ92,-$D92,0)-(AJ$6-$D92-1)))) -> 0 | AK92: =IF(OFFSET(AK92,-$D92,0)="n/a","n/a",IF(AK$6>OFFSET(AK92,-$D92,0)+$D92,$E92-SUM($G92:AJ92),($E92-SUM($G92:AJ92))/(OFFSET(AK92,-$D92,0)-(AK$6-$D92-1)))) -> 0 | AL92: =IF(OFFSET(AL92,-$D92,0)="n/a","n/a",IF(AL$6>OFFSET(AL92,-$D92,0)+$D92,$E92-SUM($G92:AK92),($E92-SUM($G92:AK92))/(OFFSET(AL92,-$D92,0)-(AL$6-$D92-1)))) -> 0
D93: 18 | E93: 0 | Y93: =IF(OFFSET(Y93,-$D93,0)="n/a","n/a",IF(Y$6>OFFSET(Y93,-$D93,0)+$D93,$E93-SUM($G93:X93),($E93-SUM($G93:X93))/(OFFSET(Y93,-$D93,0)-(Y$6-$D93-1)))) -> 0 | Z93: =IF(OFFSET(Z93,-$D93,0)="n/a","n/a",IF(Z$6>OFFSET(Z93,-$D93,0)+$D93,$E93-SUM($G93:Y93),($E93-SUM($G93:Y93))/(OFFSET(Z93,-$D93,0)-(Z$6-$D93-1)))) -> 0 | AA93: =IF(OFFSET(AA93,-$D93,0)="n/a","n/a",IF(AA$6>OFFSET(AA93,-$D93,0)+$D93,$E93-SUM($G93:Z93),($E93-SUM($G93:Z93))/(OFFSET(AA93,-$D93,0)-(AA$6-$D93-1)))) -> 0 | AB93: =IF(OFFSET(AB93,-$D93,0)="n/a","n/a",IF(AB$6>OFFSET(AB93,-$D93,0)+$D93,$E93-SUM($G93:AA93),($E93-SUM($G93:AA93))/(OFFSET(AB93,-$D93,0)-(AB$6-$D93-1)))) -> 0 | AC93: =IF(OFFSET(AC93,-$D93,0)="n/a","n/a",IF(AC$6>OFFSET(AC93,-$D93,0)+$D93,$E93-SUM($G93:AB93),($E93-SUM($G93:AB93))/(OFFSET(AC93,-$D93,0)-(AC$6-$D93-1)))) -> 0 | AD93: =IF(OFFSET(AD93,-$D93,0)="n/a","n/a",IF(AD$6>OFFSET(AD93,-$D93,0)+$D93,$E93-SUM($G93:AC93),($E93-SUM($G93:AC93))/(OFFSET(AD93,-$D93,0)-(AD$6-$D93-1)))) -> 0 | AE93: =IF(OFFSET(AE93,-$D93,0)="n/a","n/a",IF(AE$6>OFFSET(AE93,-$D93,0)+$D93,$E93-SUM($G93:AD93),($E93-SUM($G93:AD93))/(OFFSET(AE93,-$D93,0)-(AE$6-$D93-1)))) -> 0 | AF93: =IF(OFFSET(AF93,-$D93,0)="n/a","n/a",IF(AF$6>OFFSET(AF93,-$D93,0)+$D93,$E93-SUM($G93:AE93),($E93-SUM($G93:AE93))/(OFFSET(AF93,-$D93,0)-(AF$6-$D93-1)))) -> 0 | AG93: =IF(OFFSET(AG93,-$D93,0)="n/a","n/a",IF(AG$6>OFFSET(AG93,-$D93,0)+$D93,$E93-SUM($G93:AF93),($E93-SUM($G93:AF93))/(OFFSET(AG93,-$D93,0)-(AG$6-$D93-1)))) -> 0 | AH93: =IF(OFFSET(AH93,-$D93,0)="n/a","n/a",IF(AH$6>OFFSET(AH93,-$D93,0)+$D93,$E93-SUM($G93:AG93),($E93-SUM($G93:AG93))/(OFFSET(AH93,-$D93,0)-(AH$6-$D93-1)))) -> 0 | AI93: =IF(OFFSET(AI93,-$D93,0)="n/a","n/a",IF(AI$6>OFFSET(AI93,-$D93,0)+$D93,$E93-SUM($G93:AH93),($E93-SUM($G93:AH93))/(OFFSET(AI93,-$D93,0)-(AI$6-$D93-1)))) -> 0 | AJ93: =IF(OFFSET(AJ93,-$D93,0)="n/a","n/a",IF(AJ$6>OFFSET(AJ93,-$D93,0)+$D93,$E93-SUM($G93:AI93),($E93-SUM($G93:AI93))/(OFFSET(AJ93,-$D93,0)-(AJ$6-$D93-1)))) -> 0 | AK93: =IF(OFFSET(AK93,-$D93,0)="n/a","n/a",IF(AK$6>OFFSET(AK93,-$D93,0)+$D93,$E93-SUM($G93:AJ93),($E93-SUM($G93:AJ93))/(OFFSET(AK93,-$D93,0)-(AK$6-$D93-1)))) -> 0 | AL93: =IF(OFFSET(AL93,-$D93,0)="n/a","n/a",IF(AL$6>OFFSET(AL93,-$D93,0)+$D93,$E93-SUM($G93:AK93),($E93-SUM($G93:AK93))/(OFFSET(AL93,-$D93,0)-(AL$6-$D93-1)))) -> 0
D94: 19 | E94: 0 | Z94: =IF(OFFSET(Z94,-$D94,0)="n/a","n/a",IF(Z$6>OFFSET(Z94,-$D94,0)+$D94,$E94-SUM($G94:Y94),($E94-SUM($G94:Y94))/(OFFSET(Z94,-$D94,0)-(Z$6-$D94-1)))) -> 0 | AA94: =IF(OFFSET(AA94,-$D94,0)="n/a","n/a",IF(AA$6>OFFSET(AA94,-$D94,0)+$D94,$E94-SUM($G94:Z94),($E94-SUM($G94:Z94))/(OFFSET(AA94,-$D94,0)-(AA$6-$D94-1)))) -> 0 | AB94: =IF(OFFSET(AB94,-$D94,0)="n/a","n/a",IF(AB$6>OFFSET(AB94,-$D94,0)+$D94,$E94-SUM($G94:AA94),($E94-SUM($G94:AA94))/(OFFSET(AB94,-$D94,0)-(AB$6-$D94-1)))) -> 0 | AC94: =IF(OFFSET(AC94,-$D94,0)="n/a","n/a",IF(AC$6>OFFSET(AC94,-$D94,0)+$D94,$E94-SUM($G94:AB94),($E94-SUM($G94:AB94))/(OFFSET(AC94,-$D94,0)-(AC$6-$D94-1)))) -> 0 | AD94: =IF(OFFSET(AD94,-$D94,0)="n/a","n/a",IF(AD$6>OFFSET(AD94,-$D94,0)+$D94,$E94-SUM($G94:AC94),($E94-SUM($G94:AC94))/(OFFSET(AD94,-$D94,0)-(AD$6-$D94-1)))) -> 0 | AE94: =IF(OFFSET(AE94,-$D94,0)="n/a","n/a",IF(AE$6>OFFSET(AE94,-$D94,0)+$D94,$E94-SUM($G94:AD94),($E94-SUM($G94:AD94))/(OFFSET(AE94,-$D94,0)-(AE$6-$D94-1)))) -> 0 | AF94: =IF(OFFSET(AF94,-$D94,0)="n/a","n/a",IF(AF$6>OFFSET(AF94,-$D94,0)+$D94,$E94-SUM($G94:AE94),($E94-SUM($G94:AE94))/(OFFSET(AF94,-$D94,0)-(AF$6-$D94-1)))) -> 0 | AG94: =IF(OFFSET(AG94,-$D94,0)="n/a","n/a",IF(AG$6>OFFSET(AG94,-$D94,0)+$D94,$E94-SUM($G94:AF94),($E94-SUM($G94:AF94))/(OFFSET(AG94,-$D94,0)-(AG$6-$D94-1)))) -> 0 | AH94: =IF(OFFSET(AH94,-$D94,0)="n/a","n/a",IF(AH$6>OFFSET(AH94,-$D94,0)+$D94,$E94-SUM($G94:AG94),($E94-SUM($G94:AG94))/(OFFSET(AH94,-$D94,0)-(AH$6-$D94-1)))) -> 0 | AI94: =IF(OFFSET(AI94,-$D94,0)="n/a","n/a",IF(AI$6>OFFSET(AI94,-$D94,0)+$D94,$E94-SUM($G94:AH94),($E94-SUM($G94:AH94))/(OFFSET(AI94,-$D94,0)-(AI$6-$D94-1)))) -> 0 | AJ94: =IF(OFFSET(AJ94,-$D94,0)="n/a","n/a",IF(AJ$6>OFFSET(AJ94,-$D94,0)+$D94,$E94-SUM($G94:AI94),($E94-SUM($G94:AI94))/(OFFSET(AJ94,-$D94,0)-(AJ$6-$D94-1)))) -> 0 | AK94: =IF(OFFSET(AK94,-$D94,0)="n/a","n/a",IF(AK$6>OFFSET(AK94,-$D94,0)+$D94,$E94-SUM($G94:AJ94),($E94-SUM($G94:AJ94))/(OFFSET(AK94,-$D94,0)-(AK$6-$D94-1)))) -> 0 | AL94: =IF(OFFSET(AL94,-$D94,0)="n/a","n/a",IF(AL$6>OFFSET(AL94,-$D94,0)+$D94,$E94-SUM($G94:AK94),($E94-SUM($G94:AK94))/(OFFSET(AL94,-$D94,0)-(AL$6-$D94-1)))) -> 0
D95: 20 | E95: 0 | AA95: =IF(OFFSET(AA95,-$D95,0)="n/a","n/a",IF(AA$6>OFFSET(AA95,-$D95,0)+$D95,$E95-SUM($G95:Z95),($E95-SUM($G95:Z95))/(OFFSET(AA95,-$D95,0)-(AA$6-$D95-1)))) -> 0 | AB95: =IF(OFFSET(AB95,-$D95,0)="n/a","n/a",IF(AB$6>OFFSET(AB95,-$D95,0)+$D95,$E95-SUM($G95:AA95),($E95-SUM($G95:AA95))/(OFFSET(AB95,-$D95,0)-(AB$6-$D95-1)))) -> 0 | AC95: =IF(OFFSET(AC95,-$D95,0)="n/a","n/a",IF(AC$6>OFFSET(AC95,-$D95,0)+$D95,$E95-SUM($G95:AB95),($E95-SUM($G95:AB95))/(OFFSET(AC95,-$D95,0)-(AC$6-$D95-1)))) -> 0 | AD95: =IF(OFFSET(AD95,-$D95,0)="n/a","n/a",IF(AD$6>OFFSET(AD95,-$D95,0)+$D95,$E95-SUM($G95:AC95),($E95-SUM($G95:AC95))/(OFFSET(AD95,-$D95,0)-(AD$6-$D95-1)))) -> 0 | AE95: =IF(OFFSET(AE95,-$D95,0)="n/a","n/a",IF(AE$6>OFFSET(AE95,-$D95,0)+$D95,$E95-SUM($G95:AD95),($E95-SUM($G95:AD95))/(OFFSET(AE95,-$D95,0)-(AE$6-$D95-1)))) -> 0 | AF95: =IF(OFFSET(AF95,-$D95,0)="n/a","n/a",IF(AF$6>OFFSET(AF95,-$D95,0)+$D95,$E95-SUM($G95:AE95),($E95-SUM($G95:AE95))/(OFFSET(AF95,-$D95,0)-(AF$6-$D95-1)))) -> 0 | AG95: =IF(OFFSET(AG95,-$D95,0)="n/a","n/a",IF(AG$6>OFFSET(AG95,-$D95,0)+$D95,$E95-SUM($G95:AF95),($E95-SUM($G95:AF95))/(OFFSET(AG95,-$D95,0)-(AG$6-$D95-1)))) -> 0 | AH95: =IF(OFFSET(AH95,-$D95,0)="n/a","n/a",IF(AH$6>OFFSET(AH95,-$D95,0)+$D95,$E95-SUM($G95:AG95),($E95-SUM($G95:AG95))/(OFFSET(AH95,-$D95,0)-(AH$6-$D95-1)))) -> 0 | AI95: =IF(OFFSET(AI95,-$D95,0)="n/a","n/a",IF(AI$6>OFFSET(AI95,-$D95,0)+$D95,$E95-SUM($G95:AH95),($E95-SUM($G95:AH95))/(OFFSET(AI95,-$D95,0)-(AI$6-$D95-1)))) -> 0 | AJ95: =IF(OFFSET(AJ95,-$D95,0)="n/a","n/a",IF(AJ$6>OFFSET(AJ95,-$D95,0)+$D95,$E95-SUM($G95:AI95),($E95-SUM($G95:AI95))/(OFFSET(AJ95,-$D95,0)-(AJ$6-$D95-1)))) -> 0 | AK95: =IF(OFFSET(AK95,-$D95,0)="n/a","n/a",IF(AK$6>OFFSET(AK95,-$D95,0)+$D95,$E95-SUM($G95:AJ95),($E95-SUM($G95:AJ95))/(OFFSET(AK95,-$D95,0)-(AK$6-$D95-1)))) -> 0 | AL95: =IF(OFFSET(AL95,-$D95,0)="n/a","n/a",IF(AL$6>OFFSET(AL95,-$D95,0)+$D95,$E95-SUM($G95:AK95),($E95-SUM($G95:AK95))/(OFFSET(AL95,-$D95,0)-(AL$6-$D95-1)))) -> 0
D96: 21 | E96: 0 | AB96: =IF(OFFSET(AB96,-$D96,0)="n/a","n/a",IF(AB$6>OFFSET(AB96,-$D96,0)+$D96,$E96-SUM($G96:AA96),($E96-SUM($G96:AA96))/(OFFSET(AB96,-$D96,0)-(AB$6-$D96-1)))) -> 0 | AC96: =IF(OFFSET(AC96,-$D96,0)="n/a","n/a",IF(AC$6>OFFSET(AC96,-$D96,0)+$D96,$E96-SUM($G96:AB96),($E96-SUM($G96:AB96))/(OFFSET(AC96,-$D96,0)-(AC$6-$D96-1)))) -> 0 | AD96: =IF(OFFSET(AD96,-$D96,0)="n/a","n/a",IF(AD$6>OFFSET(AD96,-$D96,0)+$D96,$E96-SUM($G96:AC96),($E96-SUM($G96:AC96))/(OFFSET(AD96,-$D96,0)-(AD$6-$D96-1)))) -> 0 | AE96: =IF(OFFSET(AE96,-$D96,0)="n/a","n/a",IF(AE$6>OFFSET(AE96,-$D96,0)+$D96,$E96-SUM($G96:AD96),($E96-SUM($G96:AD96))/(OFFSET(AE96,-$D96,0)-(AE$6-$D96-1)))) -> 0 | AF96: =IF(OFFSET(AF96,-$D96,0)="n/a","n/a",IF(AF$6>OFFSET(AF96,-$D96,0)+$D96,$E96-SUM($G96:AE96),($E96-SUM($G96:AE96))/(OFFSET(AF96,-$D96,0)-(AF$6-$D96-1)))) -> 0 | AG96: =IF(OFFSET(AG96,-$D96,0)="n/a","n/a",IF(AG$6>OFFSET(AG96,-$D96,0)+$D96,$E96-SUM($G96:AF96),($E96-SUM($G96:AF96))/(OFFSET(AG96,-$D96,0)-(AG$6-$D96-1)))) -> 0 | AH96: =IF(OFFSET(AH96,-$D96,0)="n/a","n/a",IF(AH$6>OFFSET(AH96,-$D96,0)+$D96,$E96-SUM($G96:AG96),($E96-SUM($G96:AG96))/(OFFSET(AH96,-$D96,0)-(AH$6-$D96-1)))) -> 0 | AI96: =IF(OFFSET(AI96,-$D96,0)="n/a","n/a",IF(AI$6>OFFSET(AI96,-$D96,0)+$D96,$E96-SUM($G96:AH96),($E96-SUM($G96:AH96))/(OFFSET(AI96,-$D96,0)-(AI$6-$D96-1)))) -> 0 | AJ96: =IF(OFFSET(AJ96,-$D96,0)="n/a","n/a",IF(AJ$6>OFFSET(AJ96,-$D96,0)+$D96,$E96-SUM($G96:AI96),($E96-SUM($G96:AI96))/(OFFSET(AJ96,-$D96,0)-(AJ$6-$D96-1)))) -> 0 | AK96: =IF(OFFSET(AK96,-$D96,0)="n/a","n/a",IF(AK$6>OFFSET(AK96,-$D96,0)+$D96,$E96-SUM($G96:AJ96),($E96-SUM($G96:AJ96))/(OFFSET(AK96,-$D96,0)-(AK$6-$D96-1)))) -> 0 | AL96: =IF(OFFSET(AL96,-$D96,0)="n/a","n/a",IF(AL$6>OFFSET(AL96,-$D96,0)+$D96,$E96-SUM($G96:AK96),($E96-SUM($G96:AK96))/(OFFSET(AL96,-$D96,0)-(AL$6-$D96-1)))) -> 0
D97: 22 | E97: 0 | AC97: =IF(OFFSET(AC97,-$D97,0)="n/a","n/a",IF(AC$6>OFFSET(AC97,-$D97,0)+$D97,$E97-SUM($G97:AB97),($E97-SUM($G97:AB97))/(OFFSET(AC97,-$D97,0)-(AC$6-$D97-1)))) -> 0 | AD97: =IF(OFFSET(AD97,-$D97,0)="n/a","n/a",IF(AD$6>OFFSET(AD97,-$D97,0)+$D97,$E97-SUM($G97:AC97),($E97-SUM($G97:AC97))/(OFFSET(AD97,-$D97,0)-(AD$6-$D97-1)))) -> 0 | AE97: =IF(OFFSET(AE97,-$D97,0)="n/a","n/a",IF(AE$6>OFFSET(AE97,-$D97,0)+$D97,$E97-SUM($G97:AD97),($E97-SUM($G97:AD97))/(OFFSET(AE97,-$D97,0)-(AE$6-$D97-1)))) -> 0 | AF97: =IF(OFFSET(AF97,-$D97,0)="n/a","n/a",IF(AF$6>OFFSET(AF97,-$D97,0)+$D97,$E97-SUM($G97:AE97),($E97-SUM($G97:AE97))/(OFFSET(AF97,-$D97,0)-(AF$6-$D97-1)))) -> 0 | AG97: =IF(OFFSET(AG97,-$D97,0)="n/a","n/a",IF(AG$6>OFFSET(AG97,-$D97,0)+$D97,$E97-SUM($G97:AF97),($E97-SUM($G97:AF97))/(OFFSET(AG97,-$D97,0)-(AG$6-$D97-1)))) -> 0 | AH97: =IF(OFFSET(AH97,-$D97,0)="n/a","n/a",IF(AH$6>OFFSET(AH97,-$D97,0)+$D97,$E97-SUM($G97:AG97),($E97-SUM($G97:AG97))/(OFFSET(AH97,-$D97,0)-(AH$6-$D97-1)))) -> 0 | AI97: =IF(OFFSET(AI97,-$D97,0)="n/a","n/a",IF(AI$6>OFFSET(AI97,-$D97,0)+$D97,$E97-SUM($G97:AH97),($E97-SUM($G97:AH97))/(OFFSET(AI97,-$D97,0)-(AI$6-$D97-1)))) -> 0 | AJ97: =IF(OFFSET(AJ97,-$D97,0)="n/a","n/a",IF(AJ$6>OFFSET(AJ97,-$D97,0)+$D97,$E97-SUM($G97:AI97),($E97-SUM($G97:AI97))/(OFFSET(AJ97,-$D97,0)-(AJ$6-$D97-1)))) -> 0 | AK97: =IF(OFFSET(AK97,-$D97,0)="n/a","n/a",IF(AK$6>OFFSET(AK97,-$D97,0)+$D97,$E97-SUM($G97:AJ97),($E97-SUM($G97:AJ97))/(OFFSET(AK97,-$D97,0)-(AK$6-$D97-1)))) -> 0 | AL97: =IF(OFFSET(AL97,-$D97,0)="n/a","n/a",IF(AL$6>OFFSET(AL97,-$D97,0)+$D97,$E97-SUM($G97:AK97),($E97-SUM($G97:AK97))/(OFFSET(AL97,-$D97,0)-(AL$6-$D97-1)))) -> 0
D98: 23 | E98: 0 | AD98: =IF(OFFSET(AD98,-$D98,0)="n/a","n/a",IF(AD$6>OFFSET(AD98,-$D98,0)+$D98,$E98-SUM($G98:AC98),($E98-SUM($G98:AC98))/(OFFSET(AD98,-$D98,0)-(AD$6-$D98-1)))) -> 0 | AE98: =IF(OFFSET(AE98,-$D98,0)="n/a","n/a",IF(AE$6>OFFSET(AE98,-$D98,0)+$D98,$E98-SUM($G98:AD98),($E98-SUM($G98:AD98))/(OFFSET(AE98,-$D98,0)-(AE$6-$D98-1)))) -> 0 | AF98: =IF(OFFSET(AF98,-$D98,0)="n/a","n/a",IF(AF$6>OFFSET(AF98,-$D98,0)+$D98,$E98-SUM($G98:AE98),($E98-SUM($G98:AE98))/(OFFSET(AF98,-$D98,0)-(AF$6-$D98-1)))) -> 0 | AG98: =IF(OFFSET(AG98,-$D98,0)="n/a","n/a",IF(AG$6>OFFSET(AG98,-$D98,0)+$D98,$E98-SUM($G98:AF98),($E98-SUM($G98:AF98))/(OFFSET(AG98,-$D98,0)-(AG$6-$D98-1)))) -> 0 | AH98: =IF(OFFSET(AH98,-$D98,0)="n/a","n/a",IF(AH$6>OFFSET(AH98,-$D98,0)+$D98,$E98-SUM($G98:AG98),($E98-SUM($G98:AG98))/(OFFSET(AH98,-$D98,0)-(AH$6-$D98-1)))) -> 0 | AI98: =IF(OFFSET(AI98,-$D98,0)="n/a","n/a",IF(AI$6>OFFSET(AI98,-$D98,0)+$D98,$E98-SUM($G98:AH98),($E98-SUM($G98:AH98))/(OFFSET(AI98,-$D98,0)-(AI$6-$D98-1)))) -> 0 | AJ98: =IF(OFFSET(AJ98,-$D98,0)="n/a","n/a",IF(AJ$6>OFFSET(AJ98,-$D98,0)+$D98,$E98-SUM($G98:AI98),($E98-SUM($G98:AI98))/(OFFSET(AJ98,-$D98,0)-(AJ$6-$D98-1)))) -> 0 | AK98: =IF(OFFSET(AK98,-$D98,0)="n/a","n/a",IF(AK$6>OFFSET(AK98,-$D98,0)+$D98,$E98-SUM($G98:AJ98),($E98-SUM($G98:AJ98))/(OFFSET(AK98,-$D98,0)-(AK$6-$D98-1)))) -> 0 | AL98: =IF(OFFSET(AL98,-$D98,0)="n/a","n/a",IF(AL$6>OFFSET(AL98,-$D98,0)+$D98,$E98-SUM($G98:AK98),($E98-SUM($G98:AK98))/(OFFSET(AL98,-$D98,0)-(AL$6-$D98-1)))) -> 0
D99: 24 | E99: 0 | AE99: =IF(OFFSET(AE99,-$D99,0)="n/a","n/a",IF(AE$6>OFFSET(AE99,-$D99,0)+$D99,$E99-SUM($G99:AD99),($E99-SUM($G99:AD99))/(OFFSET(AE99,-$D99,0)-(AE$6-$D99-1)))) -> 0 | AF99: =IF(OFFSET(AF99,-$D99,0)="n/a","n/a",IF(AF$6>OFFSET(AF99,-$D99,0)+$D99,$E99-SUM($G99:AE99),($E99-SUM($G99:AE99))/(OFFSET(AF99,-$D99,0)-(AF$6-$D99-1)))) -> 0 | AG99: =IF(OFFSET(AG99,-$D99,0)="n/a","n/a",IF(AG$6>OFFSET(AG99,-$D99,0)+$D99,$E99-SUM($G99:AF99),($E99-SUM($G99:AF99))/(OFFSET(AG99,-$D99,0)-(AG$6-$D99-1)))) -> 0 | AH99: =IF(OFFSET(AH99,-$D99,0)="n/a","n/a",IF(AH$6>OFFSET(AH99,-$D99,0)+$D99,$E99-SUM($G99:AG99),($E99-SUM($G99:AG99))/(OFFSET(AH99,-$D99,0)-(AH$6-$D99-1)))) -> 0 | AI99: =IF(OFFSET(AI99,-$D99,0)="n/a","n/a",IF(AI$6>OFFSET(AI99,-$D99,0)+$D99,$E99-SUM($G99:AH99),($E99-SUM($G99:AH99))/(OFFSET(AI99,-$D99,0)-(AI$6-$D99-1)))) -> 0 | AJ99: =IF(OFFSET(AJ99,-$D99,0)="n/a","n/a",IF(AJ$6>OFFSET(AJ99,-$D99,0)+$D99,$E99-SUM($G99:AI99),($E99-SUM($G99:AI99))/(OFFSET(AJ99,-$D99,0)-(AJ$6-$D99-1)))) -> 0 | AK99: =IF(OFFSET(AK99,-$D99,0)="n/a","n/a",IF(AK$6>OFFSET(AK99,-$D99,0)+$D99,$E99-SUM($G99:AJ99),($E99-SUM($G99:AJ99))/(OFFSET(AK99,-$D99,0)-(AK$6-$D99-1)))) -> 0 | AL99: =IF(OFFSET(AL99,-$D99,0)="n/a","n/a",IF(AL$6>OFFSET(AL99,-$D99,0)+$D99,$E99-SUM($G99:AK99),($E99-SUM($G99:AK99))/(OFFSET(AL99,-$D99,0)-(AL$6-$D99-1)))) -> 0
D100: 25 | E100: 0 | AF100: =IF(OFFSET(AF100,-$D100,0)="n/a","n/a",IF(AF$6>OFFSET(AF100,-$D100,0)+$D100,$E100-SUM($G100:AE100),($E100-SUM($G100:AE100))/(OFFSET(AF100,-$D100,0)-(AF$6-$D100-1)))) -> 0 | AG100: =IF(OFFSET(AG100,-$D100,0)="n/a","n/a",IF(AG$6>OFFSET(AG100,-$D100,0)+$D100,$E100-SUM($G100:AF100),($E100-SUM($G100:AF100))/(OFFSET(AG100,-$D100,0)-(AG$6-$D100-1)))) -> 0 | AH100: =IF(OFFSET(AH100,-$D100,0)="n/a","n/a",IF(AH$6>OFFSET(AH100,-$D100,0)+$D100,$E100-SUM($G100:AG100),($E100-SUM($G100:AG100))/(OFFSET(AH100,-$D100,0)-(AH$6-$D100-1)))) -> 0 | AI100: =IF(OFFSET(AI100,-$D100,0)="n/a","n/a",IF(AI$6>OFFSET(AI100,-$D100,0)+$D100,$E100-SUM($G100:AH100),($E100-SUM($G100:AH100))/(OFFSET(AI100,-$D100,0)-(AI$6-$D100-1)))) -> 0 | AJ100: =IF(OFFSET(AJ100,-$D100,0)="n/a","n/a",IF(AJ$6>OFFSET(AJ100,-$D100,0)+$D100,$E100-SUM($G100:AI100),($E100-SUM($G100:AI100))/(OFFSET(AJ100,-$D100,0)-(AJ$6-$D100-1)))) -> 0 | AK100: =IF(OFFSET(AK100,-$D100,0)="n/a","n/a",IF(AK$6>OFFSET(AK100,-$D100,0)+$D100,$E100-SUM($G100:AJ100),($E100-SUM($G100:AJ100))/(OFFSET(AK100,-$D100,0)-(AK$6-$D100-1)))) -> 0 | AL100: =IF(OFFSET(AL100,-$D100,0)="n/a","n/a",IF(AL$6>OFFSET(AL100,-$D100,0)+$D100,$E100-SUM($G100:AK100),($E100-SUM($G100:AK100))/(OFFSET(AL100,-$D100,0)-(AL$6-$D100-1)))) -> 0
D101: 26 | E101: 0 | AG101: =IF(OFFSET(AG101,-$D101,0)="n/a","n/a",IF(AG$6>OFFSET(AG101,-$D101,0)+$D101,$E101-SUM($G101:AF101),($E101-SUM($G101:AF101))/(OFFSET(AG101,-$D101,0)-(AG$6-$D101-1)))) -> 0 | AH101: =IF(OFFSET(AH101,-$D101,0)="n/a","n/a",IF(AH$6>OFFSET(AH101,-$D101,0)+$D101,$E101-SUM($G101:AG101),($E101-SUM($G101:AG101))/(OFFSET(AH101,-$D101,0)-(AH$6-$D101-1)))) -> 0 | AI101: =IF(OFFSET(AI101,-$D101,0)="n/a","n/a",IF(AI$6>OFFSET(AI101,-$D101,0)+$D101,$E101-SUM($G101:AH101),($E101-SUM($G101:AH101))/(OFFSET(AI101,-$D101,0)-(AI$6-$D101-1)))) -> 0 | AJ101: =IF(OFFSET(AJ101,-$D101,0)="n/a","n/a",IF(AJ$6>OFFSET(AJ101,-$D101,0)+$D101,$E101-SUM($G101:AI101),($E101-SUM($G101:AI101))/(OFFSET(AJ101,-$D101,0)-(AJ$6-$D101-1)))) -> 0 | AK101: =IF(OFFSET(AK101,-$D101,0)="n/a","n/a",IF(AK$6>OFFSET(AK101,-$D101,0)+$D101,$E101-SUM($G101:AJ101),($E101-SUM($G101:AJ101))/(OFFSET(AK101,-$D101,0)-(AK$6-$D101-1)))) -> 0 | AL101: =IF(OFFSET(AL101,-$D101,0)="n/a","n/a",IF(AL$6>OFFSET(AL101,-$D101,0)+$D101,$E101-SUM($G101:AK101),($E101-SUM($G101:AK101))/(OFFSET(AL101,-$D101,0)-(AL$6-$D101-1)))) -> 0
D102: 27 | E102: 0 | AH102: =IF(OFFSET(AH102,-$D102,0)="n/a","n/a",IF(AH$6>OFFSET(AH102,-$D102,0)+$D102,$E102-SUM($G102:AG102),($E102-SUM($G102:AG102))/(OFFSET(AH102,-$D102,0)-(AH$6-$D102-1)))) -> 0 | AI102: =IF(OFFSET(AI102,-$D102,0)="n/a","n/a",IF(AI$6>OFFSET(AI102,-$D102,0)+$D102,$E102-SUM($G102:AH102),($E102-SUM($G102:AH102))/(OFFSET(AI102,-$D102,0)-(AI$6-$D102-1)))) -> 0 | AJ102: =IF(OFFSET(AJ102,-$D102,0)="n/a","n/a",IF(AJ$6>OFFSET(AJ102,-$D102,0)+$D102,$E102-SUM($G102:AI102),($E102-SUM($G102:AI102))/(OFFSET(AJ102,-$D102,0)-(AJ$6-$D102-1)))) -> 0 | AK102: =IF(OFFSET(AK102,-$D102,0)="n/a","n/a",IF(AK$6>OFFSET(AK102,-$D102,0)+$D102,$E102-SUM($G102:AJ102),($E102-SUM($G102:AJ102))/(OFFSET(AK102,-$D102,0)-(AK$6-$D102-1)))) -> 0 | AL102: =IF(OFFSET(AL102,-$D102,0)="n/a","n/a",IF(AL$6>OFFSET(AL102,-$D102,0)+$D102,$E102-SUM($G102:AK102),($E102-SUM($G102:AK102))/(OFFSET(AL102,-$D102,0)-(AL$6-$D102-1)))) -> 0
D103: 28 | E103: 0 | AI103: =IF(OFFSET(AI103,-$D103,0)="n/a","n/a",IF(AI$6>OFFSET(AI103,-$D103,0)+$D103,$E103-SUM($G103:AH103),($E103-SUM($G103:AH103))/(OFFSET(AI103,-$D103,0)-(AI$6-$D103-1)))) -> 0 | AJ103: =IF(OFFSET(AJ103,-$D103,0)="n/a","n/a",IF(AJ$6>OFFSET(AJ103,-$D103,0)+$D103,$E103-SUM($G103:AI103),($E103-SUM($G103:AI103))/(OFFSET(AJ103,-$D103,0)-(AJ$6-$D103-1)))) -> 0 | AK103: =IF(OFFSET(AK103,-$D103,0)="n/a","n/a",IF(AK$6>OFFSET(AK103,-$D103,0)+$D103,$E103-SUM($G103:AJ103),($E103-SUM($G103:AJ103))/(OFFSET(AK103,-$D103,0)-(AK$6-$D103-1)))) -> 0 | AL103: =IF(OFFSET(AL103,-$D103,0)="n/a","n/a",IF(AL$6>OFFSET(AL103,-$D103,0)+$D103,$E103-SUM($G103:AK103),($E103-SUM($G103:AK103))/(OFFSET(AL103,-$D103,0)-(AL$6-$D103-1)))) -> 0
D104: 29 | E104: 0 | AJ104: =IF(OFFSET(AJ104,-$D104,0)="n/a","n/a",IF(AJ$6>OFFSET(AJ104,-$D104,0)+$D104,$E104-SUM($G104:AI104),($E104-SUM($G104:AI104))/(OFFSET(AJ104,-$D104,0)-(AJ$6-$D104-1)))) -> 0 | AK104: =IF(OFFSET(AK104,-$D104,0)="n/a","n/a",IF(AK$6>OFFSET(AK104,-$D104,0)+$D104,$E104-SUM($G104:AJ104),($E104-SUM($G104:AJ104))/(OFFSET(AK104,-$D104,0)-(AK$6-$D104-1)))) -> 0 | AL104: =IF(OFFSET(AL104,-$D104,0)="n/a","n/a",IF(AL$6>OFFSET(AL104,-$D104,0)+$D104,$E104-SUM($G104:AK104),($E104-SUM($G104:AK104))/(OFFSET(AL104,-$D104,0)-(AL$6-$D104-1)))) -> 0
D105: 30 | E105: 0 | AK105: =IF(OFFSET(AK105,-$D105,0)="n/a","n/a",IF(AK$6>OFFSET(AK105,-$D105,0)+$D105,$E105-SUM($G105:AJ105),($E105-SUM($G105:AJ105))/(OFFSET(AK105,-$D105,0)-(AK$6-$D105-1)))) -> 0 | AL105: =IF(OFFSET(AL105,-$D105,0)="n/a","n/a",IF(AL$6>OFFSET(AL105,-$D105,0)+$D105,$E105-SUM($G105:AK105),($E105-SUM($G105:AK105))/(OFFSET(AL105,-$D105,0)-(AL$6-$D105-1)))) -> 0
D106: 31 | E106: 0 | AL106: =IF(OFFSET(AL106,-$D106,0)="n/a","n/a",IF(AL$6>OFFSET(AL106,-$D106,0)+$D106,$E106-SUM($G106:AK106),($E106-SUM($G106:AK106))/(OFFSET(AL106,-$D106,0)-(AL$6-$D106-1)))) -> 0
D107: 32 | E107: 0
B108: =B74 -> 2 | C108: =C74 -> Transmission | F108: Asset Real Straight Line Depreciation | G108: =SUM(G76:G107) -> 0 | H108: =SUM(H76:H107) -> 0 | I108: 0 | J108: 0 | K108: 419.5154643 | L108: 428.9940303 | M108: 428.9940303 | N108: 428.9940303 | O108: 428.9940303 | P108: 428.9940303 | Q108: 428.9940303 | R108: 428.9940612 | S108: 428.9940612 | T108: 428.9940612 | U108: 428.9940612 | V108: 428.9940612 | W108: 428.9940612 | X108: 428.9940612 | Y108: 428.9940612 | Z108: 428.9940612 | AA108: 428.9940612 | AB108: 428.9940612 | AC108: 428.9940612 | AD108: 428.9940612 | AE108: 428.9940612 | AF108: 428.9940612 | AG108: 428.9940612 | AH108: 428.9940612 | AI108: 428.9940612 | AJ108: 428.9940612 | AK108: 428.9940612 | AL108: 428.9940612
A109: =A74+1 -> 3 | B109: =OFFSET($B$13,$A109-1,0) -> 3 | C109: =OFFSET($C$13,$A109-1,0) -> IT | F109: Net Real Capex | G109: =VLOOKUP($B109,$B$13:$AL$22,5+G$6,FALSE) -> 0 | H109: 0 | I109: 0 | J109: 0 | K109: 674.408905 | L109: 7278.28162 | M109: 0 | N109: 14.07699641 | O109: 0 | P109: 0 | Q109: 0 | R109: 0 | S109: 0 | T109: 0 | U109: 0 | V109: 0 | W109: 0 | X109: 0 | Y109: 0 | Z109: 0 | AA109: 0 | AB109: 0 | AC109: 0 | AD109: 0 | AE109: 0 | AF109: 0 | AG109: 0 | AH109: 0 | AI109: 0 | AJ109: 0 | AK109: 0 | AL109: 0
F110: Asset lifetime | G110: 5 | H110: 5 | I110: 5 | J110: 5 | K110: 5 | L110: 5 | M110: 5 | N110: 5 | O110: 5 | P110: 5 | Q110: 5 | R110: 5 | S110: 5 | T110: 5 | U110: 5 | V110: 5 | W110: 5 | X110: 5 | Y110: 5 | Z110: 5 | AA110: 5 | AB110: 5 | AC110: 5 | AD110: 5 | AE110: 5 | AF110: 5 | AG110: 5 | AH110: 5 | AI110: 5 | AJ110: 5 | AK110: 5 | AL110: 5
D111: 1 | E111: =TRANSPOSE(G109:AL109) -> 0 | H111: =IF(OFFSET(H111,-$D111,0)="n/a","n/a",IF(H$6>OFFSET(H111,-$D111,0)+$D111,$E111-SUM($G111:G111),($E111-SUM($G111:G111))/(OFFSET(H111,-$D111,0)-(H$6-$D111-1)))) -> 0 | I111: =IF(OFFSET(I111,-$D111,0)="n/a","n/a",IF(I$6>OFFSET(I111,-$D111,0)+$D111,$E111-SUM($G111:H111),($E111-SUM($G111:H111))/(OFFSET(I111,-$D111,0)-(I$6-$D111-1)))) -> 0 | J111: =IF(OFFSET(J111,-$D111,0)="n/a","n/a",IF(J$6>OFFSET(J111,-$D111,0)+$D111,$E111-SUM($G111:I111),($E111-SUM($G111:I111))/(OFFSET(J111,-$D111,0)-(J$6-$D111-1)))) -> 0 | K111: =IF(OFFSET(K111,-$D111,0)="n/a","n/a",IF(K$6>OFFSET(K111,-$D111,0)+$D111,$E111-SUM($G111:J111),($E111-SUM($G111:J111))/(OFFSET(K111,-$D111,0)-(K$6-$D111-1)))) -> 0 | L111: =IF(OFFSET(L111,-$D111,0)="n/a","n/a",IF(L$6>OFFSET(L111,-$D111,0)+$D111,$E111-SUM($G111:K111),($E111-SUM($G111:K111))/(OFFSET(L111,-$D111,0)-(L$6-$D111-1)))) -> 0 | M111: =IF(OFFSET(M111,-$D111,0)="n/a","n/a",IF(M$6>OFFSET(M111,-$D111,0)+$D111,$E111-SUM($G111:L111),($E111-SUM($G111:L111))/(OFFSET(M111,-$D111,0)-(M$6-$D111-1)))) -> 0 | N111: =IF(OFFSET(N111,-$D111,0)="n/a","n/a",IF(N$6>OFFSET(N111,-$D111,0)+$D111,$E111-SUM($G111:M111),($E111-SUM($G111:M111))/(OFFSET(N111,-$D111,0)-(N$6-$D111-1)))) -> 0 | O111: =IF(OFFSET(O111,-$D111,0)="n/a","n/a",IF(O$6>OFFSET(O111,-$D111,0)+$D111,$E111-SUM($G111:N111),($E111-SUM($G111:N111))/(OFFSET(O111,-$D111,0)-(O$6-$D111-1)))) -> 0 | P111: =IF(OFFSET(P111,-$D111,0)="n/a","n/a",IF(P$6>OFFSET(P111,-$D111,0)+$D111,$E111-SUM($G111:O111),($E111-SUM($G111:O111))/(OFFSET(P111,-$D111,0)-(P$6-$D111-1)))) -> 0 | Q111: =IF(OFFSET(Q111,-$D111,0)="n/a","n/a",IF(Q$6>OFFSET(Q111,-$D111,0)+$D111,$E111-SUM($G111:P111),($E111-SUM($G111:P111))/(OFFSET(Q111,-$D111,0)-(Q$6-$D111-1)))) -> 0 | R111: =IF(OFFSET(R111,-$D111,0)="n/a","n/a",IF(R$6>OFFSET(R111,-$D111,0)+$D111,$E111-SUM($G111:Q111),($E111-SUM($G111:Q111))/(OFFSET(R111,-$D111,0)-(R$6-$D111-1)))) -> 0 | S111: =IF(OFFSET(S111,-$D111,0)="n/a","n/a",IF(S$6>OFFSET(S111,-$D111,0)+$D111,$E111-SUM($G111:R111),($E111-SUM($G111:R111))/(OFFSET(S111,-$D111,0)-(S$6-$D111-1)))) -> 0 | T111: =IF(OFFSET(T111,-$D111,0)="n/a","n/a",IF(T$6>OFFSET(T111,-$D111,0)+$D111,$E111-SUM($G111:S111),($E111-SUM($G111:S111))/(OFFSET(T111,-$D111,0)-(T$6-$D111-1)))) -> 0 | U111: =IF(OFFSET(U111,-$D111,0)="n/a","n/a",IF(U$6>OFFSET(U111,-$D111,0)+$D111,$E111-SUM($G111:T111),($E111-SUM($G111:T111))/(OFFSET(U111,-$D111,0)-(U$6-$D111-1)))) -> 0 | V111: =IF(OFFSET(V111,-$D111,0)="n/a","n/a",IF(V$6>OFFSET(V111,-$D111,0)+$D111,$E111-SUM($G111:U111),($E111-SUM($G111:U111))/(OFFSET(V111,-$D111,0)-(V$6-$D111-1)))) -> 0 | W111: =IF(OFFSET(W111,-$D111,0)="n/a","n/a",IF(W$6>OFFSET(W111,-$D111,0)+$D111,$E111-SUM($G111:V111),($E111-SUM($G111:V111))/(OFFSET(W111,-$D111,0)-(W$6-$D111-1)))) -> 0 | X111: =IF(OFFSET(X111,-$D111,0)="n/a","n/a",IF(X$6>OFFSET(X111,-$D111,0)+$D111,$E111-SUM($G111:W111),($E111-SUM($G111:W111))/(OFFSET(X111,-$D111,0)-(X$6-$D111-1)))) -> 0 | Y111: =IF(OFFSET(Y111,-$D111,0)="n/a","n/a",IF(Y$6>OFFSET(Y111,-$D111,0)+$D111,$E111-SUM($G111:X111),($E111-SUM($G111:X111))/(OFFSET(Y111,-$D111,0)-(Y$6-$D111-1)))) -> 0 | Z111: =IF(OFFSET(Z111,-$D111,0)="n/a","n/a",IF(Z$6>OFFSET(Z111,-$D111,0)+$D111,$E111-SUM($G111:Y111),($E111-SUM($G111:Y111))/(OFFSET(Z111,-$D111,0)-(Z$6-$D111-1)))) -> 0 | AA111: =IF(OFFSET(AA111,-$D111,0)="n/a","n/a",IF(AA$6>OFFSET(AA111,-$D111,0)+$D111,$E111-SUM($G111:Z111),($E111-SUM($G111:Z111))/(OFFSET(AA111,-$D111,0)-(AA$6-$D111-1)))) -> 0 | AB111: =IF(OFFSET(AB111,-$D111,0)="n/a","n/a",IF(AB$6>OFFSET(AB111,-$D111,0)+$D111,$E111-SUM($G111:AA111),($E111-SUM($G111:AA111))/(OFFSET(AB111,-$D111,0)-(AB$6-$D111-1)))) -> 0 | AC111: =IF(OFFSET(AC111,-$D111,0)="n/a","n/a",IF(AC$6>OFFSET(AC111,-$D111,0)+$D111,$E111-SUM($G111:AB111),($E111-SUM($G111:AB111))/(OFFSET(AC111,-$D111,0)-(AC$6-$D111-1)))) -> 0 | AD111: =IF(OFFSET(AD111,-$D111,0)="n/a","n/a",IF(AD$6>OFFSET(AD111,-$D111,0)+$D111,$E111-SUM($G111:AC111),($E111-SUM($G111:AC111))/(OFFSET(AD111,-$D111,0)-(AD$6-$D111-1)))) -> 0 | AE111: =IF(OFFSET(AE111,-$D111,0)="n/a","n/a",IF(AE$6>OFFSET(AE111,-$D111,0)+$D111,$E111-SUM($G111:AD111),($E111-SUM($G111:AD111))/(OFFSET(AE111,-$D111,0)-(AE$6-$D111-1)))) -> 0 | AF111: =IF(OFFSET(AF111,-$D111,0)="n/a","n/a",IF(AF$6>OFFSET(AF111,-$D111,0)+$D111,$E111-SUM($G111:AE111),($E111-SUM($G111:AE111))/(OFFSET(AF111,-$D111,0)-(AF$6-$D111-1)))) -> 0 | AG111: =IF(OFFSET(AG111,-$D111,0)="n/a","n/a",IF(AG$6>OFFSET(AG111,-$D111,0)+$D111,$E111-SUM($G111:AF111),($E111-SUM($G111:AF111))/(OFFSET(AG111,-$D111,0)-(AG$6-$D111-1)))) -> 0 | AH111: =IF(OFFSET(AH111,-$D111,0)="n/a","n/a",IF(AH$6>OFFSET(AH111,-$D111,0)+$D111,$E111-SUM($G111:AG111),($E111-SUM($G111:AG111))/(OFFSET(AH111,-$D111,0)-(AH$6-$D111-1)))) -> 0 | AI111: =IF(OFFSET(AI111,-$D111,0)="n/a","n/a",IF(AI$6>OFFSET(AI111,-$D111,0)+$D111,$E111-SUM($G111:AH111),($E111-SUM($G111:AH111))/(OFFSET(AI111,-$D111,0)-(AI$6-$D111-1)))) -> 0 | AJ111: =IF(OFFSET(AJ111,-$D111,0)="n/a","n/a",IF(AJ$6>OFFSET(AJ111,-$D111,0)+$D111,$E111-SUM($G111:AI111),($E111-SUM($G111:AI111))/(OFFSET(AJ111,-$D111,0)-(AJ$6-$D111-1)))) -> 0 | AK111: =IF(OFFSET(AK111,-$D111,0)="n/a","n/a",IF(AK$6>OFFSET(AK111,-$D111,0)+$D111,$E111-SUM($G111:AJ111),($E111-SUM($G111:AJ111))/(OFFSET(AK111,-$D111,0)-(AK$6-$D111-1)))) -> 0 | AL111: =IF(OFFSET(AL111,-$D111,0)="n/a","n/a",IF(AL$6>OFFSET(AL111,-$D111,0)+$D111,$E111-SUM($G111:AK111),($E111-SUM($G111:AK111))/(OFFSET(AL111,-$D111,0)-(AL$6-$D111-1)))) -> 0
C112: Net Real Capex in Spreadsheet Year | D112: 2 | E112: 0 | I112: =IF(OFFSET(I112,-$D112,0)="n/a","n/a",IF(I$6>OFFSET(I112,-$D112,0)+$D112,$E112-SUM($G112:H112),($E112-SUM($G112:H112))/(OFFSET(I112,-$D112,0)-(I$6-$D112-1)))) -> 0 | J112: =IF(OFFSET(J112,-$D112,0)="n/a","n/a",IF(J$6>OFFSET(J112,-$D112,0)+$D112,$E112-SUM($G112:I112),($E112-SUM($G112:I112))/(OFFSET(J112,-$D112,0)-(J$6-$D112-1)))) -> 0 | K112: =IF(OFFSET(K112,-$D112,0)="n/a","n/a",IF(K$6>OFFSET(K112,-$D112,0)+$D112,$E112-SUM($G112:J112),($E112-SUM($G112:J112))/(OFFSET(K112,-$D112,0)-(K$6-$D112-1)))) -> 0 | L112: =IF(OFFSET(L112,-$D112,0)="n/a","n/a",IF(L$6>OFFSET(L112,-$D112,0)+$D112,$E112-SUM($G112:K112),($E112-SUM($G112:K112))/(OFFSET(L112,-$D112,0)-(L$6-$D112-1)))) -> 0 | M112: =IF(OFFSET(M112,-$D112,0)="n/a","n/a",IF(M$6>OFFSET(M112,-$D112,0)+$D112,$E112-SUM($G112:L112),($E112-SUM($G112:L112))/(OFFSET(M112,-$D112,0)-(M$6-$D112-1)))) -> 0 | N112: =IF(OFFSET(N112,-$D112,0)="n/a","n/a",IF(N$6>OFFSET(N112,-$D112,0)+$D112,$E112-SUM($G112:M112),($E112-SUM($G112:M112))/(OFFSET(N112,-$D112,0)-(N$6-$D112-1)))) -> 0 | O112: =IF(OFFSET(O112,-$D112,0)="n/a","n/a",IF(O$6>OFFSET(O112,-$D112,0)+$D112,$E112-SUM($G112:N112),($E112-SUM($G112:N112))/(OFFSET(O112,-$D112,0)-(O$6-$D112-1)))) -> 0 | P112: =IF(OFFSET(P112,-$D112,0)="n/a","n/a",IF(P$6>OFFSET(P112,-$D112,0)+$D112,$E112-SUM($G112:O112),($E112-SUM($G112:O112))/(OFFSET(P112,-$D112,0)-(P$6-$D112-1)))) -> 0 | Q112: =IF(OFFSET(Q112,-$D112,0)="n/a","n/a",IF(Q$6>OFFSET(Q112,-$D112,0)+$D112,$E112-SUM($G112:P112),($E112-SUM($G112:P112))/(OFFSET(Q112,-$D112,0)-(Q$6-$D112-1)))) -> 0 | R112: =IF(OFFSET(R112,-$D112,0)="n/a","n/a",IF(R$6>OFFSET(R112,-$D112,0)+$D112,$E112-SUM($G112:Q112),($E112-SUM($G112:Q112))/(OFFSET(R112,-$D112,0)-(R$6-$D112-1)))) -> 0 | S112: =IF(OFFSET(S112,-$D112,0)="n/a","n/a",IF(S$6>OFFSET(S112,-$D112,0)+$D112,$E112-SUM($G112:R112),($E112-SUM($G112:R112))/(OFFSET(S112,-$D112,0)-(S$6-$D112-1)))) -> 0 | T112: =IF(OFFSET(T112,-$D112,0)="n/a","n/a",IF(T$6>OFFSET(T112,-$D112,0)+$D112,$E112-SUM($G112:S112),($E112-SUM($G112:S112))/(OFFSET(T112,-$D112,0)-(T$6-$D112-1)))) -> 0 | U112: =IF(OFFSET(U112,-$D112,0)="n/a","n/a",IF(U$6>OFFSET(U112,-$D112,0)+$D112,$E112-SUM($G112:T112),($E112-SUM($G112:T112))/(OFFSET(U112,-$D112,0)-(U$6-$D112-1)))) -> 0 | V112: =IF(OFFSET(V112,-$D112,0)="n/a","n/a",IF(V$6>OFFSET(V112,-$D112,0)+$D112,$E112-SUM($G112:U112),($E112-SUM($G112:U112))/(OFFSET(V112,-$D112,0)-(V$6-$D112-1)))) -> 0 | W112: =IF(OFFSET(W112,-$D112,0)="n/a","n/a",IF(W$6>OFFSET(W112,-$D112,0)+$D112,$E112-SUM($G112:V112),($E112-SUM($G112:V112))/(OFFSET(W112,-$D112,0)-(W$6-$D112-1)))) -> 0 | X112: =IF(OFFSET(X112,-$D112,0)="n/a","n/a",IF(X$6>OFFSET(X112,-$D112,0)+$D112,$E112-SUM($G112:W112),($E112-SUM($G112:W112))/(OFFSET(X112,-$D112,0)-(X$6-$D112-1)))) -> 0 | Y112: =IF(OFFSET(Y112,-$D112,0)="n/a","n/a",IF(Y$6>OFFSET(Y112,-$D112,0)+$D112,$E112-SUM($G112:X112),($E112-SUM($G112:X112))/(OFFSET(Y112,-$D112,0)-(Y$6-$D112-1)))) -> 0 | Z112: =IF(OFFSET(Z112,-$D112,0)="n/a","n/a",IF(Z$6>OFFSET(Z112,-$D112,0)+$D112,$E112-SUM($G112:Y112),($E112-SUM($G112:Y112))/(OFFSET(Z112,-$D112,0)-(Z$6-$D112-1)))) -> 0 | AA112: =IF(OFFSET(AA112,-$D112,0)="n/a","n/a",IF(AA$6>OFFSET(AA112,-$D112,0)+$D112,$E112-SUM($G112:Z112),($E112-SUM($G112:Z112))/(OFFSET(AA112,-$D112,0)-(AA$6-$D112-1)))) -> 0 | AB112: =IF(OFFSET(AB112,-$D112,0)="n/a","n/a",IF(AB$6>OFFSET(AB112,-$D112,0)+$D112,$E112-SUM($G112:AA112),($E112-SUM($G112:AA112))/(OFFSET(AB112,-$D112,0)-(AB$6-$D112-1)))) -> 0 | AC112: =IF(OFFSET(AC112,-$D112,0)="n/a","n/a",IF(AC$6>OFFSET(AC112,-$D112,0)+$D112,$E112-SUM($G112:AB112),($E112-SUM($G112:AB112))/(OFFSET(AC112,-$D112,0)-(AC$6-$D112-1)))) -> 0 | AD112: =IF(OFFSET(AD112,-$D112,0)="n/a","n/a",IF(AD$6>OFFSET(AD112,-$D112,0)+$D112,$E112-SUM($G112:AC112),($E112-SUM($G112:AC112))/(OFFSET(AD112,-$D112,0)-(AD$6-$D112-1)))) -> 0 | AE112: =IF(OFFSET(AE112,-$D112,0)="n/a","n/a",IF(AE$6>OFFSET(AE112,-$D112,0)+$D112,$E112-SUM($G112:AD112),($E112-SUM($G112:AD112))/(OFFSET(AE112,-$D112,0)-(AE$6-$D112-1)))) -> 0 | AF112: =IF(OFFSET(AF112,-$D112,0)="n/a","n/a",IF(AF$6>OFFSET(AF112,-$D112,0)+$D112,$E112-SUM($G112:AE112),($E112-SUM($G112:AE112))/(OFFSET(AF112,-$D112,0)-(AF$6-$D112-1)))) -> 0 | AG112: =IF(OFFSET(AG112,-$D112,0)="n/a","n/a",IF(AG$6>OFFSET(AG112,-$D112,0)+$D112,$E112-SUM($G112:AF112),($E112-SUM($G112:AF112))/(OFFSET(AG112,-$D112,0)-(AG$6-$D112-1)))) -> 0 | AH112: =IF(OFFSET(AH112,-$D112,0)="n/a","n/a",IF(AH$6>OFFSET(AH112,-$D112,0)+$D112,$E112-SUM($G112:AG112),($E112-SUM($G112:AG112))/(OFFSET(AH112,-$D112,0)-(AH$6-$D112-1)))) -> 0 | AI112: =IF(OFFSET(AI112,-$D112,0)="n/a","n/a",IF(AI$6>OFFSET(AI112,-$D112,0)+$D112,$E112-SUM($G112:AH112),($E112-SUM($G112:AH112))/(OFFSET(AI112,-$D112,0)-(AI$6-$D112-1)))) -> 0 | AJ112: =IF(OFFSET(AJ112,-$D112,0)="n/a","n/a",IF(AJ$6>OFFSET(AJ112,-$D112,0)+$D112,$E112-SUM($G112:AI112),($E112-SUM($G112:AI112))/(OFFSET(AJ112,-$D112,0)-(AJ$6-$D112-1)))) -> 0 | AK112: =IF(OFFSET(AK112,-$D112,0)="n/a","n/a",IF(AK$6>OFFSET(AK112,-$D112,0)+$D112,$E112-SUM($G112:AJ112),($E112-SUM($G112:AJ112))/(OFFSET(AK112,-$D112,0)-(AK$6-$D112-1)))) -> 0 | AL112: =IF(OFFSET(AL112,-$D112,0)="n/a","n/a",IF(AL$6>OFFSET(AL112,-$D112,0)+$D112,$E112-SUM($G112:AK112),($E112-SUM($G112:AK112))/(OFFSET(AL112,-$D112,0)-(AL$6-$D112-1)))) -> 0
D113: 3 | E113: 0 | J113: =IF(OFFSET(J113,-$D113,0)="n/a","n/a",IF(J$6>OFFSET(J113,-$D113,0)+$D113,$E113-SUM($G113:I113),($E113-SUM($G113:I113))/(OFFSET(J113,-$D113,0)-(J$6-$D113-1)))) -> 0 | K113: =IF(OFFSET(K113,-$D113,0)="n/a","n/a",IF(K$6>OFFSET(K113,-$D113,0)+$D113,$E113-SUM($G113:J113),($E113-SUM($G113:J113))/(OFFSET(K113,-$D113,0)-(K$6-$D113-1)))) -> 0 | L113: =IF(OFFSET(L113,-$D113,0)="n/a","n/a",IF(L$6>OFFSET(L113,-$D113,0)+$D113,$E113-SUM($G113:K113),($E113-SUM($G113:K113))/(OFFSET(L113,-$D113,0)-(L$6-$D113-1)))) -> 0 | M113: =IF(OFFSET(M113,-$D113,0)="n/a","n/a",IF(M$6>OFFSET(M113,-$D113,0)+$D113,$E113-SUM($G113:L113),($E113-SUM($G113:L113))/(OFFSET(M113,-$D113,0)-(M$6-$D113-1)))) -> 0 | N113: =IF(OFFSET(N113,-$D113,0)="n/a","n/a",IF(N$6>OFFSET(N113,-$D113,0)+$D113,$E113-SUM($G113:M113),($E113-SUM($G113:M113))/(OFFSET(N113,-$D113,0)-(N$6-$D113-1)))) -> 0 | O113: =IF(OFFSET(O113,-$D113,0)="n/a","n/a",IF(O$6>OFFSET(O113,-$D113,0)+$D113,$E113-SUM($G113:N113),($E113-SUM($G113:N113))/(OFFSET(O113,-$D113,0)-(O$6-$D113-1)))) -> 0 | P113: =IF(OFFSET(P113,-$D113,0)="n/a","n/a",IF(P$6>OFFSET(P113,-$D113,0)+$D113,$E113-SUM($G113:O113),($E113-SUM($G113:O113))/(OFFSET(P113,-$D113,0)-(P$6-$D113-1)))) -> 0 | Q113: =IF(OFFSET(Q113,-$D113,0)="n/a","n/a",IF(Q$6>OFFSET(Q113,-$D113,0)+$D113,$E113-SUM($G113:P113),($E113-SUM($G113:P113))/(OFFSET(Q113,-$D113,0)-(Q$6-$D113-1)))) -> 0 | R113: =IF(OFFSET(R113,-$D113,0)="n/a","n/a",IF(R$6>OFFSET(R113,-$D113,0)+$D113,$E113-SUM($G113:Q113),($E113-SUM($G113:Q113))/(OFFSET(R113,-$D113,0)-(R$6-$D113-1)))) -> 0 | S113: =IF(OFFSET(S113,-$D113,0)="n/a","n/a",IF(S$6>OFFSET(S113,-$D113,0)+$D113,$E113-SUM($G113:R113),($E113-SUM($G113:R113))/(OFFSET(S113,-$D113,0)-(S$6-$D113-1)))) -> 0 | T113: =IF(OFFSET(T113,-$D113,0)="n/a","n/a",IF(T$6>OFFSET(T113,-$D113,0)+$D113,$E113-SUM($G113:S113),($E113-SUM($G113:S113))/(OFFSET(T113,-$D113,0)-(T$6-$D113-1)))) -> 0 | U113: =IF(OFFSET(U113,-$D113,0)="n/a","n/a",IF(U$6>OFFSET(U113,-$D113,0)+$D113,$E113-SUM($G113:T113),($E113-SUM($G113:T113))/(OFFSET(U113,-$D113,0)-(U$6-$D113-1)))) -> 0 | V113: =IF(OFFSET(V113,-$D113,0)="n/a","n/a",IF(V$6>OFFSET(V113,-$D113,0)+$D113,$E113-SUM($G113:U113),($E113-SUM($G113:U113))/(OFFSET(V113,-$D113,0)-(V$6-$D113-1)))) -> 0 | W113: =IF(OFFSET(W113,-$D113,0)="n/a","n/a",IF(W$6>OFFSET(W113,-$D113,0)+$D113,$E113-SUM($G113:V113),($E113-SUM($G113:V113))/(OFFSET(W113,-$D113,0)-(W$6-$D113-1)))) -> 0 | X113: =IF(OFFSET(X113,-$D113,0)="n/a","n/a",IF(X$6>OFFSET(X113,-$D113,0)+$D113,$E113-SUM($G113:W113),($E113-SUM($G113:W113))/(OFFSET(X113,-$D113,0)-(X$6-$D113-1)))) -> 0 | Y113: =IF(OFFSET(Y113,-$D113,0)="n/a","n/a",IF(Y$6>OFFSET(Y113,-$D113,0)+$D113,$E113-SUM($G113:X113),($E113-SUM($G113:X113))/(OFFSET(Y113,-$D113,0)-(Y$6-$D113-1)))) -> 0 | Z113: =IF(OFFSET(Z113,-$D113,0)="n/a","n/a",IF(Z$6>OFFSET(Z113,-$D113,0)+$D113,$E113-SUM($G113:Y113),($E113-SUM($G113:Y113))/(OFFSET(Z113,-$D113,0)-(Z$6-$D113-1)))) -> 0 | AA113: =IF(OFFSET(AA113,-$D113,0)="n/a","n/a",IF(AA$6>OFFSET(AA113,-$D113,0)+$D113,$E113-SUM($G113:Z113),($E113-SUM($G113:Z113))/(OFFSET(AA113,-$D113,0)-(AA$6-$D113-1)))) -> 0 | AB113: =IF(OFFSET(AB113,-$D113,0)="n/a","n/a",IF(AB$6>OFFSET(AB113,-$D113,0)+$D113,$E113-SUM($G113:AA113),($E113-SUM($G113:AA113))/(OFFSET(AB113,-$D113,0)-(AB$6-$D113-1)))) -> 0 | AC113: =IF(OFFSET(AC113,-$D113,0)="n/a","n/a",IF(AC$6>OFFSET(AC113,-$D113,0)+$D113,$E113-SUM($G113:AB113),($E113-SUM($G113:AB113))/(OFFSET(AC113,-$D113,0)-(AC$6-$D113-1)))) -> 0 | AD113: =IF(OFFSET(AD113,-$D113,0)="n/a","n/a",IF(AD$6>OFFSET(AD113,-$D113,0)+$D113,$E113-SUM($G113:AC113),($E113-SUM($G113:AC113))/(OFFSET(AD113,-$D113,0)-(AD$6-$D113-1)))) -> 0 | AE113: =IF(OFFSET(AE113,-$D113,0)="n/a","n/a",IF(AE$6>OFFSET(AE113,-$D113,0)+$D113,$E113-SUM($G113:AD113),($E113-SUM($G113:AD113))/(OFFSET(AE113,-$D113,0)-(AE$6-$D113-1)))) -> 0 | AF113: =IF(OFFSET(AF113,-$D113,0)="n/a","n/a",IF(AF$6>OFFSET(AF113,-$D113,0)+$D113,$E113-SUM($G113:AE113),($E113-SUM($G113:AE113))/(OFFSET(AF113,-$D113,0)-(AF$6-$D113-1)))) -> 0 | AG113: =IF(OFFSET(AG113,-$D113,0)="n/a","n/a",IF(AG$6>OFFSET(AG113,-$D113,0)+$D113,$E113-SUM($G113:AF113),($E113-SUM($G113:AF113))/(OFFSET(AG113,-$D113,0)-(AG$6-$D113-1)))) -> 0 | AH113: =IF(OFFSET(AH113,-$D113,0)="n/a","n/a",IF(AH$6>OFFSET(AH113,-$D113,0)+$D113,$E113-SUM($G113:AG113),($E113-SUM($G113:AG113))/(OFFSET(AH113,-$D113,0)-(AH$6-$D113-1)))) -> 0 | AI113: =IF(OFFSET(AI113,-$D113,0)="n/a","n/a",IF(AI$6>OFFSET(AI113,-$D113,0)+$D113,$E113-SUM($G113:AH113),($E113-SUM($G113:AH113))/(OFFSET(AI113,-$D113,0)-(AI$6-$D113-1)))) -> 0 | AJ113: =IF(OFFSET(AJ113,-$D113,0)="n/a","n/a",IF(AJ$6>OFFSET(AJ113,-$D113,0)+$D113,$E113-SUM($G113:AI113),($E113-SUM($G113:AI113))/(OFFSET(AJ113,-$D113,0)-(AJ$6-$D113-1)))) -> 0 | AK113: =IF(OFFSET(AK113,-$D113,0)="n/a","n/a",IF(AK$6>OFFSET(AK113,-$D113,0)+$D113,$E113-SUM($G113:AJ113),($E113-SUM($G113:AJ113))/(OFFSET(AK113,-$D113,0)-(AK$6-$D113-1)))) -> 0 | AL113: =IF(OFFSET(AL113,-$D113,0)="n/a","n/a",IF(AL$6>OFFSET(AL113,-$D113,0)+$D113,$E113-SUM($G113:AK113),($E113-SUM($G113:AK113))/(OFFSET(AL113,-$D113,0)-(AL$6-$D113-1)))) -> 0
D114: 4 | E114: 0 | K114: =IF(OFFSET(K114,-$D114,0)="n/a","n/a",IF(K$6>OFFSET(K114,-$D114,0)+$D114,$E114-SUM($G114:J114),($E114-SUM($G114:J114))/(OFFSET(K114,-$D114,0)-(K$6-$D114-1)))) -> 0 | L114: =IF(OFFSET(L114,-$D114,0)="n/a","n/a",IF(L$6>OFFSET(L114,-$D114,0)+$D114,$E114-SUM($G114:K114),($E114-SUM($G114:K114))/(OFFSET(L114,-$D114,0)-(L$6-$D114-1)))) -> 0 | M114: =IF(OFFSET(M114,-$D114,0)="n/a","n/a",IF(M$6>OFFSET(M114,-$D114,0)+$D114,$E114-SUM($G114:L114),($E114-SUM($G114:L114))/(OFFSET(M114,-$D114,0)-(M$6-$D114-1)))) -> 0 | N114: =IF(OFFSET(N114,-$D114,0)="n/a","n/a",IF(N$6>OFFSET(N114,-$D114,0)+$D114,$E114-SUM($G114:M114),($E114-SUM($G114:M114))/(OFFSET(N114,-$D114,0)-(N$6-$D114-1)))) -> 0 | O114: =IF(OFFSET(O114,-$D114,0)="n/a","n/a",IF(O$6>OFFSET(O114,-$D114,0)+$D114,$E114-SUM($G114:N114),($E114-SUM($G114:N114))/(OFFSET(O114,-$D114,0)-(O$6-$D114-1)))) -> 0 | P114: =IF(OFFSET(P114,-$D114,0)="n/a","n/a",IF(P$6>OFFSET(P114,-$D114,0)+$D114,$E114-SUM($G114:O114),($E114-SUM($G114:O114))/(OFFSET(P114,-$D114,0)-(P$6-$D114-1)))) -> 0 | Q114: =IF(OFFSET(Q114,-$D114,0)="n/a","n/a",IF(Q$6>OFFSET(Q114,-$D114,0)+$D114,$E114-SUM($G114:P114),($E114-SUM($G114:P114))/(OFFSET(Q114,-$D114,0)-(Q$6-$D114-1)))) -> 0 | R114: =IF(OFFSET(R114,-$D114,0)="n/a","n/a",IF(R$6>OFFSET(R114,-$D114,0)+$D114,$E114-SUM($G114:Q114),($E114-SUM($G114:Q114))/(OFFSET(R114,-$D114,0)-(R$6-$D114-1)))) -> 0 | S114: =IF(OFFSET(S114,-$D114,0)="n/a","n/a",IF(S$6>OFFSET(S114,-$D114,0)+$D114,$E114-SUM($G114:R114),($E114-SUM($G114:R114))/(OFFSET(S114,-$D114,0)-(S$6-$D114-1)))) -> 0 | T114: =IF(OFFSET(T114,-$D114,0)="n/a","n/a",IF(T$6>OFFSET(T114,-$D114,0)+$D114,$E114-SUM($G114:S114),($E114-SUM($G114:S114))/(OFFSET(T114,-$D114,0)-(T$6-$D114-1)))) -> 0 | U114: =IF(OFFSET(U114,-$D114,0)="n/a","n/a",IF(U$6>OFFSET(U114,-$D114,0)+$D114,$E114-SUM($G114:T114),($E114-SUM($G114:T114))/(OFFSET(U114,-$D114,0)-(U$6-$D114-1)))) -> 0 | V114: =IF(OFFSET(V114,-$D114,0)="n/a","n/a",IF(V$6>OFFSET(V114,-$D114,0)+$D114,$E114-SUM($G114:U114),($E114-SUM($G114:U114))/(OFFSET(V114,-$D114,0)-(V$6-$D114-1)))) -> 0 | W114: =IF(OFFSET(W114,-$D114,0)="n/a","n/a",IF(W$6>OFFSET(W114,-$D114,0)+$D114,$E114-SUM($G114:V114),($E114-SUM($G114:V114))/(OFFSET(W114,-$D114,0)-(W$6-$D114-1)))) -> 0 | X114: =IF(OFFSET(X114,-$D114,0)="n/a","n/a",IF(X$6>OFFSET(X114,-$D114,0)+$D114,$E114-SUM($G114:W114),($E114-SUM($G114:W114))/(OFFSET(X114,-$D114,0)-(X$6-$D114-1)))) -> 0 | Y114: =IF(OFFSET(Y114,-$D114,0)="n/a","n/a",IF(Y$6>OFFSET(Y114,-$D114,0)+$D114,$E114-SUM($G114:X114),($E114-SUM($G114:X114))/(OFFSET(Y114,-$D114,0)-(Y$6-$D114-1)))) -> 0 | Z114: =IF(OFFSET(Z114,-$D114,0)="n/a","n/a",IF(Z$6>OFFSET(Z114,-$D114,0)+$D114,$E114-SUM($G114:Y114),($E114-SUM($G114:Y114))/(OFFSET(Z114,-$D114,0)-(Z$6-$D114-1)))) -> 0 | AA114: =IF(OFFSET(AA114,-$D114,0)="n/a","n/a",IF(AA$6>OFFSET(AA114,-$D114,0)+$D114,$E114-SUM($G114:Z114),($E114-SUM($G114:Z114))/(OFFSET(AA114,-$D114,0)-(AA$6-$D114-1)))) -> 0 | AB114: =IF(OFFSET(AB114,-$D114,0)="n/a","n/a",IF(AB$6>OFFSET(AB114,-$D114,0)+$D114,$E114-SUM($G114:AA114),($E114-SUM($G114:AA114))/(OFFSET(AB114,-$D114,0)-(AB$6-$D114-1)))) -> 0 | AC114: =IF(OFFSET(AC114,-$D114,0)="n/a","n/a",IF(AC$6>OFFSET(AC114,-$D114,0)+$D114,$E114-SUM($G114:AB114),($E114-SUM($G114:AB114))/(OFFSET(AC114,-$D114,0)-(AC$6-$D114-1)))) -> 0 | AD114: =IF(OFFSET(AD114,-$D114,0)="n/a","n/a",IF(AD$6>OFFSET(AD114,-$D114,0)+$D114,$E114-SUM($G114:AC114),($E114-SUM($G114:AC114))/(OFFSET(AD114,-$D114,0)-(AD$6-$D114-1)))) -> 0 | AE114: =IF(OFFSET(AE114,-$D114,0)="n/a","n/a",IF(AE$6>OFFSET(AE114,-$D114,0)+$D114,$E114-SUM($G114:AD114),($E114-SUM($G114:AD114))/(OFFSET(AE114,-$D114,0)-(AE$6-$D114-1)))) -> 0 | AF114: =IF(OFFSET(AF114,-$D114,0)="n/a","n/a",IF(AF$6>OFFSET(AF114,-$D114,0)+$D114,$E114-SUM($G114:AE114),($E114-SUM($G114:AE114))/(OFFSET(AF114,-$D114,0)-(AF$6-$D114-1)))) -> 0 | AG114: =IF(OFFSET(AG114,-$D114,0)="n/a","n/a",IF(AG$6>OFFSET(AG114,-$D114,0)+$D114,$E114-SUM($G114:AF114),($E114-SUM($G114:AF114))/(OFFSET(AG114,-$D114,0)-(AG$6-$D114-1)))) -> 0 | AH114: =IF(OFFSET(AH114,-$D114,0)="n/a","n/a",IF(AH$6>OFFSET(AH114,-$D114,0)+$D114,$E114-SUM($G114:AG114),($E114-SUM($G114:AG114))/(OFFSET(AH114,-$D114,0)-(AH$6-$D114-1)))) -> 0 | AI114: =IF(OFFSET(AI114,-$D114,0)="n/a","n/a",IF(AI$6>OFFSET(AI114,-$D114,0)+$D114,$E114-SUM($G114:AH114),($E114-SUM($G114:AH114))/(OFFSET(AI114,-$D114,0)-(AI$6-$D114-1)))) -> 0 | AJ114: =IF(OFFSET(AJ114,-$D114,0)="n/a","n/a",IF(AJ$6>OFFSET(AJ114,-$D114,0)+$D114,$E114-SUM($G114:AI114),($E114-SUM($G114:AI114))/(OFFSET(AJ114,-$D114,0)-(AJ$6-$D114-1)))) -> 0 | AK114: =IF(OFFSET(AK114,-$D114,0)="n/a","n/a",IF(AK$6>OFFSET(AK114,-$D114,0)+$D114,$E114-SUM($G114:AJ114),($E114-SUM($G114:AJ114))/(OFFSET(AK114,-$D114,0)-(AK$6-$D114-1)))) -> 0 | AL114: =IF(OFFSET(AL114,-$D114,0)="n/a","n/a",IF(AL$6>OFFSET(AL114,-$D114,0)+$D114,$E114-SUM($G114:AK114),($E114-SUM($G114:AK114))/(OFFSET(AL114,-$D114,0)-(AL$6-$D114-1)))) -> 0
D115: 5 | E115: 674.408905 | L115: =IF(OFFSET(L115,-$D115,0)="n/a","n/a",IF(L$6>OFFSET(L115,-$D115,0)+$D115,$E115-SUM($G115:K115),($E115-SUM($G115:K115))/(OFFSET(L115,-$D115,0)-(L$6-$D115-1)))) -> 134.881781 | M115: =IF(OFFSET(M115,-$D115,0)="n/a","n/a",IF(M$6>OFFSET(M115,-$D115,0)+$D115,$E115-SUM($G115:L115),($E115-SUM($G115:L115))/(OFFSET(M115,-$D115,0)-(M$6-$D115-1)))) -> 134.881781 | N115: =IF(OFFSET(N115,-$D115,0)="n/a","n/a",IF(N$6>OFFSET(N115,-$D115,0)+$D115,$E115-SUM($G115:M115),($E115-SUM($G115:M115))/(OFFSET(N115,-$D115,0)-(N$6-$D115-1)))) -> 134.881781 | O115: =IF(OFFSET(O115,-$D115,0)="n/a","n/a",IF(O$6>OFFSET(O115,-$D115,0)+$D115,$E115-SUM($G115:N115),($E115-SUM($G115:N115))/(OFFSET(O115,-$D115,0)-(O$6-$D115-1)))) -> 134.881781 | P115: =IF(OFFSET(P115,-$D115,0)="n/a","n/a",IF(P$6>OFFSET(P115,-$D115,0)+$D115,$E115-SUM($G115:O115),($E115-SUM($G115:O115))/(OFFSET(P115,-$D115,0)-(P$6-$D115-1)))) -> 134.881781 | Q115: =IF(OFFSET(Q115,-$D115,0)="n/a","n/a",IF(Q$6>OFFSET(Q115,-$D115,0)+$D115,$E115-SUM($G115:P115),($E115-SUM($G115:P115))/(OFFSET(Q115,-$D115,0)-(Q$6-$D115-1)))) -> 0 | R115: =IF(OFFSET(R115,-$D115,0)="n/a","n/a",IF(R$6>OFFSET(R115,-$D115,0)+$D115,$E115-SUM($G115:Q115),($E115-SUM($G115:Q115))/(OFFSET(R115,-$D115,0)-(R$6-$D115-1)))) -> 0 | S115: =IF(OFFSET(S115,-$D115,0)="n/a","n/a",IF(S$6>OFFSET(S115,-$D115,0)+$D115,$E115-SUM($G115:R115),($E115-SUM($G115:R115))/(OFFSET(S115,-$D115,0)-(S$6-$D115-1)))) -> 0 | T115: =IF(OFFSET(T115,-$D115,0)="n/a","n/a",IF(T$6>OFFSET(T115,-$D115,0)+$D115,$E115-SUM($G115:S115),($E115-SUM($G115:S115))/(OFFSET(T115,-$D115,0)-(T$6-$D115-1)))) -> 0 | U115: =IF(OFFSET(U115,-$D115,0)="n/a","n/a",IF(U$6>OFFSET(U115,-$D115,0)+$D115,$E115-SUM($G115:T115),($E115-SUM($G115:T115))/(OFFSET(U115,-$D115,0)-(U$6-$D115-1)))) -> 0 | V115: =IF(OFFSET(V115,-$D115,0)="n/a","n/a",IF(V$6>OFFSET(V115,-$D115,0)+$D115,$E115-SUM($G115:U115),($E115-SUM($G115:U115))/(OFFSET(V115,-$D115,0)-(V$6-$D115-1)))) -> 0 | W115: =IF(OFFSET(W115,-$D115,0)="n/a","n/a",IF(W$6>OFFSET(W115,-$D115,0)+$D115,$E115-SUM($G115:V115),($E115-SUM($G115:V115))/(OFFSET(W115,-$D115,0)-(W$6-$D115-1)))) -> 0 | X115: =IF(OFFSET(X115,-$D115,0)="n/a","n/a",IF(X$6>OFFSET(X115,-$D115,0)+$D115,$E115-SUM($G115:W115),($E115-SUM($G115:W115))/(OFFSET(X115,-$D115,0)-(X$6-$D115-1)))) -> 0 | Y115: =IF(OFFSET(Y115,-$D115,0)="n/a","n/a",IF(Y$6>OFFSET(Y115,-$D115,0)+$D115,$E115-SUM($G115:X115),($E115-SUM($G115:X115))/(OFFSET(Y115,-$D115,0)-(Y$6-$D115-1)))) -> 0 | Z115: =IF(OFFSET(Z115,-$D115,0)="n/a","n/a",IF(Z$6>OFFSET(Z115,-$D115,0)+$D115,$E115-SUM($G115:Y115),($E115-SUM($G115:Y115))/(OFFSET(Z115,-$D115,0)-(Z$6-$D115-1)))) -> 0 | AA115: =IF(OFFSET(AA115,-$D115,0)="n/a","n/a",IF(AA$6>OFFSET(AA115,-$D115,0)+$D115,$E115-SUM($G115:Z115),($E115-SUM($G115:Z115))/(OFFSET(AA115,-$D115,0)-(AA$6-$D115-1)))) -> 0 | AB115: =IF(OFFSET(AB115,-$D115,0)="n/a","n/a",IF(AB$6>OFFSET(AB115,-$D115,0)+$D115,$E115-SUM($G115:AA115),($E115-SUM($G115:AA115))/(OFFSET(AB115,-$D115,0)-(AB$6-$D115-1)))) -> 0 | AC115: =IF(OFFSET(AC115,-$D115,0)="n/a","n/a",IF(AC$6>OFFSET(AC115,-$D115,0)+$D115,$E115-SUM($G115:AB115),($E115-SUM($G115:AB115))/(OFFSET(AC115,-$D115,0)-(AC$6-$D115-1)))) -> 0 | AD115: =IF(OFFSET(AD115,-$D115,0)="n/a","n/a",IF(AD$6>OFFSET(AD115,-$D115,0)+$D115,$E115-SUM($G115:AC115),($E115-SUM($G115:AC115))/(OFFSET(AD115,-$D115,0)-(AD$6-$D115-1)))) -> 0 | AE115: =IF(OFFSET(AE115,-$D115,0)="n/a","n/a",IF(AE$6>OFFSET(AE115,-$D115,0)+$D115,$E115-SUM($G115:AD115),($E115-SUM($G115:AD115))/(OFFSET(AE115,-$D115,0)-(AE$6-$D115-1)))) -> 0 | AF115: =IF(OFFSET(AF115,-$D115,0)="n/a","n/a",IF(AF$6>OFFSET(AF115,-$D115,0)+$D115,$E115-SUM($G115:AE115),($E115-SUM($G115:AE115))/(OFFSET(AF115,-$D115,0)-(AF$6-$D115-1)))) -> 0 | AG115: =IF(OFFSET(AG115,-$D115,0)="n/a","n/a",IF(AG$6>OFFSET(AG115,-$D115,0)+$D115,$E115-SUM($G115:AF115),($E115-SUM($G115:AF115))/(OFFSET(AG115,-$D115,0)-(AG$6-$D115-1)))) -> 0 | AH115: =IF(OFFSET(AH115,-$D115,0)="n/a","n/a",IF(AH$6>OFFSET(AH115,-$D115,0)+$D115,$E115-SUM($G115:AG115),($E115-SUM($G115:AG115))/(OFFSET(AH115,-$D115,0)-(AH$6-$D115-1)))) -> 0 | AI115: =IF(OFFSET(AI115,-$D115,0)="n/a","n/a",IF(AI$6>OFFSET(AI115,-$D115,0)+$D115,$E115-SUM($G115:AH115),($E115-SUM($G115:AH115))/(OFFSET(AI115,-$D115,0)-(AI$6-$D115-1)))) -> 0 | AJ115: =IF(OFFSET(AJ115,-$D115,0)="n/a","n/a",IF(AJ$6>OFFSET(AJ115,-$D115,0)+$D115,$E115-SUM($G115:AI115),($E115-SUM($G115:AI115))/(OFFSET(AJ115,-$D115,0)-(AJ$6-$D115-1)))) -> 0 | AK115: =IF(OFFSET(AK115,-$D115,0)="n/a","n/a",IF(AK$6>OFFSET(AK115,-$D115,0)+$D115,$E115-SUM($G115:AJ115),($E115-SUM($G115:AJ115))/(OFFSET(AK115,-$D115,0)-(AK$6-$D115-1)))) -> 0 | AL115: =IF(OFFSET(AL115,-$D115,0)="n/a","n/a",IF(AL$6>OFFSET(AL115,-$D115,0)+$D115,$E115-SUM($G115:AK115),($E115-SUM($G115:AK115))/(OFFSET(AL115,-$D115,0)-(AL$6-$D115-1)))) -> 0
D116: 6 | E116: 7278.28162 | M116: =IF(OFFSET(M116,-$D116,0)="n/a","n/a",IF(M$6>OFFSET(M116,-$D116,0)+$D116,$E116-SUM($G116:L116),($E116-SUM($G116:L116))/(OFFSET(M116,-$D116,0)-(M$6-$D116-1)))) -> 1455.656324 | N116: =IF(OFFSET(N116,-$D116,0)="n/a","n/a",IF(N$6>OFFSET(N116,-$D116,0)+$D116,$E116-SUM($G116:M116),($E116-SUM($G116:M116))/(OFFSET(N116,-$D116,0)-(N$6-$D116-1)))) -> 1455.656324 | O116: =IF(OFFSET(O116,-$D116,0)="n/a","n/a",IF(O$6>OFFSET(O116,-$D116,0)+$D116,$E116-SUM($G116:N116),($E116-SUM($G116:N116))/(OFFSET(O116,-$D116,0)-(O$6-$D116-1)))) -> 1455.656324 | P116: =IF(OFFSET(P116,-$D116,0)="n/a","n/a",IF(P$6>OFFSET(P116,-$D116,0)+$D116,$E116-SUM($G116:O116),($E116-SUM($G116:O116))/(OFFSET(P116,-$D116,0)-(P$6-$D116-1)))) -> 1455.656324 | Q116: =IF(OFFSET(Q116,-$D116,0)="n/a","n/a",IF(Q$6>OFFSET(Q116,-$D116,0)+$D116,$E116-SUM($G116:P116),($E116-SUM($G116:P116))/(OFFSET(Q116,-$D116,0)-(Q$6-$D116-1)))) -> 1455.656324 | R116: =IF(OFFSET(R116,-$D116,0)="n/a","n/a",IF(R$6>OFFSET(R116,-$D116,0)+$D116,$E116-SUM($G116:Q116),($E116-SUM($G116:Q116))/(OFFSET(R116,-$D116,0)-(R$6-$D116-1)))) -> 0 | S116: =IF(OFFSET(S116,-$D116,0)="n/a","n/a",IF(S$6>OFFSET(S116,-$D116,0)+$D116,$E116-SUM($G116:R116),($E116-SUM($G116:R116))/(OFFSET(S116,-$D116,0)-(S$6-$D116-1)))) -> 0 | T116: =IF(OFFSET(T116,-$D116,0)="n/a","n/a",IF(T$6>OFFSET(T116,-$D116,0)+$D116,$E116-SUM($G116:S116),($E116-SUM($G116:S116))/(OFFSET(T116,-$D116,0)-(T$6-$D116-1)))) -> 0 | U116: =IF(OFFSET(U116,-$D116,0)="n/a","n/a",IF(U$6>OFFSET(U116,-$D116,0)+$D116,$E116-SUM($G116:T116),($E116-SUM($G116:T116))/(OFFSET(U116,-$D116,0)-(U$6-$D116-1)))) -> 0 | V116: =IF(OFFSET(V116,-$D116,0)="n/a","n/a",IF(V$6>OFFSET(V116,-$D116,0)+$D116,$E116-SUM($G116:U116),($E116-SUM($G116:U116))/(OFFSET(V116,-$D116,0)-(V$6-$D116-1)))) -> 0 | W116: =IF(OFFSET(W116,-$D116,0)="n/a","n/a",IF(W$6>OFFSET(W116,-$D116,0)+$D116,$E116-SUM($G116:V116),($E116-SUM($G116:V116))/(OFFSET(W116,-$D116,0)-(W$6-$D116-1)))) -> 0 | X116: =IF(OFFSET(X116,-$D116,0)="n/a","n/a",IF(X$6>OFFSET(X116,-$D116,0)+$D116,$E116-SUM($G116:W116),($E116-SUM($G116:W116))/(OFFSET(X116,-$D116,0)-(X$6-$D116-1)))) -> 0 | Y116: =IF(OFFSET(Y116,-$D116,0)="n/a","n/a",IF(Y$6>OFFSET(Y116,-$D116,0)+$D116,$E116-SUM($G116:X116),($E116-SUM($G116:X116))/(OFFSET(Y116,-$D116,0)-(Y$6-$D116-1)))) -> 0 | Z116: =IF(OFFSET(Z116,-$D116,0)="n/a","n/a",IF(Z$6>OFFSET(Z116,-$D116,0)+$D116,$E116-SUM($G116:Y116),($E116-SUM($G116:Y116))/(OFFSET(Z116,-$D116,0)-(Z$6-$D116-1)))) -> 0 | AA116: =IF(OFFSET(AA116,-$D116,0)="n/a","n/a",IF(AA$6>OFFSET(AA116,-$D116,0)+$D116,$E116-SUM($G116:Z116),($E116-SUM($G116:Z116))/(OFFSET(AA116,-$D116,0)-(AA$6-$D116-1)))) -> 0 | AB116: =IF(OFFSET(AB116,-$D116,0)="n/a","n/a",IF(AB$6>OFFSET(AB116,-$D116,0)+$D116,$E116-SUM($G116:AA116),($E116-SUM($G116:AA116))/(OFFSET(AB116,-$D116,0)-(AB$6-$D116-1)))) -> 0 | AC116: =IF(OFFSET(AC116,-$D116,0)="n/a","n/a",IF(AC$6>OFFSET(AC116,-$D116,0)+$D116,$E116-SUM($G116:AB116),($E116-SUM($G116:AB116))/(OFFSET(AC116,-$D116,0)-(AC$6-$D116-1)))) -> 0 | AD116: =IF(OFFSET(AD116,-$D116,0)="n/a","n/a",IF(AD$6>OFFSET(AD116,-$D116,0)+$D116,$E116-SUM($G116:AC116),($E116-SUM($G116:AC116))/(OFFSET(AD116,-$D116,0)-(AD$6-$D116-1)))) -> 0 | AE116: =IF(OFFSET(AE116,-$D116,0)="n/a","n/a",IF(AE$6>OFFSET(AE116,-$D116,0)+$D116,$E116-SUM($G116:AD116),($E116-SUM($G116:AD116))/(OFFSET(AE116,-$D116,0)-(AE$6-$D116-1)))) -> 0 | AF116: =IF(OFFSET(AF116,-$D116,0)="n/a","n/a",IF(AF$6>OFFSET(AF116,-$D116,0)+$D116,$E116-SUM($G116:AE116),($E116-SUM($G116:AE116))/(OFFSET(AF116,-$D116,0)-(AF$6-$D116-1)))) -> 0 | AG116: =IF(OFFSET(AG116,-$D116,0)="n/a","n/a",IF(AG$6>OFFSET(AG116,-$D116,0)+$D116,$E116-SUM($G116:AF116),($E116-SUM($G116:AF116))/(OFFSET(AG116,-$D116,0)-(AG$6-$D116-1)))) -> 0 | AH116: =IF(OFFSET(AH116,-$D116,0)="n/a","n/a",IF(AH$6>OFFSET(AH116,-$D116,0)+$D116,$E116-SUM($G116:AG116),($E116-SUM($G116:AG116))/(OFFSET(AH116,-$D116,0)-(AH$6-$D116-1)))) -> 0 | AI116: =IF(OFFSET(AI116,-$D116,0)="n/a","n/a",IF(AI$6>OFFSET(AI116,-$D116,0)+$D116,$E116-SUM($G116:AH116),($E116-SUM($G116:AH116))/(OFFSET(AI116,-$D116,0)-(AI$6-$D116-1)))) -> 0 | AJ116: =IF(OFFSET(AJ116,-$D116,0)="n/a","n/a",IF(AJ$6>OFFSET(AJ116,-$D116,0)+$D116,$E116-SUM($G116:AI116),($E116-SUM($G116:AI116))/(OFFSET(AJ116,-$D116,0)-(AJ$6-$D116-1)))) -> 0 | AK116: =IF(OFFSET(AK116,-$D116,0)="n/a","n/a",IF(AK$6>OFFSET(AK116,-$D116,0)+$D116,$E116-SUM($G116:AJ116),($E116-SUM($G116:AJ116))/(OFFSET(AK116,-$D116,0)-(AK$6-$D116-1)))) -> 0 | AL116: =IF(OFFSET(AL116,-$D116,0)="n/a","n/a",IF(AL$6>OFFSET(AL116,-$D116,0)+$D116,$E116-SUM($G116:AK116),($E116-SUM($G116:AK116))/(OFFSET(AL116,-$D116,0)-(AL$6-$D116-1)))) -> 0
D117: 7 | E117: 0 | N117: =IF(OFFSET(N117,-$D117,0)="n/a","n/a",IF(N$6>OFFSET(N117,-$D117,0)+$D117,$E117-SUM($G117:M117),($E117-SUM($G117:M117))/(OFFSET(N117,-$D117,0)-(N$6-$D117-1)))) -> 0 | O117: =IF(OFFSET(O117,-$D117,0)="n/a","n/a",IF(O$6>OFFSET(O117,-$D117,0)+$D117,$E117-SUM($G117:N117),($E117-SUM($G117:N117))/(OFFSET(O117,-$D117,0)-(O$6-$D117-1)))) -> 0 | P117: =IF(OFFSET(P117,-$D117,0)="n/a","n/a",IF(P$6>OFFSET(P117,-$D117,0)+$D117,$E117-SUM($G117:O117),($E117-SUM($G117:O117))/(OFFSET(P117,-$D117,0)-(P$6-$D117-1)))) -> 0 | Q117: =IF(OFFSET(Q117,-$D117,0)="n/a","n/a",IF(Q$6>OFFSET(Q117,-$D117,0)+$D117,$E117-SUM($G117:P117),($E117-SUM($G117:P117))/(OFFSET(Q117,-$D117,0)-(Q$6-$D117-1)))) -> 0 | R117: =IF(OFFSET(R117,-$D117,0)="n/a","n/a",IF(R$6>OFFSET(R117,-$D117,0)+$D117,$E117-SUM($G117:Q117),($E117-SUM($G117:Q117))/(OFFSET(R117,-$D117,0)-(R$6-$D117-1)))) -> 0 | S117: =IF(OFFSET(S117,-$D117,0)="n/a","n/a",IF(S$6>OFFSET(S117,-$D117,0)+$D117,$E117-SUM($G117:R117),($E117-SUM($G117:R117))/(OFFSET(S117,-$D117,0)-(S$6-$D117-1)))) -> 0 | T117: =IF(OFFSET(T117,-$D117,0)="n/a","n/a",IF(T$6>OFFSET(T117,-$D117,0)+$D117,$E117-SUM($G117:S117),($E117-SUM($G117:S117))/(OFFSET(T117,-$D117,0)-(T$6-$D117-1)))) -> 0 | U117: =IF(OFFSET(U117,-$D117,0)="n/a","n/a",IF(U$6>OFFSET(U117,-$D117,0)+$D117,$E117-SUM($G117:T117),($E117-SUM($G117:T117))/(OFFSET(U117,-$D117,0)-(U$6-$D117-1)))) -> 0 | V117: =IF(OFFSET(V117,-$D117,0)="n/a","n/a",IF(V$6>OFFSET(V117,-$D117,0)+$D117,$E117-SUM($G117:U117),($E117-SUM($G117:U117))/(OFFSET(V117,-$D117,0)-(V$6-$D117-1)))) -> 0 | W117: =IF(OFFSET(W117,-$D117,0)="n/a","n/a",IF(W$6>OFFSET(W117,-$D117,0)+$D117,$E117-SUM($G117:V117),($E117-SUM($G117:V117))/(OFFSET(W117,-$D117,0)-(W$6-$D117-1)))) -> 0 | X117: =IF(OFFSET(X117,-$D117,0)="n/a","n/a",IF(X$6>OFFSET(X117,-$D117,0)+$D117,$E117-SUM($G117:W117),($E117-SUM($G117:W117))/(OFFSET(X117,-$D117,0)-(X$6-$D117-1)))) -> 0 | Y117: =IF(OFFSET(Y117,-$D117,0)="n/a","n/a",IF(Y$6>OFFSET(Y117,-$D117,0)+$D117,$E117-SUM($G117:X117),($E117-SUM($G117:X117))/(OFFSET(Y117,-$D117,0)-(Y$6-$D117-1)))) -> 0 | Z117: =IF(OFFSET(Z117,-$D117,0)="n/a","n/a",IF(Z$6>OFFSET(Z117,-$D117,0)+$D117,$E117-SUM($G117:Y117),($E117-SUM($G117:Y117))/(OFFSET(Z117,-$D117,0)-(Z$6-$D117-1)))) -> 0 | AA117: =IF(OFFSET(AA117,-$D117,0)="n/a","n/a",IF(AA$6>OFFSET(AA117,-$D117,0)+$D117,$E117-SUM($G117:Z117),($E117-SUM($G117:Z117))/(OFFSET(AA117,-$D117,0)-(AA$6-$D117-1)))) -> 0 | AB117: =IF(OFFSET(AB117,-$D117,0)="n/a","n/a",IF(AB$6>OFFSET(AB117,-$D117,0)+$D117,$E117-SUM($G117:AA117),($E117-SUM($G117:AA117))/(OFFSET(AB117,-$D117,0)-(AB$6-$D117-1)))) -> 0 | AC117: =IF(OFFSET(AC117,-$D117,0)="n/a","n/a",IF(AC$6>OFFSET(AC117,-$D117,0)+$D117,$E117-SUM($G117:AB117),($E117-SUM($G117:AB117))/(OFFSET(AC117,-$D117,0)-(AC$6-$D117-1)))) -> 0 | AD117: =IF(OFFSET(AD117,-$D117,0)="n/a","n/a",IF(AD$6>OFFSET(AD117,-$D117,0)+$D117,$E117-SUM($G117:AC117),($E117-SUM($G117:AC117))/(OFFSET(AD117,-$D117,0)-(AD$6-$D117-1)))) -> 0 | AE117: =IF(OFFSET(AE117,-$D117,0)="n/a","n/a",IF(AE$6>OFFSET(AE117,-$D117,0)+$D117,$E117-SUM($G117:AD117),($E117-SUM($G117:AD117))/(OFFSET(AE117,-$D117,0)-(AE$6-$D117-1)))) -> 0 | AF117: =IF(OFFSET(AF117,-$D117,0)="n/a","n/a",IF(AF$6>OFFSET(AF117,-$D117,0)+$D117,$E117-SUM($G117:AE117),($E117-SUM($G117:AE117))/(OFFSET(AF117,-$D117,0)-(AF$6-$D117-1)))) -> 0 | AG117: =IF(OFFSET(AG117,-$D117,0)="n/a","n/a",IF(AG$6>OFFSET(AG117,-$D117,0)+$D117,$E117-SUM($G117:AF117),($E117-SUM($G117:AF117))/(OFFSET(AG117,-$D117,0)-(AG$6-$D117-1)))) -> 0 | AH117: =IF(OFFSET(AH117,-$D117,0)="n/a","n/a",IF(AH$6>OFFSET(AH117,-$D117,0)+$D117,$E117-SUM($G117:AG117),($E117-SUM($G117:AG117))/(OFFSET(AH117,-$D117,0)-(AH$6-$D117-1)))) -> 0 | AI117: =IF(OFFSET(AI117,-$D117,0)="n/a","n/a",IF(AI$6>OFFSET(AI117,-$D117,0)+$D117,$E117-SUM($G117:AH117),($E117-SUM($G117:AH117))/(OFFSET(AI117,-$D117,0)-(AI$6-$D117-1)))) -> 0 | AJ117: =IF(OFFSET(AJ117,-$D117,0)="n/a","n/a",IF(AJ$6>OFFSET(AJ117,-$D117,0)+$D117,$E117-SUM($G117:AI117),($E117-SUM($G117:AI117))/(OFFSET(AJ117,-$D117,0)-(AJ$6-$D117-1)))) -> 0 | AK117: =IF(OFFSET(AK117,-$D117,0)="n/a","n/a",IF(AK$6>OFFSET(AK117,-$D117,0)+$D117,$E117-SUM($G117:AJ117),($E117-SUM($G117:AJ117))/(OFFSET(AK117,-$D117,0)-(AK$6-$D117-1)))) -> 0 | AL117: =IF(OFFSET(AL117,-$D117,0)="n/a","n/a",IF(AL$6>OFFSET(AL117,-$D117,0)+$D117,$E117-SUM($G117:AK117),($E117-SUM($G117:AK117))/(OFFSET(AL117,-$D117,0)-(AL$6-$D117-1)))) -> 0
D118: 8 | E118: 14.07699641 | O118: =IF(OFFSET(O118,-$D118,0)="n/a","n/a",IF(O$6>OFFSET(O118,-$D118,0)+$D118,$E118-SUM($G118:N118),($E118-SUM($G118:N118))/(OFFSET(O118,-$D118,0)-(O$6-$D118-1)))) -> 2.815399282 | P118: =IF(OFFSET(P118,-$D118,0)="n/a","n/a",IF(P$6>OFFSET(P118,-$D118,0)+$D118,$E118-SUM($G118:O118),($E118-SUM($G118:O118))/(OFFSET(P118,-$D118,0)-(P$6-$D118-1)))) -> 2.815399282 | Q118: =IF(OFFSET(Q118,-$D118,0)="n/a","n/a",IF(Q$6>OFFSET(Q118,-$D118,0)+$D118,$E118-SUM($G118:P118),($E118-SUM($G118:P118))/(OFFSET(Q118,-$D118,0)-(Q$6-$D118-1)))) -> 2.815399282 | R118: =IF(OFFSET(R118,-$D118,0)="n/a","n/a",IF(R$6>OFFSET(R118,-$D118,0)+$D118,$E118-SUM($G118:Q118),($E118-SUM($G118:Q118))/(OFFSET(R118,-$D118,0)-(R$6-$D118-1)))) -> 2.815399282 | S118: =IF(OFFSET(S118,-$D118,0)="n/a","n/a",IF(S$6>OFFSET(S118,-$D118,0)+$D118,$E118-SUM($G118:R118),($E118-SUM($G118:R118))/(OFFSET(S118,-$D118,0)-(S$6-$D118-1)))) -> 2.815399282 | T118: =IF(OFFSET(T118,-$D118,0)="n/a","n/a",IF(T$6>OFFSET(T118,-$D118,0)+$D118,$E118-SUM($G118:S118),($E118-SUM($G118:S118))/(OFFSET(T118,-$D118,0)-(T$6-$D118-1)))) -> 0 | U118: =IF(OFFSET(U118,-$D118,0)="n/a","n/a",IF(U$6>OFFSET(U118,-$D118,0)+$D118,$E118-SUM($G118:T118),($E118-SUM($G118:T118))/(OFFSET(U118,-$D118,0)-(U$6-$D118-1)))) -> 0 | V118: =IF(OFFSET(V118,-$D118,0)="n/a","n/a",IF(V$6>OFFSET(V118,-$D118,0)+$D118,$E118-SUM($G118:U118),($E118-SUM($G118:U118))/(OFFSET(V118,-$D118,0)-(V$6-$D118-1)))) -> 0 | W118: =IF(OFFSET(W118,-$D118,0)="n/a","n/a",IF(W$6>OFFSET(W118,-$D118,0)+$D118,$E118-SUM($G118:V118),($E118-SUM($G118:V118))/(OFFSET(W118,-$D118,0)-(W$6-$D118-1)))) -> 0 | X118: =IF(OFFSET(X118,-$D118,0)="n/a","n/a",IF(X$6>OFFSET(X118,-$D118,0)+$D118,$E118-SUM($G118:W118),($E118-SUM($G118:W118))/(OFFSET(X118,-$D118,0)-(X$6-$D118-1)))) -> 0 | Y118: =IF(OFFSET(Y118,-$D118,0)="n/a","n/a",IF(Y$6>OFFSET(Y118,-$D118,0)+$D118,$E118-SUM($G118:X118),($E118-SUM($G118:X118))/(OFFSET(Y118,-$D118,0)-(Y$6-$D118-1)))) -> 0 | Z118: =IF(OFFSET(Z118,-$D118,0)="n/a","n/a",IF(Z$6>OFFSET(Z118,-$D118,0)+$D118,$E118-SUM($G118:Y118),($E118-SUM($G118:Y118))/(OFFSET(Z118,-$D118,0)-(Z$6-$D118-1)))) -> 0 | AA118: =IF(OFFSET(AA118,-$D118,0)="n/a","n/a",IF(AA$6>OFFSET(AA118,-$D118,0)+$D118,$E118-SUM($G118:Z118),($E118-SUM($G118:Z118))/(OFFSET(AA118,-$D118,0)-(AA$6-$D118-1)))) -> 0 | AB118: =IF(OFFSET(AB118,-$D118,0)="n/a","n/a",IF(AB$6>OFFSET(AB118,-$D118,0)+$D118,$E118-SUM($G118:AA118),($E118-SUM($G118:AA118))/(OFFSET(AB118,-$D118,0)-(AB$6-$D118-1)))) -> 0 | AC118: =IF(OFFSET(AC118,-$D118,0)="n/a","n/a",IF(AC$6>OFFSET(AC118,-$D118,0)+$D118,$E118-SUM($G118:AB118),($E118-SUM($G118:AB118))/(OFFSET(AC118,-$D118,0)-(AC$6-$D118-1)))) -> 0 | AD118: =IF(OFFSET(AD118,-$D118,0)="n/a","n/a",IF(AD$6>OFFSET(AD118,-$D118,0)+$D118,$E118-SUM($G118:AC118),($E118-SUM($G118:AC118))/(OFFSET(AD118,-$D118,0)-(AD$6-$D118-1)))) -> 0 | AE118: =IF(OFFSET(AE118,-$D118,0)="n/a","n/a",IF(AE$6>OFFSET(AE118,-$D118,0)+$D118,$E118-SUM($G118:AD118),($E118-SUM($G118:AD118))/(OFFSET(AE118,-$D118,0)-(AE$6-$D118-1)))) -> 0 | AF118: =IF(OFFSET(AF118,-$D118,0)="n/a","n/a",IF(AF$6>OFFSET(AF118,-$D118,0)+$D118,$E118-SUM($G118:AE118),($E118-SUM($G118:AE118))/(OFFSET(AF118,-$D118,0)-(AF$6-$D118-1)))) -> 0 | AG118: =IF(OFFSET(AG118,-$D118,0)="n/a","n/a",IF(AG$6>OFFSET(AG118,-$D118,0)+$D118,$E118-SUM($G118:AF118),($E118-SUM($G118:AF118))/(OFFSET(AG118,-$D118,0)-(AG$6-$D118-1)))) -> 0 | AH118: =IF(OFFSET(AH118,-$D118,0)="n/a","n/a",IF(AH$6>OFFSET(AH118,-$D118,0)+$D118,$E118-SUM($G118:AG118),($E118-SUM($G118:AG118))/(OFFSET(AH118,-$D118,0)-(AH$6-$D118-1)))) -> 0 | AI118: =IF(OFFSET(AI118,-$D118,0)="n/a","n/a",IF(AI$6>OFFSET(AI118,-$D118,0)+$D118,$E118-SUM($G118:AH118),($E118-SUM($G118:AH118))/(OFFSET(AI118,-$D118,0)-(AI$6-$D118-1)))) -> 0 | AJ118: =IF(OFFSET(AJ118,-$D118,0)="n/a","n/a",IF(AJ$6>OFFSET(AJ118,-$D118,0)+$D118,$E118-SUM($G118:AI118),($E118-SUM($G118:AI118))/(OFFSET(AJ118,-$D118,0)-(AJ$6-$D118-1)))) -> 0 | AK118: =IF(OFFSET(AK118,-$D118,0)="n/a","n/a",IF(AK$6>OFFSET(AK118,-$D118,0)+$D118,$E118-SUM($G118:AJ118),($E118-SUM($G118:AJ118))/(OFFSET(AK118,-$D118,0)-(AK$6-$D118-1)))) -> 0 | AL118: =IF(OFFSET(AL118,-$D118,0)="n/a","n/a",IF(AL$6>OFFSET(AL118,-$D118,0)+$D118,$E118-SUM($G118:AK118),($E118-SUM($G118:AK118))/(OFFSET(AL118,-$D118,0)-(AL$6-$D118-1)))) -> 0
D119: 9 | E119: 0 | P119: =IF(OFFSET(P119,-$D119,0)="n/a","n/a",IF(P$6>OFFSET(P119,-$D119,0)+$D119,$E119-SUM($G119:O119),($E119-SUM($G119:O119))/(OFFSET(P119,-$D119,0)-(P$6-$D119-1)))) -> 0 | Q119: =IF(OFFSET(Q119,-$D119,0)="n/a","n/a",IF(Q$6>OFFSET(Q119,-$D119,0)+$D119,$E119-SUM($G119:P119),($E119-SUM($G119:P119))/(OFFSET(Q119,-$D119,0)-(Q$6-$D119-1)))) -> 0 | R119: =IF(OFFSET(R119,-$D119,0)="n/a","n/a",IF(R$6>OFFSET(R119,-$D119,0)+$D119,$E119-SUM($G119:Q119),($E119-SUM($G119:Q119))/(OFFSET(R119,-$D119,0)-(R$6-$D119-1)))) -> 0 | S119: =IF(OFFSET(S119,-$D119,0)="n/a","n/a",IF(S$6>OFFSET(S119,-$D119,0)+$D119,$E119-SUM($G119:R119),($E119-SUM($G119:R119))/(OFFSET(S119,-$D119,0)-(S$6-$D119-1)))) -> 0 | T119: =IF(OFFSET(T119,-$D119,0)="n/a","n/a",IF(T$6>OFFSET(T119,-$D119,0)+$D119,$E119-SUM($G119:S119),($E119-SUM($G119:S119))/(OFFSET(T119,-$D119,0)-(T$6-$D119-1)))) -> 0 | U119: =IF(OFFSET(U119,-$D119,0)="n/a","n/a",IF(U$6>OFFSET(U119,-$D119,0)+$D119,$E119-SUM($G119:T119),($E119-SUM($G119:T119))/(OFFSET(U119,-$D119,0)-(U$6-$D119-1)))) -> 0 | V119: =IF(OFFSET(V119,-$D119,0)="n/a","n/a",IF(V$6>OFFSET(V119,-$D119,0)+$D119,$E119-SUM($G119:U119),($E119-SUM($G119:U119))/(OFFSET(V119,-$D119,0)-(V$6-$D119-1)))) -> 0 | W119: =IF(OFFSET(W119,-$D119,0)="n/a","n/a",IF(W$6>OFFSET(W119,-$D119,0)+$D119,$E119-SUM($G119:V119),($E119-SUM($G119:V119))/(OFFSET(W119,-$D119,0)-(W$6-$D119-1)))) -> 0 | X119: =IF(OFFSET(X119,-$D119,0)="n/a","n/a",IF(X$6>OFFSET(X119,-$D119,0)+$D119,$E119-SUM($G119:W119),($E119-SUM($G119:W119))/(OFFSET(X119,-$D119,0)-(X$6-$D119-1)))) -> 0 | Y119: =IF(OFFSET(Y119,-$D119,0)="n/a","n/a",IF(Y$6>OFFSET(Y119,-$D119,0)+$D119,$E119-SUM($G119:X119),($E119-SUM($G119:X119))/(OFFSET(Y119,-$D119,0)-(Y$6-$D119-1)))) -> 0 | Z119: =IF(OFFSET(Z119,-$D119,0)="n/a","n/a",IF(Z$6>OFFSET(Z119,-$D119,0)+$D119,$E119-SUM($G119:Y119),($E119-SUM($G119:Y119))/(OFFSET(Z119,-$D119,0)-(Z$6-$D119-1)))) -> 0 | AA119: =IF(OFFSET(AA119,-$D119,0)="n/a","n/a",IF(AA$6>OFFSET(AA119,-$D119,0)+$D119,$E119-SUM($G119:Z119),($E119-SUM($G119:Z119))/(OFFSET(AA119,-$D119,0)-(AA$6-$D119-1)))) -> 0 | AB119: =IF(OFFSET(AB119,-$D119,0)="n/a","n/a",IF(AB$6>OFFSET(AB119,-$D119,0)+$D119,$E119-SUM($G119:AA119),($E119-SUM($G119:AA119))/(OFFSET(AB119,-$D119,0)-(AB$6-$D119-1)))) -> 0 | AC119: =IF(OFFSET(AC119,-$D119,0)="n/a","n/a",IF(AC$6>OFFSET(AC119,-$D119,0)+$D119,$E119-SUM($G119:AB119),($E119-SUM($G119:AB119))/(OFFSET(AC119,-$D119,0)-(AC$6-$D119-1)))) -> 0 | AD119: =IF(OFFSET(AD119,-$D119,0)="n/a","n/a",IF(AD$6>OFFSET(AD119,-$D119,0)+$D119,$E119-SUM($G119:AC119),($E119-SUM($G119:AC119))/(OFFSET(AD119,-$D119,0)-(AD$6-$D119-1)))) -> 0 | AE119: =IF(OFFSET(AE119,-$D119,0)="n/a","n/a",IF(AE$6>OFFSET(AE119,-$D119,0)+$D119,$E119-SUM($G119:AD119),($E119-SUM($G119:AD119))/(OFFSET(AE119,-$D119,0)-(AE$6-$D119-1)))) -> 0 | AF119: =IF(OFFSET(AF119,-$D119,0)="n/a","n/a",IF(AF$6>OFFSET(AF119,-$D119,0)+$D119,$E119-SUM($G119:AE119),($E119-SUM($G119:AE119))/(OFFSET(AF119,-$D119,0)-(AF$6-$D119-1)))) -> 0 | AG119: =IF(OFFSET(AG119,-$D119,0)="n/a","n/a",IF(AG$6>OFFSET(AG119,-$D119,0)+$D119,$E119-SUM($G119:AF119),($E119-SUM($G119:AF119))/(OFFSET(AG119,-$D119,0)-(AG$6-$D119-1)))) -> 0 | AH119: =IF(OFFSET(AH119,-$D119,0)="n/a","n/a",IF(AH$6>OFFSET(AH119,-$D119,0)+$D119,$E119-SUM($G119:AG119),($E119-SUM($G119:AG119))/(OFFSET(AH119,-$D119,0)-(AH$6-$D119-1)))) -> 0 | AI119: =IF(OFFSET(AI119,-$D119,0)="n/a","n/a",IF(AI$6>OFFSET(AI119,-$D119,0)+$D119,$E119-SUM($G119:AH119),($E119-SUM($G119:AH119))/(OFFSET(AI119,-$D119,0)-(AI$6-$D119-1)))) -> 0 | AJ119: =IF(OFFSET(AJ119,-$D119,0)="n/a","n/a",IF(AJ$6>OFFSET(AJ119,-$D119,0)+$D119,$E119-SUM($G119:AI119),($E119-SUM($G119:AI119))/(OFFSET(AJ119,-$D119,0)-(AJ$6-$D119-1)))) -> 0 | AK119: =IF(OFFSET(AK119,-$D119,0)="n/a","n/a",IF(AK$6>OFFSET(AK119,-$D119,0)+$D119,$E119-SUM($G119:AJ119),($E119-SUM($G119:AJ119))/(OFFSET(AK119,-$D119,0)-(AK$6-$D119-1)))) -> 0 | AL119: =IF(OFFSET(AL119,-$D119,0)="n/a","n/a",IF(AL$6>OFFSET(AL119,-$D119,0)+$D119,$E119-SUM($G119:AK119),($E119-SUM($G119:AK119))/(OFFSET(AL119,-$D119,0)-(AL$6-$D119-1)))) -> 0
